Workbook

Sheet Main
A1: بسم الله الرحمن الرحيم | I1: كنترول شيت الصف الاول
A2: ادارة طوخ التعليمية | I2: للعام الدراسى 2018 / 2019
A3: مدرسة العمار التجارية المشتركة

Sheet بيانات الطالبات
B1: بسم الله الرحمن الرحيم | H1: انتظام | I1: 361 | M1: مسلمة | N1: مسيحية | P1: اختيار ارقام الجلوس
B2: مدرسة العمار التجارية | H2: خدمات | I2: 101 | M2: 439 | N2: 0
B3: طالبات الصف الاول للعام الدراسى 2017 / 2018 | H3: اجمالى | I3: 462 | P3: منتظمين | Q3: 1
B4: مسلسل | C4: مسلسل | D4: جلوس | E4: الاسم | F4: الفصل | G4: الفترة | H4: الديانة | I4: اللجنة | J4: مقرها | K4: اخرى | P4: خدمات | Q4: 1001
M6: الفصل | N6: العدد | Q6: يتم تحديد اللجان والمقرات بورقة اللجان اولا ( ورقة لجان )
B8: 1 | C8: 1 | D8: 1 | E8: اسراء محمد عبد الفتاح محمد | F8: 1/1 | G8: انتظام | H8: مسلمة | I8: 1 | J8: 1/1 | M8: 1/1 | N8: 40 | W8: مسلم
B9: 2 | C9: 2 | D9: 2 | E9: اية محمد رضا محمد علي | F9: 1/1 | G9: انتظام | H9: مسلمة | I9: 1 | J9: 1/1 | M9: 2/1 | N9: 42 | W9: مسلمة
B10: 3 | C10: 3 | D10: 3 | E10: ايمان طه محمدي عباس | F10: 1/1 | G10: انتظام | H10: مسلمة | I10: 1 | J10: 1/1 | M10: 3/1 | N10: 36 | W10: مسيحى
B11: 4 | C11: 4 | D11: 4 | E11: ايمان ماهر محمود قطوطة | F11: 1/1 | G11: انتظام | H11: مسلمة | I11: 1 | J11: 1/1 | M11: 4/1 | N11: 36 | W11: مسيحية
B12: 5 | C12: 5 | D12: 5 | E12: إسراء جمعة سعد سليمان | F12: 1/1 | G12: انتظام | H12: مسلمة | I12: 1 | J12: 1/1 | M12: 5/1 | N12: 40
B13: 6 | C13: 6 | D13: 6 | E13: إسراء عاطف محمد عبد الحافظ | F13: 1/1 | G13: انتظام | H13: مسلمة | I13: 1 | J13: 1/1 | M13: 6/1 | N13: 39
B14: 7 | C14: 7 | D14: 7 | E14: أسماء ماهر جاد محمدي جاب الله | F14: 1/1 | G14: انتظام | H14: مسلمة | I14: 1 | J14: 1/1 | M14: 7/1 | N14: 39
B15: 8 | C15: 8 | D15: 8 | E15: أسماء محمد عبد الرؤف محمد سليم | F15: 1/1 | G15: انتظام | H15: مسلمة | I15: 1 | J15: 1/1 | M15: 8/1 | N15: 39
B16: 9 | C16: 9 | D16: 9 | E16: أسماء وجيه السيد عبد العزيز | F16: 1/1 | G16: انتظام | H16: مسلمة | I16: 1 | J16: 1/1 | M16: 9/1 | N16: 50
B17: 10 | C17: 10 | D17: 10 | E17: أماني صلاح الدين يوسف سليمان | F17: 1/1 | G17: انتظام | H17: مسلمة | I17: 1 | J17: 1/1 | M17: 10/1 | N17: 34
B18: 11 | C18: 11 | D18: 11 | E18: أمنية ياسر ابراهيم عبد السلام | F18: 1/1 | G18: انتظام | H18: مسلمة | I18: 1 | J18: 1/1 | M18: 11/1 | N18: 34
B19: 12 | C19: 12 | D19: 12 | E19: أميرة السيد جودة السيد ابراهيم | F19: 1/1 | G19: انتظام | H19: مسلمة | I19: 1 | J19: 1/1 | M19: 12/1 | N19: 33
B20: 13 | C20: 13 | D20: 13 | E20: أميرة علاء نظير عطية | F20: 1/1 | G20: انتظام | H20: مسلمة | I20: 1 | J20: 1/1 | M20: 13/1 | N20: 0
B21: 14 | C21: 14 | D21: 14 | E21: أميرة محمد سامي محمد علام | F21: 1/1 | G21: انتظام | H21: مسلمة | I21: 1 | J21: 1/1 | M21: 14/1 | N21: 0
B22: 15 | C22: 15 | D22: 15 | E22: آيات الشحات مصطفي موسي | F22: 1/1 | G22: انتظام | H22: مسلمة | I22: 1 | J22: 1/1 | M22: 15/1 | N22: 0
B23: 16 | C23: 16 | D23: 16 | E23: بسمة مصطفي عبد المنعم مصطفي | F23: 1/1 | G23: انتظام | H23: مسلمة | I23: 1 | J23: 1/1 | M23: 16/1 | N23: 0
B24: 17 | C24: 17 | D24: 17 | E24: جملات جمال السيد غريب | F24: 1/1 | G24: انتظام | H24: مسلمة | I24: 1 | J24: 1/1
B25: 18 | C25: 18 | D25: 18 | E25: جهاد عبد المنعم حسنين السيد | F25: 1/1 | G25: انتظام | H25: مسلمة | I25: 1 | J25: 1/1
B26: 19 | C26: 19 | D26: 19 | E26: جهاد محمد خالد حسن محمد | F26: 1/1 | G26: انتظام | H26: مسلمة | I26: 1 | J26: 1/1
B27: 20 | C27: 20 | D27: 20 | E27: رنيا اسماعيل محمد اسماعيل عبده | F27: 1/1 | G27: انتظام | H27: مسلمة | I27: 1 | J27: 1/1
B28: 21 | C28: 21 | D28: 21 | E28: ريم عادل بدر يوسف بدر | F28: 1/1 | G28: انتظام | H28: مسلمة | I28: 2 | J28: 1/1
B29: 22 | C29: 22 | D29: 22 | E29: ريهام صلاح محمد أحمد الهطل | F29: 1/1 | G29: انتظام | H29: مسلمة | I29: 2 | J29: 1/1
B30: 23 | C30: 23 | D30: 23 | E30: سمر أنور محمد عبد الغني | F30: 1/1 | G30: انتظام | H30: مسلمة | I30: 2 | J30: 1/1
B31: 24 | C31: 24 | D31: 24 | E31: سمر رضا عبد اللطيف عيد محمد | F31: 1/1 | G31: انتظام | H31: مسلمة | I31: 2 | J31: 1/1
B32: 25 | C32: 25 | D32: 25 | E32: شامية أحمد دياب حسنين | F32: 1/1 | G32: انتظام | H32: مسلمة | I32: 2 | J32: 1/1
B33: 26 | C33: 26 | D33: 26 | E33: شاهنده تامر مصطفي عبد الوهاب | F33: 1/1 | G33: انتظام | H33: مسلمة | I33: 2 | J33: 1/1
B34: 27 | C34: 27 | D34: 27 | E34: شروق حلاوة فتحي محمد حلاوة | F34: 1/1 | G34: انتظام | H34: مسلمة | I34: 2 | J34: 1/1
B35: 28 | C35: 28 | D35: 28 | E35: شروق طاهر عبد القادر محمد | F35: 1/1 | G35: انتظام | H35: مسلمة | I35: 2 | J35: 1/1
B36: 29 | C36: 29 | D36: 29 | E36: شروق علاء سعد أحمد ادريس | F36: 1/1 | G36: انتظام | H36: مسلمة | I36: 2 | J36: 1/1
B37: 30 | C37: 30 | D37: 30 | E37: شرين وليد فاروق عبد الهادي | F37: 1/1 | G37: انتظام | H37: مسلمة | I37: 2 | J37: 1/1
B38: 31 | C38: 31 | D38: 31 | E38: شيماء رمضان عبد الرسول ابراهيم | F38: 1/1 | G38: انتظام | H38: مسلمة | I38: 2 | J38: 1/1
B39: 32 | C39: 32 | D39: 32 | E39: صباح رضا ابراهيم محمود حسن | F39: 1/1 | G39: انتظام | H39: مسلمة | I39: 2 | J39: 1/1
B40: 33 | C40: 33 | D40: 33 | E40: ضحي مسعد سند ابراهيم | F40: 1/1 | G40: انتظام | H40: مسلمة | I40: 2 | J40: 1/1
B41: 34 | C41: 34 | D41: 34 | E41: عائشة السيد عبد الحي محمد | F41: 1/1 | G41: انتظام | H41: مسلمة | I41: 2 | J41: 1/1 | M41: 43101
B42: 35 | C42: 35 | D42: 35 | E42: عزة عبد المنعم عبد السلام شرف | F42: 1/1 | G42: انتظام | H42: مسلمة | I42: 2 | J42: 1/1
B43: 36 | C43: 36 | D43: 36 | E43: علا زين العابدين علي محمد علي | F43: 1/1 | G43: انتظام | H43: مسلمة | I43: 2 | J43: 1/1
B44: 37 | C44: 37 | D44: 37 | E44: فاطمة أشرف حلمي حسنين قنديل | F44: 1/1 | G44: انتظام | H44: مسلمة | I44: 2 | J44: 1/1
B45: 38 | C45: 38 | D45: 38 | E45: فاطمة عبد الرسول كمال صالح | F45: 1/1 | G45: انتظام | H45: مسلمة | I45: 2 | J45: 1/1
B46: 39 | C46: 39 | D46: 39 | E46: فاطمة علاء الدين محمد طلعت عطية | F46: 1/1 | G46: انتظام | H46: مسلمة | I46: 2 | J46: 1/1
B47: 40 | C47: 40 | D47: 40 | E47: محاسن نجم عبد الباقي عبد المقصود | F47: 1/1 | G47: انتظام | H47: مسلمة | I47: 2 | J47: 1/1
B48: 41 | C48: 41 | D48: 41 | E48: مروة رجب مغازي السيد خضر | F48: 1/1 | G48: انتظام | H48: مسلمة | I48: 3 | J48: 2/1
B49: 42 | C49: 42 | D49: 42 | E49: مروه رضا السيد منصور محمد | F49: 2/1 | G49: انتظام | H49: مسلمة | I49: 3 | J49: 2/1
B50: 43 | C50: 43 | D50: 43 | E50: مشيرة أشرف زكي حسن | F50: 2/1 | G50: انتظام | H50: مسلمة | I50: 3 | J50: 2/1
B51: 44 | C51: 44 | D51: 44 | E51: منار سامي سلامة عامر محمد النجار | F51: 2/1 | G51: انتظام | H51: مسلمة | I51: 3 | J51: 2/1
B52: 45 | C52: 45 | D52: 45 | E52: منار محمد عبد الظاهر ابراهيم شديد | F52: 2/1 | G52: انتظام | H52: مسلمة | I52: 3 | J52: 2/1
B53: 46 | C53: 46 | D53: 46 | E53: منة مجدي محمد محمد | F53: 2/1 | G53: انتظام | H53: مسلمة | I53: 3 | J53: 2/1
B54: 47 | C54: 47 | D54: 47 | E54: مي ابراهيم عطيه شيحة | F54: 2/1 | G54: انتظام | H54: مسلمة | I54: 3 | J54: 2/1
B55: 48 | C55: 48 | D55: 48 | E55: ندي مجدي السيد اسماعيل سليم | F55: 2/1 | G55: انتظام | H55: مسلمة | I55: 3 | J55: 2/1
B56: 49 | C56: 49 | D56: 49 | E56: نورهان أشرف فتحي عبد المقصود | F56: 2/1 | G56: انتظام | H56: مسلمة | I56: 3 | J56: 2/1
B57: 50 | C57: 50 | D57: 50 | E57: نورهان عبد العليم عبد الباقي عبده | F57: 2/1 | G57: انتظام | H57: مسلمة | I57: 3 | J57: 2/1
B58: 51 | C58: 51 | D58: 51 | E58: هاله عبد الرسول عابد رفاعي | F58: 2/1 | G58: انتظام | H58: مسلمة | I58: 3 | J58: 2/1
B59: 52 | C59: 52 | D59: 52 | E59: هانم صلاح الدين عبد الحميد محمد | F59: 2/1 | G59: انتظام | H59: مسلمة | I59: 3 | J59: 2/1
B60: 53 | C60: 53 | D60: 53 | E60: هبه محمود عبد الستار السيد | F60: 2/1 | G60: انتظام | H60: مسلمة | I60: 3 | J60: 2/1
B61: 54 | C61: 54 | D61: 54 | E61: هدي نور الدين حلمي علي | F61: 2/1 | G61: انتظام | H61: مسلمة | I61: 3 | J61: 2/1
B62: 55 | C62: 55 | D62: 55 | E62: هدير أشرف عبد الحكم علي منصور | F62: 2/1 | G62: انتظام | H62: مسلمة | I62: 3 | J62: 2/1
B63: 56 | C63: 56 | D63: 56 | E63: ياسمين محمود محمد المغازي محمد | F63: 2/1 | G63: انتظام | H63: مسلمة | I63: 3 | J63: 2/1
B64: 57 | C64: 57 | D64: 57 | E64: شروق مصطفي مسعد مصطفي | F64: 2/1 | G64: انتظام | H64: مسلمة | I64: 3 | J64: 2/1
B65: 58 | C65: 58 | D65: 58 | E65: ابراهيم السيد رفاعي حسين خميس | F65: 2/1 | G65: انتظام | H65: مسلم | I65: 3 | J65: 2/1
B66: 59 | C66: 59 | D66: 59 | E66: ابراهيم علي علي امام علي | F66: 2/1 | G66: انتظام | H66: مسلم | I66: 3 | J66: 2/1
B67: 60 | C67: 60 | D67: 60 | E67: ابراهيم محمد عبد العليم محمد | F67: 2/1 | G67: انتظام | H67: مسلم | I67: 3 | J67: 2/1
B68: 61 | C68: 61 | D68: 61 | E68: ابراهيم مسعد عبد المرضي عبد السلام | F68: 2/1 | G68: انتظام | H68: مسلم | I68: 4 | J68: 2/1
B69: 62 | C69: 62 | D69: 62 | E69: السيد ابراهيم السيد ابراهيم | F69: 2/1 | G69: انتظام | H69: مسلم | I69: 4 | J69: 2/1
B70: 63 | C70: 63 | D70: 63 | E70: أحمد السيد محمد السيد عيسوي | F70: 2/1 | G70: انتظام | H70: مسلم | I70: 4 | J70: 2/1
B71: 64 | C71: 64 | D71: 64 | E71: أحمد أشرف السيد عفيفي | F71: 2/1 | G71: انتظام | H71: مسلم | I71: 4 | J71: 2/1
B72: 65 | C72: 65 | D72: 65 | E72: أحمد أشرف عبد السميع علي | F72: 2/1 | G72: انتظام | H72: مسلم | I72: 4 | J72: 2/1
B73: 66 | C73: 66 | D73: 66 | E73: أحمد أنور عبد الوهاب عبد العظيم | F73: 2/1 | G73: انتظام | H73: مسلم | I73: 4 | J73: 2/1
B74: 67 | C74: 67 | D74: 67 | E74: أحمد جمال الصادق منصور | F74: 2/1 | G74: انتظام | H74: مسلم | I74: 4 | J74: 2/1
B75: 68 | C75: 68 | D75: 68 | E75: أحمد جمال فاروق عبد العليم عجلان | F75: 2/1 | G75: انتظام | H75: مسلم | I75: 4 | J75: 2/1
B76: 69 | C76: 69 | D76: 69 | E76: أحمد جمال محمود علي | F76: 2/1 | G76: انتظام | H76: مسلم | I76: 4 | J76: 2/1
B77: 70 | C77: 70 | D77: 70 | E77: أحمد سعيد عبد الباقي شحاتة | F77: 3/1 | G77: انتظام | H77: مسلم | I77: 4 | J77: 2/1
B78: 71 | C78: 71 | D78: 71 | E78: أحمد علي علي امام | F78: 3/1 | G78: انتظام | H78: مسلم | I78: 4 | J78: 2/1
B79: 72 | C79: 72 | D79: 72 | E79: أحمد محمد سامي حسين | F79: 3/1 | G79: انتظام | H79: مسلم | I79: 4 | J79: 2/1
B80: 73 | C80: 73 | D80: 73 | E80: أحمد محمد عبده عطا | F80: 2/1 | G80: انتظام | H80: مسلم | I80: 4 | J80: 2/1
B81: 74 | C81: 74 | D81: 74 | E81: أحمد محمد عزت محمد محمد | F81: 3/1 | G81: انتظام | H81: مسلم | I81: 4 | J81: 2/1
B82: 75 | C82: 75 | D82: 75 | E82: أحمد محمود زكي بربش | F82: 2/1 | G82: انتظام | H82: مسلم | I82: 4 | J82: 2/1
B83: 76 | C83: 76 | D83: 76 | E83: أحمد محمود عبد الرسول ابراهيم | F83: 2/1 | G83: انتظام | H83: مسلم | I83: 4 | J83: 2/1
B84: 77 | C84: 77 | D84: 77 | E84: أحمد مصطفي عبد العليم مصطفي | F84: 3/1 | G84: انتظام | H84: مسلم | I84: 4 | J84: 2/1
B85: 78 | C85: 78 | D85: 78 | E85: أحمد وحيد فؤاد هلال | F85: 2/1 | G85: انتظام | H85: مسلم | I85: 4 | J85: 2/1
B86: 79 | C86: 79 | D86: 79 | E86: أدهم رضا عفيفي عفيفي | F86: 3/1 | G86: انتظام | H86: مسلم | I86: 4 | J86: 2/1
B87: 80 | C87: 80 | D87: 80 | E87: أسامة وحيد السيد متولي | F87: 3/1 | G87: انتظام | H87: مسلم | I87: 4 | J87: 2/1
B88: 81 | C88: 81 | D88: 81 | E88: أنس أحمد حامد محمد | F88: 3/1 | G88: انتظام | H88: مسلم | I88: 5 | J88: 3/1
B89: 82 | C89: 82 | D89: 82 | E89: جمال سامي محمد حسن أبو العلا | F89: 3/1 | G89: انتظام | H89: مسلم | I89: 5 | J89: 3/1
B90: 83 | C90: 83 | D90: 83 | E90: جمال عبد الرسول سلامة موسي | F90: 3/1 | G90: انتظام | H90: مسلم | I90: 5 | J90: 3/1
B91: 84 | C91: 84 | D91: 84 | E91: حسام شحاته محمدي الطوخي | F91: 3/1 | G91: انتظام | H91: مسلم | I91: 5 | J91: 3/1
B92: 85 | C92: 85 | D92: 85 | E92: حسام عبد الحميد محمد المسعد | F92: 3/1 | G92: انتظام | H92: مسلم | I92: 5 | J92: 3/1
B93: 86 | C93: 86 | D93: 86 | E93: حسام علي عبد الغني علي | F93: 3/1 | G93: انتظام | H93: مسلم | I93: 5 | J93: 3/1
B94: 87 | C94: 87 | D94: 87 | E94: حسين رجب سليمان حسين | F94: 3/1 | G94: انتظام | H94: مسلم | I94: 5 | J94: 3/1
B95: 88 | C95: 88 | D95: 88 | E95: حلمي أشرف حلمي عبد العظيم | F95: 3/1 | G95: انتظام | H95: مسلم | I95: 5 | J95: 3/1
B96: 89 | C96: 89 | D96: 89 | E96: حلمي حمادة حلمي محمود | F96: 3/1 | G96: انتظام | H96: مسلم | I96: 5 | J96: 3/1
B97: 90 | C97: 90 | D97: 90 | E97: حمدي مصطفي علي مصطفي | F97: 3/1 | G97: انتظام | H97: مسلم | I97: 5 | J97: 3/1
B98: 91 | C98: 91 | D98: 91 | E98: حمدي ممدوح حمد السيد | F98: 3/1 | G98: انتظام | H98: مسلم | I98: 5 | J98: 3/1
B99: 92 | C99: 92 | D99: 92 | E99: خالد عبد القادر عبد القادر محمد | F99: 3/1 | G99: انتظام | H99: مسلم | I99: 5 | J99: 3/1
B100: 93 | C100: 93 | D100: 93 | E100: خالد يوسف لطفي عبد المحسن | F100: 3/1 | G100: انتظام | H100: مسلم | I100: 5 | J100: 3/1
B101: 94 | C101: 94 | D101: 94 | E101: رزق محمد رزق معوض | F101: 3/1 | G101: انتظام | H101: مسلم | I101: 5 | J101: 3/1
B102: 95 | C102: 95 | D102: 95 | E102: سعد مسعد سعد المغازي | F102: 3/1 | G102: انتظام | H102: مسلم | I102: 5 | J102: 3/1
B103: 96 | C103: 96 | D103: 96 | E103: سليمان مصطفي سليمان عبد العزيز | F103: 3/1 | G103: انتظام | H103: مسلم | I103: 5 | J103: 3/1
B104: 97 | C104: 97 | D104: 97 | E104: عبد الرحمن سراج الدين محمد عباس | F104: 3/1 | G104: انتظام | H104: مسلم | I104: 5 | J104: 3/1
B105: 98 | C105: 98 | D105: 98 | E105: عبد السميع جمال عبد السميع علي | F105: 3/1 | G105: انتظام | H105: مسلم | I105: 5 | J105: 3/1
B106: 99 | C106: 99 | D106: 99 | E106: عبد الله سامي محمد البيومي علام | F106: 3/1 | G106: انتظام | H106: مسلم | I106: 5 | J106: 3/1
B107: 100 | C107: 100 | D107: 100 | E107: عبد الله طلعت عبد السلام محمد | F107: 3/1 | G107: انتظام | H107: مسلم | I107: 5 | J107: 3/1
B108: 101 | C108: 101 | D108: 101 | E108: عبد الله وائل عبد الله سعد حسيني | F108: 3/1 | G108: انتظام | H108: مسلم | I108: 6 | J108: 3/1
B109: 102 | C109: 102 | D109: 102 | E109: عبد الله ياسر عبد الله تهامي | F109: 3/1 | G109: انتظام | H109: مسلم | I109: 6 | J109: 3/1
B110: 103 | C110: 103 | D110: 103 | E110: عصام جمال عبد الناصر عبد الهادي | F110: 3/1 | G110: انتظام | H110: مسلم | I110: 6 | J110: 3/1
B111: 104 | C111: 104 | D111: 104 | E111: علاء مختار فؤاد هلالي | F111: 2/1 | G111: انتظام | H111: مسلم | I111: 6 | J111: 3/1
B112: 105 | C112: 105 | D112: 105 | E112: علي السيد علي رجب | F112: 3/1 | G112: انتظام | H112: مسلم | I112: 6 | J112: 3/1
B113: 106 | C113: 106 | D113: 106 | E113: عمار عبد الباقي محمد البكري جاد | F113: 3/1 | G113: انتظام | H113: مسلم | I113: 6 | J113: 3/1
B114: 107 | C114: 107 | D114: 107 | E114: عمر رضا ابراهيم عبد الغني الرفاعي | F114: 3/1 | G114: انتظام | H114: مسلم | I114: 6 | J114: 3/1
B115: 108 | C115: 108 | D115: 108 | E115: عمر عبد العزيز أحمد أحمد | F115: 3/1 | G115: انتظام | H115: مسلم | I115: 6 | J115: 3/1
B116: 109 | C116: 109 | D116: 109 | E116: عمر عبد العليم كامل محمود | F116: 3/1 | G116: انتظام | H116: مسلم | I116: 6 | J116: 3/1
B117: 110 | C117: 110 | D117: 110 | E117: عمر وائل عمر محمد الشبراوي | F117: 4/1 | G117: انتظام | H117: مسلم | I117: 6 | J117: 3/1
B118: 111 | C118: 111 | D118: 111 | E118: عمرو سعيد السيد رضوان علي | F118: 4/1 | G118: انتظام | H118: مسلم | I118: 6 | J118: 3/1
B119: 112 | C119: 112 | D119: 112 | E119: عمرو عبد الرحمن عثمان علي | F119: 4/1 | G119: انتظام | H119: مسلم | I119: 6 | J119: 3/1
B120: 113 | C120: 113 | D120: 113 | E120: فتحي نور الدين فتحي الجوهري | F120: 4/1 | G120: انتظام | H120: مسلم | I120: 6 | J120: 3/1
B121: 114 | C121: 114 | D121: 114 | E121: قاسم محمد قاسم محمد محمد | F121: 4/1 | G121: انتظام | H121: مسلم | I121: 6 | J121: 3/1
B122: 115 | C122: 115 | D122: 115 | E122: كريم عربي عبد المعبود محمد | F122: 4/1 | G122: انتظام | H122: مسلم | I122: 6 | J122: 3/1
B123: 116 | C123: 116 | D123: 116 | E123: مبروك فج النور مبروك اسماعيل | F123: 4/1 | G123: انتظام | H123: مسلم | I123: 6 | J123: 3/1
B124: 117 | C124: 117 | D124: 117 | E124: مجدي أحمد حسين محمد | F124: 4/1 | G124: انتظام | H124: مسلم | I124: 6 | J124: 3/1
B125: 118 | C125: 118 | D125: 118 | E125: محمد ابراهيم محمد حسانين | F125: 4/1 | G125: انتظام | H125: مسلم | I125: 6 | J125: 3/1
B126: 119 | C126: 119 | D126: 119 | E126: محمد احمد شحاته شهوان | F126: 4/1 | G126: انتظام | H126: مسلم | I126: 6 | J126: 3/1
B127: 120 | C127: 120 | D127: 120 | E127: محمد اسامه محمد يوسف محمد | F127: 4/1 | G127: انتظام | H127: مسلم | I127: 6 | J127: 3/1
B128: 121 | C128: 121 | D128: 121 | E128: محمد أحمد محمد محمود | F128: 4/1 | G128: انتظام | H128: مسلم | I128: 7 | J128: 4/1
B129: 122 | C129: 122 | D129: 122 | E129: محمد أسامة عزت السيد محمد | F129: 4/1 | G129: انتظام | H129: مسلم | I129: 7 | J129: 4/1
B130: 123 | C130: 123 | D130: 123 | E130: محمد أيمن سليمان جبر | F130: 4/1 | G130: انتظام | H130: مسلم | I130: 7 | J130: 4/1
B131: 124 | C131: 124 | D131: 124 | E131: محمد أيمن كمال كامل السيد | F131: 4/1 | G131: انتظام | H131: مسلم | I131: 7 | J131: 4/1
B132: 125 | C132: 125 | D132: 125 | E132: محمد بكري عبد العزيز حسن علي | F132: 4/1 | G132: انتظام | H132: مسلم | I132: 7 | J132: 4/1
B133: 126 | C133: 126 | D133: 126 | E133: محمد جاد أحمد عبد الرحمن | F133: 4/1 | G133: انتظام | H133: مسلم | I133: 7 | J133: 4/1
B134: 127 | C134: 127 | D134: 127 | E134: محمد جمال اسماعيل السيد علي | F134: 4/1 | G134: انتظام | H134: مسلم | I134: 7 | J134: 4/1
B135: 128 | C135: 128 | D135: 128 | E135: محمد ربيع السيد شحاته | F135: 4/1 | G135: انتظام | H135: مسلم | I135: 7 | J135: 4/1
B136: 129 | C136: 129 | D136: 129 | E136: محمد رضا مصطفي عبد العزيز | F136: 4/1 | G136: انتظام | H136: مسلم | I136: 7 | J136: 4/1
B137: 130 | C137: 130 | D137: 130 | E137: محمد رمضان محمد محمد عجاج | F137: 4/1 | G137: انتظام | H137: مسلم | I137: 7 | J137: 4/1
B138: 131 | C138: 131 | D138: 131 | E138: محمد سالم سليمان محمد | F138: 4/1 | G138: انتظام | H138: مسلم | I138: 7 | J138: 4/1
B139: 132 | C139: 132 | D139: 132 | E139: محمد سمير محمود محمد نصر | F139: 2/1 | G139: انتظام | H139: مسلم | I139: 7 | J139: 4/1
B140: 133 | C140: 133 | D140: 133 | E140: محمد صلاح عفيفي أحمد نصر | F140: 2/1 | G140: انتظام | H140: مسلم | I140: 7 | J140: 4/1
B141: 134 | C141: 134 | D141: 134 | E141: محمد عبد الرحمن محمد عبد الغني | F141: 3/1 | G141: انتظام | H141: مسلم | I141: 7 | J141: 4/1
B142: 135 | C142: 135 | D142: 135 | E142: محمد عبد العزيز عبد الحليم عبد العزيز | F142: 4/1 | G142: انتظام | H142: مسلم | I142: 7 | J142: 4/1
B143: 136 | C143: 136 | D143: 136 | E143: محمد عرفة محمد عرفة عبد الباقي | F143: 4/1 | G143: انتظام | H143: مسلم | I143: 7 | J143: 4/1
B144: 137 | C144: 137 | D144: 137 | E144: محمد عزت عبده محمد عفيفي | F144: 4/1 | G144: انتظام | H144: مسلم | I144: 7 | J144: 4/1
B145: 138 | C145: 138 | D145: 138 | E145: محمد فهمي عبد الحميد محمد بدر | F145: 4/1 | G145: انتظام | H145: مسلم | I145: 7 | J145: 4/1
B146: 139 | C146: 139 | D146: 139 | E146: محمد فيصل علي ابراهيم عبد العاطي | F146: 5/1 | G146: انتظام | H146: مسلم | I146: 7 | J146: 4/1
B147: 140 | C147: 140 | D147: 140 | E147: محمد كمال علي موسي علي | F147: 5/1 | G147: انتظام | H147: مسلم | I147: 7 | J147: 4/1
B148: 141 | C148: 141 | D148: 141 | E148: محمد ماهر عبد الهادي شكر | F148: 5/1 | G148: انتظام | H148: مسلم | I148: 8 | J148: 4/1
B149: 142 | C149: 142 | D149: 142 | E149: محمد مجدي فتحي محمود السيد | F149: 5/1 | G149: انتظام | H149: مسلم | I149: 8 | J149: 4/1
B150: 143 | C150: 143 | D150: 143 | E150: محمد مسعد سعيد عبد القادر | F150: 5/1 | G150: انتظام | H150: مسلم | I150: 8 | J150: 4/1
B151: 144 | C151: 144 | D151: 144 | E151: محمد مغاوري رمضان مغاوري | F151: 5/1 | G151: انتظام | H151: مسلم | I151: 8 | J151: 4/1
B152: 145 | C152: 145 | D152: 145 | E152: محمد منير عبد الوهاب ابو العينين | F152: 5/1 | G152: انتظام | H152: مسلم | I152: 8 | J152: 4/1
B153: 146 | C153: 146 | D153: 146 | E153: محمد ناصر أحمد السيد | F153: 5/1 | G153: انتظام | H153: مسلم | I153: 8 | J153: 4/1
B154: 147 | C154: 147 | D154: 147 | E154: محمد ياسر لبيب أحمد | F154: 5/1 | G154: انتظام | H154: مسلم | I154: 8 | J154: 4/1
B155: 148 | C155: 148 | D155: 148 | E155: محمد يوسف عبد المعطي يوسف | F155: 5/1 | G155: انتظام | H155: مسلم | I155: 8 | J155: 4/1
B156: 149 | C156: 149 | D156: 149 | E156: محمود السيد أحمد عبد العال | F156: 5/1 | G156: انتظام | H156: مسلم | I156: 8 | J156: 4/1
B157: 150 | C157: 150 | D157: 150 | E157: محمود أحمد شعبان عمارة | F157: 5/1 | G157: انتظام | H157: مسلم | I157: 8 | J157: 4/1
B158: 151 | C158: 151 | D158: 151 | E158: محمود رمضان عبد الرسول ابراهيم | F158: 5/1 | G158: انتظام | H158: مسلم | I158: 8 | J158: 4/1
B159: 152 | C159: 152 | D159: 152 | E159: محمود زكريا محمود كامل محمود | F159: 5/1 | G159: انتظام | H159: مسلم | I159: 8 | J159: 4/1
B160: 153 | C160: 153 | D160: 153 | E160: محمود عادل عمر محمود حسانين | F160: 5/1 | G160: انتظام | H160: مسلم | I160: 8 | J160: 4/1
B161: 154 | C161: 154 | D161: 154 | E161: محمود عادل محمد علي السيد | F161: 2/1 | G161: انتظام | H161: مسلم | I161: 8 | J161: 4/1
B162: 155 | C162: 155 | D162: 155 | E162: محمود عبد الفتاح ابراهيم الدسوقي | F162: 2/1 | G162: انتظام | H162: مسلم | I162: 8 | J162: 4/1
B163: 156 | C163: 156 | D163: 156 | E163: محمود عصام محمود محمد | F163: 5/1 | G163: انتظام | H163: مسلم | I163: 8 | J163: 4/1
B164: 157 | C164: 157 | D164: 157 | E164: محمود عليوه طه عبد السلام | F164: 5/1 | G164: انتظام | H164: مسلم | I164: 8 | J164: 4/1
B165: 158 | C165: 158 | D165: 158 | E165: محمود عماد الدين عبد الوهاب اسماعيل | F165: 5/1 | G165: انتظام | H165: مسلم | I165: 8 | J165: 4/1
B166: 159 | C166: 159 | D166: 159 | E166: محمود محمد يوسف محمد يوسف | F166: 5/1 | G166: انتظام | H166: مسلم | I166: 8 | J166: 4/1
B167: 160 | C167: 160 | D167: 160 | E167: محمود مسعد بحيري السيد نصر | F167: 5/1 | G167: انتظام | H167: مسلم | I167: 8 | J167: 4/1
B168: 161 | C168: 161 | D168: 161 | E168: محمود مسعد منصور منصور | F168: 5/1 | G168: انتظام | H168: مسلم | I168: 9 | J168: 5/1
B169: 162 | C169: 162 | D169: 162 | E169: مسعد محمد رضا محمود دسوقي | F169: 5/1 | G169: انتظام | H169: مسلم | I169: 9 | J169: 5/1
B170: 163 | C170: 163 | D170: 163 | E170: مصطفي مسعد عبد الجيد عبده | F170: 5/1 | G170: انتظام | H170: مسلم | I170: 9 | J170: 5/1
B171: 164 | C171: 164 | D171: 164 | E171: مصطفي ياسر لبيب أحمد | F171: 5/1 | G171: انتظام | H171: مسلم | I171: 9 | J171: 5/1
B172: 165 | C172: 165 | D172: 165 | E172: نادر سمير سعد جاد الله | F172: 5/1 | G172: انتظام | H172: مسلم | I172: 9 | J172: 5/1
B173: 166 | C173: 166 | D173: 166 | E173: هشام رمضان عطية محمد | F173: 5/1 | G173: انتظام | H173: مسلم | I173: 9 | J173: 5/1
B174: 167 | C174: 167 | D174: 167 | E174: يوسف منصور محمد حسن | F174: 5/1 | G174: انتظام | H174: مسلم | I174: 9 | J174: 5/1
B175: 168 | C175: 168 | D175: 168 | E175: آية رضا أحمد شربجي عبد الرحمن | F175: 5/1 | G175: انتظام | H175: مسلمة | I175: 9 | J175: 5/1
B176: 169 | C176: 169 | D176: 169 | E176: سماح وجيه فتحي عادل | F176: 5/1 | G176: انتظام | H176: مسلمة | I176: 9 | J176: 5/1
B177: 170 | C177: 170 | D177: 170 | E177: شرين صبحي أحمد أحمد علي | F177: 5/1 | G177: انتظام | H177: مسلمة | I177: 9 | J177: 5/1
B178: 171 | C178: 171 | D178: 171 | E178: هبة محمد كرم حجازي محمد | F178: 5/1 | G178: انتظام | H178: مسلمة | I178: 9 | J178: 5/1
B179: 172 | C179: 172 | D179: 172 | E179: عبد الحليم محمد عبد الحليم محمد | F179: 5/1 | G179: انتظام | H179: مسلم | I179: 9 | J179: 5/1
B180: 173 | C180: 173 | D180: 173 | E180: علي بيومي مغازي محمد الفخراني | F180: 5/1 | G180: انتظام | H180: مسلم | I180: 9 | J180: 5/1
B181: 174 | C181: 174 | D181: 174 | E181: محمد صلاح الدين محمد محمد | F181: 5/1 | G181: انتظام | H181: مسلم | I181: 9 | J181: 5/1
B182: 175 | C182: 175 | D182: 175 | E182: محمود علي عبد الله شحاته | F182: 5/1 | G182: انتظام | H182: مسلم | I182: 9 | J182: 5/1
B183: 176 | C183: 176 | D183: 176 | F183: 5/1 | I183: 9 | J183: 5/1
B184: 177 | C184: 177 | D184: 177 | F184: 5/1 | I184: 9 | J184: 5/1
B185: 178 | C185: 178 | D185: 178 | F185: 5/1 | I185: 9 | J185: 5/1
B186: 179 | C186: 179 | D186: 179 | F186: 5/1 | I186: 9 | J186: 5/1
B187: 180 | C187: 180 | D187: 180 | F187: 5/1 | I187: 9 | J187: 5/1
B188: 181 | C188: 181 | D188: 181 | F188: 6/1 | I188: 10 | J188: 5/1
B189: 182 | C189: 182 | D189: 182 | F189: 6/1 | I189: 10 | J189: 5/1
B190: 183 | C190: 183 | D190: 183 | F190: 6/1 | I190: 10 | J190: 5/1
B191: 184 | C191: 184 | D191: 184 | F191: 6/1 | I191: 10 | J191: 5/1
B192: 185 | C192: 185 | D192: 185 | F192: 6/1 | I192: 10 | J192: 5/1
B193: 186 | C193: 186 | D193: 186 | F193: 6/1 | I193: 10 | J193: 5/1
B194: 187 | C194: 187 | D194: 187 | F194: 6/1 | I194: 10 | J194: 5/1
B195: 188 | C195: 188 | D195: 188 | F195: 6/1 | I195: 10 | J195: 5/1
B196: 189 | C196: 189 | D196: 189 | F196: 6/1 | I196: 10 | J196: 5/1
B197: 190 | C197: 190 | D197: 190 | F197: 6/1 | I197: 10 | J197: 5/1
B198: 191 | C198: 191 | D198: 191 | F198: 6/1 | I198: 10 | J198: 5/1
B199: 192 | C199: 192 | D199: 192 | F199: 6/1 | I199: 10 | J199: 5/1
B200: 193 | C200: 193 | D200: 193 | F200: 6/1 | I200: 10 | J200: 5/1
B201: 194 | C201: 194 | D201: 194 | F201: 6/1 | I201: 10 | J201: 5/1
B202: 195 | C202: 195 | D202: 195 | F202: 6/1 | I202: 10 | J202: 5/1
... 267 more rows

Sheet لجان
B1: ادارة طوخ التعليمية | F1: 1 | H1: ادارة طوخ التعليمية | K1: لجنة : | L1: =F1+1 -> 2 | AA1: 1/1 | AB1: 2/1
B2: مدرسة العمار التجارية | E2: المقر : | F2: 1/1 | H2: مدرسة العمار التجارية | K2: المقر : | L2: 2/1 | AA2: 3/1 | AB2: 4/1
B3: الصف الاول | D3: الفترة : | E3: منتظمة | H3: الصف الاول | J3: الفترة : | K3: منتظمة | AA3: 5/1 | AB3: 6/1
C4: من : | D4: 1 | E4: الى : | F4: 20 | I4: من : | J4: 21 | K4: الى : | L4: 40 | N4: يتم تحديد عدد كل لجنة اولا قبل الضغط على الزر | AA4: 7/1 | AB4: 8/1
B5: م | C5: جلوس | D5: اسم الطالبة | E5: الفصل | F5: ملاحظات | H5: م | I5: جلوس | J5: اسم الطالبة | K5: الفصل | L5: ملاحظات | N5: لجنة | O5: من | P5: الى | Q5: العدد | R5: المقر | S5: الشعبة | AA5: 9/1 | AB5: 10/1
B6: 1 | C6: 1 | D6: اسراء محمد عبد الفتاح محمد | E6: 1/1 | H6: 1 | I6: 21 | J6: ريم عادل بدر يوسف بدر | K6: 1/1 | N6: 1 | O6: 1 | P6: 20 | Q6: 20 | R6: 1/1 | S6: منتظمة | AA6: 11/1 | AB6: 12/1
B7: 2 | C7: 2 | D7: اية محمد رضا محمد علي | E7: 2/1 | H7: 2 | I7: 22 | J7: ريهام صلاح محمد أحمد الهطل | K7: 1/1 | N7: 2 | O7: 21 | P7: 40 | Q7: 20 | R7: 2/1 | S7: منتظمة
B8: 3 | C8: 3 | D8: ايمان طه محمدي عباس | E8: 1/1 | H8: 3 | I8: 23 | J8: سمر أنور محمد عبد الغني | K8: 1/1 | N8: 3 | O8: 41 | P8: 60 | Q8: 20 | R8: 3/1 | S8: منتظمة
B9: 4 | C9: 4 | D9: ايمان ماهر محمود قطوطة | E9: 1/1 | H9: 4 | I9: 24 | J9: سمر رضا عبد اللطيف عيد محمد | K9: 1/1 | N9: 4 | O9: 61 | P9: 80 | Q9: 20 | R9: 4/1 | S9: منتظمة
B10: 5 | C10: 5 | D10: إسراء جمعة سعد سليمان | E10: 1/1 | H10: 5 | I10: 25 | J10: شامية أحمد دياب حسنين | K10: 1/1 | N10: 5 | O10: 781 | P10: 800 | Q10: 20 | R10: 1/2 | S10: منتظمة
B11: 6 | C11: 6 | D11: إسراء عاطف محمد عبد الحافظ | E11: 1/1 | H11: 6 | I11: 26 | J11: شاهنده تامر مصطفي عبد الوهاب | K11: 1/1 | N11: 6 | O11: 801 | P11: 820 | Q11: 20 | R11: 2/2 | S11: منتظمة
B12: 7 | C12: 7 | D12: أسماء ماهر جاد محمدي جاب الله | E12: 1/1 | H12: 7 | I12: 27 | J12: شروق حلاوة فتحي محمد حلاوة | K12: 1/1 | N12: 7 | O12: 821 | P12: 840 | Q12: 20 | R12: 3/2 | S12: منتظمة
B13: 8 | C13: 8 | D13: أسماء محمد عبد الرؤف محمد سليم | E13: 1/1 | H13: 8 | I13: 28 | J13: شروق طاهر عبد القادر محمد | K13: 1/1 | N13: 8 | O13: 841 | P13: 860 | Q13: 20 | R13: 4/2 | S13: منتظمة
B14: 9 | C14: 9 | D14: أسماء وجيه السيد عبد العزيز | E14: 1/1 | H14: 9 | I14: 29 | J14: شروق علاء سعد أحمد ادريس | K14: 1/1 | N14: 9 | O14: 861 | P14: 880 | Q14: 20 | R14: 2/5 | S14: منتظمة
B15: 10 | C15: 10 | D15: أماني صلاح الدين يوسف سليمان | E15: 1/1 | H15: 10 | I15: 30 | J15: شرين وليد فاروق عبد الهادي | K15: 1/1 | N15: 10 | O15: 881 | P15: 900 | Q15: 20 | R15: 2/6 | S15: منتظمة
B16: 11 | C16: 11 | D16: أمنية ياسر ابراهيم عبد السلام | E16: 1/1 | H16: 11 | I16: 31 | J16: شيماء رمضان عبد الرسول ابراهيم | K16: 1/1 | N16: 11 | O16: 901 | P16: 920 | Q16: 20 | R16: 1/3 | S16: منتظمة
B17: 12 | C17: 12 | D17: أميرة السيد جودة السيد ابراهيم | E17: 1/1 | H17: 12 | I17: 32 | J17: صباح رضا ابراهيم محمود حسن | K17: 1/1 | N17: 12 | O17: 921 | P17: 940 | Q17: 20 | R17: 2/3 | S17: منتظمة
B18: 13 | C18: 13 | D18: أميرة علاء نظير عطية | E18: 1/1 | H18: 13 | I18: 33 | J18: ضحي مسعد سند ابراهيم | K18: 1/1 | N18: 13 | O18: 941 | P18: 960 | Q18: 20 | R18: 3/3 | S18: منتظمة
B19: 14 | C19: 14 | D19: أميرة محمد سامي محمد علام | E19: 1/1 | H19: 14 | I19: 34 | J19: عائشة السيد عبد الحي محمد | K19: 1/1 | N19: 14 | O19: 961 | P19: 980 | Q19: 20 | R19: 4/3 | S19: منتظمة
B20: 15 | C20: 15 | D20: آيات الشحات مصطفي موسي | E20: 1/1 | H20: 15 | I20: 35 | J20: عزة عبد المنعم عبد السلام شرف | K20: 1/1 | N20: 15 | O20: 981 | P20: 1000 | Q20: 20 | R20: 8/1 | S20: منتظمة
B21: 16 | C21: 16 | D21: بسمة مصطفي عبد المنعم مصطفي | E21: 1/1 | H21: 16 | I21: 36 | J21: علا زين العابدين علي محمد علي | K21: 1/1 | N21: 16 | O21: 1001 | P21: 1020 | Q21: 20 | R21: 8/1 | S21: منتظمة
B22: 17 | C22: 17 | D22: جملات جمال السيد غريب | E22: 1/1 | H22: 17 | I22: 37 | J22: فاطمة أشرف حلمي حسنين قنديل | K22: 1/1 | N22: 17 | O22: 1021 | P22: 1040 | Q22: 20 | R22: 9/1 | S22: منتظمة
B23: 18 | C23: 18 | D23: جهاد عبد المنعم حسنين السيد | E23: 1/1 | H23: 18 | I23: 38 | J23: فاطمة عبد الرسول كمال صالح | K23: 1/1 | N23: 18 | O23: 1041 | P23: 1060 | Q23: 21 | R23: 9/1 | S23: منتظمة
B24: 19 | C24: 19 | D24: جهاد محمد خالد حسن محمد | E24: 1/1 | H24: 19 | I24: 39 | J24: فاطمة علاء الدين محمد طلعت عطية | K24: 1/1 | N24: 19 | O24: 1101 | P24: 1120 | Q24: 20 | R24: 10/1 | S24: منتظمة
B25: 20 | C25: 20 | D25: رنيا اسماعيل محمد اسماعيل عبده | E25: 1/1 | H25: 20 | I25: 40 | J25: محاسن نجم عبد الباقي عبد المقصود | K25: 1/1 | N25: 20 | O25: 1121 | P25: 1140 | Q25: 20 | R25: 10/1 | S25: منتظمة
N26: 21 | O26: 1141 | P26: 1160 | Q26: 20 | R26: 11/1 | S26: خدمات
N27: 22 | O27: 1161 | P27: 1180 | Q27: 20 | R27: 11/1 | S27: خدمات
N28: 23 | O28: 1181 | P28: 1201 | Q28: 21 | R28: 11/1 | S28: خدمات
N29: 24
N30: 25
B31: كنترول الصف الثانى | E31: ادارة المدرسة | H31: كنترول الصف الثانى | K31: ادارة المدرسة | N31: 26
N32: 27
N33: 28
N34: 29
N35: 30

Sheet جلوس
B1: مدرسة العمار التجارية | M1: 1 | O1: الورقة رقم | Q1: =M1 -> 1
E2: ارقام جلوس الصف الاول 2017 / 2018
C4: اخطار برقم جلوس 2018 | J4: اخطار برقم جلوس 2018
B5: مدرسة العمار التجارية | F5: رقم الجلوس / | G5: 1 | I5: مدرسة العمار التجارية | M5: رقم الجلوس / | N5: 7 | Y5: =($M$1-1)*12+1 -> 1 | Z5: =$Y$5+6 -> 7
B6: الاسم / | C6: اسراء محمد عبد الفتاح محمد | F6: رقم اللجنة / | G6: 1 | I6: الاسم / | J6: أسماء ماهر جاد محمدي جاب الله | M6: رقم اللجنة / | N6: 1
B7: الفصل / | C7: 1/1 | F7: مقر اللجنة / | G7: 1/1 | I7: الفصل / | J7: 1/1 | M7: مقر اللجنة / | N7: 1/1
C9: اخطار برقم جلوس 2018 | J9: اخطار برقم جلوس 2018
B10: مدرسة العمار التجارية | F10: رقم الجلوس / | G10: 2 | I10: مدرسة العمار التجارية | M10: رقم الجلوس / | N10: 8 | Y10: =$Y$5+1 -> 2 | Z10: =$Y$10+6 -> 8
B11: الاسم / | C11: اية محمد رضا محمد علي | F11: رقم اللجنة / | G11: 1 | I11: الاسم / | J11: أسماء محمد عبد الرؤف محمد سليم | M11: رقم اللجنة / | N11: 1
B12: الفصل / | C12: 2/1 | F12: مقر اللجنة / | G12: 1/1 | I12: الفصل / | J12: 1/1 | M12: مقر اللجنة / | N12: 1/1
C14: اخطار برقم جلوس 2018 | J14: اخطار برقم جلوس 2018
B15: مدرسة العمار التجارية | F15: رقم الجلوس / | G15: 3 | I15: مدرسة العمار التجارية | M15: رقم الجلوس / | N15: 9 | Y15: =$Y$5+2 -> 3 | Z15: =$Y$15+6 -> 9
B16: الاسم / | C16: ايمان طه محمدي عباس | F16: رقم اللجنة / | G16: 1 | I16: الاسم / | J16: أسماء وجيه السيد عبد العزيز | M16: رقم اللجنة / | N16: 1
B17: الفصل / | C17: 1/1 | F17: مقر اللجنة / | G17: 1/1 | I17: الفصل / | J17: 1/1 | M17: مقر اللجنة / | N17: 1/1
C19: اخطار برقم جلوس 2018 | J19: اخطار برقم جلوس 2018
B20: مدرسة العمار التجارية | F20: رقم الجلوس / | G20: 4 | I20: مدرسة العمار التجارية | M20: رقم الجلوس / | N20: 10 | Y20: =$Y$5+3 -> 4 | Z20: =$Y$20+6 -> 10
B21: الاسم / | C21: ايمان ماهر محمود قطوطة | F21: رقم اللجنة / | G21: 1 | I21: الاسم / | J21: أماني صلاح الدين يوسف سليمان | M21: رقم اللجنة / | N21: 1
B22: الفصل / | C22: 1/1 | F22: مقر اللجنة / | G22: 1/1 | I22: الفصل / | J22: 1/1 | M22: مقر اللجنة / | N22: 1/1
C24: اخطار برقم جلوس 2018 | J24: اخطار برقم جلوس 2018
B25: مدرسة العمار التجارية | F25: رقم الجلوس / | G25: 5 | I25: مدرسة العمار التجارية | M25: رقم الجلوس / | N25: 11 | Y25: =$Y$5+4 -> 5 | Z25: =$Y$25+6 -> 11
B26: الاسم / | C26: إسراء جمعة سعد سليمان | F26: رقم اللجنة / | G26: 1 | I26: الاسم / | J26: أمنية ياسر ابراهيم عبد السلام | M26: رقم اللجنة / | N26: 1
B27: الفصل / | C27: 1/1 | F27: مقر اللجنة / | G27: 1/1 | I27: الفصل / | J27: 1/1 | M27: مقر اللجنة / | N27: 1/1
C29: اخطار برقم جلوس 2018 | J29: اخطار برقم جلوس 2018
B30: مدرسة العمار التجارية | F30: رقم الجلوس / | G30: 6 | I30: مدرسة العمار التجارية | M30: رقم الجلوس / | N30: 12 | Y30: =$Y$5+5 -> 6 | Z30: =Y30+6 -> 12
B31: الاسم / | C31: إسراء عاطف محمد عبد الحافظ | F31: رقم اللجنة / | G31: 1 | I31: الاسم / | J31: أميرة السيد جودة السيد ابراهيم | M31: رقم اللجنة / | N31: 1
B32: الفصل / | C32: 1/1 | F32: مقر اللجنة / | G32: 1/1 | I32: الفصل / | J32: 1/1 | M32: مقر اللجنة / | N32: 1/1

Sheet شيت
G1: ادارة طوخ التعليمية | AD1: شيت كنترول الصف الاول
G2: مدرسة العمار التجارية | AD2: للعام الدراسى 2017 / 2018 | BX2: دورثان
A3: مسلسل | B3: جلوس | C3: الاسم | D3: الفصل | E3: سرى | F3: لغة عربية | J3: لغة انجليزية | N3: لغة فرنسية | R3: محاسبة مالية | V3: سكرتارية عربية | Z3: سكرتارية اجنبية | AD3: اقتصاد | AH3: تسويق | AL3: ادارة اعمال | AP3: قانون تجارى | AT3: رياضة عامة | AX3: جغرافيا | BB3: حاسب آلى | BK3: مجموع كلى | BL3: تربية قومية | BP3: تربية دينية | BT3: النتيجة | BU3: مواد الرسوب | BV3: عدد المواد | BZ3: لغة عربية | CA3: لغة انجليزية | CB3: لغة فرنسية | CC3: محاسبة مالية | CD3: سكرتارية عربية | CE3: سكرتارية اجنبية | CF3: اقتصاد | CG3: تسويق | CH3: ادارة اعمال | CI3: قانون تجارى | CJ3: رياضة عامة | CK3: جغرافيا | CL3: حاسب ألى | CM3: مجموع | CN3: تربية قومية | CO3: تربية دينية | CR3: مجموع نصف العام | CS3: ترتيب نصف العام
F4: اعمال السنة | G4: نصف العام | H4: آخر العام | I4: المجموع | J4: اعمال السنة | K4: نصف العام | L4: آخر العام | M4: المجموع | N4: اعمال السنة | O4: نصف العام | P4: آخر العام | Q4: المجموع | R4: اعمال السنة | S4: نصف العام | T4: آخر العام | U4: المجموع | V4: اعمال السنة | W4: نصف العام | X4: آخر العام | Y4: المجموع | Z4: اعمال السنة | AA4: نصف العام | AB4: آخر العام | AC4: المجموع | AD4: اعمال السنة | AE4: نصف العام | AF4: آخر العام | AG4: المجموع | AH4: اعمال السنة | AI4: نصف العام | AJ4: آخر العام | AK4: المجموع | AL4: اعمال السنة | AM4: نصف العام | AN4: آخر العام | AO4: المجموع | AP4: اعمال السنة | AQ4: نصف العام | AR4: آخر العام | AS4: المجموع | AT4: اعمال السنة | AU4: نصف العام | AV4: آخر العام | AW4: المجموع | AX4: اعمال السنة | AY4: نصف العام | AZ4: آخر العام | BA4: المجموع | BB4: اعمال السنة | BD4: نصف العام | BF4: آخر العام | BH4: مج عملى | BI4: مج تحريرى | BJ4: مج حاسب | BL4: اعمال السنة | BM4: نصف العام | BN4: آخر العام | BO4: المجموع | BP4: اعمال السنة | BQ4: نصف العام | BR4: آخر العام | BS4: المجموع
BB5: عملى | BC5: تحريرى | BD5: عملى | BE5: تحريرى | BF5: عملى | BG5: تحريرى
E6: عظمى | F6: 10 | G6: 20 | H6: 20 | I6: 50 | J6: 10 | K6: 20 | L6: 20 | M6: 50 | N6: 6 | O6: 12 | P6: 12 | Q6: 30 | R6: 10 | S6: 20 | T6: 20 | U6: 50 | V6: 10 | W6: 20 | X6: 20 | Y6: 50 | Z6: 10 | AA6: 20 | AB6: 20 | AC6: 50 | AD6: 10 | AE6: 20 | AF6: 20 | AG6: 50 | AH6: 10 | AI6: 20 | AJ6: 20 | AK6: 50 | AL6: 10 | AM6: 20 | AN6: 20 | AO6: 50 | AP6: 10 | AQ6: 20 | AR6: 20 | AS6: 50 | AT6: 6 | AU6: 12 | AV6: 12 | AW6: 30 | AX6: 8 | AY6: 16 | AZ6: 16 | BA6: 40 | BB6: 4 | BC6: 6 | BD6: 8 | BE6: 12 | BF6: 8 | BG6: 12 | BH6: 20 | BI6: 30 | BJ6: 50 | BK6: 600 | BL6: 4 | BM6: 8 | BN6: 8 | BO6: 20 | BP6: 4 | BQ6: 8 | BR6: 8 | BS6: 20
E7: صغرى | F7: 0 | G7: 0 | H7: 5 | I7: 25 | J7: 0 | K7: 0 | L7: 5 | M7: 20 | N7: 0 | O7: 0 | P7: 3 | Q7: 9 | R7: 0 | S7: 0 | T7: 5 | U7: 25 | V7: 0 | W7: 0 | X7: 5 | Y7: 25 | Z7: 0 | AA7: 0 | AB7: 5 | AC7: 20 | AD7: 0 | AE7: 0 | AF7: 5 | AG7: 25 | AH7: 0 | AI7: 0 | AJ7: 5 | AK7: 25 | AL7: 0 | AM7: 0 | AN7: 5 | AO7: 25 | AP7: 0 | AQ7: 0 | AR7: 5 | AS7: 25 | AT7: 0 | AU7: 0 | AV7: 3 | AW7: 15 | AX7: 0 | AY7: 0 | AZ7: 4 | BA7: 20 | BB7: 0 | BC7: 0 | BD7: 0 | BE7: 0 | BF7: 2 | BG7: 3 | BH7: 10 | BI7: 15 | BJ7: 25 | BK7: 300 | BL7: 0 | BM7: 0 | BN7: 2 | BO7: 10 | BP7: 0 | BQ7: 0 | BR7: 2 | BS7: 10
A8: 1 | B8: 1 | C8: اسراء محمد عبد الفتاح محمد | D8: 1/1 | E8: 192 | F8: 7.5 | G8: 15 | H8: 13 | I8: =SUM(F8:H8) -> 35.5 | J8: 8.5 | K8: 15.6 | L8: 8 | M8: =SUM(J8:L8) -> 32.1 | N8: 4.5 | O8: 10.4 | P8: 7.6 | Q8: =SUM(N8:P8) -> 22.5 | R8: 9 | S8: 6.5 | T8: 11.5 | U8: =SUM(R8:T8) -> 27 | V8: 8 | W8: 13 | X8: 14 | Y8: =SUM(V8:X8) -> 35 | Z8: 9 | AA8: 7.5 | AB8: 15 | AC8: =SUM(Z8:AB8) -> 31.5 | AD8: 8.5 | AE8: 8 | AF8: 18 | AG8: =SUM(AD8:AF8) -> 34.5 | AH8: 9.5 | AI8: 12 | AJ8: 15 | AK8: =SUM(AH8:AJ8) -> 36.5 | AL8: 8.5 | AM8: 5 | AN8: 11.5 | AO8: =SUM(AL8:AN8) -> 25 | AP8: 8.5 | AQ8: 11 | AR8: 17 | AS8: =SUM(AP8:AR8) -> 36.5 | AT8: 2 | AU8: 2 | AV8: 3.5 | AW8: =SUM(AT8:AV8) -> 7.5 | AX8: 6 | AY8: 9.5 | AZ8: 10.5 | BA8: =SUM(AX8:AZ8) -> 26 | BB8: 3 | BC8: 5 | BD8: 6 | BE8: 10 | BF8: 6 | BG8: 10 | BH8: =SUM(BB8,BD8,BF8) -> 15 | BI8: =SUM(BC8,BE8,BG8) -> 25 | BJ8: =SUM(BH8,BI8) -> 40 | BK8: =SUM(I8,M8,Q8,U8,Y8,AC8,AG8,AK8,AO8,AS8,AW8,BA8,BJ8) -> 389.6 | BL8: 4 | BM8: 4.5 | BN8: 3.5 | BO8: =SUM(BL8:BN8) -> 12 | BP8: 3 | BQ8: 5 | BR8: 6.5 | BS8: =SUM(BP8:BR8) -> 14.5 | BT8: =IF(C8="","",IF(BV8=0,"ناجحة",IF(BV8<=2,"دورثان","راسبة"))) -> دورثان | BU8: =IF(C8="","",CONCATENATE(BZ8,CA8,CB8,CC8,CD8,CE8,CF8,CG8,CH8,CJ8,CK8,CL8,CM8,CN8,CO8)) -> رياضة عامة - | BV8: =IF(C8="","",COUNTA(BZ8:CO8)-COUNTBLANK(BZ8:CO8)) -> 1 | BZ8: =IF(OR(H8<$H$7,H8="غ",I8<$I$7),BZ$3&" - ","") ->  | CA8: =IF(OR(L8<$L$7,L8="غ",M8<$M$7),CA$3&" - ","") ->  | CB8: =IF(OR(P8<$P$7,P8="غ",Q8<$Q$7),CB$3&" - ","") ->  | CC8: =IF(OR(T8<$T$7,T8="غ",U8<$U$7),CC$3&" - ","") ->  | CD8: =IF(OR(X8<$X$7,X8="غ",Y8<$Y$7),CD$3&" - ","") ->  | CE8: =IF(OR(AB8<$AB$7,AB8="غ",AC8<$AC$7),CE$3&" - ","") ->  | CF8: =IF(OR(AF8<$AF$7,AF8="غ",AG8<$AG$7),CF$3&" - ","") ->  | CG8: =IF(OR(AJ8<$AJ$7,AJ8="غ",AK8<$AK$7),CG$3&" - ","") ->  | CH8: =IF(OR(AN8<$AN$7,AN8="غ",AO8<$AO$7),CH$3&" - ","") ->  | CI8: =IF(OR(AR8<$AR$7,AR8="غ",AS8<$AS$7),CI$3&" - ","") ->  | CJ8: =IF(OR(AV8<$AV$7,AV8="غ",AW8<$AW$7),CJ$3&" - ","") -> رياضة عامة - | CK8: =IF(OR(AZ8<$AZ$7,AZ8="غ",BA8<$BA$7),CK$3&" - ","") ->  | CL8: =IF(OR(BF8<$BF$7,BG8<$BG$7,BH8<$BH$7,BH8="غ",BI8<$BI$7,BI8="غ"),CL$3&" - ","") ->  | CM8: =IF(BK8<$BK$7,CM$3&" - ","") ->  | CN8: =IF(OR(BN8<$BN$7,BN8="غ",BO8<$BO$7),CN$3,"") ->  | CO8: =IF(OR(BR8<$BR$7,BR8="غ",BS8<$BS$7),CO$3,"") ->  | CR8: 134 | CS8: 306
A9: 2 | B9: 2 | C9: اية محمد رضا محمد علي | D9: 2/1 | E9: 193 | F9: 7.5 | G9: 10.5 | H9: 13 | I9: 31 | J9: 8 | K9: 12.4 | L9: 10.4 | M9: 30.8 | N9: 5 | O9: 8.4 | P9: 6.8 | Q9: 20.2 | R9: 9 | S9: 1.5 | T9: 8 | U9: 18.5 | V9: 8 | W9: 13 | X9: 12.5 | Y9: 33.5 | Z9: 9 | AA9: 2.5 | AB9: 10 | AC9: 21.5 | AD9: 8.5 | AE9: 5 | AF9: 17 | AG9: 30.5 | AH9: 9.5 | AI9: 9.5 | AJ9: 12 | AK9: 31 | AL9: 9 | AM9: 6 | AN9: 11 | AO9: 26 | AP9: 7.5 | AQ9: 9 | AR9: 9 | AS9: 25.5 | AT9: 2 | AU9: 1 | AV9: 1.5 | AW9: 4.5 | AX9: 6 | AY9: 7 | AZ9: 11 | BA9: 24 | BB9: 3 | BC9: 5 | BD9: 5 | BE9: 10 | BF9: 5 | BG9: 8 | BH9: 13 | BI9: 23 | BJ9: 36 | BK9: 333 | BL9: 3.5 | BM9: 5.5 | BN9: 5 | BO9: 14 | BP9: 3 | BQ9: 4.5 | BR9: 4.5 | BS9: 12 | BT9: =IF(C9="","",IF(BV9=0,"ناجحة",IF(BV9<=2,"دورثان","راسبة"))) -> دورثان | BU9: =IF(C9="","",CONCATENATE(BZ9,CA9,CB9,CC9,CD9,CE9,CF9,CG9,CH9,CJ9,CK9,CL9,CM9,CN9,CO9)) -> محاسبة مالية - رياضة عامة - | BV9: =IF(C9="","",COUNTA(BZ9:CO9)-COUNTBLANK(BZ9:CO9)) -> 2 | BZ9: =IF(OR(H9<$H$7,H9="غ",I9<$I$7),BZ$3&" - ","") ->  | CA9: =IF(OR(L9<$L$7,L9="غ",M9<$M$7),CA$3&" - ","") ->  | CB9: =IF(OR(P9<$P$7,P9="غ",Q9<$Q$7),CB$3&" - ","") ->  | CC9: =IF(OR(T9<$T$7,T9="غ",U9<$U$7),CC$3&" - ","") -> محاسبة مالية - | CD9: =IF(OR(X9<$X$7,X9="غ",Y9<$Y$7),CD$3&" - ","") ->  | CE9: =IF(OR(AB9<$AB$7,AB9="غ",AC9<$AC$7),CE$3&" - ","") ->  | CF9: =IF(OR(AF9<$AF$7,AF9="غ",AG9<$AG$7),CF$3&" - ","") ->  | CG9: =IF(OR(AJ9<$AJ$7,AJ9="غ",AK9<$AK$7),CG$3&" - ","") ->  | CH9: =IF(OR(AN9<$AN$7,AN9="غ",AO9<$AO$7),CH$3&" - ","") ->  | CI9: =IF(OR(AR9<$AR$7,AR9="غ",AS9<$AS$7),CI$3&" - ","") ->  | CJ9: =IF(OR(AV9<$AV$7,AV9="غ",AW9<$AW$7),CJ$3&" - ","") -> رياضة عامة - | CK9: =IF(OR(AZ9<$AZ$7,AZ9="غ",BA9<$BA$7),CK$3&" - ","") ->  | CL9: =IF(OR(BF9<$BF$7,BG9<$BG$7,BH9<$BH$7,BH9="غ",BI9<$BI$7,BI9="غ"),CL$3&" - ","") ->  | CM9: =IF(BK9<$BK$7,CM$3&" - ","") ->  | CN9: =IF(OR(BN9<$BN$7,BN9="غ",BO9<$BO$7),CN$3,"") ->  | CO9: =IF(OR(BR9<$BR$7,BR9="غ",BS9<$BS$7),CO$3,"") ->  | CR9: 175 | CS9: 35
A10: 3 | B10: 3 | C10: ايمان طه محمدي عباس | D10: 1/1 | E10: 194 | F10: 7.5 | G10: 7.5 | H10: 13 | I10: 28 | J10: 8.5 | K10: 9.6 | L10: 11.2 | M10: 29.3 | N10: 5 | O10: 10 | P10: 7.2 | Q10: 22.2 | R10: 9 | S10: 1.5 | T10: 4.5 | U10: 15 | V10: 8 | W10: 15 | X10: 12.5 | Y10: 35.5 | Z10: 9 | AA10: 0.5 | AB10: 12 | AC10: 21.5 | AD10: 8.5 | AE10: 6 | AF10: 16 | AG10: 30.5 | AH10: 9.5 | AI10: 12.5 | AJ10: 12 | AK10: 34 | AL10: 8.5 | AM10: 9 | AN10: 9 | AO10: 26.5 | AP10: 7.5 | AQ10: 14 | AR10: 8 | AS10: 29.5 | AT10: 2 | AU10: 2.5 | AV10: 10.5 | AW10: 15 | AX10: 6 | AY10: 7 | AZ10: 12 | BA10: 25 | BB10: 2.5 | BC10: 5 | BD10: 5 | BE10: 10 | BF10: 6 | BG10: 8 | BH10: 13.5 | BI10: 23 | BJ10: 36.5 | BK10: 348.5 | BL10: 4 | BM10: 5.5 | BN10: 2.5 | BO10: 12 | BP10: 3 | BQ10: 4 | BR10: 4 | BS10: 11 | BT10: دورثان | BU10: محاسبة مالية - | BV10: 1 | CC10: محاسبة مالية - | CR10: 163 | CS10: 80
A11: 4 | B11: 4 | C11: ايمان ماهر محمود قطوطة | D11: 1/1 | E11: 195 | F11: 7.5 | G11: 7.5 | H11: 11 | I11: 26 | J11: 8 | K11: 12 | L11: 8.8 | M11: 28.8 | N11: 5 | O11: 9.2 | P11: 6.4 | Q11: 20.6 | R11: 9 | S11: 0 | T11: 5 | U11: 14 | V11: 8 | W11: 13 | X11: 8.5 | Y11: 29.5 | Z11: 9 | AA11: 0.5 | AB11: 13 | AC11: 22.5 | AD11: 8.5 | AE11: 5 | AF11: 15 | AG11: 28.5 | AH11: 9.5 | AI11: 8 | AJ11: 12 | AK11: 29.5 | AL11: 8.5 | AM11: 8 | AN11: 9 | AO11: 25.5 | AP11: 7.5 | AQ11: 15 | AR11: 8 | AS11: 30.5 | AT11: 2 | AU11: 0.5 | AV11: 9.5 | AW11: 12 | AX11: 6 | AY11: 5 | AZ11: 9 | BA11: 20 | BB11: 3 | BC11: 5 | BD11: 5 | BE11: 10 | BF11: 5 | BG11: 8 | BH11: 13 | BI11: 23 | BJ11: 36 | BK11: 323.4 | BL11: 3.5 | BM11: 5.5 | BN11: 3 | BO11: 12 | BP11: 3 | BQ11: 4 | BR11: 5 | BS11: 12 | BT11: دورثان | BU11: محاسبة مالية - رياضة عامة - | BV11: 2 | CC11: محاسبة مالية - | CJ11: رياضة عامة - | CR11: 154 | CS11: 142
A12: 5 | B12: 5 | C12: إسراء جمعة سعد سليمان | D12: 1/1 | E12: 196 | F12: 7 | G12: 9.5 | H12: 15.5 | I12: 32 | J12: 8 | K12: 14.8 | L12: 13.6 | M12: 36.4 | N12: 4.5 | O12: 9.2 | P12: 6.8 | Q12: 20.5 | R12: 9 | S12: 7 | T12: 14 | U12: 30 | V12: 8 | W12: 17 | X12: 14 | Y12: 39 | Z12: 9 | AA12: 7 | AB12: 18 | AC12: 34 | AD12: 8.5 | AE12: 5 | AF12: 17 | AG12: 30.5 | AH12: 9.5 | AI12: 15 | AJ12: 16 | AK12: 40.5 | AL12: 9 | AM12: 7 | AN12: 9 | AO12: 25 | AP12: 7.5 | AQ12: 6 | AR12: 14 | AS12: 27.5 | AT12: 2.5 | AU12: 2.5 | AV12: 3.5 | AW12: 8.5 | AX12: 6 | AY12: 9 | AZ12: 9 | BA12: 24 | BB12: 2.5 | BC12: 5 | BD12: 5 | BE12: 10 | BF12: 5 | BG12: 11 | BH12: 12.5 | BI12: 26 | BJ12: 38.5 | BK12: 386.4 | BL12: 3.5 | BM12: 6.5 | BN12: 4 | BO12: 14 | BP12: 3 | BQ12: 4.5 | BR12: 6.5 | BS12: 14 | BT12: دورثان | BU12: رياضة عامة - | BV12: 1 | CJ12: رياضة عامة - | CR12: 185 | CS12: 11
A13: 6 | B13: 6 | C13: إسراء عاطف محمد عبد الحافظ | D13: 1/1 | E13: 197 | F13: 7.5 | G13: 8 | H13: 13 | I13: 28.5 | J13: 8 | K13: 10.4 | L13: 7.6 | M13: 26 | N13: 4.5 | O13: 9.6 | P13: 6.4 | Q13: 20.5 | R13: 9 | S13: 0 | T13: 11 | U13: 20 | V13: 8 | W13: 11 | X13: 14 | Y13: 33 | Z13: 9 | AA13: 1 | AB13: 12 | AC13: 22 | AD13: 8.5 | AE13: 10 | AF13: 15 | AG13: 33.5 | AH13: 9.5 | AI13: 14 | AJ13: 12 | AK13: 35.5 | AL13: 9 | AM13: 8 | AN13: 8 | AO13: 25 | AP13: 8 | AQ13: 16 | AR13: 15 | AS13: 39 | AT13: 5 | AU13: 1.5 | AV13: 2 | AW13: 8.5 | AX13: 6 | AY13: 8.5 | AZ13: 10 | BA13: 24.5 | BB13: 2.5 | BC13: 5 | BD13: 5 | BE13: 11 | BF13: 5 | BG13: 9 | BH13: 12.5 | BI13: 25 | BJ13: 37.5 | BK13: 353.5 | BL13: 3.5 | BM13: 5 | BN13: 3.5 | BO13: 12 | BP13: 3 | BQ13: 3.5 | BR13: 6 | BS13: 12.5 | BT13: دورثان | BU13: محاسبة مالية - رياضة عامة - | BV13: 2 | CC13: محاسبة مالية - | CJ13: رياضة عامة - | CR13: 163 | CS13: 80
A14: 7 | B14: 7 | C14: أسماء ماهر جاد محمدي جاب الله | D14: 1/1 | E14: 198 | F14: 8 | G14: 9.5 | H14: 11.5 | I14: 29 | J14: 8 | K14: 10.8 | L14: 9.6 | M14: 28.4 | N14: 4.5 | O14: 9.2 | P14: 4.4 | Q14: 18.1 | R14: 9 | S14: 0 | T14: 5 | U14: 14 | V14: 8 | W14: 12.5 | X14: 8.5 | Y14: 29 | Z14: 9 | AA14: 0 | AB14: 11 | AC14: 20 | AD14: 8.5 | AE14: 9 | AF14: 17 | AG14: 34.5 | AH14: 9.5 | AI14: 13.5 | AJ14: 15 | AK14: 38 | AL14: 8.5 | AM14: 11 | AN14: 14 | AO14: 33.5 | AP14: 7.5 | AQ14: 14 | AR14: 16 | AS14: 37.5 | AT14: 2 | AU14: 1.5 | AV14: 1 | AW14: 4.5 | AX14: 6 | AY14: 5.5 | AZ14: 9 | BA14: 20.5 | BB14: 2.5 | BC14: 5 | BD14: 6 | BE14: 8 | BF14: 6 | BG14: 7 | BH14: 14.5 | BI14: 20 | BJ14: 34.5 | BK14: 341.5 | BL14: 4 | BM14: 5.5 | BN14: 4.5 | BO14: 14 | BP14: 3 | BQ14: 3.5 | BR14: 6 | BS14: 12.5 | BT14: دورثان | BU14: محاسبة مالية - رياضة عامة - | BV14: 2 | CC14: محاسبة مالية - | CJ14: رياضة عامة - | CR14: 156 | CS14: 128
A15: 8 | B15: 8 | C15: أسماء محمد عبد الرؤف محمد سليم | D15: 1/1 | E15: 199 | F15: 7.5 | G15: 16.5 | H15: 16.5 | I15: 40.5 | J15: 8 | K15: 14 | L15: 10 | M15: 32 | N15: 4.5 | O15: 10.8 | P15: 5.2 | Q15: 20.5 | R15: 9 | S15: 2 | T15: 15 | U15: 26 | V15: 8 | W15: 15 | X15: 10 | Y15: 33 | Z15: 9 | AA15: 7.5 | AB15: 14 | AC15: 30.5 | AD15: 8.5 | AE15: 8 | AF15: 18 | AG15: 34.5 | AH15: 9.5 | AI15: 16.5 | AJ15: 18 | AK15: 44 | AL15: 9 | AM15: 13 | AN15: 14 | AO15: 36 | AP15: 8 | AQ15: 10 | AR15: 15 | AS15: 33 | AT15: 2.5 | AU15: 3 | AV15: 1 | AW15: 6.5 | AX15: 6 | AY15: 7.5 | AZ15: 12 | BA15: 25.5 | BB15: 2.5 | BC15: 5 | BD15: 5 | BE15: 10 | BF15: 5 | BG15: 7 | BH15: 12.5 | BI15: 22 | BJ15: 34.5 | BK15: 396.5 | BL15: 4 | BM15: 4.5 | BN15: 4.5 | BO15: 13 | BP15: 3 | BQ15: 4.5 | BR15: 7 | BS15: 14.5 | BT15: دورثان | BU15: رياضة عامة - | BV15: 1 | CJ15: رياضة عامة - | CR15: 124 | CS15: 374
A16: 9 | B16: 9 | C16: أسماء وجيه السيد عبد العزيز | D16: 1/1 | E16: 200 | F16: 7.5 | G16: 13.5 | H16: 15 | I16: 36 | J16: 8.5 | K16: 9.2 | L16: 8.8 | M16: 26.5 | N16: 4.5 | O16: 9.6 | P16: 4.8 | Q16: 18.9 | R16: 9 | S16: 0.5 | T16: 15.5 | U16: 25 | V16: 8 | W16: 11.5 | X16: 12.5 | Y16: 32 | Z16: 9 | AA16: 4.5 | AB16: 13.5 | AC16: 27 | AD16: 8.5 | AE16: 8 | AF16: 17 | AG16: 33.5 | AH16: 9.5 | AI16: 13.5 | AJ16: 12 | AK16: 35 | AL16: 8.5 | AM16: 12 | AN16: 18 | AO16: 38.5 | AP16: 7.5 | AQ16: 10 | AR16: 18 | AS16: 35.5 | AT16: 2 | AU16: 3.5 | AV16: 2.5 | AW16: 8 | AX16: 6 | AY16: 6 | AZ16: 8 | BA16: 20 | BB16: 2.5 | BC16: 5 | BD16: 6 | BE16: 10 | BF16: 6 | BG16: 7 | BH16: 14.5 | BI16: 22 | BJ16: 36.5 | BK16: 372.4 | BL16: 4 | BM16: 4.5 | BN16: 3 | BO16: 11.5 | BP16: 3 | BQ16: 4 | BR16: 6 | BS16: 13 | BT16: دورثان | BU16: رياضة عامة - | BV16: 1 | CJ16: رياضة عامة - | CR16: 146 | CS16: 202
A17: 10 | B17: 10 | C17: أماني صلاح الدين يوسف سليمان | D17: 1/1 | E17: 201 | F17: 8 | G17: 14.5 | H17: 13.5 | I17: 36 | J17: 8.5 | K17: 12.4 | L17: 10.8 | M17: 31.7 | N17: 4.5 | O17: 9.2 | P17: 5.6 | Q17: 19.3 | R17: 9 | S17: 3 | T17: 13 | U17: 25 | V17: 8 | W17: 12.5 | X17: 11.5 | Y17: 32 | Z17: 9 | AA17: 7 | AB17: 11.5 | AC17: 27.5 | AD17: 8.5 | AE17: 11 | AF17: 19 | AG17: 38.5 | AH17: 9.5 | AI17: 10 | AJ17: 13 | AK17: 32.5 | AL17: 8.5 | AM17: 8 | AN17: 17 | AO17: 33.5 | AP17: 8 | AQ17: 14 | AR17: 14 | AS17: 36 | AT17: 2.5 | AU17: 2 | AV17: 2 | AW17: 6.5 | AX17: 6 | AY17: 10 | AZ17: 7 | BA17: 23 | BB17: 3 | BC17: 5 | BD17: 5 | BE17: 10 | BF17: 5 | BG17: 7 | BH17: 13 | BI17: 22 | BJ17: 35 | BK17: 376.5 | BL17: 3.5 | BM17: 5.5 | BN17: 4.5 | BO17: 13.5 | BP17: 3 | BQ17: 5 | BR17: 7 | BS17: 15 | BT17: دورثان | BU17: رياضة عامة - | BV17: 1 | CJ17: رياضة عامة - | CR17: 119 | CS17: 395
A18: 11 | B18: 11 | C18: أمنية ياسر ابراهيم عبد السلام | D18: 1/1 | E18: 202 | F18: 7 | G18: 9.5 | H18: 11.5 | I18: 28 | J18: 8 | K18: 11.2 | L18: 10.4 | M18: 29.6 | N18: 4.5 | O18: 10 | P18: 5.6 | Q18: 20.1 | R18: 9 | S18: 3.5 | T18: 4.5 | U18: 17 | V18: 8 | W18: 14 | X18: 11 | Y18: 33 | Z18: 9 | AA18: 6.5 | AB18: 10.5 | AC18: 26 | AD18: 8.5 | AE18: 10 | AF18: 16 | AG18: 34.5 | AH18: 9.5 | AI18: 14.5 | AJ18: 15 | AK18: 39 | AL18: 9 | AM18: 12 | AN18: 15 | AO18: 36 | AP18: 8.5 | AQ18: 13 | AR18: 15 | AS18: 36.5 | AT18: 5 | AU18: 3.5 | AV18: 9 | AW18: 17.5 | AX18: 6 | AY18: 7.5 | AZ18: 9 | BA18: 22.5 | BB18: 3 | BC18: 5 | BD18: 5 | BE18: 9 | BF18: 6 | BG18: 6 | BH18: 14 | BI18: 20 | BJ18: 34 | BK18: 373.7 | BL18: 3.5 | BM18: 4.5 | BN18: 4.5 | BO18: 12.5 | BP18: 3 | BQ18: 4 | BR18: 7 | BS18: 14 | BT18: دورثان | BU18: محاسبة مالية - | BV18: 1 | CC18: محاسبة مالية - | CR18: 128 | CS18: 351
A19: 12 | B19: 12 | C19: أميرة السيد جودة السيد ابراهيم | D19: 1/1 | E19: 203 | F19: 7.5 | G19: 12.5 | H19: 14.5 | I19: 34.5 | J19: 8 | K19: 8 | L19: 9.2 | M19: 25.2 | N19: 4.5 | O19: 8.8 | P19: 5.2 | Q19: 18.5 | R19: 9 | S19: 1.5 | T19: 7.5 | U19: 18 | V19: 8 | W19: 11 | X19: 9 | Y19: 28 | Z19: 9 | AA19: 6 | AB19: 9 | AC19: 24 | AD19: 8.5 | AE19: 10 | AF19: 18 | AG19: 36.5 | AH19: 9.5 | AI19: 13.5 | AJ19: 13 | AK19: 36 | AL19: 9 | AM19: 9 | AN19: 13 | AO19: 31 | AP19: 8 | AQ19: 12 | AR19: 16 | AS19: 36 | AT19: 2.5 | AU19: 1.5 | AV19: 2.5 | AW19: 6.5 | AX19: 6 | AY19: 9 | AZ19: 13 | BA19: 28 | BB19: 2.5 | BC19: 5 | BD19: 6 | BE19: 8 | BF19: 5 | BG19: 6 | BH19: 13.5 | BI19: 19 | BJ19: 32.5 | BK19: 354.7 | BL19: 3.5 | BM19: 6 | BN19: 4.5 | BO19: 14 | BP19: 3 | BQ19: 4.5 | BR19: 7.5 | BS19: 15 | BT19: دورثان | BU19: محاسبة مالية - رياضة عامة - | BV19: 2 | CC19: محاسبة مالية - | CJ19: رياضة عامة - | CR19: 166 | CS19: 68
A20: 13 | B20: 13 | C20: أميرة علاء نظير عطية | D20: 1/1 | E20: 204 | F20: 8 | G20: 13 | H20: 13 | I20: 34 | J20: 8 | K20: 8.8 | L20: 8.4 | M20: 25.2 | N20: 4.5 | O20: 10 | P20: 6 | Q20: 20.5 | R20: 9 | S20: 3 | T20: 4 | U20: 16 | V20: 8 | W20: 14 | X20: 11.5 | Y20: 33.5 | Z20: 9 | AA20: 6.5 | AB20: 13.5 | AC20: 29 | AD20: 8.5 | AE20: 10 | AF20: 18 | AG20: 36.5 | AH20: 9.5 | AI20: 17 | AJ20: 14 | AK20: 40.5 | AL20: 9 | AM20: 13 | AN20: 15 | AO20: 37 | AP20: 8 | AQ20: 9 | AR20: 15 | AS20: 32 | AT20: 3 | AU20: 3 | AV20: 4 | AW20: 10 | AX20: 6 | AY20: 7 | AZ20: 5 | BA20: 18 | BB20: 2.5 | BC20: 5 | BD20: 6 | BE20: 8 | BF20: 6 | BG20: 4 | BH20: 14.5 | BI20: 17 | BJ20: 31.5 | BK20: 363.7 | BL20: 3.5 | BM20: 4 | BN20: 4.5 | BO20: 12 | BP20: 3 | BQ20: 4 | BR20: 5.5 | BS20: 12.5 | BT20: راسبة | BU20: محاسبة مالية - رياضة عامة - جغرافيا - | BV20: 3 | CC20: محاسبة مالية - | CJ20: رياضة عامة - | CK20: جغرافيا - | CR20: 143 | CS20: 231
A21: 14 | B21: 14 | C21: أميرة محمد سامي محمد علام | D21: 1/1 | E21: 205 | F21: 7.5 | G21: 8 | H21: 9.5 | I21: 25 | J21: 8.5 | K21: 7.2 | L21: 6.4 | M21: 22.1 | N21: 4.5 | O21: 8.4 | P21: 6 | Q21: 18.9 | R21: 9 | S21: 0 | T21: 0 | U21: 9 | V21: 8.5 | W21: 4.5 | X21: 12 | Y21: 25 | Z21: 9 | AA21: 2.5 | AB21: 13 | AC21: 24.5 | AD21: 8.5 | AE21: 13 | AF21: 18 | AG21: 39.5 | AH21: 9.5 | AI21: 15.5 | AJ21: 13 | AK21: 38 | AL21: 9 | AM21: 11 | AN21: 11 | AO21: 31 | AP21: 7.5 | AQ21: 8 | AR21: 15 | AS21: 30.5 | AT21: 3.5 | AU21: 2.5 | AV21: 5 | AW21: 11 | AX21: 6 | AY21: 4.5 | AZ21: 5.5 | BA21: 16 | BB21: 3 | BC21: 5 | BD21: 5 | BE21: 6 | BF21: 5 | BG21: 6 | BH21: 13 | BI21: 17 | BJ21: 30 | BK21: 320.5 | BL21: 3.5 | BM21: 3.5 | BN21: 5.5 | BO21: 12.5 | BP21: 3 | BQ21: 3 | BR21: 7.5 | BS21: 13.5 | BT21: راسبة | BU21: محاسبة مالية - رياضة عامة - جغرافيا - | BV21: 3 | CC21: محاسبة مالية - | CJ21: رياضة عامة - | CK21: جغرافيا - | CR21: 160 | CS21: 99
A22: 15 | B22: 15 | C22: آيات الشحات مصطفي موسي | D22: 1/1 | E22: 206 | F22: 7.5 | G22: 16 | H22: 15 | I22: 38.5 | J22: 8.5 | K22: 12.8 | L22: 9.6 | M22: 30.9 | N22: 4.5 | O22: 8.8 | P22: 6.8 | Q22: 20.1 | R22: 9 | S22: 2 | T22: 17.5 | U22: 28.5 | V22: 8 | W22: 16.5 | X22: 14.5 | Y22: 39 | Z22: 9 | AA22: 4 | AB22: 19 | AC22: 32 | AD22: 8.5 | AE22: 12 | AF22: 13 | AG22: 33.5 | AH22: 9.5 | AI22: 14.5 | AJ22: 14 | AK22: 38 | AL22: 9 | AM22: 7 | AN22: 13 | AO22: 29 | AP22: 8 | AQ22: 16 | AR22: 17 | AS22: 41 | AT22: 2 | AU22: 3.5 | AV22: 5.5 | AW22: 11 | AX22: 6 | AY22: 11.5 | AZ22: 13 | BA22: 30.5 | BB22: 3 | BC22: 5 | BD22: 6 | BE22: 7 | BF22: 6 | BG22: 9 | BH22: 15 | BI22: 21 | BJ22: 36 | BK22: 408 | BL22: 3.5 | BM22: 5.5 | BN22: 3 | BO22: 12 | BP22: 3 | BQ22: 5.5 | BR22: 7 | BS22: 15.5 | BT22: دورثان | BU22: رياضة عامة - | BV22: 1 | CJ22: رياضة عامة - | CR22: 149 | CS22: 170
A23: 16 | B23: 16 | C23: بسمة مصطفي عبد المنعم مصطفي | D23: 1/1 | E23: 207 | F23: 7.5 | G23: 9 | H23: 14.5 | I23: 31 | J23: 8.5 | K23: 12.4 | L23: 5.8 | M23: 26.7 | N23: 5 | O23: 9.2 | P23: 6.8 | Q23: 21 | R23: 9 | S23: 0 | T23: 6 | U23: 15 | V23: 8.5 | W23: 12 | X23: 13 | Y23: 33.5 | Z23: 8.5 | AA23: 0 | AB23: 11.5 | AC23: 20 | AD23: 8.5 | AE23: 9 | AF23: 11 | AG23: 28.5 | AH23: 9.5 | AI23: 14 | AJ23: 15 | AK23: 38.5 | AL23: 9 | AM23: 4 | AN23: 12 | AO23: 25 | AP23: 8 | AQ23: 19 | AR23: 13 | AS23: 40 | AT23: 2 | AU23: 1 | AV23: 4.5 | AW23: 7.5 | AX23: 6 | AY23: 13 | AZ23: 14 | BA23: 33 | BB23: 3 | BC23: 4.5 | BD23: 6 | BE23: 6 | BF23: 5 | BG23: 8 | BH23: 14 | BI23: 18.5 | BJ23: 32.5 | BK23: 352.2 | BL23: 3.5 | BM23: 4 | BN23: 3.5 | BO23: 11 | BP23: 3 | BQ23: 3.5 | BR23: 7 | BS23: 13.5 | BT23: دورثان | BU23: محاسبة مالية - رياضة عامة - | BV23: 2 | CC23: محاسبة مالية - | CJ23: رياضة عامة - | CR23: 157 | CS23: 122
A24: 17 | B24: 17 | C24: جملات جمال السيد غريب | D24: 1/1 | E24: 208 | F24: 7 | G24: 10.5 | H24: 15 | I24: 32.5 | J24: 9 | K24: 12.4 | L24: 15.2 | M24: 36.6 | N24: 4.5 | O24: 10 | P24: 7.6 | Q24: 22.1 | R24: 9 | S24: 2 | T24: 14 | U24: 25 | V24: 9.5 | W24: 12.5 | X24: 14.5 | Y24: 36.5 | Z24: 8.5 | AA24: 3 | AB24: 14 | AC24: 25.5 | AD24: 8.5 | AE24: 7 | AF24: 16 | AG24: 31.5 | AH24: 10 | AI24: 14 | AJ24: 14 | AK24: 38 | AL24: 9 | AM24: 4 | AN24: 13 | AO24: 26 | AP24: 8 | AQ24: 14 | AR24: 15 | AS24: 37 | AT24: 2 | AU24: 1.5 | AV24: 6.5 | AW24: 10 | AX24: 6 | AY24: 9 | AZ24: 14 | BA24: 29 | BB24: 3 | BC24: 4 | BD24: 5 | BE24: 8 | BF24: 5 | BG24: 10 | BH24: 13 | BI24: 22 | BJ24: 35 | BK24: 384.7 | BL24: 4 | BM24: 3.5 | BN24: 4.5 | BO24: 12 | BP24: 3 | BQ24: 3 | BR24: 6.5 | BS24: 12.5 | BT24: دورثان | BU24: رياضة عامة - | BV24: 1 | CJ24: رياضة عامة - | CR24: 169 | CS24: 57
A25: 18 | B25: 18 | C25: جهاد عبد المنعم حسنين السيد | D25: 1/1 | E25: 209 | F25: 7 | G25: 8.5 | H25: 14.5 | I25: 30 | J25: 9 | K25: 12 | L25: 6 | M25: 27 | N25: 4.5 | O25: 10.4 | P25: 8 | Q25: 22.9 | R25: 9 | S25: 9.5 | T25: 12.5 | U25: 31 | V25: 9 | W25: 13.5 | X25: 14.5 | Y25: 37 | Z25: 8.5 | AA25: 6.5 | AB25: 13 | AC25: 28 | AD25: 8.5 | AE25: 6 | AF25: 16 | AG25: 30.5 | AH25: 10 | AI25: 12.5 | AJ25: 15 | AK25: 37.5 | AL25: 9 | AM25: 7 | AN25: 14 | AO25: 30 | AP25: 8 | AQ25: 17 | AR25: 15 | AS25: 40 | AT25: 2 | AU25: 2.5 | AV25: 6 | AW25: 10.5 | AX25: 6 | AY25: 10.5 | AZ25: 12 | BA25: 28.5 | BB25: 2.5 | BC25: 4 | BD25: 6 | BE25: 5 | BF25: 5 | BG25: 10 | BH25: 13.5 | BI25: 19 | BJ25: 32.5 | BK25: 385.4 | BL25: 3.5 | BM25: 6 | BN25: 4.5 | BO25: 14 | BP25: 3 | BQ25: 4 | BR25: 6.5 | BS25: 13.5 | BT25: دورثان | BU25: رياضة عامة - | BV25: 1 | CJ25: رياضة عامة - | CR25: 159 | CS25: 108
A26: 19 | B26: 19 | C26: جهاد محمد خالد حسن محمد | D26: 1/1 | E26: 210 | F26: 7 | G26: 8 | H26: 13.5 | I26: 28.5 | J26: 8 | K26: 10 | L26: 7.2 | M26: 25.2 | N26: 4.5 | O26: 9.2 | P26: 8 | Q26: 21.7 | R26: 9 | S26: 6.5 | T26: 10 | U26: 25.5 | V26: 8.5 | W26: 12 | X26: 14.5 | Y26: 35 | Z26: 8.5 | AA26: 4.5 | AB26: 7 | AC26: 20 | AD26: 8.5 | AE26: 9 | AF26: 14 | AG26: 31.5 | AH26: 10 | AI26: 12.5 | AJ26: 12 | AK26: 34.5 | AL26: 9 | AM26: 3 | AN26: 13 | AO26: 25 | AP26: 8 | AQ26: 17 | AR26: 12 | AS26: 37 | AT26: 2.5 | AU26: 2.5 | AV26: 6.5 | AW26: 11.5 | AX26: 6 | AY26: 6 | AZ26: 12 | BA26: 24 | BB26: 3 | BC26: 4 | BD26: 5 | BE26: 5 | BF26: 6 | BG26: 9 | BH26: 14 | BI26: 18 | BJ26: 32 | BK26: 351.4 | BL26: 3.5 | BM26: 3 | BN26: 3.5 | BO26: 10 | BP26: 3 | BQ26: 4 | BR26: 5 | BS26: 12 | BT26: دورثان | BU26: رياضة عامة - | BV26: 1 | CJ26: رياضة عامة - | CR26: 158 | CS26: 115
A27: 20 | B27: 20 | C27: رنيا اسماعيل محمد اسماعيل عبده | D27: 1/1 | E27: 211 | F27: 7.5 | G27: 10 | H27: 7.5 | I27: 25 | J27: 8.5 | K27: 11.6 | L27: 11.6 | M27: 31.7 | N27: 5 | O27: 4.8 | P27: 9.2 | Q27: 19 | R27: 9 | S27: 1 | T27: 16 | U27: 26 | V27: 8.5 | W27: 11.5 | X27: 14 | Y27: 34 | Z27: 8.5 | AA27: 3.5 | AB27: 15.5 | AC27: 27.5 | AD27: 8.5 | AE27: 18 | AF27: 18 | AG27: 44.5 | AH27: 9.5 | AI27: 16 | AJ27: 14 | AK27: 39.5 | AL27: 9 | AM27: 14 | AN27: 12 | AO27: 35 | AP27: 8 | AQ27: 14 | AR27: 18 | AS27: 40 | AT27: 2 | AU27: 4 | AV27: 5 | AW27: 11 | AX27: 6 | AY27: 7.5 | AZ27: 13 | BA27: 26.5 | BB27: 2.5 | BC27: 4 | BD27: 5 | BE27: 8 | BF27: 6 | BG27: 8 | BH27: 13.5 | BI27: 20 | BJ27: 33.5 | BK27: 393.2 | BL27: 4 | BM27: 5 | BN27: 3 | BO27: 12 | BP27: 3 | BQ27: 6 | BR27: 6.5 | BS27: 15.5 | BT27: دورثان | BU27: رياضة عامة - | BV27: 1 | CJ27: رياضة عامة - | CR27: 138 | CS27: 266
A28: 21 | B28: 21 | C28: ريم عادل بدر يوسف بدر | D28: 1/1 | E28: 212 | F28: 7 | G28: 11 | H28: 13.5 | I28: 31.5 | J28: 8 | K28: 12 | L28: 12.4 | M28: 32.4 | N28: 5 | O28: 5.6 | P28: 9.2 | Q28: 19.8 | R28: 9 | S28: 2.5 | T28: 9.5 | U28: 21 | V28: 8.5 | W28: 12.5 | X28: 14 | Y28: 35 | Z28: 8.5 | AA28: 4.5 | AB28: 13 | AC28: 26 | AD28: 8.5 | AE28: 18 | AF28: 17 | AG28: 43.5 | AH28: 9.5 | AI28: 17.5 | AJ28: 14 | AK28: 41 | AL28: 8.5 | AM28: 16 | AN28: 13 | AO28: 37.5 | AP28: 8 | AQ28: 15 | AR28: 18 | AS28: 41 | AT28: 2 | AU28: 4 | AV28: 5.5 | AW28: 11.5 | AX28: 6 | AY28: 11 | AZ28: 13 | BA28: 30 | BB28: 2.5 | BC28: 4 | BD28: 5 | BE28: 9 | BF28: 5 | BG28: 8 | BH28: 12.5 | BI28: 21 | BJ28: 33.5 | BK28: 403.7 | BL28: 3.5 | BM28: 4.5 | BN28: 4.5 | BO28: 12.5 | BP28: 3 | BQ28: 6 | BR28: 7 | BS28: 16 | BT28: دورثان | BU28: محاسبة مالية - رياضة عامة - | BV28: 2 | CC28: محاسبة مالية - | CJ28: رياضة عامة - | CR28: 149 | CS28: 170
A29: 22 | B29: 22 | C29: ريهام صلاح محمد أحمد الهطل | D29: 1/1 | E29: 213 | F29: 7.5 | G29: 12 | H29: 11.5 | I29: 31 | J29: 8.5 | K29: 11.2 | L29: 8 | M29: 27.7 | N29: 5 | O29: 6 | P29: 8 | Q29: 19 | R29: 9 | S29: 9 | T29: 8.5 | U29: 26.5 | V29: 9 | W29: 5.5 | X29: 13 | Y29: 27.5 | Z29: 8.5 | AA29: 6 | AB29: 10 | AC29: 24.5 | AD29: 8.5 | AE29: 19 | AF29: 13 | AG29: 40.5 | AH29: 9.5 | AI29: 18 | AJ29: 14 | AK29: 41.5 | AL29: 8.5 | AM29: 15 | AN29: 9 | AO29: 32.5 | AP29: 8 | AQ29: 12 | AR29: 17 | AS29: 37 | AT29: 2 | AU29: 2.5 | AV29: 5 | AW29: 9.5 | AX29: 6 | AY29: 8.5 | AZ29: 13 | BA29: 27.5 | BB29: 2.5 | BC29: 4 | BD29: 4 | BE29: 9 | BF29: 5 | BG29: 7 | BH29: 11.5 | BI29: 20 | BJ29: 31.5 | BK29: 376.2 | BL29: 3.5 | BM29: 5 | BN29: 2.5 | BO29: 11 | BP29: 3 | BQ29: 5.5 | BR29: 7 | BS29: 15.5 | BT29: دورثان | BU29: رياضة عامة - | BV29: 1 | CJ29: رياضة عامة - | CR29: 121 | CS29: 384
A30: 23 | B30: 23 | C30: سمر أنور محمد عبد الغني | D30: 1/1 | E30: 214 | F30: 7 | G30: 11 | H30: 13.5 | I30: 31.5 | J30: 8 | K30: 10.8 | L30: 6.4 | M30: 25.2 | N30: 4.5 | O30: 8.4 | P30: 5.2 | Q30: 18.1 | R30: 9 | S30: 1 | T30: 15 | U30: 25 | V30: 9 | W30: 10 | X30: 14 | Y30: 33 | Z30: 8.5 | AA30: 5.5 | AB30: 14 | AC30: 28 | AD30: 8.5 | AE30: 8 | AF30: 19 | AG30: 35.5 | AH30: 9.5 | AI30: 11.5 | AJ30: 15 | AK30: 36 | AL30: 9 | AM30: 2 | AN30: 14 | AO30: 25 | AP30: 8 | AQ30: 13 | AR30: 19 | AS30: 40 | AT30: 2 | AU30: 5.5 | AV30: 4 | AW30: 11.5 | AX30: 6 | AY30: 9 | AZ30: 11 | BA30: 26 | BB30: 2.5 | BC30: 4 | BD30: 4 | BE30: 5 | BF30: 6 | BG30: 10 | BH30: 12.5 | BI30: 19 | BJ30: 31.5 | BK30: 366.3 | BL30: 4 | BM30: 2.5 | BN30: 6.5 | BO30: 13 | BP30: 3 | BQ30: 3.5 | BR30: 7 | BS30: 13.5 | BT30: دورثان | BU30: رياضة عامة - | BV30: 1 | CJ30: رياضة عامة - | CR30: 127 | CS30: 359
A31: 24 | B31: 24 | C31: سمر رضا عبد اللطيف عيد محمد | D31: 1/1 | E31: 215 | F31: 8.5 | G31: 15 | H31: 17 | I31: 40.5 | J31: 9 | K31: 10.4 | L31: 12.4 | M31: 31.8 | N31: 4.5 | O31: 6.8 | P31: 6.8 | Q31: 18.1 | R31: 8.5 | S31: 7.5 | T31: 9 | U31: 25 | V31: 8 | W31: 17 | X31: 13 | Y31: 38 | Z31: 8.5 | AA31: 12.5 | AB31: 17.5 | AC31: 38.5 | AD31: 8.5 | AE31: 13 | AF31: 19 | AG31: 40.5 | AH31: 9.5 | AI31: 12 | AJ31: 16 | AK31: 37.5 | AL31: 9 | AM31: 10 | AN31: 12 | AO31: 31 | AP31: 8.5 | AQ31: 12 | AR31: 17 | AS31: 37.5 | AT31: 2 | AU31: 4 | AV31: 5.5 | AW31: 11.5 | AX31: 6 | AY31: 11 | AZ31: 14 | BA31: 31 | BB31: 2.5 | BC31: 4 | BD31: 4 | BE31: 9 | BF31: 6 | BG31: 11 | BH31: 12.5 | BI31: 24 | BJ31: 36.5 | BK31: 417.4 | BL31: 4 | BM31: 5.5 | BN31: 6.5 | BO31: 16 | BP31: 3.5 | BQ31: 4.5 | BR31: 7.5 | BS31: 15.5 | BT31: دورثان | BU31: رياضة عامة - | BV31: 1 | CJ31: رياضة عامة - | CR31: 152 | CS31: 152
A32: 25 | B32: 25 | C32: شامية أحمد دياب حسنين | D32: 1/1 | E32: 216 | F32: 7.5 | G32: 9 | H32: 13.5 | I32: 30 | J32: 9 | K32: 13.2 | L32: 12 | M32: 34.2 | N32: 4.5 | O32: 8.4 | P32: 8 | Q32: 20.9 | R32: 8 | S32: 6 | T32: 11 | U32: 25 | V32: 8 | W32: 15.5 | X32: 9.5 | Y32: 33 | Z32: 8.5 | AA32: 6.5 | AB32: 10 | AC32: 25 | AD32: 8.5 | AE32: 4 | AF32: 15 | AG32: 27.5 | AH32: 10 | AI32: 10 | AJ32: 12 | AK32: 32 | AL32: 9 | AM32: 6 | AN32: 14 | AO32: 29 | AP32: 8.5 | AQ32: 8 | AR32: 14 | AS32: 30.5 | AT32: 2.5 | AU32: 1 | AV32: 5 | AW32: 8.5 | AX32: 6 | AY32: 13 | AZ32: 13 | BA32: 32 | BB32: 3 | BC32: 5 | BD32: 4 | BE32: 8 | BF32: 6 | BG32: 9 | BH32: 13 | BI32: 22 | BJ32: 35 | BK32: 362.6 | BL32: 3.5 | BM32: 6 | BN32: 4.5 | BO32: 14 | BP32: 3 | BQ32: 5.5 | BR32: 7 | BS32: 15.5 | BT32: دورثان | BU32: رياضة عامة - | BV32: 1 | CJ32: رياضة عامة - | CR32: 144 | CS32: 222
A33: 26 | B33: 26 | C33: شاهنده تامر مصطفي عبد الوهاب | D33: 1/1 | E33: 217 | F33: 6.5 | G33: 5.5 | H33: 13 | I33: 25 | J33: 7.5 | K33: 12 | L33: 11.2 | M33: 30.7 | N33: 5 | O33: 8.4 | P33: 8 | Q33: 21.4 | R33: 8 | S33: 2 | T33: 9.5 | U33: 19.5 | V33: 8 | W33: 12 | X33: 10 | Y33: 30 | Z33: 8.5 | AA33: 3 | AB33: 10.5 | AC33: 22 | AD33: 8.5 | AE33: 4 | AF33: 15 | AG33: 27.5 | AH33: 10 | AI33: 11 | AJ33: 11 | AK33: 32 | AL33: 9.5 | AM33: 5 | AN33: 14 | AO33: 28.5 | AP33: 8.5 | AQ33: 10 | AR33: 14 | AS33: 32.5 | AT33: 2.5 | AU33: 1 | AV33: 5.5 | AW33: 9 | AX33: 6 | AY33: 6 | AZ33: 13 | BA33: 25 | BB33: 2.5 | BC33: 5 | BD33: 5 | BE33: 8 | BF33: 5 | BG33: 9 | BH33: 12.5 | BI33: 22 | BJ33: 34.5 | BK33: 337.6 | BL33: 3.5 | BM33: 4 | BN33: 3 | BO33: 10.5 | BP33: 3 | BQ33: 4.5 | BR33: 6 | BS33: 13.5 | BT33: دورثان | BU33: محاسبة مالية - رياضة عامة - | BV33: 2 | CC33: محاسبة مالية - | CJ33: رياضة عامة - | CR33: 135 | CS33: 295
A34: 27 | B34: 27 | C34: شروق حلاوة فتحي محمد حلاوة | D34: 1/1 | E34: 218 | F34: 7 | G34: 7 | H34: 11 | I34: 25 | J34: 8 | K34: 12 | L34: 13.2 | M34: 33.2 | N34: 4.5 | O34: 8.4 | P34: 7.2 | Q34: 20.1 | R34: 9 | S34: 1.5 | T34: 8 | U34: 18.5 | V34: 8 | W34: 11 | X34: 9 | Y34: 28 | Z34: 9 | AA34: 4 | AB34: 11 | AC34: 24 | AD34: 8.5 | AE34: 4 | AF34: 14 | AG34: 26.5 | AH34: 9.5 | AI34: 8.5 | AJ34: 11 | AK34: 29 | AL34: 8.5 | AM34: 7 | AN34: 15 | AO34: 30.5 | AP34: 8 | AQ34: 5 | AR34: 5 | AS34: 18 | AT34: 4 | AU34: 1 | AV34: 11 | AW34: 16 | AX34: 6 | AY34: 4 | AZ34: 13 | BA34: 23 | BB34: 3 | BC34: 5 | BD34: 6 | BE34: 7 | BF34: 6 | BG34: 9 | BH34: 15 | BI34: 21 | BJ34: 36 | BK34: 327.8 | BL34: 3.5 | BM34: 5 | BN34: 2.5 | BO34: 11 | BP34: 3 | BQ34: 4.5 | BR34: 7 | BS34: 14.5 | BT34: دورثان | BU34: محاسبة مالية - | BV34: 2 | CC34: محاسبة مالية - | CI34: قانون تجارى - | CR34: 146 | CS34: 202
A35: 28 | B35: 28 | C35: شروق طاهر عبد القادر محمد | D35: 1/1 | E35: 219 | F35: 7 | G35: 8.5 | H35: 16 | I35: 31.5 | J35: 8 | K35: 12.4 | L35: 12.8 | M35: 33.2 | N35: 4.5 | O35: 8.8 | P35: 7.2 | Q35: 20.5 | R35: 7.5 | S35: 10.5 | T35: 10 | U35: 28 | V35: 8 | W35: 13 | X35: 10.5 | Y35: 31.5 | Z35: 8.5 | AA35: 3.5 | AB35: 12 | AC35: 24 | AD35: 8.5 | AE35: 10 | AF35: 10 | AG35: 28.5 | AH35: 9.5 | AI35: 7.5 | AJ35: 12 | AK35: 29 | AL35: 9 | AM35: 9 | AN35: 15 | AO35: 33 | AP35: 8.5 | AQ35: 9 | AR35: 10 | AS35: 27.5 | AT35: 3 | AU35: 1 | AV35: 5.5 | AW35: 9.5 | AX35: 6 | AY35: 12 | AZ35: 9 | BA35: 27 | BB35: 2.5 | BC35: 4.5 | BD35: 6 | BE35: 7 | BF35: 5 | BG35: 10 | BH35: 13.5 | BI35: 21.5 | BJ35: 35 | BK35: 358.2 | BL35: 3.5 | BM35: 5 | BN35: 3.5 | BO35: 12 | BP35: 3 | BQ35: 5 | BR35: 6.5 | BS35: 14.5 | BT35: دورثان | BU35: رياضة عامة - | BV35: 1 | CJ35: رياضة عامة - | CR35: 130 | CS35: 337
A36: 29 | B36: 29 | C36: شروق علاء سعد أحمد ادريس | D36: 1/1 | E36: 220 | F36: 8.5 | G36: 13.5 | H36: 17 | I36: 39 | J36: 9.5 | K36: 16.4 | L36: 14 | M36: 39.9 | N36: 5 | O36: 7.2 | P36: 7.6 | Q36: 19.8 | R36: 8 | S36: 0 | T36: 10.5 | U36: 18.5 | V36: 8 | W36: 16.5 | X36: 17 | Y36: 41.5 | Z36: 8.5 | AA36: 3.5 | AB36: 11.5 | AC36: 23.5 | AD36: 8.5 | AE36: 12 | AF36: 16 | AG36: 36.5 | AH36: 9.5 | AI36: 13 | AJ36: 12 | AK36: 34.5 | AL36: 9 | AM36: 9 | AN36: 18 | AO36: 36 | AP36: 8.5 | AQ36: 8 | AR36: 11 | AS36: 27.5 | AT36: 2.5 | AU36: 2 | AV36: 6 | AW36: 10.5 | AX36: 6 | AY36: 12 | AZ36: 13 | BA36: 31 | BB36: 3 | BC36: 5.5 | BD36: 5 | BE36: 9 | BF36: 5 | BG36: 11 | BH36: 13 | BI36: 25.5 | BJ36: 38.5 | BK36: 396.7 | BL36: 3.5 | BM36: 3 | BN36: 3.5 | BO36: 10 | BP36: 3.5 | BQ36: 6.5 | BR36: 7 | BS36: 17 | BT36: دورثان | BU36: محاسبة مالية - رياضة عامة - | BV36: 2 | CC36: محاسبة مالية - | CJ36: رياضة عامة - | CR36: 145 | CS36: 211
A37: 30 | B37: 30 | C37: شرين وليد فاروق عبد الهادي | D37: 1/1 | E37: 221 | F37: 7.5 | G37: 6.5 | H37: 15.5 | I37: 29.5 | J37: 8.5 | K37: 13.2 | L37: 11.6 | M37: 33.3 | N37: 4.5 | O37: 10 | P37: 7.6 | Q37: 22.1 | R37: 8 | S37: 0 | T37: 17 | U37: 25 | V37: 8 | W37: 9 | X37: 11 | Y37: 28 | Z37: 8.5 | AA37: 6 | AB37: 13 | AC37: 27.5 | AD37: 8.5 | AE37: 11 | AF37: 16 | AG37: 35.5 | AH37: 9.5 | AI37: 12.5 | AJ37: 12 | AK37: 34 | AL37: 9 | AM37: 10 | AN37: 16 | AO37: 35 | AP37: 8.5 | AQ37: 13 | AR37: 12 | AS37: 33.5 | AT37: 2.5 | AU37: 2.5 | AV37: 6 | AW37: 11 | AX37: 6 | AY37: 8 | AZ37: 13 | BA37: 27 | BB37: 2.5 | BC37: 4.5 | BD37: 6 | BE37: 8 | BF37: 6 | BG37: 10 | BH37: 14.5 | BI37: 22.5 | BJ37: 37 | BK37: 378.4 | BL37: 3.5 | BM37: 3.5 | BN37: 3 | BO37: 10 | BP37: 3 | BQ37: 2.5 | BR37: 6.5 | BS37: 12 | BT37: دورثان | BU37: رياضة عامة - | BV37: 1 | CJ37: رياضة عامة - | CR37: 135 | CS37: 295
A38: 31 | B38: 31 | C38: شيماء رمضان عبد الرسول ابراهيم | D38: 1/1 | E38: 222 | F38: 7.5 | G38: 7.5 | H38: 14 | I38: 29 | J38: 8.5 | K38: 10.8 | L38: 12.8 | M38: 32.1 | N38: 4.5 | O38: 7.6 | P38: 7.2 | Q38: 19.3 | R38: 7.5 | S38: 3.5 | T38: 14 | U38: 25 | V38: 8 | W38: 13.5 | X38: 14.5 | Y38: 36 | Z38: 8.5 | AA38: 1 | AB38: 10.5 | AC38: 20 | AD38: 8.5 | AE38: 13 | AF38: 16 | AG38: 37.5 | AH38: 9.5 | AI38: 9 | AJ38: 12 | AK38: 30.5 | AL38: 9.5 | AM38: 7 | AN38: 14 | AO38: 30.5 | AP38: 8.5 | AQ38: 11 | AR38: 10 | AS38: 29.5 | AT38: 3 | AU38: 2 | AV38: 6.5 | AW38: 11.5 | AX38: 6 | AY38: 11 | AZ38: 11 | BA38: 28 | BB38: 3 | BC38: 5 | BD38: 6 | BE38: 10 | BF38: 6 | BG38: 11 | BH38: 15 | BI38: 26 | BJ38: 41 | BK38: 369.9 | BL38: 3.5 | BM38: 6 | BN38: 3.5 | BO38: 13 | BP38: 3 | BQ38: 5 | BR38: 7 | BS38: 15 | BT38: دورثان | BU38: رياضة عامة - | BV38: 1 | CJ38: رياضة عامة - | CR38: 118 | CS38: 401
A39: 32 | B39: 32 | C39: صباح رضا ابراهيم محمود حسن | D39: 1/1 | E39: 223 | F39: 7.5 | G39: 7 | H39: 10.5 | I39: 25 | J39: 8.5 | K39: 11.2 | L39: 12.4 | M39: 32.1 | N39: 4.5 | O39: 9.2 | P39: 7.2 | Q39: 20.9 | R39: 7 | S39: 2.5 | T39: 15.5 | U39: 25 | V39: 8 | W39: 14 | X39: 10 | Y39: 32 | Z39: 8.5 | AA39: 4.5 | AB39: 9 | AC39: 22 | AD39: 8.5 | AE39: 10 | AF39: 12 | AG39: 30.5 | AH39: 9.5 | AI39: 6.5 | AJ39: 11 | AK39: 27 | AL39: 9 | AM39: 10 | AN39: 15 | AO39: 34 | AP39: 8.5 | AQ39: 8 | AR39: 12 | AS39: 28.5 | AT39: 2.5 | AU39: 2 | AV39: 5 | AW39: 9.5 | AX39: 6 | AY39: 5 | AZ39: 13 | BA39: 24 | BB39: 2.5 | BC39: 5 | BD39: 6 | BE39: 9 | BF39: 6 | BG39: 11 | BH39: 14.5 | BI39: 25 | BJ39: 39.5 | BK39: 350 | BL39: 3.5 | BM39: 3.5 | BN39: 3 | BO39: 10 | BP39: 3 | BQ39: 5 | BR39: 6 | BS39: 14 | BT39: دورثان | BU39: رياضة عامة - | BV39: 1 | CJ39: رياضة عامة - | CR39: 124 | CS39: 374
A40: 33 | B40: 33 | C40: ضحي مسعد سند ابراهيم | D40: 1/1 | E40: 224 | F40: 7.5 | G40: 10.5 | H40: 15 | I40: 33 | J40: 8 | K40: 6.4 | L40: 10 | M40: 24.4 | N40: 4.5 | O40: 9.6 | P40: 6 | Q40: 20.1 | R40: 7 | S40: 2 | T40: 7 | U40: 16 | V40: 8 | W40: 9.5 | X40: 9.5 | Y40: 27 | Z40: 8.5 | AA40: 6.5 | AB40: 11.5 | AC40: 26.5 | AD40: 8.5 | AE40: 10 | AF40: 17 | AG40: 35.5 | AH40: 9.5 | AI40: 12 | AJ40: 15 | AK40: 36.5 | AL40: 9.5 | AM40: 2 | AN40: 14 | AO40: 25.5 | AP40: 8.5 | AQ40: 7 | AR40: 16 | AS40: 31.5 | AT40: 2 | AU40: 3 | AV40: 4.5 | AW40: 9.5 | AX40: 6 | AY40: 5 | AZ40: 5 | BA40: 16 | BB40: 3 | BC40: 5 | BD40: 5 | BE40: 7 | BF40: 6 | BG40: 8 | BH40: 14 | BI40: 20 | BJ40: 34 | BK40: 335.5 | BL40: 3.5 | BM40: 6 | BN40: 4 | BO40: 13.5 | BP40: 3 | BQ40: 2 | BR40: 6.5 | BS40: 11.5 | BT40: راسبة | BU40: محاسبة مالية - رياضة عامة - جغرافيا - | BV40: 3 | CC40: محاسبة مالية - | CJ40: رياضة عامة - | CK40: جغرافيا - | CR40: 170 | CS40: 52
A41: 34 | B41: 34 | C41: عائشة السيد عبد الحي محمد | D41: 1/1 | E41: 225 | F41: 8 | G41: 8.5 | H41: 12.5 | I41: 29 | J41: 9.5 | K41: 5.6 | L41: 8.8 | M41: 23.9 | N41: 4.5 | O41: 8.8 | P41: 5.6 | Q41: 18.9 | R41: 8 | S41: 7 | T41: 10 | U41: 25 | V41: 8 | W41: 13 | X41: 8.5 | Y41: 29.5 | Z41: 8.5 | AA41: 6 | AB41: 13.5 | AC41: 28 | AD41: 8.5 | AE41: 12 | AF41: 15 | AG41: 35.5 | AH41: 9.5 | AI41: 13 | AJ41: 15 | AK41: 37.5 | AL41: 9.5 | AM41: 5 | AN41: 15 | AO41: 29.5 | AP41: 8.5 | AQ41: 2 | AR41: 16 | AS41: 26.5 | AT41: 2 | AU41: 5 | AV41: 4.5 | AW41: 11.5 | AX41: 6 | AY41: 8 | AZ41: 6 | BA41: 20 | BB41: 2.5 | BC41: 5 | BD41: 6 | BE41: 7 | BF41: 6 | BG41: 5 | BH41: 14.5 | BI41: 17 | BJ41: 31.5 | BK41: 346.3 | BL41: 3.5 | BM41: 5.5 | BN41: 3.5 | BO41: 12.5 | BP41: 3 | BQ41: 4 | BR41: 7.5 | BS41: 14.5 | BT41: دورثان | BU41: رياضة عامة - | BV41: 1 | CJ41: رياضة عامة - | CR41: 161 | CS41: 95
A42: 35 | B42: 35 | C42: عزة عبد المنعم عبد السلام شرف | D42: 1/1 | E42: 226 | F42: 7.5 | G42: 7.5 | H42: 12.5 | I42: 27.5 | J42: 9 | K42: 5.2 | L42: 6.4 | M42: 20.6 | N42: 4.5 | O42: 8.4 | P42: 6.4 | Q42: 19.3 | R42: 7.5 | S42: 0 | T42: 5.5 | U42: 13 | V42: 8 | W42: 10 | X42: 7 | Y42: 25 | Z42: 8.5 | AA42: 3.5 | AB42: 12.5 | AC42: 24.5 | AD42: 8.5 | AE42: 9 | AF42: 10 | AG42: 27.5 | AH42: 9.5 | AI42: 10.5 | AJ42: 15 | AK42: 35 | AL42: 9.5 | AM42: 9 | AN42: 11 | AO42: 29.5 | AP42: 8.5 | AQ42: 3 | AR42: 15 | AS42: 26.5 | AT42: 2 | AU42: 1 | AV42: 2 | AW42: 5 | AX42: 6 | AY42: 10 | AZ42: 6 | BA42: 22 | BB42: 2.5 | BC42: 5 | BD42: 5 | BE42: 9 | BF42: 5 | BG42: 8 | BH42: 12.5 | BI42: 22 | BJ42: 34.5 | BK42: 309.9 | BL42: 3.5 | BM42: 5.5 | BN42: 5 | BO42: 14 | BP42: 3 | BQ42: 1.5 | BR42: 6.5 | BS42: 11 | BT42: دورثان | BU42: محاسبة مالية - رياضة عامة - | BV42: 2 | CC42: محاسبة مالية - | CJ42: رياضة عامة - | CR42: 129 | CS42: 342
A43: 36 | B43: 36 | C43: علا زين العابدين علي محمد علي | D43: 1/1 | E43: 227 | F43: 8 | G43: 10.5 | H43: 16 | I43: 34.5 | J43: 8 | K43: 5.2 | L43: 7.6 | M43: 20.8 | N43: 4.5 | O43: 8.4 | P43: 6 | Q43: 18.9 | R43: 7.5 | S43: 1.5 | T43: 3.5 | U43: 12.5 | V43: 8 | W43: 14.5 | X43: 10.5 | Y43: 33 | Z43: 8.5 | AA43: 6 | AB43: 13.5 | AC43: 28 | AD43: 8.5 | AE43: 9 | AF43: 12 | AG43: 29.5 | AH43: 9.5 | AI43: 13.5 | AJ43: 15 | AK43: 38 | AL43: 9 | AM43: 10 | AN43: 12 | AO43: 31 | AP43: 8 | AQ43: 9 | AR43: 16 | AS43: 33 | AT43: 2 | AU43: 4 | AV43: 9 | AW43: 15 | AX43: 6 | AY43: 12 | AZ43: 11 | BA43: 29 | BB43: 2.5 | BC43: 5 | BD43: 6 | BE43: 7 | BF43: 5 | BG43: 7 | BH43: 13.5 | BI43: 19 | BJ43: 32.5 | BK43: 355.7 | BL43: 3.5 | BM43: 5 | BN43: 4 | BO43: 12.5 | BP43: 3 | BQ43: 5.5 | BR43: 7 | BS43: 15.5 | BT43: دورثان | BU43: محاسبة مالية - | BV43: 1 | CC43: محاسبة مالية - | CR43: 148 | CS43: 179
A44: 37 | B44: 37 | C44: فاطمة أشرف حلمي حسنين قنديل | D44: 1/1 | E44: 228 | F44: 7.5 | G44: 7.5 | H44: 13 | I44: 28 | J44: 9 | K44: 3.6 | L44: 10 | M44: 22.6 | N44: 4.5 | O44: 7.6 | P44: 5.2 | Q44: 17.3 | R44: 8 | S44: 0.5 | T44: 10.5 | U44: 19 | V44: 8 | W44: 12 | X44: 10.5 | Y44: 30.5 | Z44: 8.5 | AA44: 10 | AB44: 13.5 | AC44: 32 | AD44: 8.5 | AE44: 11 | AF44: 12 | AG44: 31.5 | AH44: 9.5 | AI44: 12.5 | AJ44: 15 | AK44: 37 | AL44: 9.5 | AM44: 8 | AN44: 12.5 | AO44: 30 | AP44: 8.5 | AQ44: 8 | AR44: 17 | AS44: 33.5 | AT44: 2.5 | AU44: 3 | AV44: 3 | AW44: 8.5 | AX44: 6 | AY44: 4 | AZ44: 7 | BA44: 17 | BB44: 3 | BC44: 5 | BD44: 5 | BE44: 7 | BF44: 5 | BG44: 9 | BH44: 13 | BI44: 21 | BJ44: 34 | BK44: 340.9 | BL44: 3.5 | BM44: 5.5 | BN44: 4 | BO44: 13 | BP44: 3 | BQ44: 4 | BR44: 6 | BS44: 13 | BT44: راسبة | BU44: محاسبة مالية - رياضة عامة - جغرافيا - | BV44: 3 | CC44: محاسبة مالية - | CJ44: رياضة عامة - | CK44: جغرافيا - | CR44: 135 | CS44: 295
A45: 38 | B45: 38 | C45: فاطمة عبد الرسول كمال صالح | D45: 1/1 | E45: 229 | F45: 7 | G45: 10 | H45: 15.5 | I45: 32.5 | J45: 8 | K45: 3.2 | L45: 9.6 | M45: 20.8 | N45: 4.5 | O45: 8 | P45: 6 | Q45: 18.5 | R45: 7 | S45: 8.5 | T45: 11.5 | U45: 27 | V45: 8 | W45: 10 | X45: 8.5 | Y45: 26.5 | Z45: 8 | AA45: 11 | AB45: 11 | AC45: 30 | AD45: 8.5 | AE45: 11 | AF45: 18 | AG45: 37.5 | AH45: 9.5 | AI45: 14 | AJ45: 15 | AK45: 38.5 | AL45: 8.5 | AM45: 7 | AN45: 17 | AO45: 32.5 | AP45: 8.5 | AQ45: 3.5 | AR45: 13 | AS45: 25 | AT45: 2.5 | AU45: 4 | AV45: 3.5 | AW45: 10 | AX45: 6 | AY45: 10 | AZ45: 9 | BA45: 25 | BB45: 3 | BC45: 4 | BD45: 5 | BE45: 7 | BF45: 5 | BG45: 8 | BH45: 13 | BI45: 19 | BJ45: 32 | BK45: 355.8 | BL45: 3.5 | BM45: 5.5 | BN45: 4.5 | BO45: 13.5 | BP45: 3 | BQ45: 3.5 | BR45: 7.5 | BS45: 14 | BT45: دورثان | BU45: رياضة عامة - | BV45: 1 | CJ45: رياضة عامة - | CR45: 155 | CS45: 135
A46: 39 | B46: 39 | C46: فاطمة علاء الدين محمد طلعت عطية | D46: 1/1 | E46: 230 | F46: 7.5 | G46: 11 | H46: 13.5 | I46: 32 | J46: 8.5 | K46: 6.4 | L46: 10.4 | M46: 25.3 | N46: 5 | O46: 9.6 | P46: 7.2 | Q46: 21.8 | R46: 7.5 | S46: 1.5 | T46: 16 | U46: 25 | V46: 8 | W46: 10.5 | X46: 11 | Y46: 29.5 | Z46: 8.5 | AA46: 9.5 | AB46: 14 | AC46: 32 | AD46: 8.5 | AE46: 7 | AF46: 16 | AG46: 31.5 | AH46: 9.5 | AI46: 14.5 | AJ46: 14 | AK46: 38 | AL46: 9 | AM46: 8 | AN46: 16 | AO46: 33 | AP46: 8.5 | AQ46: 7 | AR46: 15 | AS46: 30.5 | AT46: 2.5 | AU46: 3.5 | AV46: 4.5 | AW46: 10.5 | AX46: 6 | AY46: 10 | AZ46: 6 | BA46: 22 | BB46: 2.5 | BC46: 4.5 | BD46: 5 | BE46: 6 | BF46: 5 | BG46: 8 | BH46: 12.5 | BI46: 18.5 | BJ46: 31 | BK46: 362.1 | BL46: 3.5 | BM46: 5 | BN46: 5 | BO46: 13.5 | BP46: 3 | BQ46: 3.5 | BR46: 7 | BS46: 13.5 | BT46: دورثان | BU46: رياضة عامة - | BV46: 1 | CJ46: رياضة عامة - | CR46: 175 | CS46: 35
A47: 40 | B47: 40 | C47: محاسن نجم عبد الباقي عبد المقصود | D47: 1/1 | E47: 231 | F47: 7 | G47: 7.5 | H47: 12.5 | I47: 27 | J47: 8.5 | K47: 8.8 | L47: 7.2 | M47: 24.5 | N47: 4.5 | O47: 6 | P47: 6.4 | Q47: 16.9 | R47: 7 | S47: 0 | T47: 8.5 | U47: 15.5 | V47: 8 | W47: 11 | X47: 11 | Y47: 30 | Z47: 9 | AA47: 1.5 | AB47: 13.5 | AC47: 24 | AD47: 8.5 | AE47: 7 | AF47: 17 | AG47: 32.5 | AH47: 9.5 | AI47: 15 | AJ47: 18 | AK47: 42.5 | AL47: 9 | AM47: 6 | AN47: 10 | AO47: 25 | AP47: 8.5 | AQ47: 14 | AR47: 14 | AS47: 36.5 | AT47: 2.5 | AU47: 0 | AV47: 4.5 | AW47: 7 | AX47: 6 | AY47: 11 | AZ47: 10 | BA47: 27 | BB47: 2.5 | BC47: 4.5 | BD47: 6 | BE47: 5 | BF47: 5 | BG47: 9 | BH47: 13.5 | BI47: 18.5 | BJ47: 32 | BK47: 340.4 | BL47: 3.5 | BM47: 4 | BN47: 3.5 | BO47: 11 | BP47: 3 | BQ47: 2 | BR47: 7.5 | BS47: 12.5 | BT47: دورثان | BU47: محاسبة مالية - رياضة عامة - | BV47: 2 | CC47: محاسبة مالية - | CJ47: رياضة عامة - | CR47: 139 | CS47: 257
A48: 41 | B48: 41 | C48: مروة رجب مغازي السيد خضر | D48: 1/1 | E48: 232 | F48: 6.5 | G48: 8.5 | H48: 11.5 | I48: 26.5 | J48: 7.5 | K48: 7.2 | L48: 8 | M48: 22.7 | N48: 4.5 | O48: 8 | P48: 7.2 | Q48: 19.7 | R48: 7 | S48: 0.5 | T48: 9.5 | U48: 17 | V48: 8 | W48: 13.5 | X48: 13 | Y48: 34.5 | Z48: 8.5 | AA48: 3 | AB48: 12 | AC48: 23.5 | AD48: 8.5 | AE48: 8 | AF48: 17 | AG48: 33.5 | AH48: 9.5 | AI48: 15.5 | AJ48: 17 | AK48: 42 | AL48: 9 | AM48: 8 | AN48: 8 | AO48: 25 | AP48: 8.5 | AQ48: 15 | AR48: 16 | AS48: 39.5 | AT48: 3.5 | AU48: 2 | AV48: 5 | AW48: 10.5 | AX48: 6 | AY48: 12 | AZ48: 10 | BA48: 28 | BB48: 2.5 | BC48: 4.5 | BD48: 5 | BE48: 5 | BF48: 5 | BG48: 9 | BH48: 12.5 | BI48: 18.5 | BJ48: 31 | BK48: 353.4 | BL48: 3.5 | BM48: 3 | BN48: 3.5 | BO48: 10 | BP48: 3 | BQ48: 2 | BR48: 7.5 | BS48: 12.5 | BT48: دورثان | BU48: محاسبة مالية - رياضة عامة - | BV48: 2 | CC48: محاسبة مالية - | CJ48: رياضة عامة - | CR48: 114 | CS48: 415
A49: 42 | B49: 42 | C49: مروه رضا السيد منصور محمد | D49: 2/1 | E49: 233 | F49: 7 | G49: 9.5 | H49: 13 | I49: 29.5 | J49: 8 | K49: 8.8 | L49: 8.8 | M49: 25.6 | N49: 4.5 | O49: 8.4 | P49: 6.4 | Q49: غ | R49: 8 | S49: 1 | T49: 8.5 | U49: غ | V49: 8 | W49: 13.5 | X49: 9.5 | Y49: غ | Z49: 8.5 | AA49: 4.5 | AB49: 12 | AC49: غ | AD49: 8.5 | AE49: 11 | AF49: 15 | AG49: غ | AH49: 9.5 | AI49: 14 | AJ49: 16 | AK49: غ | AL49: 9 | AM49: 6 | AN49: 12 | AO49: غ | AP49: 8.5 | AQ49: 18 | AR49: 16 | AS49: غ | AT49: 5 | AU49: 2.5 | AV49: 7.5 | AW49: غ | AX49: 6 | AY49: 11 | AZ49: 10 | BA49: غ | BB49: 2.5 | BC49: 5 | BD49: 6 | BE49: 6 | BF49: 6 | BG49: 9 | BH49: غ | BI49: غ | BJ49: غ | BK49: =SUM(I49,M49,Q49,U49,Y49,AC49,AG49,AK49,AO49,AS49,AW49,BA49,BJ49) -> 55.1 | BL49: 3.5 | BM49: 5.5 | BN49: 4 | BO49: غ | BP49: 3 | BQ49: 3 | BR49: 7 | BS49: غ | BT49: دورثان | BU49: حاسب ألى - مجموع - | BV49: 2 | CL49: حاسب ألى - | CM49: مجموع - | CR49: 0 | CS49: 447
A50: 43 | B50: 43 | C50: مشيرة أشرف زكي حسن | D50: 2/1 | E50: 234 | F50: 7.5 | G50: 8 | H50: 14.5 | I50: 30 | J50: 9 | K50: 9.2 | L50: 8.8 | M50: 27 | N50: 4.5 | O50: 9.2 | P50: 6.8 | Q50: 20.5 | R50: 8 | S50: 1 | T50: 9.5 | U50: 18.5 | V50: 8 | W50: 12 | X50: 12.5 | Y50: 32.5 | Z50: 8.5 | AA50: 4.5 | AB50: 16.5 | AC50: 29.5 | AD50: 8.5 | AE50: 11 | AF50: 16 | AG50: 35.5 | AH50: 9.5 | AI50: 16.5 | AJ50: 15 | AK50: 41 | AL50: 9 | AM50: 10 | AN50: 12 | AO50: 31 | AP50: 8.5 | AQ50: 15 | AR50: 16 | AS50: 39.5 | AT50: 2 | AU50: 3 | AV50: 7 | AW50: 12 | AX50: 6 | AY50: 10 | AZ50: 11 | BA50: 27 | BB50: 2.5 | BC50: 5 | BD50: 5 | BE50: 10 | BF50: 6 | BG50: 9 | BH50: 13.5 | BI50: 24 | BJ50: 37.5 | BK50: 381.5 | BL50: 3.5 | BM50: 5 | BN50: 4.5 | BO50: 13 | BP50: 3 | BQ50: 3.5 | BR50: 7.5 | BS50: 14 | BT50: دورثان | BU50: محاسبة مالية - رياضة عامة - | BV50: 2 | CC50: محاسبة مالية - | CJ50: رياضة عامة - | CR50: 135 | CS50: 295
A51: 44 | B51: 44 | C51: منار سامي سلامة عامر محمد النجار | D51: 2/1 | E51: 235 | F51: 7.5 | G51: 8.5 | H51: 12.5 | I51: 28.5 | J51: 8.5 | K51: 10 | L51: 9.2 | M51: 27.7 | N51: 4.5 | O51: 8.8 | P51: 6.8 | Q51: 20.1 | R51: 7.5 | S51: 0.5 | T51: 17 | U51: 25 | V51: 8.5 | W51: 15 | X51: 11.5 | Y51: 35 | Z51: 8.5 | AA51: 2 | AB51: 13.5 | AC51: 24 | AD51: 8.5 | AE51: 9 | AF51: 17 | AG51: 34.5 | AH51: 9 | AI51: 16 | AJ51: 12 | AK51: 37 | AL51: 9.5 | AM51: 5 | AN51: 13.5 | AO51: 28 | AP51: 8 | AQ51: 14 | AR51: 16 | AS51: 38 | AT51: 2 | AU51: 4 | AV51: 5 | AW51: 11 | AX51: 6 | AY51: 12 | AZ51: 11 | BA51: 29 | BB51: 2.5 | BC51: 4.5 | BD51: 5 | BE51: 5 | BF51: 6 | BG51: 9 | BH51: 13.5 | BI51: 18.5 | BJ51: 32 | BK51: 369.8 | BL51: 3.5 | BM51: 4.5 | BN51: 4 | BO51: 12 | BP51: 3 | BQ51: 5 | BR51: 7.5 | BS51: 15.5 | BT51: دورثان | BU51: رياضة عامة - | BV51: 1 | CJ51: رياضة عامة - | CR51: 138 | CS51: 266
A52: 45 | B52: 45 | C52: منار محمد عبد الظاهر ابراهيم شديد | D52: 2/1 | E52: 236 | F52: 7.5 | G52: 4.5 | H52: 10.5 | I52: 22.5 | J52: 8.5 | K52: 7.6 | L52: 10.8 | M52: 26.9 | N52: 4.5 | O52: 8.8 | P52: 7.2 | Q52: 20.5 | R52: 7.5 | S52: 0.5 | T52: 17 | U52: 25 | V52: 9 | W52: 14.5 | X52: 10 | Y52: 33.5 | Z52: 8.5 | AA52: 0 | AB52: 13 | AC52: 21.5 | AD52: 8.5 | AE52: 8 | AF52: 15 | AG52: 31.5 | AH52: 9 | AI52: 13.5 | AJ52: 13 | AK52: 35.5 | AL52: 9.5 | AM52: 3.5 | AN52: 12 | AO52: 25 | AP52: 8 | AQ52: 14 | AR52: 16 | AS52: 38 | AT52: 2 | AU52: 1 | AV52: 6 | AW52: 9 | AX52: 6 | AY52: 13 | AZ52: 12 | BA52: 31 | BB52: 2.5 | BC52: 5 | BD52: 5 | BE52: 7 | BF52: 6 | BG52: 9 | BH52: 13.5 | BI52: 21 | BJ52: 34.5 | BK52: 354.4 | BL52: 3.5 | BM52: 1 | BN52: 3.5 | BO52: 8 | BP52: 3 | BQ52: 1 | BR52: 7 | BS52: 11 | BT52: راسبة | BU52: لغة عربية - رياضة عامة - تربية قومية | BV52: 3 | BZ52: لغة عربية - | CJ52: رياضة عامة - | CN52: تربية قومية | CR52: 147 | CS52: 192
A53: 46 | B53: 46 | C53: منة مجدي محمد محمد | D53: 2/1 | E53: 237 | F53: 7.5 | G53: 11.5 | H53: 12.5 | I53: 31.5 | J53: 8.5 | K53: 10 | L53: 10.4 | M53: 28.9 | N53: 4.5 | O53: 8.8 | P53: 8 | Q53: 21.3 | R53: 8 | S53: 8 | T53: 17 | U53: 33 | V53: 9 | W53: 12.5 | X53: 14 | Y53: 35.5 | Z53: 8.5 | AA53: 6 | AB53: 16 | AC53: 30.5 | AD53: 8.5 | AE53: 15 | AF53: 18 | AG53: 41.5 | AH53: 9.5 | AI53: 16 | AJ53: 19 | AK53: 44.5 | AL53: 9 | AM53: 12 | AN53: 12 | AO53: 33 | AP53: 8 | AQ53: 15 | AR53: 16 | AS53: 39 | AT53: 2 | AU53: 1 | AV53: 3 | AW53: 6 | AX53: 6 | AY53: 12 | AZ53: 13 | BA53: 31 | BB53: 3 | BC53: 5 | BD53: 5 | BE53: 8 | BF53: 6 | BG53: 9 | BH53: 14 | BI53: 22 | BJ53: 36 | BK53: 411.7 | BL53: 3.5 | BM53: 4 | BN53: 4.5 | BO53: 12 | BP53: 3 | BQ53: 3.5 | BR53: 6 | BS53: 12.5 | BT53: دورثان | BU53: رياضة عامة - | BV53: 1 | CJ53: رياضة عامة - | CR53: 151 | CS53: 158
A54: 47 | B54: 47 | C54: مي ابراهيم عطيه شيحة | D54: 2/1 | E54: 238 | F54: 7.5 | G54: 4 | H54: 13.5 | I54: 25 | J54: 8.5 | K54: 8.8 | L54: 8.8 | M54: 26.1 | N54: 4.5 | O54: 8.8 | P54: 8 | Q54: 21.3 | R54: 7.5 | S54: 4 | T54: 7.5 | U54: 19 | V54: 9 | W54: 12 | X54: 13.5 | Y54: 34.5 | Z54: 8.5 | AA54: 8 | AB54: 10.5 | AC54: 27 | AD54: 8.5 | AE54: 15 | AF54: 14 | AG54: 37.5 | AH54: 9.5 | AI54: 13 | AJ54: 13 | AK54: 35.5 | AL54: 9 | AM54: 6 | AN54: 12 | AO54: 27 | AP54: 8 | AQ54: 14 | AR54: 16 | AS54: 38 | AT54: 2 | AU54: 0 | AV54: 7.5 | AW54: 9.5 | AX54: 6 | AY54: 12 | AZ54: 12 | BA54: 30 | BB54: 2.5 | BC54: 5 | BD54: 5 | BE54: 9 | BF54: 5 | BG54: 9 | BH54: 12.5 | BI54: 23 | BJ54: 35.5 | BK54: 365.9 | BL54: 3.5 | BM54: 1 | BN54: 3.5 | BO54: 8 | BP54: 3 | BQ54: 3 | BR54: 7.5 | BS54: 13.5 | BT54: راسبة | BU54: محاسبة مالية - رياضة عامة - تربية قومية | BV54: 3 | CC54: محاسبة مالية - | CJ54: رياضة عامة - | CN54: تربية قومية | CR54: 172 | CS54: 43
A55: 48 | B55: 48 | C55: ندي مجدي السيد اسماعيل سليم | D55: 2/1 | E55: 239 | F55: 7.5 | G55: 7 | H55: 10.5 | I55: 25 | J55: 8.5 | K55: 8.4 | L55: 12.8 | M55: 29.7 | N55: 4.5 | O55: 6.8 | P55: 8.4 | Q55: 19.7 | R55: 7.5 | S55: 1 | T55: 8.5 | U55: 17 | V55: 9 | W55: 9.5 | X55: 10 | Y55: 28.5 | Z55: 8.5 | AA55: 4.5 | AB55: 10.5 | AC55: 23.5 | AD55: 8.5 | AE55: 12 | AF55: 11 | AG55: 31.5 | AH55: 9.5 | AI55: 12.5 | AJ55: 15 | AK55: 37 | AL55: 9 | AM55: 13 | AN55: 15 | AO55: 37 | AP55: 8 | AQ55: 11 | AR55: 15 | AS55: 34 | AT55: 2 | AU55: 3.5 | AV55: 6 | AW55: 11.5 | AX55: 6 | AY55: 12 | AZ55: 8 | BA55: 26 | BB55: 3 | BC55: 5 | BD55: 5 | BE55: 6 | BF55: 5 | BG55: 9 | BH55: 13 | BI55: 20 | BJ55: 33 | BK55: 353.4 | BL55: 3.5 | BM55: 5 | BN55: 2.5 | BO55: 11 | BP55: 3 | BQ55: 5.5 | BR55: 7 | BS55: 15.5 | BT55: دورثان | BU55: محاسبة مالية - رياضة عامة - | BV55: 2 | CC55: محاسبة مالية - | CJ55: رياضة عامة - | CR55: 136 | CS55: 285
A56: 49 | B56: 49 | C56: نورهان أشرف فتحي عبد المقصود | D56: 2/1 | E56: 240 | F56: 7.5 | G56: 7.5 | H56: 10 | I56: 25 | J56: 8.5 | K56: 3.6 | L56: 10.4 | M56: 22.5 | N56: 4.5 | O56: 8 | P56: 8.4 | Q56: 20.9 | R56: 8 | S56: 1 | T56: 6 | U56: 15 | V56: 8.5 | W56: 8.5 | X56: 12.5 | Y56: 29.5 | Z56: 8.5 | AA56: 2.5 | AB56: 9 | AC56: 20 | AD56: 8.5 | AE56: 13 | AF56: 8 | AG56: 29.5 | AH56: 9.5 | AI56: 10 | AJ56: 15 | AK56: 34.5 | AL56: 9 | AM56: 10 | AN56: 7 | AO56: 26 | AP56: 8 | AQ56: 10 | AR56: 15 | AS56: 33 | AT56: 2 | AU56: 3 | AV56: 6 | AW56: 11 | AX56: 6 | AY56: 6 | AZ56: 8 | BA56: 20 | BB56: 2.5 | BC56: 5 | BD56: 5 | BE56: 7 | BF56: 6 | BG56: 9 | BH56: 13.5 | BI56: 21 | BJ56: 34.5 | BK56: 321.4 | BL56: 3.5 | BM56: 4 | BN56: 3 | BO56: 10.5 | BP56: 3 | BQ56: 3.5 | BR56: 6 | BS56: 12.5 | BT56: دورثان | BU56: محاسبة مالية - رياضة عامة - | BV56: 2 | CC56: محاسبة مالية - | CJ56: رياضة عامة - | CR56: 170 | CS56: 52
A57: 50 | B57: 50 | C57: نورهان عبد العليم عبد الباقي عبده | D57: 2/1 | E57: 241 | F57: 7.5 | G57: 11 | H57: 16 | I57: 34.5 | J57: 8 | K57: 12.4 | L57: 14.8 | M57: 35.2 | N57: 4.5 | O57: 6.8 | P57: 8 | Q57: 19.3 | R57: 9 | S57: 9 | T57: 10.5 | U57: 28.5 | V57: 9 | W57: 10.5 | X57: 11 | Y57: 30.5 | Z57: 8.5 | AA57: 6.5 | AB57: 7 | AC57: 22 | AD57: 8.5 | AE57: 12 | AF57: 11 | AG57: 31.5 | AH57: 9.5 | AI57: 10.5 | AJ57: 15 | AK57: 35 | AL57: 9 | AM57: 8 | AN57: 14 | AO57: 31 | AP57: 8 | AQ57: 10 | AR57: 17 | AS57: 35 | AT57: 2 | AU57: 3 | AV57: 5.5 | AW57: 10.5 | AX57: 6 | AY57: 9 | AZ57: 12 | BA57: 27 | BB57: 2.5 | BC57: 5 | BD57: 6 | BE57: 6 | BF57: 6 | BG57: 9 | BH57: 14.5 | BI57: 20 | BJ57: 34.5 | BK57: 374.5 | BL57: 3.5 | BM57: 5.5 | BN57: 4.5 | BO57: 13.5 | BP57: 3 | BQ57: 6 | BR57: 6.5 | BS57: 15.5 | BT57: دورثان | BU57: رياضة عامة - | BV57: 1 | CJ57: رياضة عامة - | CR57: 127 | CS57: 359
A58: 51 | B58: 51 | C58: هاله عبد الرسول عابد رفاعي | D58: 2/1 | E58: 242 | F58: 7.5 | G58: 10 | H58: 8 | I58: 25.5 | J58: 8.5 | K58: 8 | L58: 15.6 | M58: 32.1 | N58: 4.5 | O58: 4.4 | P58: 7.2 | Q58: 16.1 | R58: 8 | S58: 0 | T58: 17 | U58: 25 | V58: 9 | W58: 11 | X58: 10.5 | Y58: 30.5 | Z58: 8.5 | AA58: 9.5 | AB58: 12 | AC58: 30 | AD58: 8.5 | AE58: 15 | AF58: 8 | AG58: 31.5 | AH58: 9.5 | AI58: 15.5 | AJ58: 14 | AK58: 39 | AL58: 9 | AM58: 10 | AN58: 17 | AO58: 36 | AP58: 8 | AQ58: 15 | AR58: 13 | AS58: 36 | AT58: 2 | AU58: 3.5 | AV58: 4 | AW58: 9.5 | AX58: 6 | AY58: 9 | AZ58: 10 | BA58: 25 | BB58: 3 | BC58: 5 | BD58: 4 | BE58: 7 | BF58: 6 | BG58: 9 | BH58: 13 | BI58: 21 | BJ58: 34 | BK58: 370.2 | BL58: 3.5 | BM58: 3 | BN58: 3.5 | BO58: 10 | BP58: 3 | BQ58: 6 | BR58: 6.5 | BS58: 15.5 | BT58: دورثان | BU58: رياضة عامة - | BV58: 1 | CJ58: رياضة عامة - | CR58: 139 | CS58: 257
A59: 52 | B59: 52 | C59: هانم صلاح الدين عبد الحميد محمد | D59: 2/1 | E59: 243 | F59: 7.5 | G59: 8.5 | H59: 9 | I59: 25 | J59: 8 | K59: 6.4 | L59: 9.6 | M59: 24 | N59: 4.5 | O59: 2.8 | P59: 7.6 | Q59: 14.9 | R59: 8 | S59: 1 | T59: 5.5 | U59: 14.5 | V59: 9 | W59: 8.5 | X59: 13 | Y59: 30.5 | Z59: 8.5 | AA59: 2.5 | AB59: 9.5 | AC59: 20.5 | AD59: 8.5 | AE59: 16 | AF59: 13 | AG59: 37.5 | AH59: 9.5 | AI59: 15.5 | AJ59: 12 | AK59: 37 | AL59: 9 | AM59: 10 | AN59: 15 | AO59: 34 | AP59: 8 | AQ59: 13 | AR59: 16 | AS59: 37 | AT59: 5 | AU59: 2 | AV59: 9 | AW59: 16 | AX59: 6 | AY59: 8 | AZ59: 9 | BA59: 23 | BB59: 2.5 | BC59: 4.5 | BD59: 5 | BE59: 7 | BF59: 6 | BG59: 8 | BH59: 13.5 | BI59: 19.5 | BJ59: 33 | BK59: 346.9 | BL59: 3.5 | BM59: 3.5 | BN59: 3 | BO59: 10 | BP59: 3 | BQ59: 5 | BR59: 7 | BS59: 15 | BT59: دورثان | BU59: محاسبة مالية - | BV59: 1 | CC59: محاسبة مالية - | CR59: 139 | CS59: 257
A60: 53 | B60: 53 | C60: هبه محمود عبد الستار السيد | D60: 2/1 | E60: 244 | F60: 7.5 | G60: 10.5 | H60: 11 | I60: 29 | J60: 8.5 | K60: 7.6 | L60: 12.8 | M60: 28.9 | N60: 4.5 | O60: 4 | P60: 8.8 | Q60: 17.3 | R60: 8 | S60: 1.5 | T60: 15.5 | U60: 25 | V60: 9 | W60: 11.5 | X60: 11.5 | Y60: 32 | Z60: 9 | AA60: 5 | AB60: 9 | AC60: 23 | AD60: 8.5 | AE60: 15 | AF60: 15 | AG60: 38.5 | AH60: 9.5 | AI60: 16.5 | AJ60: 14 | AK60: 40 | AL60: 9 | AM60: 15 | AN60: 14 | AO60: 38 | AP60: 8 | AQ60: 16 | AR60: 13 | AS60: 37 | AT60: 2 | AU60: 1.5 | AV60: 4 | AW60: 7.5 | AX60: 6 | AY60: 6 | AZ60: 11 | BA60: 23 | BB60: 3 | BC60: 5 | BD60: 5 | BE60: 9 | BF60: 6 | BG60: 9 | BH60: 14 | BI60: 23 | BJ60: 37 | BK60: 376.2 | BL60: 3.5 | BM60: 4.5 | BN60: 4 | BO60: 12 | BP60: 3 | BQ60: 6 | BR60: 7 | BS60: 16 | BT60: دورثان | BU60: رياضة عامة - | BV60: 1 | CJ60: رياضة عامة - | CR60: 179 | CS60: 26
A61: 54 | B61: 54 | C61: هدي نور الدين حلمي علي | D61: 2/1 | E61: 245 | F61: 7.5 | G61: 9.5 | H61: 11 | I61: 28 | J61: 8.5 | K61: 6.8 | L61: 6 | M61: 21.3 | N61: 5 | O61: 3.6 | P61: 7.2 | Q61: 15.8 | R61: 7 | S61: 4.5 | T61: 3 | U61: 14.5 | V61: 9 | W61: 9 | X61: 12.5 | Y61: 30.5 | Z61: 8.5 | AA61: 3.5 | AB61: 9 | AC61: 21 | AD61: 8.5 | AE61: 15 | AF61: 15 | AG61: 38.5 | AH61: 9.5 | AI61: 14 | AJ61: 16 | AK61: 39.5 | AL61: 9 | AM61: 10 | AN61: 9 | AO61: 28 | AP61: 8 | AQ61: 13 | AR61: 17 | AS61: 38 | AT61: 2 | AU61: 1 | AV61: 4.5 | AW61: 7.5 | AX61: 6 | AY61: 8 | AZ61: 10 | BA61: 24 | BB61: 2.5 | BC61: 4.5 | BD61: 5 | BE61: 8 | BF61: 5 | BG61: 11 | BH61: 12.5 | BI61: 23.5 | BJ61: 36 | BK61: 342.6 | BL61: 3.5 | BM61: 4.5 | BN61: 2.5 | BO61: 10.5 | BP61: 3 | BQ61: 3 | BR61: 7.5 | BS61: 13.5 | BT61: دورثان | BU61: محاسبة مالية - رياضة عامة - | BV61: 2 | CC61: محاسبة مالية - | CJ61: رياضة عامة - | CR61: 136 | CS61: 285
A62: 55 | B62: 55 | C62: هدير أشرف عبد الحكم علي منصور | D62: 2/1 | E62: 246 | F62: 7.5 | G62: 8 | H62: 11.5 | I62: 27 | J62: 8 | K62: 3.6 | L62: 8.4 | M62: 20 | N62: 4.5 | O62: 4.4 | P62: 5.6 | Q62: 14.5 | R62: 7.5 | S62: 5 | T62: 4 | U62: 16.5 | V62: 9 | W62: 15.5 | X62: 11.5 | Y62: 36 | Z62: 8.5 | AA62: 7 | AB62: 10.5 | AC62: 26 | AD62: 8.5 | AE62: 13 | AF62: 16 | AG62: 37.5 | AH62: 9.5 | AI62: 11.5 | AJ62: 16 | AK62: 37 | AL62: 9 | AM62: 8 | AN62: 8 | AO62: 25 | AP62: 8 | AQ62: 12 | AR62: 15 | AS62: 35 | AT62: 2.5 | AU62: 4 | AV62: 1.5 | AW62: 8 | AX62: 6 | AY62: 4 | AZ62: 9 | BA62: 19 | BB62: 2.5 | BC62: 4.5 | BD62: 6 | BE62: 9 | BF62: 5 | BG62: 11 | BH62: 13.5 | BI62: 24.5 | BJ62: 38 | BK62: 339.5 | BL62: 3.5 | BM62: 2.5 | BN62: 2.5 | BO62: 8.5 | BP62: 3 | BQ62: 3 | BR62: 7.5 | BS62: 13.5 | BT62: راسبة | BU62: محاسبة مالية - رياضة عامة - جغرافيا - تربية قومية | BV62: 4 | CC62: محاسبة مالية - | CJ62: رياضة عامة - | CK62: جغرافيا - | CN62: تربية قومية | CR62: 136 | CS62: 285
A63: 56 | B63: 56 | C63: ياسمين محمود محمد المغازي محمد | D63: 2/1 | E63: 247 | F63: 7.5 | G63: 9 | H63: 10.5 | I63: 27 | J63: 8.5 | K63: 7.2 | L63: 7.2 | M63: 22.9 | N63: 4.5 | O63: 7.6 | P63: 7.6 | Q63: 19.7 | R63: 7.5 | S63: 2.5 | T63: 8 | U63: 18 | V63: 9 | W63: 14.5 | X63: 12 | Y63: 35.5 | Z63: 8.5 | AA63: 3 | AB63: 8.5 | AC63: 20 | AD63: 8.5 | AE63: 13 | AF63: 16 | AG63: 37.5 | AH63: 9.5 | AI63: 11.5 | AJ63: 15 | AK63: 36 | AL63: 9 | AM63: 8 | AN63: 8 | AO63: 25 | AP63: 8 | AQ63: 8 | AR63: 17 | AS63: 33 | AT63: 2 | AU63: 0 | AV63: 6 | AW63: 8 | AX63: 6 | AY63: 4 | AZ63: 9 | BA63: 19 | BB63: 3 | BC63: 4.5 | BD63: 5 | BE63: 9 | BF63: 5 | BG63: 11 | BH63: 13 | BI63: 24.5 | BJ63: 37.5 | BK63: 339.1 | BL63: 3.5 | BM63: 3.5 | BN63: 3 | BO63: 10 | BP63: 3 | BQ63: 5.5 | BR63: 7.5 | BS63: 16 | BT63: راسبة | BU63: محاسبة مالية - رياضة عامة - جغرافيا - | BV63: 3 | CC63: محاسبة مالية - | CJ63: رياضة عامة - | CK63: جغرافيا - | CR63: 135 | CS63: 295
A64: 57 | B64: 57 | C64: شروق مصطفي مسعد مصطفي | D64: 2/1 | E64: 248 | F64: 8.5 | G64: 8 | H64: 9 | I64: 25.5 | J64: 8 | K64: 8.4 | L64: 10 | M64: 26.4 | N64: 4.5 | O64: 9.6 | P64: 8.8 | Q64: 22.9 | R64: 9 | S64: 2 | T64: 6 | U64: 17 | V64: 7 | W64: 12.5 | X64: 9.5 | Y64: 29 | Z64: 8.5 | AA64: 0 | AB64: 11.5 | AC64: 20 | AD64: 8.5 | AE64: 13 | AF64: 15 | AG64: 36.5 | AH64: 10 | AI64: 10.5 | AJ64: 13 | AK64: 33.5 | AL64: 9 | AM64: 0 | AN64: 12 | AO64: 21 | AP64: 8.5 | AQ64: 6 | AR64: 13 | AS64: 27.5 | AT64: 2.5 | AU64: 5 | AV64: 10 | AW64: 17.5 | AX64: 6 | AY64: 11 | AZ64: 9 | BA64: 26 | BB64: 2.5 | BC64: 4.5 | BD64: 6 | BE64: 7 | BF64: 6 | BG64: 10 | BH64: 14.5 | BI64: 21.5 | BJ64: 36 | BK64: 338.8 | BL64: 3.5 | BM64: 6 | BN64: 4.5 | BO64: 14 | BP64: 3.5 | BQ64: 6 | BR64: 9 | BS64: 18.5 | BT64: دورثان | BU64: محاسبة مالية - ادارة اعمال - | BV64: 2 | CC64: محاسبة مالية - | CH64: ادارة اعمال - | CR64: 145 | CS64: 211
A65: 58 | B65: 58 | C65: ابراهيم السيد رفاعي حسين خميس | D65: 2/1 | E65: 249 | F65: 6 | G65: 10 | H65: 11 | I65: 27 | J65: 8 | K65: 6.8 | L65: 11.6 | M65: 26.4 | N65: 5 | O65: 9.2 | P65: 6.8 | Q65: 21 | R65: 8 | S65: 0 | T65: 2 | U65: 10 | V65: 7 | W65: 10.5 | X65: 11 | Y65: 28.5 | Z65: 8 | AA65: 5.5 | AB65: 10.5 | AC65: 24 | AD65: 8.5 | AE65: 12 | AF65: 13 | AG65: 33.5 | AH65: 9 | AI65: 10.5 | AJ65: 14 | AK65: 33.5 | AL65: 9 | AM65: 5 | AN65: 13 | AO65: 27 | AP65: 8 | AQ65: 15 | AR65: 13 | AS65: 36 | AT65: 3.5 | AU65: 3 | AV65: 5 | AW65: 11.5 | AX65: 6 | AY65: 7.5 | AZ65: 6 | BA65: 19.5 | BB65: 3 | BC65: 4.5 | BD65: 5 | BE65: 4 | BF65: 5 | BG65: 9 | BH65: 13 | BI65: 17.5 | BJ65: 30.5 | BK65: 328.4 | BL65: 3 | BM65: 4.5 | BN65: 4.5 | BO65: 12 | BP65: 3 | BQ65: 4 | BR65: 5 | BS65: 12 | BT65: راسبة | BU65: محاسبة مالية - رياضة عامة - جغرافيا - | BV65: 3 | CC65: محاسبة مالية - | CJ65: رياضة عامة - | CK65: جغرافيا - | CR65: 119 | CS65: 395
A66: 59 | B66: 59 | C66: ابراهيم علي علي امام علي | D66: 2/1 | E66: 250 | F66: 6 | G66: 10 | H66: 10.5 | I66: 26.5 | J66: 8.5 | K66: 6 | L66: 10.4 | M66: 24.9 | N66: 5 | O66: 8.8 | P66: 7.6 | Q66: 21.4 | R66: 8 | S66: 0.5 | T66: 1 | U66: 9.5 | V66: 7.5 | W66: 12 | X66: 11.5 | Y66: 31 | Z66: 8.5 | AA66: 2 | AB66: 9.5 | AC66: 20 | AD66: 8.5 | AE66: 11 | AF66: 13 | AG66: 32.5 | AH66: 9 | AI66: 10 | AJ66: 14 | AK66: 33 | AL66: 9 | AM66: 8 | AN66: 13 | AO66: 30 | AP66: 8.5 | AQ66: 15 | AR66: 13 | AS66: 36.5 | AT66: 3.5 | AU66: 1 | AV66: 5 | AW66: 9.5 | AX66: 6 | AY66: 11 | AZ66: 6 | BA66: 23 | BB66: 2.5 | BC66: 4.5 | BD66: 4 | BE66: 4 | BF66: 5 | BG66: 9 | BH66: 11.5 | BI66: 17.5 | BJ66: 29 | BK66: 326.8 | BL66: 3 | BM66: 6 | BN66: 4 | BO66: 13 | BP66: 3 | BQ66: 3.5 | BR66: 4 | BS66: 10.5 | BT66: دورثان | BU66: محاسبة مالية - رياضة عامة - | BV66: 2 | CC66: محاسبة مالية - | CJ66: رياضة عامة - | CR66: 136 | CS66: 285
A67: 60 | B67: 60 | C67: ابراهيم محمد عبد العليم محمد | D67: 2/1 | E67: 251 | F67: 6 | G67: 11 | H67: 11 | I67: 28 | J67: 8 | K67: 8.4 | L67: 12.8 | M67: 29.2 | N67: 5 | O67: 10.2 | P67: 6 | Q67: 21.2 | R67: 8 | S67: 0 | T67: 0 | U67: 8 | V67: 7.5 | W67: 9 | X67: 12 | Y67: 28.5 | Z67: 8.5 | AA67: 0 | AB67: 11.5 | AC67: 20 | AD67: 8.5 | AE67: 9 | AF67: 13 | AG67: 30.5 | AH67: 9 | AI67: 10 | AJ67: 14 | AK67: 33 | AL67: 9 | AM67: 6 | AN67: 13 | AO67: 28 | AP67: 8 | AQ67: 15 | AR67: 13 | AS67: 36 | AT67: 4 | AU67: 2.5 | AV67: 5.5 | AW67: 12 | AX67: 6 | AY67: 6.5 | AZ67: 5 | BA67: 17.5 | BB67: 3 | BC67: 4 | BD67: 5 | BE67: 4 | BF67: 5 | BG67: 8 | BH67: 13 | BI67: 16 | BJ67: 29 | BK67: 320.9 | BL67: 3 | BM67: 5 | BN67: 3.5 | BO67: 11.5 | BP67: 3 | BQ67: 4 | BR67: 4.5 | BS67: 11.5 | BT67: راسبة | BU67: محاسبة مالية - رياضة عامة - جغرافيا - | BV67: 3 | CC67: محاسبة مالية - | CJ67: رياضة عامة - | CK67: جغرافيا - | CR67: 111 | CS67: 428
A68: 61 | B68: 61 | C68: ابراهيم مسعد عبد المرضي عبد السلام | D68: 2/1 | E68: 252 | F68: 6 | G68: 6.5 | H68: 12.5 | I68: 25 | J68: 7.5 | K68: 3.6 | L68: 9.6 | M68: 20.7 | N68: 5 | O68: 9.6 | P68: 7.2 | Q68: 21.8 | R68: 8 | S68: 0 | T68: 1.5 | U68: 9.5 | V68: 7 | W68: 7 | X68: 12.5 | Y68: 26.5 | Z68: 8 | AA68: 0 | AB68: 12 | AC68: 20 | AD68: 8.5 | AE68: 9 | AF68: 13 | AG68: 30.5 | AH68: 9 | AI68: 10.5 | AJ68: 14 | AK68: 33.5 | AL68: 9 | AM68: 5 | AN68: 14 | AO68: 28 | AP68: 8 | AQ68: 15 | AR68: 12 | AS68: 35 | AT68: 4 | AU68: 3 | AV68: 4.5 | AW68: 11.5 | AX68: 6 | AY68: 6 | AZ68: 4 | BA68: 16 | BB68: 2.5 | BC68: 4 | BD68: 5 | BE68: 4 | BF68: 6 | BG68: 8 | BH68: 13.5 | BI68: 16 | BJ68: 29.5 | BK68: 307.5 | BL68: 3 | BM68: 6 | BN68: 3 | BO68: 12 | BP68: 3 | BQ68: 3.5 | BR68: 5 | BS68: 11.5 | BT68: راسبة | BU68: محاسبة مالية - رياضة عامة - جغرافيا - | BV68: 3 | CC68: محاسبة مالية - | CJ68: رياضة عامة - | CK68: جغرافيا - | CR68: 134 | CS68: 306
A69: 62 | B69: 62 | C69: السيد ابراهيم السيد ابراهيم | D69: 2/1 | E69: 253 | F69: 7 | G69: 11 | H69: 12 | I69: 30 | J69: 9 | K69: 6.4 | L69: 8.4 | M69: 23.8 | N69: 5 | O69: 10 | P69: 8 | Q69: 23 | R69: 8 | S69: 0 | T69: 0 | U69: 8 | V69: 8.5 | W69: 5 | X69: 11.5 | Y69: 25 | Z69: 7.5 | AA69: 2 | AB69: 10.5 | AC69: 20 | AD69: 8.5 | AE69: 9 | AF69: 10 | AG69: 27.5 | AH69: 9 | AI69: 10 | AJ69: 14 | AK69: 33 | AL69: 9 | AM69: 8 | AN69: 13 | AO69: 30 | AP69: 8.5 | AQ69: 15 | AR69: 16 | AS69: 39.5 | AT69: 4 | AU69: 2 | AV69: 9 | AW69: 15 | AX69: 6 | AY69: 7 | AZ69: 6 | BA69: 19 | BB69: 3 | BC69: 4.5 | BD69: 4 | BE69: 5 | BF69: 5 | BG69: 6 | BH69: 12 | BI69: 15.5 | BJ69: 27.5 | BK69: 321.3 | BL69: 3 | BM69: 4.5 | BN69: 2.5 | BO69: 10 | BP69: 3 | BQ69: 5 | BR69: 4 | BS69: 12 | BT69: دورثان | BU69: محاسبة مالية - جغرافيا - | BV69: 2 | CC69: محاسبة مالية - | CK69: جغرافيا - | CR69: 108 | CS69: 435
A70: 63 | B70: 63 | C70: أحمد السيد محمد السيد عيسوي | D70: 2/1 | E70: 254 | F70: 6.5 | G70: 9 | H70: 9.5 | I70: 25 | J70: 7.5 | K70: 4 | L70: 12.4 | M70: 23.9 | N70: 5 | O70: 9.6 | P70: 8.8 | Q70: غ | R70: 8 | S70: 0 | T70: 0 | U70: غ | V70: 7 | W70: 8 | X70: 10.5 | Y70: غ | Z70: 8 | AA70: 0 | AB70: 12 | AC70: غ | AD70: 8.5 | AE70: 9 | AF70: 11 | AG70: غ | AH70: 9 | AI70: 10 | AJ70: 14 | AK70: غ | AL70: 9 | AM70: 6 | AN70: 13 | AO70: غ | AP70: 8 | AQ70: 15 | AR70: 13 | AS70: غ | AT70: 3.5 | AU70: 1.5 | AV70: 6 | AW70: غ | AX70: 6 | AY70: 6.5 | AZ70: 4 | BA70: غ | BB70: 3 | BC70: 4 | BD70: 4 | BE70: 7 | BF70: 5 | BG70: 7 | BH70: غ | BI70: غ | BJ70: غ | BK70: غ | BL70: 3 | BM70: 5 | BN70: 4 | BO70: غ | BP70: 3 | BQ70: 4 | BR70: 5 | BS70: غ | BT70: دورثان | BU70: محاسبة مالية - حاسب ألى - | BV70: 2 | CC70: محاسبة مالية - | CL70: حاسب ألى - | CR70: 0 | CS70: 447
A71: 64 | B71: 64 | C71: أحمد أشرف السيد عفيفي | D71: 2/1 | E71: 255 | F71: 6.5 | G71: 9 | H71: 9.5 | I71: 25 | J71: 7.5 | K71: 4.8 | L71: 12.4 | M71: 24.7 | N71: 5 | O71: 8.8 | P71: 7.6 | Q71: 21.4 | R71: 8 | S71: 0 | T71: 0 | U71: 8 | V71: 7.5 | W71: 5 | X71: 12.5 | Y71: 25 | Z71: 8.5 | AA71: 1.5 | AB71: 13.5 | AC71: 23.5 | AD71: 8.5 | AE71: 9 | AF71: 13 | AG71: 30.5 | AH71: 9 | AI71: 10 | AJ71: 14 | AK71: 33 | AL71: 9 | AM71: 5 | AN71: 12 | AO71: 26 | AP71: 8 | AQ71: 15 | AR71: 13 | AS71: 36 | AT71: 3.5 | AU71: 2 | AV71: 4.5 | AW71: 10 | AX71: 6 | AY71: 5 | AZ71: 5 | BA71: 16 | BB71: 3 | BC71: 4 | BD71: 5 | BE71: 5 | BF71: 6 | BG71: 9 | BH71: 14 | BI71: 18 | BJ71: 32 | BK71: 311.1 | BL71: 3 | BM71: 4 | BN71: 3 | BO71: 10 | BP71: 3 | BQ71: 3 | BR71: 4.5 | BS71: 10.5 | BT71: راسبة | BU71: محاسبة مالية - رياضة عامة - جغرافيا - | BV71: 3 | CC71: محاسبة مالية - | CJ71: رياضة عامة - | CK71: جغرافيا - | CR71: 118 | CS71: 401
A72: 65 | B72: 65 | C72: أحمد أشرف عبد السميع علي | D72: 2/1 | E72: 256 | F72: 6.5 | G72: 6.5 | H72: 12 | I72: =SUM(F72:H72) -> 25 | J72: 7.5 | K72: 4.8 | L72: 11.2 | M72: =SUM(J72:L72) -> 23.5 | N72: 5 | O72: 8.8 | P72: 7.2 | Q72: =SUM(N72:P72) -> 21 | R72: 8.5 | S72: 0 | T72: 0 | U72: =SUM(R72:T72) -> 8.5 | V72: 7 | W72: 8 | X72: 12 | Y72: =SUM(V72:X72) -> 27 | Z72: 8 | AA72: 1 | AB72: 14.5 | AC72: =SUM(Z72:AB72) -> 23.5 | AD72: 8.5 | AE72: 11 | AF72: 13 | AG72: =SUM(AD72:AF72) -> 32.5 | AH72: 9 | AI72: 11 | AJ72: 12 | AK72: =SUM(AH72:AJ72) -> 32 | AL72: 9 | AM72: 4 | AN72: 13 | AO72: =SUM(AL72:AN72) -> 26 | AP72: 8 | AQ72: 15 | AR72: 12 | AS72: =SUM(AP72:AR72) -> 35 | AT72: 3.5 | AU72: 2 | AV72: 5.5 | AW72: =SUM(AT72:AV72) -> 11 | AX72: 6 | AY72: 7.5 | AZ72: 5 | BA72: =SUM(AX72:AZ72) -> 18.5 | BB72: 2.5 | BC72: 4 | BD72: 4 | BE72: 5 | BF72: 6 | BG72: 7 | BH72: =SUM(BB72,BD72,BF72) -> 12.5 | BI72: =SUM(BC72,BE72,BG72) -> 16 | BJ72: =SUM(BH72,BI72) -> 28.5 | BK72: =SUM(I72,M72,Q72,U72,Y72,AC72,AG72,AK72,AO72,AS72,AW72,BA72,BJ72) -> 312 | BL72: 3 | BM72: 3.5 | BN72: 3.5 | BO72: =SUM(BL72:BN72) -> 10 | BP72: 3 | BQ72: 3.5 | BR72: 4.5 | BS72: =SUM(BP72:BR72) -> 11 | BT72: راسبة | BU72: محاسبة مالية - رياضة عامة - جغرافيا - | BV72: 3 | CC72: محاسبة مالية - | CJ72: رياضة عامة - | CK72: جغرافيا - | CR72: 135 | CS72: 295
A73: 66 | B73: 66 | C73: أحمد أنور عبد الوهاب عبد العظيم | D73: 2/1 | E73: 257 | F73: 7 | G73: 10.5 | H73: 13.5 | I73: 31 | J73: 8 | K73: 8 | L73: 13.2 | M73: 29.2 | N73: 5 | O73: 10.8 | P73: 9.2 | Q73: 25 | R73: 8 | S73: 0 | T73: 2 | U73: 10 | V73: 7 | W73: 9.5 | X73: 12 | Y73: 28.5 | Z73: 8.5 | AA73: 3 | AB73: 10 | AC73: 21.5 | AD73: 8.5 | AE73: 9 | AF73: 13 | AG73: 30.5 | AH73: 9 | AI73: 10.5 | AJ73: 14 | AK73: 33.5 | AL73: 9 | AM73: 9 | AN73: 14 | AO73: 32 | AP73: 8 | AQ73: 17 | AR73: 17 | AS73: 42 | AT73: 3.5 | AU73: 2.5 | AV73: 5.5 | AW73: 11.5 | AX73: 6 | AY73: 9.5 | AZ73: 6 | BA73: 21.5 | BB73: 3 | BC73: 4 | BD73: 4 | BE73: 5 | BF73: 6 | BG73: 10 | BH73: 13 | BI73: 19 | BJ73: 32 | BK73: 348.2 | BL73: 3 | BM73: 5 | BN73: 3.5 | BO73: 11.5 | BP73: 3 | BQ73: 3 | BR73: 5 | BS73: 11 | BT73: =IF(C73="","",IF(BV73=0,"ناجحة",IF(BV73<=2,"دورثان","راسبة"))) -> دورثان | BU73: =IF(C73="","",CONCATENATE(BZ73,CA73,CB73,CC73,CD73,CE73,CF73,CG73,CH73,CJ73,CK73,CL73,CM73,CN73,CO73)) -> محاسبة مالية - رياضة عامة - | BV73: =IF(C73="","",COUNTA(BZ73:CO73)-COUNTBLANK(BZ73:CO73)) -> 2 | BZ73: =IF(OR(H73<$H$7,H73="غ",I73<$I$7),BZ$3&" - ","") ->  | CA73: =IF(OR(L73<$L$7,L73="غ",M73<$M$7),CA$3&" - ","") ->  | CB73: =IF(OR(P73<$P$7,P73="غ",Q73<$Q$7),CB$3&" - ","") ->  | CC73: =IF(OR(T73<$T$7,T73="غ",U73<$U$7),CC$3&" - ","") -> محاسبة مالية - | CD73: =IF(OR(X73<$X$7,X73="غ",Y73<$Y$7),CD$3&" - ","") ->  | CE73: =IF(OR(AB73<$AB$7,AB73="غ",AC73<$AC$7),CE$3&" - ","") ->  | CF73: =IF(OR(AF73<$AF$7,AF73="غ",AG73<$AG$7),CF$3&" - ","") ->  | CG73: =IF(OR(AJ73<$AJ$7,AJ73="غ",AK73<$AK$7),CG$3&" - ","") ->  | CH73: =IF(OR(AN73<$AN$7,AN73="غ",AO73<$AO$7),CH$3&" - ","") ->  | CI73: =IF(OR(AR73<$AR$7,AR73="غ",AS73<$AS$7),CI$3&" - ","") ->  | CJ73: =IF(OR(AV73<$AV$7,AV73="غ",AW73<$AW$7),CJ$3&" - ","") -> رياضة عامة - | CK73: =IF(OR(AZ73<$AZ$7,AZ73="غ",BA73<$BA$7),CK$3&" - ","") ->  | CL73: =IF(OR(BF73<$BF$7,BG73<$BG$7,BH73<$BH$7,BH73="غ",BI73<$BI$7,BI73="غ"),CL$3&" - ","") ->  | CM73: =IF(BK73<$BK$7,CM$3&" - ","") ->  | CN73: =IF(OR(BN73<$BN$7,BN73="غ",BO73<$BO$7),CN$3,"") ->  | CO73: =IF(OR(BR73<$BR$7,BR73="غ",BS73<$BS$7),CO$3,"") ->  | CR73: 150 | CS73: 166
A74: 67 | B74: 67 | C74: أحمد جمال الصادق منصور | D74: 2/1 | E74: 258 | F74: 6 | G74: 0 | H74: 6 | I74: 12 | J74: 7.5 | K74: 6.8 | L74: 10.8 | M74: 25.1 | N74: 5 | O74: 9.6 | P74: 7.6 | Q74: 22.2 | R74: 8 | S74: 0.5 | T74: 1 | U74: 9.5 | V74: 7 | W74: 5 | X74: 13 | Y74: 25 | Z74: 8 | AA74: 1 | AB74: 11 | AC74: 20 | AD74: 8.5 | AE74: 9 | AF74: 13 | AG74: 30.5 | AH74: 9 | AI74: 9.5 | AJ74: 14 | AK74: 32.5 | AL74: 9 | AM74: 10 | AN74: 13 | AO74: 32 | AP74: 8 | AQ74: 17 | AR74: 13 | AS74: 38 | AT74: 3.5 | AU74: 2.5 | AV74: 9 | AW74: 15 | AX74: 6 | AY74: 5 | AZ74: 5 | BA74: 16 | BB74: 3 | BC74: 4 | BD74: 5 | BE74: 5 | BF74: 6 | BG74: 7 | BH74: 14 | BI74: 16 | BJ74: 30 | BK74: 307.8 | BL74: 3 | BM74: 5 | BN74: 2.5 | BO74: 10.5 | BP74: 3 | BQ74: 3.5 | BR74: 4 | BS74: 10.5 | BT74: راسبة | BU74: لغة عربية - محاسبة مالية - جغرافيا - | BV74: 3 | BZ74: لغة عربية - | CC74: محاسبة مالية - | CK74: جغرافيا - | CR74: 158 | CS74: 115
A75: 68 | B75: 68 | C75: أحمد جمال فاروق عبد العليم عجلان | D75: 2/1 | E75: 259 | F75: 6.5 | G75: 6.5 | H75: 7 | I75: 20 | J75: 7.5 | K75: 7.2 | L75: 9.6 | M75: 24.3 | N75: 5 | O75: 9.6 | P75: 6.8 | Q75: 21.4 | R75: 8 | S75: 0 | T75: 0 | U75: 8 | V75: 7 | W75: 7 | X75: 11 | Y75: 25 | Z75: 8 | AA75: 2.5 | AB75: 9.5 | AC75: 20 | AD75: 8.5 | AE75: 8 | AF75: 13 | AG75: 29.5 | AH75: 9 | AI75: 10.5 | AJ75: 14 | AK75: 33.5 | AL75: 9 | AM75: 10 | AN75: 13 | AO75: 32 | AP75: 8 | AQ75: 15 | AR75: 13 | AS75: 36 | AT75: 3.5 | AU75: 2.5 | AV75: 9 | AW75: 15 | AX75: 6 | AY75: 5.5 | AZ75: 4.5 | BA75: 16 | BB75: 3 | BC75: 4 | BD75: 4 | BE75: 6 | BF75: 5 | BG75: 8 | BH75: 12 | BI75: 18 | BJ75: 30 | BK75: 310.7 | BL75: 3 | BM75: 6 | BN75: 2.5 | BO75: 11.5 | BP75: 3 | BQ75: 3 | BR75: 5 | BS75: 11 | BT75: راسبة | BU75: لغة عربية - محاسبة مالية - جغرافيا - | BV75: 3 | BZ75: لغة عربية - | CC75: محاسبة مالية - | CK75: جغرافيا - | CR75: 112 | CS75: 427
A76: 69 | B76: 69 | C76: أحمد جمال محمود علي | D76: 2/1 | E76: 260 | F76: 7 | G76: 8 | H76: 13 | I76: 28 | J76: 7.5 | K76: 4.4 | L76: 13.2 | M76: 25.1 | N76: 5 | O76: 9.2 | P76: 7.2 | Q76: 21.4 | R76: 8 | S76: 0 | T76: 0 | U76: 8 | V76: 7 | W76: 8.5 | X76: 12.5 | Y76: 28 | Z76: 8 | AA76: 0 | AB76: 7 | AC76: 15 | AD76: 9 | AE76: 10 | AF76: 14 | AG76: 33 | AH76: 9 | AI76: 11.5 | AJ76: 16 | AK76: 36.5 | AL76: 9 | AM76: 8 | AN76: 14 | AO76: 31 | AP76: 8 | AQ76: 15 | AR76: 13 | AS76: 36 | AT76: 3.5 | AU76: 3 | AV76: 8.5 | AW76: 15 | AX76: 6 | AY76: 7 | AZ76: 4 | BA76: 17 | BB76: 3 | BC76: 4.5 | BD76: 4 | BE76: 5 | BF76: 5 | BG76: 7 | BH76: 12 | BI76: 16.5 | BJ76: 28.5 | BK76: 322.5 | BL76: 3 | BM76: 6 | BN76: 4 | BO76: 13 | BP76: 3 | BQ76: 4 | BR76: 4.5 | BS76: 11.5 | BT76: راسبة | BU76: محاسبة مالية - سكرتارية اجنبية - جغرافيا - | BV76: 3 | CC76: محاسبة مالية - | CE76: سكرتارية اجنبية - | CK76: جغرافيا - | CR76: 143 | CS76: 231
A77: 70 | B77: 70 | C77: أحمد سعيد عبد الباقي شحاتة | D77: 3/1 | E77: 261 | F77: 7 | G77: 10 | H77: 10 | I77: 27 | J77: 9 | K77: 7.6 | L77: 8.8 | M77: 25.4 | N77: 5 | O77: 5.2 | P77: 6.8 | Q77: 17 | R77: 8 | S77: 1 | T77: 7.5 | U77: 16.5 | V77: 7.5 | W77: 15.5 | X77: 12 | Y77: 35 | Z77: 8 | AA77: 6 | AB77: 6 | AC77: 20 | AD77: 8.5 | AE77: 6 | AF77: 14 | AG77: 28.5 | AH77: 9 | AI77: 8 | AJ77: 11 | AK77: 28 | AL77: 9 | AM77: 13 | AN77: 11 | AO77: 33 | AP77: 8 | AQ77: 15 | AR77: 12 | AS77: 35 | AT77: 3.5 | AU77: 2.5 | AV77: 9.5 | AW77: 15.5 | AX77: 6 | AY77: 8 | AZ77: 10 | BA77: 24 | BB77: 2.5 | BC77: 4 | BD77: 4 | BE77: 6 | BF77: 5 | BG77: 7 | BH77: 11.5 | BI77: 17 | BJ77: 28.5 | BK77: 333.4 | BL77: 3 | BM77: 5 | BN77: 3.5 | BO77: 11.5 | BP77: 3 | BQ77: 4 | BR77: 6.5 | BS77: 13.5 | BT77: دورثان | BU77: محاسبة مالية - | BV77: 1 | CC77: محاسبة مالية - | CR77: 125 | CS77: 373
A78: 71 | B78: 71 | C78: أحمد علي علي امام | D78: 3/1 | E78: 262 | F78: 7 | G78: 11.5 | H78: 14 | I78: 32.5 | J78: 9 | K78: 10.8 | L78: 10.4 | M78: 30.2 | N78: 5 | O78: 8.4 | P78: 6.8 | Q78: 20.2 | R78: 8 | S78: 1 | T78: 0 | U78: 9 | V78: 7 | W78: 10.5 | X78: 11.5 | Y78: 29 | Z78: 8 | AA78: 6.5 | AB78: 5.5 | AC78: 20 | AD78: 8.5 | AE78: 7 | AF78: 14 | AG78: 29.5 | AH78: 9 | AI78: 7 | AJ78: 11 | AK78: 27 | AL78: 9 | AM78: 15 | AN78: 11 | AO78: 35 | AP78: 8.5 | AQ78: 14 | AR78: 12 | AS78: 34.5 | AT78: 3.5 | AU78: 2 | AV78: 6 | AW78: 11.5 | AX78: 6 | AY78: 10.5 | AZ78: 11 | BA78: 27.5 | BB78: 3 | BC78: 4 | BD78: 4 | BE78: 7 | BF78: 6 | BG78: 7 | BH78: 13 | BI78: 18 | BJ78: 31 | BK78: 336.9 | BL78: 3 | BM78: 5 | BN78: 2.5 | BO78: 10.5 | BP78: 3 | BQ78: 4.5 | BR78: 6.5 | BS78: 14 | BT78: دورثان | BU78: محاسبة مالية - رياضة عامة - | BV78: 2 | CC78: محاسبة مالية - | CJ78: رياضة عامة - | CR78: 129 | CS78: 342
A79: 72 | B79: 72 | C79: أحمد محمد سامي حسين | D79: 3/1 | E79: 263 | F79: 7 | G79: 10.5 | H79: 10.5 | I79: 28 | J79: 9 | K79: 8.8 | L79: 11.6 | M79: 29.4 | N79: 5 | O79: 4.4 | P79: 7.6 | Q79: 17 | R79: 8 | S79: 0 | T79: 8 | U79: 16 | V79: 7.5 | W79: 5 | X79: 13 | Y79: 25.5 | Z79: 8 | AA79: 0 | AB79: 0 | AC79: 8 | AD79: 9 | AE79: 6 | AF79: 9 | AG79: 24 | AH79: 9 | AI79: 9 | AJ79: 11 | AK79: 29 | AL79: 9 | AM79: 12 | AN79: 11.5 | AO79: 32.5 | AP79: 8 | AQ79: 16 | AR79: 13 | AS79: 37 | AT79: 3.5 | AU79: 1.5 | AV79: 10 | AW79: 15 | AX79: 6 | AY79: 7.5 | AZ79: 7 | BA79: 20.5 | BB79: 3 | BC79: 4 | BD79: 6 | BE79: 2 | BF79: 5 | BG79: 8 | BH79: 14 | BI79: 14 | BJ79: 28 | BK79: 309.9 | BL79: 3 | BM79: 6 | BN79: 1 | BO79: 10 | BP79: 3 | BQ79: 4.5 | BR79: 5.5 | BS79: 13 | BT79: راسبة | BU79: محاسبة مالية - سكرتارية اجنبية - اقتصاد - حاسب ألى - تربية قومية | BV79: 5 | CC79: محاسبة مالية - | CE79: سكرتارية اجنبية - | CF79: اقتصاد - | CL79: حاسب ألى - | CN79: تربية قومية | CR79: 113 | CS79: 418
A80: 73 | B80: 73 | C80: أحمد محمد عبده عطا | D80: 2/1 | E80: 264 | F80: 7 | G80: 7.5 | H80: 10.5 | I80: 25 | J80: 8 | K80: 6 | L80: 6 | M80: 20 | N80: 5 | O80: 4.4 | P80: 6.4 | Q80: 15.8 | R80: 8 | S80: 0.5 | T80: 1 | U80: 9.5 | V80: 7 | W80: 6.5 | X80: 11.5 | Y80: 25 | Z80: 8 | AA80: 1 | AB80: 11 | AC80: 20 | AD80: 9 | AE80: 6 | AF80: 11 | AG80: 26 | AH80: 9 | AI80: 7 | AJ80: 12 | AK80: 28 | AL80: 9 | AM80: 7 | AN80: 9.5 | AO80: 25.5 | AP80: 8 | AQ80: 12 | AR80: 10 | AS80: 30 | AT80: 3.5 | AU80: 0 | AV80: 6.5 | AW80: 10 | AX80: 6 | AY80: 4.5 | AZ80: 6 | BA80: 16.5 | BB80: 3 | BC80: 4 | BD80: 4 | BE80: 3 | BF80: 5 | BG80: 8 | BH80: 12 | BI80: 15 | BJ80: 27 | BK80: 278.3 | BL80: 3 | BM80: 5 | BN80: 2 | BO80: 10 | BP80: 3 | BQ80: 4 | BR80: 3.5 | BS80: 10.5 | BT80: راسبة | BU80: محاسبة مالية - رياضة عامة - جغرافيا - مجموع - | BV80: 4 | CC80: محاسبة مالية - | CJ80: رياضة عامة - | CK80: جغرافيا - | CM80: مجموع - | CR80: 141 | CS80: 244
A81: 74 | B81: 74 | C81: أحمد محمد عزت محمد محمد | D81: 3/1 | E81: 265 | F81: 6.5 | G81: 9.5 | H81: 11 | I81: 27 | J81: 7.5 | K81: 8 | L81: 7.6 | M81: 23.1 | N81: 5 | O81: 3.6 | P81: 8.8 | Q81: 17.4 | R81: 8 | S81: 0.5 | T81: 3 | U81: 11.5 | V81: 7 | W81: 6.5 | X81: 11.5 | Y81: 25 | Z81: 8.5 | AA81: 2.5 | AB81: 9 | AC81: 20 | AD81: 9 | AE81: 5 | AF81: 10 | AG81: 24 | AH81: 9 | AI81: 7 | AJ81: 10 | AK81: 26 | AL81: 9 | AM81: 7 | AN81: 11 | AO81: 27 | AP81: 8 | AQ81: 10 | AR81: 12 | AS81: 30 | AT81: 3.5 | AU81: 1 | AV81: 7 | AW81: 11.5 | AX81: 6 | AY81: 5.5 | AZ81: 8 | BA81: 19.5 | BB81: 2.5 | BC81: 4 | BD81: 5 | BE81: 3 | BF81: 5 | BG81: 8 | BH81: 12.5 | BI81: 15 | BJ81: 27.5 | BK81: 289.5 | BL81: 3 | BM81: 4 | BN81: 3 | BO81: 10 | BP81: 3 | BQ81: 4.5 | BR81: 4 | BS81: 11.5 | BT81: راسبة | BU81: محاسبة مالية - اقتصاد - رياضة عامة - جغرافيا - مجموع - | BV81: 5 | CC81: محاسبة مالية - | CF81: اقتصاد - | CJ81: رياضة عامة - | CK81: جغرافيا - | CM81: مجموع - | CR81: 152 | CS81: 152
A82: 75 | B82: 75 | C82: أحمد محمود زكي بربش | D82: 2/1 | E82: 266 | F82: 7 | G82: 9 | H82: 9.5 | I82: 25.5 | J82: 7.5 | K82: 6.4 | L82: 6.4 | M82: 20.3 | N82: 5 | O82: 4.8 | P82: 8.8 | Q82: 18.6 | R82: 8 | S82: 1.5 | T82: 3.5 | U82: 13 | V82: 7.5 | W82: 6.5 | X82: 11.5 | Y82: 25.5 | Z82: 8.5 | AA82: 1 | AB82: 11 | AC82: 20.5 | AD82: 8.5 | AE82: 6 | AF82: 12 | AG82: 26.5 | AH82: 9 | AI82: 7 | AJ82: 12 | AK82: 28 | AL82: 9 | AM82: 10 | AN82: 9 | AO82: 28 | AP82: 8 | AQ82: 12 | AR82: 15 | AS82: 35 | AT82: 3.5 | AU82: 1.5 | AV82: 10 | AW82: 15 | AX82: 6 | AY82: 8.5 | AZ82: 8 | BA82: 22.5 | BB82: 2.5 | BC82: 4.5 | BD82: 4 | BE82: 3 | BF82: 6 | BG82: 8 | BH82: 12.5 | BI82: 15.5 | BJ82: 28 | BK82: 306.4 | BL82: 3 | BM82: 4 | BN82: 2 | BO82: 9 | BP82: 3 | BQ82: 4.5 | BR82: 4.5 | BS82: 12 | BT82: دورثان | BU82: محاسبة مالية - تربية قومية | BV82: 2 | CC82: محاسبة مالية - | CN82: تربية قومية | CR82: 133 | CS82: 312
A83: 76 | B83: 76 | C83: أحمد محمود عبد الرسول ابراهيم | D83: 2/1 | E83: 267 | F83: 7 | G83: 10 | H83: 12 | I83: 29 | J83: 7.5 | K83: 5.2 | L83: 8.6 | M83: 21.3 | N83: 5 | O83: 5.6 | P83: 8.8 | Q83: 19.4 | R83: 8 | S83: 6 | T83: 2.5 | U83: 16.5 | V83: 7 | W83: 8.5 | X83: 13 | Y83: 28.5 | Z83: 8.5 | AA83: 0.5 | AB83: 11.5 | AC83: 20.5 | AD83: 8.5 | AE83: 7 | AF83: 8 | AG83: 23.5 | AH83: 9 | AI83: 7 | AJ83: 9 | AK83: 25 | AL83: 9 | AM83: 11 | AN83: 7 | AO83: 27 | AP83: 8 | AQ83: 10 | AR83: 11 | AS83: 29 | AT83: 3.5 | AU83: 3 | AV83: 8.5 | AW83: 15 | AX83: 6 | AY83: 7 | AZ83: 8 | BA83: 21 | BB83: 2.5 | BC83: 4 | BD83: 5 | BE83: 5 | BF83: 5 | BG83: 6 | BH83: 12.5 | BI83: 15 | BJ83: 27.5 | BK83: 303.2 | BL83: 3 | BM83: 4 | BN83: 3 | BO83: 10 | BP83: 3 | BQ83: 4.5 | BR83: 4.5 | BS83: 12 | BT83: دورثان | BU83: محاسبة مالية - اقتصاد - | BV83: 2 | CC83: محاسبة مالية - | CF83: اقتصاد - | CR83: 149 | CS83: 170
A84: 77 | B84: 77 | C84: أحمد مصطفي عبد العليم مصطفي | D84: 3/1 | E84: 268 | F84: 6.5 | G84: 7.5 | H84: 11 | I84: 25 | J84: 7.5 | K84: 4.8 | L84: 8.6 | M84: 20.9 | N84: 5 | O84: 5.2 | P84: 8.8 | Q84: 19 | R84: 8 | S84: 0 | T84: 1 | U84: 9 | V84: 7 | W84: 9.5 | X84: 11 | Y84: 27.5 | Z84: 8 | AA84: 2 | AB84: 10 | AC84: 20 | AD84: 8.5 | AE84: 6 | AF84: 8 | AG84: 22.5 | AH84: 9 | AI84: 6.5 | AJ84: 10 | AK84: 25.5 | AL84: 9 | AM84: 10 | AN84: 6 | AO84: 25 | AP84: 8 | AQ84: 10 | AR84: 13 | AS84: 31 | AT84: 4 | AU84: 0 | AV84: 7 | AW84: 11 | AX84: 6 | AY84: 5.5 | AZ84: 8 | BA84: 19.5 | BB84: 2.5 | BC84: 4 | BD84: 5 | BE84: 3 | BF84: 5 | BG84: 8 | BH84: 12.5 | BI84: 15 | BJ84: 27.5 | BK84: 283.4 | BL84: 3 | BM84: 5.5 | BN84: 2 | BO84: 10.5 | BP84: 3 | BQ84: 4 | BR84: 5 | BS84: 12 | BT84: راسبة | BU84: محاسبة مالية - اقتصاد - رياضة عامة - جغرافيا - مجموع - | BV84: 5 | CC84: محاسبة مالية - | CF84: اقتصاد - | CJ84: رياضة عامة - | CK84: جغرافيا - | CM84: مجموع - | CR84: 136 | CS84: 285
A85: 78 | B85: 78 | C85: أحمد وحيد فؤاد هلال | D85: 2/1 | E85: 269 | F85: 7 | G85: 7.5 | H85: 10.5 | I85: 25 | J85: 8.5 | K85: 8.4 | L85: 9.6 | M85: 26.5 | N85: 5 | O85: 3.2 | P85: 8.8 | Q85: 17 | R85: 8 | S85: 6 | T85: 1 | U85: 15 | V85: 7.5 | W85: 6.5 | X85: 12.5 | Y85: 26.5 | Z85: 8 | AA85: 3.5 | AB85: 10.5 | AC85: 22 | AD85: 9 | AE85: 6 | AF85: 11 | AG85: 26 | AH85: 9 | AI85: 7 | AJ85: 9 | AK85: 25 | AL85: 9 | AM85: 8 | AN85: 8 | AO85: 25 | AP85: 8 | AQ85: 12 | AR85: 12 | AS85: 32 | AT85: 3.5 | AU85: 0.5 | AV85: 7 | AW85: 11 | AX85: 6 | AY85: 5 | AZ85: 9 | BA85: 20 | BB85: 3 | BC85: 4.5 | BD85: 4 | BE85: 4 | BF85: 6 | BG85: 7 | BH85: 13 | BI85: 15.5 | BJ85: 28.5 | BK85: 299.5 | BL85: 3 | BM85: 5.5 | BN85: 3.5 | BO85: 12 | BP85: 3 | BQ85: 4.5 | BR85: 4.5 | BS85: 12 | BT85: راسبة | BU85: محاسبة مالية - رياضة عامة - مجموع - | BV85: 3 | CC85: محاسبة مالية - | CJ85: رياضة عامة - | CM85: مجموع - | CR85: 174 | CS85: 38
A86: 79 | B86: 79 | C86: أدهم رضا عفيفي عفيفي | D86: 3/1 | E86: 270 | F86: 7 | G86: 13 | H86: 11.5 | I86: 31.5 | J86: 7.5 | K86: 1.6 | L86: 4.4 | M86: 13.5 | N86: 5 | O86: 3.6 | P86: 9.2 | Q86: 17.8 | R86: 8 | S86: 5 | T86: 3 | U86: 16 | V86: 7 | W86: 5.5 | X86: 12.5 | Y86: 25 | Z86: 8 | AA86: 0 | AB86: 12 | AC86: 20 | AD86: 8.5 | AE86: 6 | AF86: 11 | AG86: 25.5 | AH86: 9 | AI86: 7 | AJ86: 10 | AK86: 26 | AL86: 9 | AM86: 7 | AN86: 10 | AO86: 26 | AP86: 7.5 | AQ86: 12 | AR86: 11 | AS86: 30.5 | AT86: 4 | AU86: 1 | AV86: 10 | AW86: 15 | AX86: 6 | AY86: 6.5 | AZ86: 8 | BA86: 20.5 | BB86: 3 | BC86: 4 | BD86: 4 | BE86: 6 | BF86: 6 | BG86: 5 | BH86: 13 | BI86: 15 | BJ86: 28 | BK86: 295.3 | BL86: 3 | BM86: 5.5 | BN86: 3 | BO86: 11.5 | BP86: 3 | BQ86: 3.5 | BR86: 4.5 | BS86: 11 | BT86: راسبة | BU86: لغة انجليزية - محاسبة مالية - مجموع - | BV86: 3 | CA86: لغة انجليزية - | CC86: محاسبة مالية - | CM86: مجموع - | CR86: 104 | CS86: 439
A87: 80 | B87: 80 | C87: أسامة وحيد السيد متولي | D87: 3/1 | E87: 271 | F87: 7 | G87: 12 | H87: 10 | I87: 29 | J87: 8 | K87: 9.6 | L87: 6.8 | M87: 24.4 | N87: 5 | O87: 4.4 | P87: 9.2 | Q87: 18.6 | R87: 8 | S87: 5 | T87: 2.5 | U87: 15.5 | V87: 7 | W87: 8 | X87: 12.5 | Y87: 27.5 | Z87: 9 | AA87: 3 | AB87: 8 | AC87: 20 | AD87: 9 | AE87: 7 | AF87: 10 | AG87: 26 | AH87: 9 | AI87: 6 | AJ87: 11 | AK87: 26 | AL87: 9 | AM87: 11 | AN87: 10.5 | AO87: 30.5 | AP87: 7.5 | AQ87: 9 | AR87: 14 | AS87: 30.5 | AT87: 3.5 | AU87: 1 | AV87: 7.5 | AW87: 12 | AX87: 6 | AY87: 8 | AZ87: 9 | BA87: 23 | BB87: 3 | BC87: 5 | BD87: 4 | BE87: 6 | BF87: 6 | BG87: 7 | BH87: 13 | BI87: 18 | BJ87: 31 | BK87: 314 | BL87: 3 | BM87: 4.5 | BN87: 2.5 | BO87: 10 | BP87: 3 | BQ87: 3 | BR87: 5.5 | BS87: 11.5 | BT87: دورثان | BU87: محاسبة مالية - رياضة عامة - | BV87: 2 | CC87: محاسبة مالية - | CJ87: رياضة عامة - | CR87: 142 | CS87: 237
A88: 81 | B88: 81 | C88: أنس أحمد حامد محمد | D88: 3/1 | E88: 272 | F88: 8 | G88: 8.5 | H88: 9.5 | I88: 26 | J88: 8 | K88: 5.2 | L88: 6.8 | M88: 20 | N88: 5 | O88: 4.8 | P88: 8.4 | Q88: 18.2 | R88: 8 | S88: 5 | T88: 2 | U88: 15 | V88: 7 | W88: 6.5 | X88: 12 | Y88: 25.5 | Z88: 9 | AA88: 3 | AB88: 9.5 | AC88: 21.5 | AD88: 8.5 | AE88: 8 | AF88: 10 | AG88: 26.5 | AH88: 9 | AI88: 6 | AJ88: 12 | AK88: 27 | AL88: 9 | AM88: 12 | AN88: 10 | AO88: 31 | AP88: 8 | AQ88: 9 | AR88: 11 | AS88: 28 | AT88: 3.5 | AU88: 0.5 | AV88: 7 | AW88: 11 | AX88: 6 | AY88: 7 | AZ88: 7 | BA88: 20 | BB88: 3 | BC88: 5 | BD88: 5 | BE88: 4 | BF88: 5 | BG88: 6 | BH88: 13 | BI88: 15 | BJ88: 28 | BK88: 297.7 | BL88: 3 | BM88: 5.5 | BN88: 0 | BO88: 8.5 | BP88: 3 | BQ88: 3 | BR88: 6 | BS88: 12 | BT88: راسبة | BU88: محاسبة مالية - رياضة عامة - مجموع - تربية قومية | BV88: 4 | CC88: محاسبة مالية - | CJ88: رياضة عامة - | CM88: مجموع - | CN88: تربية قومية | CR88: 148 | CS88: 179
A89: 82 | B89: 82 | C89: جمال سامي محمد حسن أبو العلا | D89: 3/1 | E89: 273 | F89: 9.5 | G89: 17 | H89: 15.5 | I89: 42 | J89: 9.5 | K89: 14.4 | L89: 18.4 | M89: 42.3 | N89: 5 | O89: 5.6 | P89: 8.4 | Q89: 19 | R89: 8 | S89: 0.5 | T89: 5.5 | U89: 14 | V89: 7 | W89: 12.5 | X89: 12.5 | Y89: 32 | Z89: 9 | AA89: 8 | AB89: 14 | AC89: 31 | AD89: 9 | AE89: 10 | AF89: 15 | AG89: 34 | AH89: 9 | AI89: 10 | AJ89: 12 | AK89: 31 | AL89: 9 | AM89: 11 | AN89: 11 | AO89: 31 | AP89: 9 | AQ89: 10 | AR89: 14 | AS89: 33 | AT89: 3.5 | AU89: 1 | AV89: 7 | AW89: 11.5 | AX89: 6 | AY89: 11.5 | AZ89: 10 | BA89: 27.5 | BB89: 3 | BC89: 5 | BD89: 4 | BE89: 4 | BF89: 5 | BG89: 8 | BH89: 12 | BI89: 17 | BJ89: 29 | BK89: 377.3 | BL89: 3 | BM89: 5 | BN89: 5.5 | BO89: 13.5 | BP89: 3 | BQ89: 5 | BR89: 6.5 | BS89: 14.5 | BT89: دورثان | BU89: محاسبة مالية - رياضة عامة - | BV89: 2 | CC89: محاسبة مالية - | CJ89: رياضة عامة - | CR89: 144 | CS89: 222
A90: 83 | B90: 83 | C90: جمال عبد الرسول سلامة موسي | D90: 3/1 | E90: 274 | F90: 7 | G90: 14 | H90: 11.5 | I90: 32.5 | J90: 8.5 | K90: 4.8 | L90: 6.8 | M90: 20.1 | N90: 5 | O90: 3.2 | P90: 7.6 | Q90: 15.8 | R90: 8 | S90: 0 | T90: 2 | U90: 10 | V90: 7 | W90: 6.5 | X90: 12 | Y90: 25.5 | Z90: 9 | AA90: 0.5 | AB90: 11.5 | AC90: 21 | AD90: 8.5 | AE90: 6 | AF90: 11 | AG90: 25.5 | AH90: 9 | AI90: 8 | AJ90: 12 | AK90: 29 | AL90: 9 | AM90: 10 | AN90: 7 | AO90: 26 | AP90: 7.5 | AQ90: 9 | AR90: 13 | AS90: 29.5 | AT90: 3.5 | AU90: 0 | AV90: 7 | AW90: 10.5 | AX90: 6 | AY90: 5.5 | AZ90: 8 | BA90: 19.5 | BB90: 3 | BC90: 5 | BD90: 5 | BE90: 5 | BF90: 5 | BG90: 9 | BH90: 13 | BI90: 19 | BJ90: 32 | BK90: 296.9 | BL90: 3 | BM90: 3.5 | BN90: 1.5 | BO90: 8 | BP90: 3 | BQ90: 3.5 | BR90: 3.5 | BS90: 10 | BT90: راسبة | BU90: محاسبة مالية - رياضة عامة - جغرافيا - مجموع - تربية قومية | BV90: 5 | CC90: محاسبة مالية - | CJ90: رياضة عامة - | CK90: جغرافيا - | CM90: مجموع - | CN90: تربية قومية | CR90: 149 | CS90: 170
A91: 84 | B91: 84 | C91: حسام شحاته محمدي الطوخي | D91: 3/1 | E91: 275 | F91: 7 | G91: 0 | H91: 11.5 | I91: 18.5 | J91: 8 | K91: 6.4 | L91: 6 | M91: 20.4 | N91: 5 | O91: 5.2 | P91: 8 | Q91: 18.2 | R91: 8 | S91: 0 | T91: 3.5 | U91: 11.5 | V91: 7 | W91: 6 | X91: 12 | Y91: 25 | Z91: 9 | AA91: 3.5 | AB91: 11.5 | AC91: 24 | AD91: 8.5 | AE91: 6 | AF91: 9 | AG91: 23.5 | AH91: 9 | AI91: 10 | AJ91: 9 | AK91: 28 | AL91: 9 | AM91: 10 | AN91: 8 | AO91: 27 | AP91: 8 | AQ91: 8 | AR91: 10 | AS91: 26 | AT91: 3.5 | AU91: 2.5 | AV91: 9 | AW91: 15 | AX91: 6 | AY91: 5 | AZ91: 8 | BA91: 19 | BB91: 3 | BC91: 5 | BD91: 5 | BE91: 5 | BF91: 5 | BG91: 8 | BH91: 13 | BI91: 18 | BJ91: 31 | BK91: 287.1 | BL91: 3 | BM91: 4.5 | BN91: 1.5 | BO91: 9 | BP91: 3 | BQ91: 4 | BR91: 3.5 | BS91: 10.5 | BT91: راسبة | BU91: لغة عربية - محاسبة مالية - اقتصاد - جغرافيا - مجموع - تربية قومية | BV91: 6 | BZ91: لغة عربية - | CC91: محاسبة مالية - | CF91: اقتصاد - | CK91: جغرافيا - | CM91: مجموع - | CN91: تربية قومية | CR91: 159 | CS91: 108
A92: 85 | B92: 85 | C92: حسام عبد الحميد محمد المسعد | D92: 3/1 | E92: 276 | F92: 8 | G92: 16 | H92: 11.5 | I92: 35.5 | J92: 8 | K92: 10 | L92: 12.8 | M92: 30.8 | N92: 5 | O92: 6 | P92: 8.4 | Q92: 19.4 | R92: 8 | S92: 0.5 | T92: 2.5 | U92: 11 | V92: 7 | W92: 10 | X92: 13.5 | Y92: 30.5 | Z92: 9 | AA92: 2.5 | AB92: 13 | AC92: 24.5 | AD92: 8.5 | AE92: 10 | AF92: 16 | AG92: 34.5 | AH92: 9 | AI92: 11 | AJ92: 12 | AK92: 32 | AL92: 9 | AM92: 10 | AN92: 9 | AO92: 28 | AP92: 8 | AQ92: 13 | AR92: 15 | AS92: 36 | AT92: 3.5 | AU92: 1.5 | AV92: 10 | AW92: 15 | AX92: 6 | AY92: 10 | AZ92: 10 | BA92: 26 | BB92: 3 | BC92: 5 | BD92: 4 | BE92: 5 | BF92: 5 | BG92: 6 | BH92: 12 | BI92: 16 | BJ92: 28 | BK92: 351.2 | BL92: 3 | BM92: 4 | BN92: 1.5 | BO92: 8.5 | BP92: 3 | BQ92: 5 | BR92: 6 | BS92: 14 | BT92: دورثان | BU92: محاسبة مالية - تربية قومية | BV92: 2 | CC92: محاسبة مالية - | CN92: تربية قومية | CR92: 154 | CS92: 142
A93: 86 | B93: 86 | C93: حسام علي عبد الغني علي | D93: 3/1 | E93: 277 | F93: 7.5 | G93: 15 | H93: 12 | I93: 34.5 | J93: 9 | K93: 10 | L93: 12.4 | M93: 31.4 | N93: 5 | O93: 6.4 | P93: 9.2 | Q93: 20.6 | R93: 8 | S93: 0 | T93: 3.5 | U93: 11.5 | V93: 7.5 | W93: 9 | X93: 13.5 | Y93: 30 | Z93: 9 | AA93: 4 | AB93: 11.5 | AC93: 24.5 | AD93: 9 | AE93: 10 | AF93: 14 | AG93: 33 | AH93: 9 | AI93: 12 | AJ93: 15 | AK93: 36 | AL93: 9 | AM93: 10 | AN93: 9.5 | AO93: 28.5 | AP93: 7.5 | AQ93: 15 | AR93: 14 | AS93: 36.5 | AT93: 4 | AU93: 1 | AV93: 7 | AW93: 12 | AX93: 6 | AY93: 8 | AZ93: 10 | BA93: 24 | BB93: 3 | BC93: 5 | BD93: 4 | BE93: 5 | BF93: 5 | BG93: 8 | BH93: 12 | BI93: 18 | BJ93: 30 | BK93: 352.5 | BL93: 3 | BM93: 4.5 | BN93: 1.5 | BO93: 9 | BP93: 3 | BQ93: 5.5 | BR93: 5 | BS93: 13.5 | BT93: راسبة | BU93: محاسبة مالية - رياضة عامة - تربية قومية | BV93: 3 | CC93: محاسبة مالية - | CJ93: رياضة عامة - | CN93: تربية قومية | CR93: 179 | CS93: 26
A94: 87 | B94: 87 | C94: حسين رجب سليمان حسين | D94: 3/1 | E94: 278 | F94: 7 | G94: 8 | H94: 10 | I94: 25 | J94: 8 | K94: 8 | L94: 7.2 | M94: 23.2 | N94: 5 | O94: 6 | P94: 8.4 | Q94: 19.4 | R94: 8 | S94: 0 | T94: 3.5 | U94: 11.5 | V94: 7 | W94: 6 | X94: 12 | Y94: 25 | Z94: 9 | AA94: 3.5 | AB94: 10 | AC94: 22.5 | AD94: 9 | AE94: 10 | AF94: 15 | AG94: 34 | AH94: 9 | AI94: 10.5 | AJ94: 12 | AK94: 31.5 | AL94: 9 | AM94: 13 | AN94: 8.5 | AO94: 30.5 | AP94: 8 | AQ94: 11 | AR94: 14 | AS94: 33 | AT94: 3.5 | AU94: 1.5 | AV94: 7 | AW94: 12 | AX94: 6 | AY94: 7 | AZ94: 8 | BA94: 21 | BB94: 3 | BC94: 5 | BD94: 5 | BE94: 5 | BF94: 5 | BG94: 7 | BH94: 13 | BI94: 17 | BJ94: 30 | BK94: 318.6 | BL94: 3 | BM94: 4 | BN94: 1.5 | BO94: 8.5 | BP94: 3 | BQ94: 4.5 | BR94: 5 | BS94: 12.5 | BT94: راسبة | BU94: محاسبة مالية - رياضة عامة - تربية قومية | BV94: 3 | CC94: محاسبة مالية - | CJ94: رياضة عامة - | CN94: تربية قومية | CR94: 131 | CS94: 327
A95: 88 | B95: 88 | C95: حلمي أشرف حلمي عبد العظيم | D95: 3/1 | E95: 279 | F95: 9 | G95: 14 | H95: 14 | I95: 37 | J95: 8 | K95: 9.2 | L95: 14.4 | M95: 31.6 | N95: 5 | O95: 5.2 | P95: 8.8 | Q95: 19 | R95: 8 | S95: 1 | T95: 5 | U95: 14 | V95: 7 | W95: 13.5 | X95: 12.5 | Y95: 33 | Z95: 9 | AA95: 5 | AB95: 13.5 | AC95: 27.5 | AD95: 8.5 | AE95: 10 | AF95: 13 | AG95: 31.5 | AH95: 9 | AI95: 16 | AJ95: 13 | AK95: 38 | AL95: 9 | AM95: 13 | AN95: 10 | AO95: 32 | AP95: 8.5 | AQ95: 14 | AR95: 15 | AS95: 37.5 | AT95: 3.5 | AU95: 1.5 | AV95: 10 | AW95: 15 | AX95: 6 | AY95: 10 | AZ95: 8 | BA95: 24 | BB95: 3 | BC95: 5 | BD95: 6 | BE95: 5 | BF95: 6 | BG95: 7 | BH95: 15 | BI95: 17 | BJ95: 32 | BK95: 372.1 | BL95: 3 | BM95: 4.5 | BN95: 6 | BO95: 13.5 | BP95: 3 | BQ95: 4.5 | BR95: 4.5 | BS95: 12 | BT95: دورثان | BU95: محاسبة مالية - | BV95: 1 | CC95: محاسبة مالية - | CR95: 155 | CS95: 135
A96: 89 | B96: 89 | C96: حلمي حمادة حلمي محمود | D96: 3/1 | E96: 280 | F96: 7 | G96: 12 | H96: 11.5 | I96: 30.5 | J96: 8.5 | K96: 0 | L96: 11.5 | M96: 20 | N96: 5 | O96: 4.4 | P96: 6.8 | Q96: 16.2 | R96: 8 | S96: 3.5 | T96: 5.5 | U96: 17 | V96: 7 | W96: 15.5 | X96: 6 | Y96: 28.5 | Z96: 9 | AA96: 1 | AB96: 10 | AC96: 20 | AD96: 8.5 | AE96: 8 | AF96: 14 | AG96: 30.5 | AH96: 9 | AI96: 8.5 | AJ96: 10 | AK96: 27.5 | AL96: 9 | AM96: 9 | AN96: 12 | AO96: 30 | AP96: 8 | AQ96: 17 | AR96: 10 | AS96: 35 | AT96: 3.5 | AU96: 2.5 | AV96: 3 | AW96: 9 | AX96: 6 | AY96: 8 | AZ96: 10 | BA96: 24 | BB96: 3 | BC96: 5 | BD96: 5 | BE96: 5 | BF96: 5 | BG96: 6 | BH96: 13 | BI96: 16 | BJ96: 29 | BK96: 317.2 | BL96: 3 | BM96: 4 | BN96: 3.5 | BO96: 10.5 | BP96: 3 | BQ96: 4.5 | BR96: 6 | BS96: 13.5 | BT96: دورثان | BU96: محاسبة مالية - رياضة عامة - | BV96: 2 | CC96: محاسبة مالية - | CJ96: رياضة عامة - | CR96: 181 | CS96: 22
A97: 90 | B97: 90 | C97: حمدي مصطفي علي مصطفي | D97: 3/1 | E97: 281 | F97: 8 | G97: 8 | H97: 11.5 | I97: 27.5 | J97: 8.5 | K97: 6.8 | L97: 7.2 | M97: 22.5 | N97: 5 | O97: 8 | P97: 8 | Q97: 21 | R97: 8 | S97: 4.5 | T97: 12.5 | U97: 25 | V97: 7 | W97: 13 | X97: 10 | Y97: 30 | Z97: 9 | AA97: 3.5 | AB97: 12 | AC97: 24.5 | AD97: 9 | AE97: 7 | AF97: 12 | AG97: 28 | AH97: 9 | AI97: 9.5 | AJ97: 10 | AK97: 28.5 | AL97: 9 | AM97: 7 | AN97: 13 | AO97: 29 | AP97: 8 | AQ97: 18 | AR97: 11 | AS97: 37 | AT97: 3.5 | AU97: 2 | AV97: 6 | AW97: 11.5 | AX97: 6 | AY97: 11 | AZ97: 11 | BA97: 28 | BB97: 3 | BC97: 5 | BD97: 6 | BE97: 5 | BF97: 5 | BG97: 6 | BH97: 14 | BI97: 16 | BJ97: 30 | BK97: 342.5 | BL97: 3 | BM97: 4 | BN97: 5 | BO97: 12 | BP97: 3 | BQ97: 4.5 | BR97: 3.5 | BS97: 11 | BT97: دورثان | BU97: رياضة عامة - | BV97: 1 | CJ97: رياضة عامة - | CR97: 130 | CS97: 337
A98: 91 | B98: 91 | C98: حمدي ممدوح حمد السيد | D98: 3/1 | E98: 372 | F98: 8 | G98: 9.5 | H98: 12.5 | I98: 30 | J98: 9.5 | K98: 8 | L98: 8.8 | M98: 26.3 | N98: 5 | O98: 8.4 | P98: 8 | Q98: غ | R98: 8 | S98: 6 | T98: 11 | U98: 25 | V98: 7 | W98: 14.5 | X98: 11 | Y98: 32.5 | Z98: 9 | AA98: 5.5 | AB98: 11.5 | AC98: 26 | AD98: 8.5 | AE98: 8 | AF98: 17 | AG98: 33.5 | AH98: 9 | AI98: 10 | AJ98: 10 | AK98: 29 | AL98: 9 | AM98: 10 | AN98: 15 | AO98: 34 | AP98: 8.5 | AQ98: 18 | AR98: 10 | AS98: 36.5 | AT98: 3.5 | AU98: 2 | AV98: 6 | AW98: 11.5 | AX98: 6 | AY98: 10 | AZ98: 8 | BA98: 24 | BB98: 3 | BC98: 5 | BD98: 5 | BE98: 5 | BF98: 5 | BG98: 6 | BH98: 13 | BI98: 16 | BJ98: 29 | BK98: 337.3 | BL98: 3 | BM98: 3.5 | BN98: 4.5 | BO98: 11 | BP98: 3 | BQ98: 5 | BR98: 4.5 | BS98: 12.5 | BT98: دورثان | BU98: رياضة عامة - | BV98: 1 | CJ98: رياضة عامة - | CR98: 0 | CS98: 447
A99: 92 | B99: 92 | C99: خالد عبد القادر عبد القادر محمد | D99: 3/1 | E99: 373 | F99: 8 | G99: 14.5 | H99: 12.5 | I99: 35 | J99: 8.5 | K99: 8.4 | L99: 9.2 | M99: 26.1 | N99: 5 | O99: 7.6 | P99: 8.8 | Q99: 21.4 | R99: 8 | S99: 12.5 | T99: 12 | U99: 32.5 | V99: 7 | W99: 16 | X99: 11 | Y99: 34 | Z99: 9 | AA99: 0 | AB99: 11.5 | AC99: 20.5 | AD99: 9 | AE99: 9 | AF99: 15 | AG99: 33 | AH99: 9 | AI99: 8.5 | AJ99: 13 | AK99: 30.5 | AL99: 9 | AM99: 11 | AN99: 13 | AO99: 33 | AP99: 8 | AQ99: 18 | AR99: 12 | AS99: 38 | AT99: 3.5 | AU99: 3.5 | AV99: 4 | AW99: 11 | AX99: 6 | AY99: 10 | AZ99: 6 | BA99: 22 | BB99: 3 | BC99: 5 | BD99: 4 | BE99: 4 | BF99: 5 | BG99: 6 | BH99: 12 | BI99: 15 | BJ99: 27 | BK99: 364 | BL99: 3 | BM99: 7 | BN99: 5.5 | BO99: 15.5 | BP99: 3 | BQ99: 7 | BR99: 7 | BS99: 17 | BT99: دورثان | BU99: رياضة عامة - | BV99: 1 | CJ99: رياضة عامة - | CR99: 158 | CS99: 115
A100: 93 | B100: 93 | C100: خالد يوسف لطفي عبد المحسن | D100: 3/1 | E100: 374 | F100: 7 | G100: 10 | H100: 12 | I100: 29 | J100: 8 | K100: 5.2 | L100: 10 | M100: 23.2 | N100: 5 | O100: 6.8 | P100: 8.8 | Q100: 20.6 | R100: 8 | S100: 4 | T100: 13 | U100: 25 | V100: 7 | W100: 12.5 | X100: 7.5 | Y100: 27 | Z100: 9 | AA100: 1.5 | AB100: 12 | AC100: 22.5 | AD100: 8.5 | AE100: 7 | AF100: 14 | AG100: 29.5 | AH100: 9 | AI100: 7.5 | AJ100: 11 | AK100: 27.5 | AL100: 9 | AM100: 9 | AN100: 13 | AO100: 31 | AP100: 8 | AQ100: 15 | AR100: 10 | AS100: 33 | AT100: 3.5 | AU100: 2.5 | AV100: 4 | AW100: 10 | AX100: 6 | AY100: 4.5 | AZ100: 11 | BA100: 21.5 | BB100: 3 | BC100: 5 | BD100: 5 | BE100: 6 | BF100: 5 | BG100: 5 | BH100: 13 | BI100: 16 | BJ100: 29 | BK100: 328.8 | BL100: 3 | BM100: 5.5 | BN100: 5 | BO100: 13.5 | BP100: 3 | BQ100: 4 | BR100: 6.5 | BS100: 13.5 | BT100: دورثان | BU100: رياضة عامة - | BV100: 1 | CJ100: رياضة عامة - | CR100: 187 | CS100: 9
A101: 94 | B101: 94 | C101: رزق محمد رزق معوض | D101: 3/1 | E101: 375 | F101: 8 | G101: 12.5 | H101: 11.5 | I101: 32 | J101: 8 | K101: 4.4 | L101: 8 | M101: 20.4 | N101: 5 | O101: 5.6 | P101: 8.8 | Q101: 19.4 | R101: 8 | S101: 6.5 | T101: 11 | U101: 25.5 | V101: 7 | W101: 13.5 | X101: 8.5 | Y101: 29 | Z101: 9 | AA101: 1.5 | AB101: 11.5 | AC101: 22 | AD101: 8.5 | AE101: 7 | AF101: 6 | AG101: 21.5 | AH101: 9 | AI101: 8.5 | AJ101: 11 | AK101: 28.5 | AL101: 9 | AM101: 9 | AN101: 13 | AO101: 31 | AP101: 7.5 | AQ101: 14 | AR101: 14 | AS101: 35.5 | AT101: 3.5 | AU101: 1.5 | AV101: 5 | AW101: 10 | AX101: 6 | AY101: 8.5 | AZ101: 10 | BA101: 24.5 | BB101: 3 | BC101: 5 | BD101: 5 | BE101: 6 | BF101: 5 | BG101: 5 | BH101: 13 | BI101: 16 | BJ101: 29 | BK101: 328.3 | BL101: 3 | BM101: 4 | BN101: 4 | BO101: 11 | BP101: 3 | BQ101: 5 | BR101: 6 | BS101: 14 | BT101: دورثان | BU101: اقتصاد - رياضة عامة - | BV101: 2 | CF101: اقتصاد - | CJ101: رياضة عامة - | CR101: 155 | CS101: 135
A102: 95 | B102: 95 | C102: سعد مسعد سعد المغازي | D102: 3/1 | E102: 376 | F102: 8 | G102: 9 | H102: 12.5 | I102: 29.5 | J102: 9 | K102: 7.2 | L102: 10 | M102: 26.2 | N102: 5 | O102: 7.2 | P102: 8 | Q102: 20.2 | R102: 8 | S102: 0 | T102: 9 | U102: 17 | V102: 7 | W102: 14.5 | X102: 10.5 | Y102: 32 | Z102: 9 | AA102: 2.5 | AB102: 10.5 | AC102: 22 | AD102: 8.5 | AE102: 5 | AF102: 17 | AG102: 30.5 | AH102: 9 | AI102: 8 | AJ102: 10 | AK102: 27 | AL102: 9 | AM102: 10 | AN102: 13 | AO102: 32 | AP102: 8 | AQ102: 18 | AR102: 10 | AS102: 36 | AT102: 4 | AU102: 0.5 | AV102: 4.5 | AW102: 9 | AX102: 6 | AY102: 10 | AZ102: 9 | BA102: 25 | BB102: 3 | BC102: 5 | BD102: 4 | BE102: 4 | BF102: 6 | BG102: 5 | BH102: 13 | BI102: 14 | BJ102: 27 | BK102: 333.4 | BL102: 3 | BM102: 4.5 | BN102: 4.5 | BO102: 12 | BP102: 3 | BQ102: 5.5 | BR102: 6 | BS102: 14.5 | BT102: راسبة | BU102: محاسبة مالية - رياضة عامة - حاسب ألى - | BV102: 3 | CC102: محاسبة مالية - | CJ102: رياضة عامة - | CL102: حاسب ألى - | CR102: 183 | CS102: 17
A103: 96 | B103: 96 | C103: سليمان مصطفي سليمان عبد العزيز | D103: 3/1 | E103: 377 | F103: 7.5 | G103: 9 | H103: 8.5 | I103: 25 | J103: 8.5 | K103: 2.8 | L103: 8.8 | M103: 20.1 | N103: 5 | O103: 4.8 | P103: 6.8 | Q103: 16.6 | R103: 8 | S103: 4 | T103: 6.5 | U103: 18.5 | V103: 7 | W103: 11.5 | X103: 7 | Y103: 25.5 | Z103: 9 | AA103: 0.5 | AB103: 11.5 | AC103: 21 | AD103: 8.5 | AE103: 5 | AF103: 11 | AG103: 24.5 | AH103: 9 | AI103: 8.5 | AJ103: 8 | AK103: 25.5 | AL103: 9 | AM103: 7 | AN103: 13 | AO103: 29 | AP103: 8 | AQ103: 15 | AR103: 15 | AS103: 38 | AT103: 3.5 | AU103: 2 | AV103: 5 | AW103: 10.5 | AX103: 6 | AY103: 8 | AZ103: 10 | BA103: 24 | BB103: 3 | BC103: 5 | BD103: 4 | BE103: 4 | BF103: 6 | BG103: 6 | BH103: 13 | BI103: 15 | BJ103: 28 | BK103: 306.2 | BL103: 3 | BM103: 6.5 | BN103: 3 | BO103: 12.5 | BP103: 3 | BQ103: 4 | BR103: 6 | BS103: 13 | BT103: راسبة | BU103: محاسبة مالية - اقتصاد - رياضة عامة - | BV103: 3 | CC103: محاسبة مالية - | CF103: اقتصاد - | CJ103: رياضة عامة - | CR103: 182 | CS103: 20
A104: 97 | B104: 97 | C104: عبد الرحمن سراج الدين محمد عباس | D104: 3/1 | E104: 378 | F104: 7.5 | G104: 10 | H104: 8.5 | I104: 26 | J104: 9.5 | K104: 5.6 | L104: 6 | M104: 21.1 | N104: 5 | O104: 8.4 | P104: 7.2 | Q104: 20.6 | R104: 8 | S104: 2 | T104: 6.5 | U104: 16.5 | V104: 7 | W104: 6 | X104: 12 | Y104: 25 | Z104: 9 | AA104: 1 | AB104: 10 | AC104: 20 | AD104: 9 | AE104: 12 | AF104: 13 | AG104: 34 | AH104: 9 | AI104: 11 | AJ104: 14 | AK104: 34 | AL104: 9 | AM104: 9 | AN104: 8 | AO104: 26 | AP104: 8.5 | AQ104: 11 | AR104: 14 | AS104: 33.5 | AT104: 3.5 | AU104: 3.5 | AV104: 5 | AW104: 12 | AX104: 6 | AY104: 10.5 | AZ104: 11 | BA104: 27.5 | BB104: 3 | BC104: 5 | BD104: 4 | BE104: 8 | BF104: 6 | BG104: 7 | BH104: 13 | BI104: 20 | BJ104: 33 | BK104: 329.2 | BL104: 3 | BM104: 4.5 | BN104: 2.5 | BO104: 10 | BP104: 3 | BQ104: 5 | BR104: 6 | BS104: 14 | BT104: دورثان | BU104: محاسبة مالية - رياضة عامة - | BV104: 2 | CC104: محاسبة مالية - | CJ104: رياضة عامة - | CR104: 193 | CS104: 3
A105: 98 | B105: 98 | C105: عبد السميع جمال عبد السميع علي | D105: 3/1 | E105: 379 | F105: 8 | G105: 10.5 | H105: 13 | I105: 31.5 | J105: 9 | K105: 9.6 | L105: 7.6 | M105: 26.2 | N105: 5 | O105: 8.4 | P105: 8.4 | Q105: 21.8 | R105: 8 | S105: 5.5 | T105: 12 | U105: 25.5 | V105: 7 | W105: 16 | X105: 13 | Y105: 36 | Z105: 9 | AA105: 10 | AB105: 11.5 | AC105: 30.5 | AD105: 9 | AE105: 9 | AF105: 15 | AG105: 33 | AH105: 9 | AI105: 13 | AJ105: 14 | AK105: 36 | AL105: 9 | AM105: 10 | AN105: 7 | AO105: 26 | AP105: 8 | AQ105: 12 | AR105: 15 | AS105: 35 | AT105: 3.5 | AU105: 3.5 | AV105: 4.5 | AW105: 11.5 | AX105: 6 | AY105: 8 | AZ105: 14 | BA105: 28 | BB105: 3 | BC105: 5 | BD105: 5 | BE105: 9 | BF105: 6 | BG105: 7 | BH105: 14 | BI105: 21 | BJ105: 35 | BK105: 376 | BL105: 3 | BM105: 5 | BN105: 3 | BO105: 11 | BP105: 3 | BQ105: 5.5 | BR105: 6 | BS105: 14.5 | BT105: دورثان | BU105: رياضة عامة - | BV105: 1 | CJ105: رياضة عامة - | CR105: 184 | CS105: 14
A106: 99 | B106: 99 | C106: عبد الله سامي محمد البيومي علام | D106: 3/1 | E106: 380 | F106: 7.5 | G106: 10.5 | H106: 12.5 | I106: 30.5 | J106: 8 | K106: 8.4 | L106: 8 | M106: 24.4 | N106: 5 | O106: 8.4 | P106: 8 | Q106: 21.4 | R106: 8 | S106: 0 | T106: 11 | U106: 19 | V106: 7 | W106: 11.5 | X106: 13.5 | Y106: 32 | Z106: 9 | AA106: 5.5 | AB106: 9.5 | AC106: 24 | AD106: 9 | AE106: 9 | AF106: 15 | AG106: 33 | AH106: 9 | AI106: 10 | AJ106: 12 | AK106: 31 | AL106: 9 | AM106: 8 | AN106: 8 | AO106: 25 | AP106: 8 | AQ106: 11 | AR106: 14 | AS106: 33 | AT106: 3.5 | AU106: 3.5 | AV106: 8 | AW106: 15 | AX106: 6 | AY106: 5.5 | AZ106: 13 | BA106: 24.5 | BB106: 3 | BC106: 5 | BD106: 5 | BE106: 6 | BF106: 5 | BG106: 7 | BH106: 13 | BI106: 18 | BJ106: 31 | BK106: 343.8 | BL106: 3 | BM106: 3 | BN106: 3 | BO106: 9 | BP106: 3 | BQ106: 5 | BR106: 4.5 | BS106: 12.5 | BT106: دورثان | BU106: محاسبة مالية - تربية قومية | BV106: 2 | CC106: محاسبة مالية - | CN106: تربية قومية | CR106: 171 | CS106: 47
A107: 100 | B107: 100 | C107: عبد الله طلعت عبد السلام محمد | D107: 3/1 | E107: 381 | F107: 7.5 | G107: 13 | H107: 14 | I107: 34.5 | J107: 8 | K107: 10.4 | L107: 10.8 | M107: 29.2 | N107: 5 | O107: 8.4 | P107: 8.8 | Q107: 22.2 | R107: 8 | S107: 0 | T107: 9 | U107: 17 | V107: 7 | W107: 13 | X107: 14 | Y107: 34 | Z107: 9 | AA107: 6.5 | AB107: 9 | AC107: 24.5 | AD107: 9 | AE107: 13 | AF107: 16 | AG107: 38 | AH107: 9 | AI107: 10 | AJ107: 12 | AK107: 31 | AL107: 9 | AM107: 8 | AN107: 8 | AO107: 25 | AP107: 8 | AQ107: 11 | AR107: 14 | AS107: 33 | AT107: 3.5 | AU107: 4 | AV107: 8 | AW107: 15.5 | AX107: 6 | AY107: 7 | AZ107: 13 | BA107: 26 | BB107: 3 | BC107: 5 | BD107: 4 | BE107: 5 | BF107: 5 | BG107: 7 | BH107: 12 | BI107: 17 | BJ107: 29 | BK107: 358.9 | BL107: 3 | BM107: 2.5 | BN107: 3 | BO107: 8.5 | BP107: 3 | BQ107: 5 | BR107: 5 | BS107: 13 | BT107: دورثان | BU107: محاسبة مالية - تربية قومية | BV107: 2 | CC107: محاسبة مالية - | CN107: تربية قومية | CR107: 157 | CS107: 122
A108: 101 | B108: 101 | C108: عبد الله وائل عبد الله سعد حسيني | D108: 3/1 | E108: 382 | F108: 7 | G108: 13 | H108: 10 | I108: 30 | J108: 8 | K108: 6.8 | L108: 9.2 | M108: 24 | N108: 5 | O108: 8 | P108: 9.6 | Q108: 22.6 | R108: 8 | S108: 0 | T108: 6 | U108: 14 | V108: 7 | W108: 11 | X108: 9.5 | Y108: 27.5 | Z108: 9 | AA108: 2.5 | AB108: 11 | AC108: 22.5 | AD108: 9 | AE108: 11 | AF108: 15 | AG108: 35 | AH108: 9 | AI108: 10 | AJ108: 13 | AK108: 32 | AL108: 9 | AM108: 0 | AN108: 6 | AO108: 15 | AP108: 8 | AQ108: 12 | AR108: 13 | AS108: 33 | AT108: 3.5 | AU108: 3 | AV108: 8.5 | AW108: 15 | AX108: 6 | AY108: 6 | AZ108: 13 | BA108: 25 | BB108: 3 | BC108: 5 | BD108: 5 | BE108: 7 | BF108: 5 | BG108: 8 | BH108: 13 | BI108: 20 | BJ108: 33 | BK108: 328.6 | BL108: 3 | BM108: 3 | BN108: 3 | BO108: 9 | BP108: 3 | BQ108: 4.5 | BR108: 5 | BS108: 12.5 | BT108: راسبة | BU108: محاسبة مالية - ادارة اعمال - تربية قومية | BV108: 3 | CC108: محاسبة مالية - | CH108: ادارة اعمال - | CN108: تربية قومية | CR108: 146 | CS108: 202
A109: 102 | B109: 102 | C109: عبد الله ياسر عبد الله تهامي | D109: 3/1 | E109: 383 | F109: 7 | G109: 10.5 | H109: 12.5 | I109: 30 | J109: 8 | K109: 7.2 | L109: 9.2 | M109: 24.4 | N109: 5 | O109: 9.2 | P109: 7.2 | Q109: 21.4 | R109: 8 | S109: 2 | T109: 5 | U109: 15 | V109: 7 | W109: 5.5 | X109: 12.5 | Y109: 25 | Z109: 9 | AA109: 2.5 | AB109: 8.5 | AC109: 20 | AD109: 9 | AE109: 10 | AF109: 16 | AG109: 35 | AH109: 9 | AI109: 9 | AJ109: 14 | AK109: 32 | AL109: 9 | AM109: 7 | AN109: 9 | AO109: 25 | AP109: 8 | AQ109: 10 | AR109: 12 | AS109: 30 | AT109: 3.5 | AU109: 2.5 | AV109: 5 | AW109: 11 | AX109: 6 | AY109: 8 | AZ109: 10 | BA109: 24 | BB109: 3 | BC109: 5 | BD109: 4 | BE109: 5 | BF109: 6 | BG109: 7 | BH109: 13 | BI109: 17 | BJ109: 30 | BK109: 322.8 | BL109: 3 | BM109: 2.5 | BN109: 2.5 | BO109: 8 | BP109: 3 | BQ109: 4.5 | BR109: 5 | BS109: 12.5 | BT109: راسبة | BU109: محاسبة مالية - رياضة عامة - تربية قومية | BV109: 3 | CC109: محاسبة مالية - | CJ109: رياضة عامة - | CN109: تربية قومية | CR109: 109 | CS109: 433
A110: 103 | B110: 103 | C110: عصام جمال عبد الناصر عبد الهادي | D110: 3/1 | E110: 384 | F110: 7 | G110: 7 | H110: 11 | I110: 25 | J110: 8 | K110: 6.8 | L110: 9.2 | M110: 24 | N110: 5 | O110: 8.4 | P110: 8.4 | Q110: 21.8 | R110: 8 | S110: 0 | T110: 8.5 | U110: 16.5 | V110: 7 | W110: 12 | X110: 13.5 | Y110: 32.5 | Z110: 9 | AA110: 5.5 | AB110: 7.5 | AC110: 22 | AD110: 8.5 | AE110: 11 | AF110: 14 | AG110: 33.5 | AH110: 9 | AI110: 9.5 | AJ110: 12 | AK110: 30.5 | AL110: 9 | AM110: 6 | AN110: 10 | AO110: 25 | AP110: 8 | AQ110: 13 | AR110: 17 | AS110: 38 | AT110: 3.5 | AU110: 1 | AV110: 5 | AW110: 9.5 | AX110: 6 | AY110: 6.5 | AZ110: 14 | BA110: 26.5 | BB110: 3 | BC110: 5 | BD110: 5 | BE110: 7 | BF110: 5 | BG110: 6 | BH110: 13 | BI110: 18 | BJ110: 31 | BK110: 335.8 | BL110: 3 | BM110: 5.5 | BN110: 4 | BO110: 12.5 | BP110: 3 | BQ110: 6 | BR110: 6 | BS110: 15 | BT110: دورثان | BU110: محاسبة مالية - رياضة عامة - | BV110: 2 | CC110: محاسبة مالية - | CJ110: رياضة عامة - | CR110: 145 | CS110: 211
A111: 104 | B111: 104 | C111: علاء مختار فؤاد هلالي | D111: 2/1 | E111: 385 | F111: 7 | G111: 6 | H111: 12 | I111: 25 | J111: 9 | K111: 4.4 | L111: 7.6 | M111: 21 | N111: 5 | O111: 7.2 | P111: 8 | Q111: 20.2 | R111: 8 | S111: 0 | T111: 3.5 | U111: 11.5 | V111: 7 | W111: 6.5 | X111: 11.5 | Y111: 25 | Z111: 9 | AA111: 6.5 | AB111: 9 | AC111: 24.5 | AD111: 9 | AE111: 9 | AF111: 14 | AG111: 32 | AH111: 9 | AI111: 5.5 | AJ111: 14 | AK111: 28.5 | AL111: 9 | AM111: 7 | AN111: 9 | AO111: 25 | AP111: 8 | AQ111: 9 | AR111: 14 | AS111: 31 | AT111: 4 | AU111: 2.5 | AV111: 5 | AW111: 11.5 | AX111: 6 | AY111: 6.5 | AZ111: 13 | BA111: 25.5 | BB111: 3 | BC111: 5 | BD111: 5 | BE111: 8 | BF111: 5 | BG111: 7 | BH111: 13 | BI111: 20 | BJ111: 33 | BK111: 313.7 | BL111: 3 | BM111: 4 | BN111: 3 | BO111: 10 | BP111: 3 | BQ111: 5 | BR111: 5.5 | BS111: 13.5 | BT111: دورثان | BU111: محاسبة مالية - رياضة عامة - | BV111: 2 | CC111: محاسبة مالية - | CJ111: رياضة عامة - | CR111: 143 | CS111: 231
A112: 105 | B112: 105 | C112: علي السيد علي رجب | D112: 3/1 | E112: 386 | F112: 7.5 | G112: 11 | H112: 10.5 | I112: 29 | J112: 9 | K112: 5.2 | L112: 8.8 | M112: 23 | N112: 5 | O112: 9.2 | P112: 8.4 | Q112: 22.6 | R112: 8 | S112: 5 | T112: 15.5 | U112: 28.5 | V112: 7 | W112: 14 | X112: 15.5 | Y112: 36.5 | Z112: 9 | AA112: 9.5 | AB112: 8.5 | AC112: 27 | AD112: 8.5 | AE112: 10 | AF112: 16 | AG112: 34.5 | AH112: 9 | AI112: 11 | AJ112: 14 | AK112: 34 | AL112: 9 | AM112: 12 | AN112: 12 | AO112: 33 | AP112: 8 | AQ112: 11 | AR112: 16 | AS112: 35 | AT112: 3.5 | AU112: 2.5 | AV112: 5 | AW112: 11 | AX112: 6 | AY112: 9.5 | AZ112: 13 | BA112: 28.5 | BB112: 3 | BC112: 5 | BD112: 5 | BE112: 7 | BF112: 5 | BG112: 7 | BH112: 13 | BI112: 19 | BJ112: 32 | BK112: 374.6 | BL112: 3 | BM112: 3 | BN112: 2.5 | BO112: 8.5 | BP112: 3 | BQ112: 5 | BR112: 5.5 | BS112: 13.5 | BT112: دورثان | BU112: رياضة عامة - تربية قومية | BV112: 2 | CJ112: رياضة عامة - | CN112: تربية قومية | CR112: 146 | CS112: 202
A113: 106 | B113: 106 | C113: عمار عبد الباقي محمد البكري جاد | D113: 3/1 | E113: 387 | F113: 8 | G113: 11 | H113: 12 | I113: 31 | J113: 8 | K113: 8.8 | L113: 10.4 | M113: 27.2 | N113: 5 | O113: 7.2 | P113: 7.6 | Q113: 19.8 | R113: 8 | S113: 2 | T113: 7.5 | U113: 17.5 | V113: 7 | W113: 7.5 | X113: 10.5 | Y113: 25 | Z113: 9 | AA113: 4.5 | AB113: 9.5 | AC113: 23 | AD113: 9 | AE113: 12 | AF113: 14 | AG113: 35 | AH113: 9 | AI113: 9 | AJ113: 14 | AK113: 32 | AL113: 9 | AM113: 6 | AN113: 10 | AO113: 25 | AP113: 8 | AQ113: 10 | AR113: 14 | AS113: 32 | AT113: 4 | AU113: 2.5 | AV113: 5 | AW113: 11.5 | AX113: 6 | AY113: 8.5 | AZ113: 15 | BA113: 29.5 | BB113: 3 | BC113: 5 | BD113: 4 | BE113: 8 | BF113: 5 | BG113: 6 | BH113: 12 | BI113: 19 | BJ113: 31 | BK113: 339.5 | BL113: 3 | BM113: 3 | BN113: 4 | BO113: 10 | BP113: 3 | BQ113: 5.5 | BR113: 5 | BS113: 13.5 | BT113: دورثان | BU113: محاسبة مالية - رياضة عامة - | BV113: 2 | CC113: محاسبة مالية - | CJ113: رياضة عامة - | CR113: 160 | CS113: 99
A114: 107 | B114: 107 | C114: عمر رضا ابراهيم عبد الغني الرفاعي | D114: 3/1 | E114: 388 | F114: 7 | G114: 9 | H114: 11.5 | I114: 27.5 | J114: 9.5 | K114: 6.8 | L114: 15.2 | M114: 31.5 | N114: 5 | O114: 8 | P114: 8.8 | Q114: 21.8 | R114: 8 | S114: 0.5 | T114: 2.5 | U114: 11 | V114: 7 | W114: 8.5 | X114: 12.5 | Y114: 28 | Z114: 9 | AA114: 6.5 | AB114: 16 | AC114: 31.5 | AD114: 8.5 | AE114: 9 | AF114: 16 | AG114: 33.5 | AH114: 9 | AI114: 10 | AJ114: 16 | AK114: 35 | AL114: 9 | AM114: 6 | AN114: 11 | AO114: 26 | AP114: 8 | AQ114: 16 | AR114: 12 | AS114: 36 | AT114: 3.5 | AU114: 2 | AV114: 10 | AW114: 15.5 | AX114: 6 | AY114: 12 | AZ114: 10 | BA114: 28 | BB114: 3 | BC114: 5 | BD114: 5 | BE114: 6 | BF114: 6 | BG114: 9 | BH114: 14 | BI114: 20 | BJ114: 34 | BK114: 359.3 | BL114: 3 | BM114: 5 | BN114: 4.5 | BO114: 12.5 | BP114: 3 | BQ114: 4 | BR114: 7 | BS114: 14 | BT114: دورثان | BU114: محاسبة مالية - | BV114: 1 | CC114: محاسبة مالية - | CR114: 128 | CS114: 351
A115: 108 | B115: 108 | C115: عمر عبد العزيز أحمد أحمد | D115: 3/1 | E115: 389 | F115: 7.5 | G115: 6 | H115: 11.5 | I115: 25 | J115: 8 | K115: 2.4 | L115: 13.2 | M115: 23.6 | N115: 5 | O115: 9.2 | P115: 8 | Q115: 22.2 | R115: 8 | S115: 1 | T115: 0 | U115: 9 | V115: 7 | W115: 9.5 | X115: 12.5 | Y115: 29 | Z115: 9 | AA115: 0.5 | AB115: 10.5 | AC115: 20 | AD115: 8.5 | AE115: 8 | AF115: 11 | AG115: 27.5 | AH115: 9 | AI115: 12 | AJ115: 12 | AK115: 33 | AL115: 9 | AM115: 3 | AN115: 13 | AO115: 25 | AP115: 8 | AQ115: 15 | AR115: 13 | AS115: 36 | AT115: 3.5 | AU115: 2.5 | AV115: 9 | AW115: 15 | AX115: 6 | AY115: 11 | AZ115: 6 | BA115: 23 | BB115: 3 | BC115: 5 | BD115: 5 | BE115: 3 | BF115: 5 | BG115: 10 | BH115: 13 | BI115: 18 | BJ115: 31 | BK115: 319.3 | BL115: 3 | BM115: 4.5 | BN115: 2.5 | BO115: 10 | BP115: 3 | BQ115: 3 | BR115: 4.5 | BS115: 10.5 | BT115: دورثان | BU115: محاسبة مالية - | BV115: 1 | CC115: محاسبة مالية - | CR115: 117 | CS115: 405
A116: 109 | B116: 109 | C116: عمر عبد العليم كامل محمود | D116: 3/1 | E116: 390 | F116: 7.5 | G116: 7.5 | H116: 11 | I116: 26 | J116: 8 | K116: 4.8 | L116: 15.6 | M116: 28.4 | N116: 5 | O116: 9.6 | P116: 8 | Q116: 22.6 | R116: 8 | S116: 0 | T116: 0 | U116: 8 | V116: 7 | W116: 11.5 | X116: 13.5 | Y116: 32 | Z116: 9 | AA116: 0.5 | AB116: 12.5 | AC116: 22 | AD116: 9.5 | AE116: 9 | AF116: 13 | AG116: 31.5 | AH116: 9 | AI116: 10 | AJ116: 14 | AK116: 33 | AL116: 9 | AM116: 4 | AN116: 12 | AO116: 25 | AP116: 8 | AQ116: 15 | AR116: 13 | AS116: 36 | AT116: 3.5 | AU116: 2.5 | AV116: 9 | AW116: 15 | AX116: 6 | AY116: 7 | AZ116: 4 | BA116: 17 | BB116: 3 | BC116: 5 | BD116: 5 | BE116: 5 | BF116: 5 | BG116: 10 | BH116: 13 | BI116: 20 | BJ116: 33 | BK116: 329.5 | BL116: 3 | BM116: 5 | BN116: 3 | BO116: 11 | BP116: 3 | BQ116: 4 | BR116: 5 | BS116: 12 | BT116: دورثان | BU116: محاسبة مالية - جغرافيا - | BV116: 2 | CC116: محاسبة مالية - | CK116: جغرافيا - | CR116: 133 | CS116: 312
A117: 110 | B117: 110 | C117: عمر وائل عمر محمد الشبراوي | D117: 4/1 | E117: 391 | F117: 8 | G117: 3.5 | H117: 10.5 | I117: 22 | J117: 9.5 | K117: 3.2 | L117: 15.2 | M117: 27.9 | N117: 5 | O117: 10 | P117: 9.2 | Q117: 24.2 | R117: 8 | S117: 0 | T117: 0 | U117: 8 | V117: 7.5 | W117: 10 | X117: 12.5 | Y117: 30 | Z117: 9 | AA117: 1 | AB117: 14 | AC117: 24 | AD117: 8.5 | AE117: 12 | AF117: 13 | AG117: 33.5 | AH117: 9 | AI117: 11 | AJ117: 14 | AK117: 34 | AL117: 9 | AM117: 6 | AN117: 12 | AO117: 27 | AP117: 8 | AQ117: 15 | AR117: 12 | AS117: 35 | AT117: 3.5 | AU117: 2.5 | AV117: 9 | AW117: 15 | AX117: 6 | AY117: 11 | AZ117: 6 | BA117: 23 | BB117: 3 | BC117: 5 | BD117: 4 | BE117: 6 | BF117: 6 | BG117: 9 | BH117: 13 | BI117: 20 | BJ117: 33 | BK117: 336.6 | BL117: 3 | BM117: 6.5 | BN117: 4 | BO117: 13.5 | BP117: 3 | BQ117: 2 | BR117: 5 | BS117: 10 | BT117: دورثان | BU117: لغة عربية - محاسبة مالية - | BV117: 2 | BZ117: لغة عربية - | CC117: محاسبة مالية - | CR117: 159 | CS117: 108
A118: 111 | B118: 111 | C118: عمرو سعيد السيد رضوان علي | D118: 4/1 | E118: 392 | F118: 6.5 | G118: 9.5 | H118: 9 | I118: 25 | J118: 8.5 | K118: 2.4 | L118: 12.4 | M118: 23.3 | N118: 5 | O118: 9.6 | P118: 8.4 | Q118: 23 | R118: 6.5 | S118: 0.5 | T118: 1 | U118: 8 | V118: 8.5 | W118: 10 | X118: 12.5 | Y118: 31 | Z118: 8 | AA118: 2 | AB118: 14.5 | AC118: 24.5 | AD118: 9 | AE118: 10 | AF118: 15 | AG118: 34 | AH118: 9 | AI118: 12 | AJ118: 14 | AK118: 35 | AL118: 9 | AM118: 5 | AN118: 12 | AO118: 26 | AP118: 8.5 | AQ118: 14 | AR118: 17 | AS118: 39.5 | AT118: 3.5 | AU118: 2.5 | AV118: 9 | AW118: 15 | AX118: 6 | AY118: 10 | AZ118: 8 | BA118: 24 | BB118: 3 | BC118: 4.5 | BD118: 5 | BE118: 5 | BF118: 6 | BG118: 8 | BH118: 14 | BI118: 17.5 | BJ118: 31.5 | BK118: 339.8 | BL118: 3 | BM118: 6 | BN118: 3.5 | BO118: 12.5 | BP118: 3 | BQ118: 4.5 | BR118: 7 | BS118: 14.5 | BT118: دورثان | BU118: محاسبة مالية - | BV118: 1 | CC118: محاسبة مالية - | CR118: 129 | CS118: 342
A119: 112 | B119: 112 | C119: عمرو عبد الرحمن عثمان علي | D119: 4/1 | E119: 393 | F119: 6.5 | G119: 6.5 | H119: 7 | I119: 20 | J119: 8.5 | K119: 3.6 | L119: 13.6 | M119: 25.7 | N119: 5 | O119: 8.8 | P119: 8 | Q119: 21.8 | R119: 6.5 | S119: 0 | T119: 2 | U119: 8.5 | V119: 8.5 | W119: 5.5 | X119: 11 | Y119: 25 | Z119: 7 | AA119: 0 | AB119: 13 | AC119: 20 | AD119: 9 | AE119: 8 | AF119: 13 | AG119: 30 | AH119: 9 | AI119: 10 | AJ119: 14 | AK119: 33 | AL119: 9 | AM119: 4 | AN119: 12 | AO119: 25 | AP119: 8.5 | AQ119: 13 | AR119: 13 | AS119: 34.5 | AT119: 3.5 | AU119: 2 | AV119: 9.5 | AW119: 15 | AX119: 6 | AY119: 11 | AZ119: 5 | BA119: 22 | BB119: 2.5 | BC119: 4.5 | BD119: 5 | BE119: 5 | BF119: 5 | BG119: 8 | BH119: 12.5 | BI119: 17.5 | BJ119: 30 | BK119: 310.5 | BL119: 3 | BM119: 6 | BN119: 3 | BO119: 12 | BP119: 3 | BQ119: 4.5 | BR119: 5.5 | BS119: 13 | BT119: دورثان | BU119: لغة عربية - محاسبة مالية - | BV119: 2 | BZ119: لغة عربية - | CC119: محاسبة مالية - | CR119: 163 | CS119: 80
A120: 113 | B120: 113 | C120: فتحي نور الدين فتحي الجوهري | D120: 4/1 | E120: 394 | F120: 7.5 | G120: 7.5 | H120: 13 | I120: 28 | J120: 8.5 | K120: 5.2 | L120: 14.8 | M120: 28.5 | N120: 5 | O120: 9.2 | P120: 9.2 | Q120: 23.4 | R120: 7 | S120: 1 | T120: 1 | U120: 9 | V120: 8.5 | W120: 10 | X120: 13.5 | Y120: 32 | Z120: 8 | AA120: 4 | AB120: 15.5 | AC120: 27.5 | AD120: 9 | AE120: 11 | AF120: 13 | AG120: 33 | AH120: 9 | AI120: 12.5 | AJ120: 14 | AK120: 35.5 | AL120: 9 | AM120: 5 | AN120: 12 | AO120: 26 | AP120: 8.5 | AQ120: 18 | AR120: 13 | AS120: 39.5 | AT120: 3.5 | AU120: 3 | AV120: 10 | AW120: 16.5 | AX120: 6 | AY120: 11 | AZ120: 8 | BA120: 25 | BB120: 2.5 | BC120: 5 | BD120: 5 | BE120: 8 | BF120: 6 | BG120: 8 | BH120: 13.5 | BI120: 21 | BJ120: 34.5 | BK120: 358.4 | BL120: 3 | BM120: 6 | BN120: 2.5 | BO120: 11.5 | BP120: 3 | BQ120: 6 | BR120: 6.5 | BS120: 15.5 | BT120: دورثان | BU120: محاسبة مالية - | BV120: 1 | CC120: محاسبة مالية - | CR120: 145 | CS120: 211
A121: 114 | B121: 114 | C121: قاسم محمد قاسم محمد محمد | D121: 4/1 | E121: 395 | F121: 7.5 | G121: 8.5 | H121: 11.5 | I121: 27.5 | J121: 8.5 | K121: 6.8 | L121: 13.2 | M121: 28.5 | N121: 5 | O121: 9.6 | P121: 8.8 | Q121: 23.4 | R121: 8 | S121: 0 | T121: 0 | U121: 8 | V121: 8.5 | W121: 11.5 | X121: 14 | Y121: 34 | Z121: 8 | AA121: 10 | AB121: 15.5 | AC121: 33.5 | AD121: 9 | AE121: 14 | AF121: 13 | AG121: 36 | AH121: 9 | AI121: 11.5 | AJ121: 15 | AK121: 35.5 | AL121: 9 | AM121: 5 | AN121: 13 | AO121: 27 | AP121: 8.5 | AQ121: 15 | AR121: 14 | AS121: 37.5 | AT121: 3.5 | AU121: 4 | AV121: 8 | AW121: 15.5 | AX121: 6 | AY121: 12 | AZ121: 8 | BA121: 26 | BB121: 2.5 | BC121: 5 | BD121: 5 | BE121: 6 | BF121: 5 | BG121: 8 | BH121: 12.5 | BI121: 19 | BJ121: 31.5 | BK121: 363.9 | BL121: 3 | BM121: 4.5 | BN121: 2.5 | BO121: 10 | BP121: 3 | BQ121: 4 | BR121: 7 | BS121: 14 | BT121: دورثان | BU121: محاسبة مالية - | BV121: 1 | CC121: محاسبة مالية - | CR121: 173 | CS121: 42
A122: 115 | B122: 115 | C122: كريم عربي عبد المعبود محمد | D122: 4/1 | E122: 396 | F122: 7 | G122: 2.5 | H122: 6.5 | I122: 16 | J122: 8.5 | K122: 0.8 | L122: 12.4 | M122: 21.7 | N122: 5 | O122: 9.6 | P122: 8 | Q122: 22.6 | R122: 7.5 | S122: 0.5 | T122: 0 | U122: 8 | V122: 8.5 | W122: 6.5 | X122: 12 | Y122: 27 | Z122: 7.5 | AA122: 2.5 | AB122: 13 | AC122: 23 | AD122: 9 | AE122: 6 | AF122: 12 | AG122: 27 | AH122: 9 | AI122: 11 | AJ122: 14 | AK122: 34 | AL122: 9 | AM122: 7 | AN122: 13 | AO122: 29 | AP122: 8 | AQ122: 15 | AR122: 13 | AS122: 36 | AT122: 3.5 | AU122: 3 | AV122: 9 | AW122: 15.5 | AX122: 6 | AY122: 10 | AZ122: 5 | BA122: 21 | BB122: 2.5 | BC122: 4.5 | BD122: 5 | BE122: 5 | BF122: 5 | BG122: 10 | BH122: 12.5 | BI122: 19.5 | BJ122: 32 | BK122: 312.8 | BL122: 3 | BM122: 4.5 | BN122: 1 | BO122: 8.5 | BP122: 2.5 | BQ122: 3.5 | BR122: 4 | BS122: 10 | BT122: راسبة | BU122: لغة عربية - محاسبة مالية - تربية قومية | BV122: 3 | BZ122: لغة عربية - | CC122: محاسبة مالية - | CN122: تربية قومية | CR122: 145 | CS122: 211
A123: 116 | B123: 116 | C123: مبروك فج النور مبروك اسماعيل | D123: 4/1 | E123: 397 | F123: 7.5 | G123: 8 | H123: 9.5 | I123: 25 | J123: 8.5 | K123: 2.8 | L123: 13.6 | M123: 24.9 | N123: 5 | O123: 9.6 | P123: 8 | Q123: 22.6 | R123: 8 | S123: 0 | T123: 0 | U123: 8 | V123: 8.5 | W123: 7 | X123: 14 | Y123: 29.5 | Z123: 8 | AA123: 3.5 | AB123: 8.5 | AC123: 20 | AD123: 9 | AE123: 15 | AF123: 13 | AG123: 37 | AH123: 9 | AI123: 10.5 | AJ123: 14 | AK123: 33.5 | AL123: 9 | AM123: 6 | AN123: 12 | AO123: 27 | AP123: 8.5 | AQ123: 17 | AR123: 13 | AS123: 38.5 | AT123: 3.5 | AU123: 2.5 | AV123: 9.5 | AW123: 15.5 | AX123: 6 | AY123: 10 | AZ123: 5 | BA123: 21 | BB123: 2.5 | BC123: 4.5 | BD123: 4 | BE123: 6 | BF123: 6 | BG123: 8 | BH123: 12.5 | BI123: 18.5 | BJ123: 31 | BK123: 333.5 | BL123: 3 | BM123: 5 | BN123: 3.5 | BO123: 11.5 | BP123: 3 | BQ123: 2 | BR123: 3 | BS123: 8 | BT123: دورثان | BU123: محاسبة مالية - تربية دينية | BV123: 2 | CC123: محاسبة مالية - | CO123: تربية دينية | CR123: 144 | CS123: 222
A124: 117 | B124: 117 | C124: مجدي أحمد حسين محمد | D124: 4/1 | E124: 398 | F124: 7 | G124: 12 | H124: 13.5 | I124: 32.5 | J124: 8 | K124: 9.2 | L124: 14.8 | M124: 32 | N124: 5 | O124: 9.6 | P124: 8.8 | Q124: 23.4 | R124: 7 | S124: 3 | T124: 1 | U124: 11 | V124: 8.5 | W124: 7.5 | X124: 14 | Y124: 30 | Z124: 8 | AA124: 2 | AB124: 16 | AC124: 26 | AD124: 9 | AE124: 8 | AF124: 14 | AG124: 31 | AH124: 9 | AI124: 11.5 | AJ124: 14 | AK124: 34.5 | AL124: 9 | AM124: 8 | AN124: 12 | AO124: 29 | AP124: 8.5 | AQ124: 14 | AR124: 13 | AS124: 35.5 | AT124: 3.5 | AU124: 4.5 | AV124: 7.5 | AW124: 15.5 | AX124: 6 | AY124: 11 | AZ124: 10 | BA124: 27 | BB124: 2.5 | BC124: 4.5 | BD124: 5 | BE124: 6 | BF124: 5 | BG124: 8 | BH124: 12.5 | BI124: 18.5 | BJ124: 31 | BK124: 358.4 | BL124: 3 | BM124: 5 | BN124: 3.5 | BO124: 11.5 | BP124: 3 | BQ124: 4 | BR124: 4.5 | BS124: 11.5 | BT124: دورثان | BU124: محاسبة مالية - | BV124: 1 | CC124: محاسبة مالية - | CR124: 133 | CS124: 312
A125: 118 | B125: 118 | C125: محمد ابراهيم محمد حسانين | D125: 4/1 | E125: 399 | F125: 7 | G125: 5 | H125: 13 | I125: 25 | J125: 9.5 | K125: 3.2 | L125: 11.2 | M125: 23.9 | N125: 5 | O125: 8.8 | P125: 7.6 | Q125: 21.4 | R125: 7 | S125: 0 | T125: 2 | U125: 9 | V125: 8.5 | W125: 9.5 | X125: 13 | Y125: 31 | Z125: 7.5 | AA125: 1 | AB125: 12.5 | AC125: 21 | AD125: 9 | AE125: 12 | AF125: 13 | AG125: 34 | AH125: 9 | AI125: 12 | AJ125: 14 | AK125: 35 | AL125: 9 | AM125: 6 | AN125: 11 | AO125: 26 | AP125: 8.5 | AQ125: 15 | AR125: 12 | AS125: 35.5 | AT125: 4 | AU125: 2.5 | AV125: 8.5 | AW125: 15 | AX125: 6 | AY125: 12 | AZ125: 6 | BA125: 24 | BB125: 2.5 | BC125: 5 | BD125: 4 | BE125: 4 | BF125: 6 | BG125: 8 | BH125: 12.5 | BI125: 17 | BJ125: 29.5 | BK125: 330.3 | BL125: 3 | BM125: 5 | BN125: 2.5 | BO125: 10.5 | BP125: 3 | BQ125: 3.5 | BR125: 4 | BS125: 10.5 | BT125: دورثان | BU125: محاسبة مالية - | BV125: 1 | CC125: محاسبة مالية - | CR125: 172 | CS125: 43
A126: 119 | B126: 119 | C126: محمد احمد شحاته شهوان | D126: 4/1 | E126: 400 | F126: 7 | G126: 5 | H126: 9.5 | I126: 21.5 | J126: 8 | K126: 4 | L126: 14 | M126: 26 | N126: 5 | O126: 10.4 | P126: 9.6 | Q126: 25 | R126: 7 | S126: 1 | T126: 2 | U126: 10 | V126: 8.5 | W126: 5.5 | X126: 11 | Y126: 25 | Z126: 7 | AA126: 0 | AB126: 13 | AC126: 20 | AD126: 9 | AE126: 10 | AF126: 13 | AG126: 32 | AH126: 9 | AI126: 12.5 | AJ126: 14 | AK126: 35.5 | AL126: 9 | AM126: 5 | AN126: 13 | AO126: 27 | AP126: 8.5 | AQ126: 14 | AR126: 12 | AS126: 34.5 | AT126: 3.5 | AU126: 2.5 | AV126: 9 | AW126: 15 | AX126: 6 | AY126: 13 | AZ126: 10 | BA126: 29 | BB126: 2.5 | BC126: 4.5 | BD126: 4 | BE126: 6 | BF126: 6 | BG126: 10 | BH126: 12.5 | BI126: 20.5 | BJ126: 33 | BK126: 333.5 | BL126: 3 | BM126: 6.5 | BN126: 4 | BO126: 13.5 | BP126: 2.5 | BQ126: 3 | BR126: 5 | BS126: 10.5 | BT126: دورثان | BU126: لغة عربية - محاسبة مالية - | BV126: 2 | BZ126: لغة عربية - | CC126: محاسبة مالية - | CR126: 169 | CS126: 57
A127: 120 | B127: 120 | C127: محمد اسامه محمد يوسف محمد | D127: 4/1 | E127: 401 | F127: 7 | G127: 4 | H127: 8.5 | I127: 19.5 | J127: 9.5 | K127: 4 | L127: 15.6 | M127: 29.1 | N127: 5 | O127: 10 | P127: 10 | Q127: 25 | R127: 7 | S127: 0 | T127: 0.5 | U127: 7.5 | V127: 8.5 | W127: 11.5 | X127: 14.5 | Y127: 34.5 | Z127: 8 | AA127: 3.5 | AB127: 13.5 | AC127: 25 | AD127: 9 | AE127: 15 | AF127: 15 | AG127: 39 | AH127: 9 | AI127: 11.5 | AJ127: 14 | AK127: 34.5 | AL127: 9 | AM127: 10 | AN127: 13 | AO127: 32 | AP127: 8.5 | AQ127: 17 | AR127: 13 | AS127: 38.5 | AT127: 4 | AU127: 2 | AV127: 9 | AW127: 15 | AX127: 6 | AY127: 12 | AZ127: 9 | BA127: 27 | BB127: 2.5 | BC127: 4.5 | BD127: 4 | BE127: 6 | BF127: 5 | BG127: 10 | BH127: 11.5 | BI127: 20.5 | BJ127: 32 | BK127: 358.6 | BL127: 3 | BM127: 5.5 | BN127: 4 | BO127: 12.5 | BP127: 3 | BQ127: 3 | BR127: 5 | BS127: 11 | BT127: دورثان | BU127: لغة عربية - محاسبة مالية - | BV127: 2 | BZ127: لغة عربية - | CC127: محاسبة مالية - | CR127: 167 | CS127: 62
A128: 121 | B128: 121 | C128: محمد أحمد محمد محمود | D128: 4/1 | E128: 402 | F128: 7 | G128: 8 | H128: 10 | I128: 25 | J128: 8 | K128: 4.4 | L128: 15.6 | M128: 28 | N128: 5 | O128: 8.8 | P128: 8 | Q128: 21.8 | R128: 7 | S128: 0 | T128: 0 | U128: 7 | V128: 8.5 | W128: 8.5 | X128: 11 | Y128: 28 | Z128: 7 | AA128: 0 | AB128: 9.5 | AC128: 16.5 | AD128: 9 | AE128: 10 | AF128: 14 | AG128: 33 | AH128: 9 | AI128: 11.5 | AJ128: 14 | AK128: 34.5 | AL128: 9 | AM128: 6 | AN128: 13 | AO128: 28 | AP128: 8.5 | AQ128: 16 | AR128: 12 | AS128: 36.5 | AT128: 4 | AU128: 1.5 | AV128: 10 | AW128: 15.5 | AX128: 6 | AY128: 12 | AZ128: 4 | BA128: 22 | BB128: 2.5 | BC128: 4.5 | BD128: 4 | BE128: 6 | BF128: 5 | BG128: 10 | BH128: 11.5 | BI128: 20.5 | BJ128: 32 | BK128: 327.8 | BL128: 3 | BM128: 6.5 | BN128: 3 | BO128: 12.5 | BP128: 3 | BQ128: 3 | BR128: 4 | BS128: 10 | BT128: دورثان | BU128: محاسبة مالية - سكرتارية اجنبية - | BV128: 2 | CC128: محاسبة مالية - | CE128: سكرتارية اجنبية - | CR128: 157 | CS128: 122
A129: 122 | B129: 122 | C129: محمد أسامة عزت السيد محمد | D129: 4/1 | E129: 403 | F129: 7 | G129: 9 | H129: 14 | I129: 30 | J129: 8.5 | K129: 3.6 | L129: 15.2 | M129: 27.3 | N129: 5 | O129: 9.6 | P129: 8 | Q129: 22.6 | R129: 7.5 | S129: 0 | T129: 0 | U129: 7.5 | V129: 8.5 | W129: 8.5 | X129: 14 | Y129: 31 | Z129: 7 | AA129: 1.5 | AB129: 7 | AC129: 15.5 | AD129: 9 | AE129: 16 | AF129: 13 | AG129: 38 | AH129: 9 | AI129: 14.5 | AJ129: 14 | AK129: 37.5 | AL129: 9 | AM129: 3 | AN129: 13 | AO129: 25 | AP129: 8.5 | AQ129: 18 | AR129: 13 | AS129: 39.5 | AT129: 4 | AU129: 2 | AV129: 10.5 | AW129: 16.5 | AX129: 6 | AY129: 11 | AZ129: 4 | BA129: 21 | BB129: 2.5 | BC129: 5 | BD129: 6 | BE129: 6 | BF129: 6 | BG129: 8 | BH129: 14.5 | BI129: 19 | BJ129: 33.5 | BK129: 344.9 | BL129: 3 | BM129: 5 | BN129: 4 | BO129: 12 | BP129: 3 | BQ129: 3.5 | BR129: 5 | BS129: 11.5 | BT129: دورثان | BU129: محاسبة مالية - سكرتارية اجنبية - | BV129: 2 | CC129: محاسبة مالية - | CE129: سكرتارية اجنبية - | CR129: 141 | CS129: 244
A130: 123 | B130: 123 | C130: محمد أيمن سليمان جبر | D130: 4/1 | E130: 404 | F130: 7.5 | G130: 8.5 | H130: 13.5 | I130: 29.5 | J130: 9.5 | K130: 2.4 | L130: 13.6 | M130: 25.5 | N130: 5 | O130: 9.2 | P130: 7.6 | Q130: 21.8 | R130: 8 | S130: 0.5 | T130: 9 | U130: 17.5 | V130: 9 | W130: 13.5 | X130: 14 | Y130: 36.5 | Z130: 7 | AA130: 4.5 | AB130: 2.5 | AC130: 14 | AD130: 9 | AE130: 13 | AF130: 14 | AG130: 36 | AH130: 9 | AI130: 11 | AJ130: 15 | AK130: 35 | AL130: 9 | AM130: 13 | AN130: 13 | AO130: 35 | AP130: 8.5 | AQ130: 17 | AR130: 14 | AS130: 39.5 | AT130: 4 | AU130: 3.5 | AV130: 9.5 | AW130: 17 | AX130: 6 | AY130: 11 | AZ130: 11 | BA130: 28 | BB130: 2.5 | BC130: 5 | BD130: 5 | BE130: 4 | BF130: 5 | BG130: 7 | BH130: 12.5 | BI130: 16 | BJ130: 28.5 | BK130: 363.8 | BL130: 3 | BM130: 6 | BN130: 2.5 | BO130: 11.5 | BP130: 3 | BQ130: 5 | BR130: 7.5 | BS130: 15.5 | BT130: دورثان | BU130: محاسبة مالية - سكرتارية اجنبية - | BV130: 2 | CC130: محاسبة مالية - | CE130: سكرتارية اجنبية - | CR130: 133 | CS130: 312
A131: 124 | B131: 124 | C131: محمد أيمن كمال كامل السيد | D131: 4/1 | E131: 405 | F131: 7 | G131: 8.5 | H131: 14 | I131: 29.5 | J131: 8 | K131: 4.8 | L131: 13.2 | M131: 26 | N131: 5 | O131: 6 | P131: 7.6 | Q131: 18.6 | R131: 6.5 | S131: 0 | T131: 11.5 | U131: 18 | V131: 9 | W131: 12 | X131: 11.5 | Y131: 32.5 | Z131: 6.5 | AA131: 1 | AB131: 1.5 | AC131: 9 | AD131: 9 | AE131: 10 | AF131: 13 | AG131: 32 | AH131: 9 | AI131: 13.5 | AJ131: 12 | AK131: 34.5 | AL131: 9 | AM131: 13 | AN131: 12 | AO131: 34 | AP131: 8.5 | AQ131: 17 | AR131: 15 | AS131: 40.5 | AT131: 4 | AU131: 4 | AV131: 8.5 | AW131: 16.5 | AX131: 6 | AY131: 11 | AZ131: 11 | BA131: 28 | BB131: 2.5 | BC131: 4.5 | BD131: 4 | BE131: 3 | BF131: 5 | BG131: 8 | BH131: 11.5 | BI131: 15.5 | BJ131: 27 | BK131: 346.1 | BL131: 3 | BM131: 5.5 | BN131: 4 | BO131: 12.5 | BP131: 3 | BQ131: 5 | BR131: 7 | BS131: 15 | BT131: دورثان | BU131: محاسبة مالية - سكرتارية اجنبية - | BV131: 2 | CC131: محاسبة مالية - | CE131: سكرتارية اجنبية - | CR131: 156 | CS131: 128
A132: 125 | B132: 125 | C132: محمد بكري عبد العزيز حسن علي | D132: 4/1 | E132: 406 | F132: 7 | G132: 4.5 | H132: 13.5 | I132: 25 | J132: 8 | K132: 6.4 | L132: 15.2 | M132: 29.6 | N132: 5 | O132: 8.8 | P132: 7.6 | Q132: 21.4 | R132: 7 | S132: 0 | T132: 10 | U132: 17 | V132: 8.5 | W132: 11 | X132: 12 | Y132: 31.5 | Z132: 6.5 | AA132: 3.5 | AB132: 2 | AC132: 12 | AD132: 9 | AE132: 6 | AF132: 13 | AG132: 28 | AH132: 9 | AI132: 9 | AJ132: 14 | AK132: 32 | AL132: 8.5 | AM132: 13 | AN132: 12 | AO132: 33.5 | AP132: 8.5 | AQ132: 15 | AR132: 12 | AS132: 35.5 | AT132: 4.5 | AU132: 3.5 | AV132: 7.5 | AW132: 15.5 | AX132: 6 | AY132: 11 | AZ132: 10 | BA132: 27 | BB132: 2.5 | BC132: 4.5 | BD132: 6 | BE132: 5 | BF132: 5 | BG132: 7 | BH132: 13.5 | BI132: 16.5 | BJ132: 30 | BK132: 338 | BL132: 3 | BM132: 6 | BN132: 4.5 | BO132: 13.5 | BP132: 3 | BQ132: 4.5 | BR132: 7.5 | BS132: 15 | BT132: دورثان | BU132: محاسبة مالية - سكرتارية اجنبية - | BV132: 2 | CC132: محاسبة مالية - | CE132: سكرتارية اجنبية - | CR132: 136 | CS132: 285
A133: 126 | B133: 126 | C133: محمد جاد أحمد عبد الرحمن | D133: 4/1 | E133: 407 | F133: 7 | G133: 3.5 | H133: 14.5 | I133: 25 | J133: 8.5 | K133: 4.8 | L133: 12 | M133: 25.3 | N133: 5 | O133: 5.6 | P133: 7.6 | Q133: 18.2 | R133: 6.5 | S133: 0 | T133: 8 | U133: 14.5 | V133: 8.5 | W133: 6 | X133: 11.5 | Y133: 26 | Z133: 6.5 | AA133: 0 | AB133: 0 | AC133: 6.5 | AD133: 9 | AE133: 7 | AF133: 13 | AG133: 29 | AH133: 9 | AI133: 15 | AJ133: 14 | AK133: 38 | AL133: 9 | AM133: 14 | AN133: 12 | AO133: 35 | AP133: 8.5 | AQ133: 18 | AR133: 15 | AS133: 41.5 | AT133: 4 | AU133: 6.5 | AV133: 10 | AW133: 20.5 | AX133: 6 | AY133: 11 | AZ133: 9 | BA133: 26 | BB133: 2.5 | BC133: 4.5 | BD133: 5 | BE133: 6 | BF133: 5 | BG133: 7 | BH133: 12.5 | BI133: 17.5 | BJ133: 30 | BK133: 335.5 | BL133: 3 | BM133: 6.5 | BN133: 3.5 | BO133: 13 | BP133: 3 | BQ133: 5.5 | BR133: 7 | BS133: 15.5 | BT133: دورثان | BU133: محاسبة مالية - سكرتارية اجنبية - | BV133: 2 | CC133: محاسبة مالية - | CE133: سكرتارية اجنبية - | CR133: 147 | CS133: 192
A134: 127 | B134: 127 | C134: محمد جمال اسماعيل السيد علي | D134: 4/1 | E134: 408 | F134: 7 | G134: 7 | H134: 13.5 | I134: 27.5 | J134: 8.5 | K134: 2.8 | L134: 10.4 | M134: 21.7 | N134: 5 | O134: 5.2 | P134: 8 | Q134: 18.2 | R134: 8 | S134: 0.5 | T134: 7 | U134: 15.5 | V134: 9 | W134: 7 | X134: 14 | Y134: 30 | Z134: 8 | AA134: 0 | AB134: 3.5 | AC134: 11.5 | AD134: 9 | AE134: 9 | AF134: 16 | AG134: 34 | AH134: 9 | AI134: 15 | AJ134: 14 | AK134: 38 | AL134: 9 | AM134: 15 | AN134: 11 | AO134: 35 | AP134: 8.5 | AQ134: 19 | AR134: 12 | AS134: 39.5 | AT134: 3.5 | AU134: 2 | AV134: 9.5 | AW134: 15 | AX134: 6 | AY134: 12 | AZ134: 11 | BA134: 29 | BB134: 2.5 | BC134: 4.5 | BD134: 4 | BE134: 5 | BF134: 5 | BG134: 7 | BH134: 11.5 | BI134: 16.5 | BJ134: 28 | BK134: 342.9 | BL134: 3 | BM134: 5 | BN134: 3.5 | BO134: 11.5 | BP134: 3 | BQ134: 2.5 | BR134: 6.5 | BS134: 12 | BT134: دورثان | BU134: محاسبة مالية - سكرتارية اجنبية - | BV134: 2 | CC134: محاسبة مالية - | CE134: سكرتارية اجنبية - | CR134: 136 | CS134: 285
A135: 128 | B135: 128 | C135: محمد ربيع السيد شحاته | D135: 4/1 | E135: 409 | F135: 6.5 | G135: 6 | H135: 12.5 | I135: 25 | J135: 8 | K135: 1.2 | L135: 12 | M135: 21.2 | N135: 5 | O135: 4 | P135: 7.6 | Q135: 16.6 | R135: 6.5 | S135: 0.5 | T135: 12.5 | U135: 19.5 | V135: 8.5 | W135: 6 | X135: 10.5 | Y135: 25 | Z135: 6.5 | AA135: 0 | AB135: 2 | AC135: 8.5 | AD135: 9 | AE135: 10 | AF135: 11 | AG135: 30 | AH135: 9 | AI135: 9 | AJ135: 12 | AK135: 30 | AL135: 9 | AM135: 12 | AN135: 12 | AO135: 33 | AP135: 8.5 | AQ135: 15 | AR135: 9 | AS135: 32.5 | AT135: 4 | AU135: 3 | AV135: 8 | AW135: 15 | AX135: 6 | AY135: 12 | AZ135: 11 | BA135: 29 | BB135: 2.5 | BC135: 4.5 | BD135: 4 | BE135: 5 | BF135: 5 | BG135: 7 | BH135: 11.5 | BI135: 16.5 | BJ135: 28 | BK135: 313.3 | BL135: 3 | BM135: 4.5 | BN135: 0.5 | BO135: 8 | BP135: 2.5 | BQ135: 2 | BR135: 6 | BS135: 10.5 | BT135: راسبة | BU135: محاسبة مالية - سكرتارية اجنبية - تربية قومية | BV135: 3 | CC135: محاسبة مالية - | CE135: سكرتارية اجنبية - | CN135: تربية قومية | CR135: 172 | CS135: 43
A136: 129 | B136: 129 | C136: محمد رضا مصطفي عبد العزيز | D136: 4/1 | E136: 410 | F136: 6.5 | G136: 6.5 | H136: 12 | I136: =SUM(F136:H136) -> 25 | J136: 8 | K136: 2 | L136: 13.2 | M136: =SUM(J136:L136) -> 23.2 | N136: 5 | O136: 7.6 | P136: 7.6 | Q136: =SUM(N136:P136) -> 20.2 | R136: 6.5 | S136: 0.5 | T136: 9.5 | U136: =SUM(R136:T136) -> 16.5 | V136: 8.5 | W136: 6 | X136: 13 | Y136: =SUM(V136:X136) -> 27.5 | Z136: 6.5 | AA136: 0 | AB136: 3.5 | AC136: =SUM(Z136:AB136) -> 10 | AD136: 9 | AE136: 10 | AF136: 10 | AG136: =SUM(AD136:AF136) -> 29 | AH136: 9 | AI136: 10 | AJ136: 14 | AK136: =SUM(AH136:AJ136) -> 33 | AL136: 8.5 | AM136: 13 | AN136: 12 | AO136: =SUM(AL136:AN136) -> 33.5 | AP136: 8.5 | AQ136: 15 | AR136: 10 | AS136: =SUM(AP136:AR136) -> 33.5 | AT136: 4 | AU136: 4.5 | AV136: 8 | AW136: =SUM(AT136:AV136) -> 16.5 | AX136: 6 | AY136: 12 | AZ136: 5 | BA136: =SUM(AX136:AZ136) -> 23 | BB136: 2.5 | BC136: 4.5 | BD136: 4 | BE136: 5 | BF136: 5 | BG136: 7 | BH136: =SUM(BB136,BD136,BF136) -> 11.5 | BI136: =SUM(BC136,BE136,BG136) -> 16.5 | BJ136: =SUM(BH136,BI136) -> 28 | BK136: =SUM(I136,M136,Q136,U136,Y136,AC136,AG136,AK136,AO136,AS136,AW136,BA136,BJ136) -> 318.9 | BL136: 3 | BM136: 5.5 | BN136: 0 | BO136: =SUM(BL136:BN136) -> 8.5 | BP136: 3 | BQ136: 3 | BR136: 6.5 | BS136: =SUM(BP136:BR136) -> 12.5 | BT136: راسبة | BU136: محاسبة مالية - سكرتارية اجنبية - تربية قومية | BV136: 3 | CC136: محاسبة مالية - | CE136: سكرتارية اجنبية - | CN136: تربية قومية | CR136: 188 | CS136: 7
A137: 130 | B137: 130 | C137: محمد رمضان محمد محمد عجاج | D137: 4/1 | E137: 411 | F137: 6.5 | G137: 5.5 | H137: 13 | I137: 25 | J137: 8 | K137: 3.6 | L137: 11.2 | M137: 22.8 | N137: 5 | O137: 3.6 | P137: 7.6 | Q137: 16.2 | R137: 6.5 | S137: 0 | T137: 5.5 | U137: 12 | V137: 8.5 | W137: 5.5 | X137: 11 | Y137: 25 | Z137: 6.5 | AA137: 0 | AB137: 4.5 | AC137: 11 | AD137: 9 | AE137: 6 | AF137: 11 | AG137: 26 | AH137: 9 | AI137: 5.5 | AJ137: 12 | AK137: 26.5 | AL137: 9 | AM137: 10 | AN137: 8 | AO137: 27 | AP137: 8.5 | AQ137: 12 | AR137: 7 | AS137: 27.5 | AT137: 4 | AU137: 4 | AV137: 7.5 | AW137: 15.5 | AX137: 6 | AY137: 11 | AZ137: 12 | BA137: 29 | BB137: 2.5 | BC137: 4.5 | BD137: 5 | BE137: 3 | BF137: 5 | BG137: 8 | BH137: 12.5 | BI137: 15.5 | BJ137: 28 | BK137: 291.5 | BL137: 3 | BM137: 5 | BN137: 0 | BO137: 8 | BP137: 3 | BQ137: 1.5 | BR137: 7 | BS137: 11.5 | BT137: =IF(C137="","",IF(BV137=0,"ناجحة",IF(BV137<=2,"دورثان","راسبة"))) -> راسبة | BU137: =IF(C137="","",CONCATENATE(BZ137,CA137,CB137,CC137,CD137,CE137,CF137,CG137,CH137,CJ137,CK137,CL137,CM137,CN137,CO137)) -> محاسبة مالية - سكرتارية اجنبية - مجموع - تربية قومية | BV137: =IF(C137="","",COUNTA(BZ137:CO137)-COUNTBLANK(BZ137:CO137)) -> 4 | BZ137: =IF(OR(H137<$H$7,H137="غ",I137<$I$7),BZ$3&" - ","") ->  | CA137: =IF(OR(L137<$L$7,L137="غ",M137<$M$7),CA$3&" - ","") ->  | CB137: =IF(OR(P137<$P$7,P137="غ",Q137<$Q$7),CB$3&" - ","") ->  | CC137: =IF(OR(T137<$T$7,T137="غ",U137<$U$7),CC$3&" - ","") -> محاسبة مالية - | CD137: =IF(OR(X137<$X$7,X137="غ",Y137<$Y$7),CD$3&" - ","") ->  | CE137: =IF(OR(AB137<$AB$7,AB137="غ",AC137<$AC$7),CE$3&" - ","") -> سكرتارية اجنبية - | CF137: =IF(OR(AF137<$AF$7,AF137="غ",AG137<$AG$7),CF$3&" - ","") ->  | CG137: =IF(OR(AJ137<$AJ$7,AJ137="غ",AK137<$AK$7),CG$3&" - ","") ->  | CH137: =IF(OR(AN137<$AN$7,AN137="غ",AO137<$AO$7),CH$3&" - ","") ->  | CI137: =IF(OR(AR137<$AR$7,AR137="غ",AS137<$AS$7),CI$3&" - ","") ->  | CJ137: =IF(OR(AV137<$AV$7,AV137="غ",AW137<$AW$7),CJ$3&" - ","") ->  | CK137: =IF(OR(AZ137<$AZ$7,AZ137="غ",BA137<$BA$7),CK$3&" - ","") ->  | CL137: =IF(OR(BF137<$BF$7,BG137<$BG$7,BH137<$BH$7,BH137="غ",BI137<$BI$7,BI137="غ"),CL$3&" - ","") ->  | CM137: =IF(BK137<$BK$7,CM$3&" - ","") -> مجموع - | CN137: =IF(OR(BN137<$BN$7,BN137="غ",BO137<$BO$7),CN$3,"") -> تربية قومية | CO137: =IF(OR(BR137<$BR$7,BR137="غ",BS137<$BS$7),CO$3,"") ->  | CR137: 129 | CS137: 342
A138: 131 | B138: 131 | C138: محمد سالم سليمان محمد | D138: 4/1 | E138: 412 | F138: 7 | G138: 5.5 | H138: 12.5 | I138: 25 | J138: 9 | K138: 5.6 | L138: 12.8 | M138: 27.4 | N138: 5 | O138: 5.2 | P138: 7.6 | Q138: 17.8 | R138: 7.5 | S138: 0.5 | T138: 7.5 | U138: 15.5 | V138: 8.5 | W138: 9.5 | X138: 16 | Y138: 34 | Z138: 7 | AA138: 0 | AB138: 4 | AC138: 11 | AD138: 9 | AE138: 6 | AF138: 14 | AG138: 29 | AH138: 9 | AI138: 11.5 | AJ138: 16 | AK138: 36.5 | AL138: 9 | AM138: 13 | AN138: 14 | AO138: 36 | AP138: 8.5 | AQ138: 14 | AR138: 12 | AS138: 34.5 | AT138: 4 | AU138: 5.5 | AV138: 8.5 | AW138: 18 | AX138: 6 | AY138: 12 | AZ138: 11 | BA138: 29 | BB138: 2.5 | BC138: 4.5 | BD138: 5 | BE138: 3 | BF138: 5 | BG138: 8 | BH138: 12.5 | BI138: 15.5 | BJ138: 28 | BK138: 341.7 | BL138: 3 | BM138: 4 | BN138: 3 | BO138: 10 | BP138: 3 | BQ138: 3 | BR138: 7 | BS138: 13 | BT138: دورثان | BU138: محاسبة مالية - سكرتارية اجنبية - | BV138: 2 | CC138: محاسبة مالية - | CE138: سكرتارية اجنبية - | CR138: 164 | CS138: 74
A139: 132 | B139: 132 | C139: محمد سمير محمود محمد نصر | D139: 2/1 | E139: 413 | F139: 7 | G139: 8 | H139: 15 | I139: 30 | J139: 8 | K139: 4.4 | L139: 12.8 | M139: 25.2 | N139: 5 | O139: 7.6 | P139: 8.8 | Q139: 21.4 | R139: 6.5 | S139: 0 | T139: 8.5 | U139: 15 | V139: 8.5 | W139: 5.5 | X139: 11 | Y139: 25 | Z139: 6.5 | AA139: 1 | AB139: 3.5 | AC139: 11 | AD139: 9 | AE139: 9 | AF139: 14 | AG139: 32 | AH139: 9 | AI139: 8 | AJ139: 14 | AK139: 31 | AL139: 9 | AM139: 12 | AN139: 12 | AO139: 33 | AP139: 8.5 | AQ139: 18 | AR139: 14 | AS139: 40.5 | AT139: 3.5 | AU139: 3 | AV139: 8.5 | AW139: 15 | AX139: 6 | AY139: 12 | AZ139: 9 | BA139: 27 | BB139: 2.5 | BC139: 4.5 | BD139: 5 | BE139: 3 | BF139: 5 | BG139: 8 | BH139: 12.5 | BI139: 15.5 | BJ139: 28 | BK139: 334.1 | BL139: 3 | BM139: 5.5 | BN139: 1.5 | BO139: 10 | BP139: 3 | BQ139: 4 | BR139: 6 | BS139: 13 | BT139: راسبة | BU139: محاسبة مالية - سكرتارية اجنبية - تربية قومية | BV139: 3 | CC139: محاسبة مالية - | CE139: سكرتارية اجنبية - | CN139: تربية قومية | CR139: 151 | CS139: 158
A140: 133 | B140: 133 | C140: محمد صلاح عفيفي أحمد نصر | D140: 2/1 | E140: 414 | F140: 6.5 | G140: 9.5 | H140: 13.5 | I140: 29.5 | J140: 8 | K140: 6 | L140: 13.2 | M140: 27.2 | N140: 5 | O140: 4.4 | P140: 7.6 | Q140: 17 | R140: 6.5 | S140: 0.5 | T140: 6 | U140: 13 | V140: 8.5 | W140: 8.5 | X140: 12 | Y140: 29 | Z140: 6.5 | AA140: 0 | AB140: 0 | AC140: 6.5 | AD140: 9 | AE140: 11 | AF140: 12 | AG140: 32 | AH140: 9 | AI140: 11 | AJ140: 11 | AK140: 31 | AL140: 9 | AM140: 14 | AN140: 12 | AO140: 35 | AP140: 8.5 | AQ140: 16 | AR140: 13 | AS140: 37.5 | AT140: 3.5 | AU140: 2.5 | AV140: 9 | AW140: 15 | AX140: 6 | AY140: 13 | AZ140: 9 | BA140: 28 | BB140: 2.5 | BC140: 4.5 | BD140: 4 | BE140: 5 | BF140: 5 | BG140: 7 | BH140: 11.5 | BI140: 16.5 | BJ140: 28 | BK140: 328.7 | BL140: 3 | BM140: 6 | BN140: 3 | BO140: 12 | BP140: 2.5 | BQ140: 3.5 | BR140: 7.5 | BS140: 13.5 | BT140: دورثان | BU140: محاسبة مالية - سكرتارية اجنبية - | BV140: 2 | CC140: محاسبة مالية - | CE140: سكرتارية اجنبية - | CR140: 148 | CS140: 179
A141: 134 | B141: 134 | C141: محمد عبد الرحمن محمد عبد الغني | D141: 3/1 | E141: 415 | F141: 7.5 | G141: 7.5 | H141: 14 | I141: 29 | J141: 9 | K141: 3.6 | L141: 10.4 | M141: 23 | N141: 5 | O141: 6.8 | P141: 9.6 | Q141: 21.4 | R141: 7 | S141: 5.5 | T141: 3.5 | U141: 16 | V141: 8.5 | W141: 9 | X141: 10.5 | Y141: 28 | Z141: 6.5 | AA141: 4 | AB141: 11 | AC141: 21.5 | AD141: 9 | AE141: 15 | AF141: 13 | AG141: 37 | AH141: 9 | AI141: 6 | AJ141: 16 | AK141: 31 | AL141: 9 | AM141: 7 | AN141: 9 | AO141: 25 | AP141: 8.5 | AQ141: 7 | AR141: 16 | AS141: 31.5 | AT141: 3.5 | AU141: 2.5 | AV141: 11 | AW141: 17 | AX141: 6 | AY141: 12 | AZ141: 13 | BA141: 31 | BB141: 3 | BC141: 5 | BD141: 5 | BE141: 5 | BF141: 5 | BG141: 8 | BH141: 13 | BI141: 18 | BJ141: 31 | BK141: 342.4 | BL141: 3 | BM141: 6 | BN141: 4 | BO141: 13 | BP141: 3 | BQ141: 6 | BR141: 7 | BS141: 16 | BT141: دورثان | BU141: محاسبة مالية - | BV141: 1 | CC141: محاسبة مالية - | CR141: 154 | CS141: 142
A142: 135 | B142: 135 | C142: محمد عبد العزيز عبد الحليم عبد العزيز | D142: 4/1 | E142: 416 | F142: 7 | G142: 6.5 | H142: 11.5 | I142: 25 | J142: 8 | K142: 3.2 | L142: 9.2 | M142: 20.4 | N142: 5 | O142: 4.8 | P142: 9.6 | Q142: 19.4 | R142: 6.5 | S142: 1 | T142: 6 | U142: 13.5 | V142: 8.5 | W142: 6.5 | X142: 10.5 | Y142: 25.5 | Z142: 9 | AA142: 1.5 | AB142: 11.5 | AC142: 22 | AD142: 9 | AE142: 15 | AF142: 14 | AG142: 38 | AH142: 9 | AI142: 7.5 | AJ142: 12 | AK142: 28.5 | AL142: 9 | AM142: 5 | AN142: 11 | AO142: 25 | AP142: 8.5 | AQ142: 1 | AR142: 13 | AS142: 22.5 | AT142: 4 | AU142: 1 | AV142: 10 | AW142: 15 | AX142: 6 | AY142: 10 | AZ142: 12 | BA142: 28 | BB142: 3 | BC142: 4.5 | BD142: 5 | BE142: 5 | BF142: 5 | BG142: 6 | BH142: 13 | BI142: 15.5 | BJ142: 28.5 | BK142: 311.3 | BL142: 3 | BM142: 4.5 | BN142: 1 | BO142: 8.5 | BP142: 3 | BQ142: 4.5 | BR142: 6.5 | BS142: 14 | BT142: راسبة | BU142: محاسبة مالية - تربية قومية | BV142: 3 | CC142: محاسبة مالية - | CI142: قانون تجارى - | CN142: تربية قومية | CR142: 118 | CS142: 401
A143: 136 | B143: 136 | C143: محمد عرفة محمد عرفة عبد الباقي | D143: 4/1 | E143: 417 | F143: 6.5 | G143: 6.5 | H143: 12 | I143: 25 | J143: 8 | K143: 4.8 | L143: 4.4 | M143: 17.2 | N143: 5 | O143: 3.6 | P143: 9.2 | Q143: 17.8 | R143: 6.5 | S143: 4 | T143: 4 | U143: 14.5 | V143: 8.5 | W143: 5 | X143: 11.5 | Y143: 25 | Z143: 6.5 | AA143: 0 | AB143: 13.5 | AC143: 20 | AD143: 9 | AE143: 15 | AF143: 13 | AG143: 37 | AH143: 9 | AI143: 11.5 | AJ143: 16 | AK143: 36.5 | AL143: 8.5 | AM143: 5 | AN143: 11.5 | AO143: 25 | AP143: 8.5 | AQ143: 8 | AR143: 15 | AS143: 31.5 | AT143: 4 | AU143: 1.5 | AV143: 9.5 | AW143: 15 | AX143: 6 | AY143: 10 | AZ143: 15 | BA143: 31 | BB143: 2.5 | BC143: 4.5 | BD143: 5 | BE143: 3 | BF143: 5 | BG143: 7.5 | BH143: 12.5 | BI143: 15 | BJ143: 27.5 | BK143: 323 | BL143: 3 | BM143: 4 | BN143: 3 | BO143: 10 | BP143: 2.5 | BQ143: 4.5 | BR143: 6.5 | BS143: 13.5 | BT143: دورثان | BU143: لغة انجليزية - محاسبة مالية - | BV143: 2 | CA143: لغة انجليزية - | CC143: محاسبة مالية - | CR143: 120 | CS143: 389
A144: 137 | B144: 137 | C144: محمد عزت عبده محمد عفيفي | D144: 4/1 | E144: 418 | F144: 6.5 | G144: 7 | H144: 13.5 | I144: 27 | J144: 8 | K144: 5.2 | L144: 7.6 | M144: 20.8 | N144: 5 | O144: 2.8 | P144: 9.2 | Q144: 17 | R144: 6.5 | S144: 0 | T144: 6.5 | U144: 13 | V144: 8.5 | W144: 9 | X144: 12 | Y144: 29.5 | Z144: 6.5 | AA144: 1 | AB144: 9.5 | AC144: 17 | AD144: 9 | AE144: 15 | AF144: 15 | AG144: 39 | AH144: 9 | AI144: 12.5 | AJ144: 16 | AK144: 37.5 | AL144: 8.5 | AM144: 6 | AN144: 10.5 | AO144: 25 | AP144: 8.5 | AQ144: 9 | AR144: 12 | AS144: 29.5 | AT144: 4 | AU144: 2.5 | AV144: 8.5 | AW144: 15 | AX144: 6 | AY144: 11 | AZ144: 13 | BA144: 30 | BB144: 2.5 | BC144: 4.5 | BD144: 4 | BE144: 6 | BF144: 5 | BG144: 7 | BH144: 11.5 | BI144: 17.5 | BJ144: 29 | BK144: 329.3 | BL144: 3 | BM144: 4.5 | BN144: 2.5 | BO144: 10 | BP144: 2.5 | BQ144: 4.5 | BR144: 7 | BS144: 14 | BT144: دورثان | BU144: محاسبة مالية - سكرتارية اجنبية - | BV144: 2 | CC144: محاسبة مالية - | CE144: سكرتارية اجنبية - | CR144: 117 | CS144: 405
A145: 138 | B145: 138 | C145: محمد فهمي عبد الحميد محمد بدر | D145: 4/1 | E145: 419 | F145: 7 | G145: 7 | H145: 11.5 | I145: 25.5 | J145: 9 | K145: 7.2 | L145: 11.6 | M145: 27.8 | N145: 5 | O145: 5.6 | P145: 10 | Q145: 20.6 | R145: 6.5 | S145: 2 | T145: 1.5 | U145: 10 | V145: 8.5 | W145: 13.5 | X145: 12 | Y145: 34 | Z145: 9 | AA145: 5.5 | AB145: 14 | AC145: 28.5 | AD145: 9 | AE145: 15 | AF145: 14 | AG145: 38 | AH145: 9 | AI145: 10 | AJ145: 13 | AK145: 32 | AL145: 9.5 | AM145: 16 | AN145: 12 | AO145: 37.5 | AP145: 8.5 | AQ145: 7 | AR145: 17 | AS145: 32.5 | AT145: 3.5 | AU145: 2 | AV145: 9.5 | AW145: 15 | AX145: 6 | AY145: 11 | AZ145: 12 | BA145: 29 | BB145: 2.5 | BC145: 4.5 | BD145: 5 | BE145: 7 | BF145: 5 | BG145: 7 | BH145: 12.5 | BI145: 18.5 | BJ145: 31 | BK145: 361.4 | BL145: 3 | BM145: 5 | BN145: 4.5 | BO145: 12.5 | BP145: 3 | BQ145: 5.5 | BR145: 7 | BS145: 15.5 | BT145: دورثان | BU145: محاسبة مالية - | BV145: 1 | CC145: محاسبة مالية - | CR145: 136 | CS145: 285
A146: 139 | B146: 139 | C146: محمد فيصل علي ابراهيم عبد العاطي | D146: 5/1 | E146: 420 | F146: 7 | G146: 5.5 | H146: 12.5 | I146: 25 | J146: 8 | K146: 4.4 | L146: 8.4 | M146: 20.8 | N146: 5 | O146: 1.6 | P146: 8.8 | Q146: 15.4 | R146: 7 | S146: 0 | T146: 0 | U146: 7 | V146: 8.5 | W146: 7 | X146: 10.5 | Y146: 26 | Z146: 9 | AA146: 1.5 | AB146: 9.5 | AC146: 20 | AD146: 9 | AE146: 10 | AF146: 8 | AG146: 27 | AH146: 9 | AI146: 11 | AJ146: 14 | AK146: 34 | AL146: 8.5 | AM146: 12 | AN146: 11 | AO146: 31.5 | AP146: 8.5 | AQ146: 6 | AR146: 13 | AS146: 27.5 | AT146: 4 | AU146: 0 | AV146: 11 | AW146: 15 | AX146: 6 | AY146: 6 | AZ146: 13 | BA146: 25 | BB146: 2.5 | BC146: 4.5 | BD146: 5 | BE146: 5 | BF146: 5 | BG146: 8 | BH146: 12.5 | BI146: 17.5 | BJ146: 30 | BK146: 304.2 | BL146: 3 | BM146: 2.5 | BN146: 2.5 | BO146: 8 | BP146: 3 | BQ146: 2.5 | BR146: 7 | BS146: 12.5 | BT146: دورثان | BU146: محاسبة مالية - تربية قومية | BV146: 2 | CC146: محاسبة مالية - | CN146: تربية قومية | CR146: 138 | CS146: 266
A147: 140 | B147: 140 | C147: محمد كمال علي موسي علي | D147: 5/1 | E147: 421 | F147: 7 | G147: 8.5 | H147: 13.5 | I147: 29 | J147: 8 | K147: 6.4 | L147: 10.8 | M147: 25.2 | N147: 5 | O147: 4 | P147: 9.6 | Q147: 18.6 | R147: 6.5 | S147: 0.5 | T147: 1.5 | U147: 8.5 | V147: 8.5 | W147: 6.5 | X147: 11 | Y147: 26 | Z147: 9 | AA147: 1.5 | AB147: 11.5 | AC147: 22 | AD147: 9 | AE147: 13 | AF147: 14 | AG147: 36 | AH147: 9 | AI147: 13 | AJ147: 16 | AK147: 38 | AL147: 8.5 | AM147: 10 | AN147: 12 | AO147: 30.5 | AP147: 8.5 | AQ147: 10 | AR147: 13 | AS147: 31.5 | AT147: 3.5 | AU147: 2.5 | AV147: 9.5 | AW147: 15.5 | AX147: 6 | AY147: 13 | AZ147: 13 | BA147: 32 | BB147: 2.5 | BC147: 4.5 | BD147: 4 | BE147: 6 | BF147: 5 | BG147: 6 | BH147: 11.5 | BI147: 16.5 | BJ147: 28 | BK147: 340.8 | BL147: 3 | BM147: 6 | BN147: 3.5 | BO147: 12.5 | BP147: 3 | BQ147: 5.5 | BR147: 7 | BS147: 15.5 | BT147: دورثان | BU147: محاسبة مالية - | BV147: 1 | CC147: محاسبة مالية - | CR147: 141 | CS147: 244
A148: 141 | B148: 141 | C148: محمد ماهر عبد الهادي شكر | D148: 5/1 | E148: 422 | F148: 7 | G148: 4.5 | H148: 8 | I148: 19.5 | J148: 8.5 | K148: 4.8 | L148: 9.6 | M148: 22.9 | N148: 5 | O148: 3.2 | P148: 8.8 | Q148: 17 | R148: 6.5 | S148: 1 | T148: 4 | U148: 11.5 | V148: 8.5 | W148: 8.5 | X148: 9.5 | Y148: 26.5 | Z148: 9 | AA148: 1.5 | AB148: 10.5 | AC148: 21 | AD148: 9 | AE148: 12 | AF148: 13 | AG148: 34 | AH148: 9 | AI148: 11 | AJ148: 14 | AK148: 34 | AL148: 9 | AM148: 9 | AN148: 11.5 | AO148: 29.5 | AP148: 8.5 | AQ148: 6 | AR148: 11 | AS148: 25.5 | AT148: 4 | AU148: 1 | AV148: 10 | AW148: 15 | AX148: 6 | AY148: 11 | AZ148: 9 | BA148: 26 | BB148: 2.5 | BC148: 4.5 | BD148: 5 | BE148: 5 | BF148: 5 | BG148: 6 | BH148: 12.5 | BI148: 15.5 | BJ148: 28 | BK148: 310.4 | BL148: 3 | BM148: 6 | BN148: 4 | BO148: 13 | BP148: 3 | BQ148: 5.5 | BR148: 5.5 | BS148: 14 | BT148: دورثان | BU148: لغة عربية - محاسبة مالية - | BV148: 2 | BZ148: لغة عربية - | CC148: محاسبة مالية - | CR148: 131 | CS148: 327
A149: 142 | B149: 142 | C149: محمد مجدي فتحي محمود السيد | D149: 5/1 | E149: 423 | F149: 7 | G149: 7 | H149: 8.5 | I149: 22.5 | J149: 8 | K149: 4 | L149: 9.2 | M149: 21.2 | N149: 5 | O149: 5.2 | P149: 9.2 | Q149: 19.4 | R149: 6.5 | S149: 1.5 | T149: 1 | U149: 9 | V149: 9 | W149: 11.5 | X149: 10.5 | Y149: 31 | Z149: 9 | AA149: 2 | AB149: 9.5 | AC149: 20.5 | AD149: 9 | AE149: 12 | AF149: 12 | AG149: 33 | AH149: 9 | AI149: 10.5 | AJ149: 15 | AK149: 34.5 | AL149: 8.5 | AM149: 9 | AN149: 8.5 | AO149: 26 | AP149: 8.5 | AQ149: 7 | AR149: 16 | AS149: 31.5 | AT149: 3.5 | AU149: 1.5 | AV149: 10 | AW149: 15 | AX149: 6 | AY149: 10 | AZ149: 13 | BA149: 29 | BB149: 3 | BC149: 4.5 | BD149: 4 | BE149: 5 | BF149: 5 | BG149: 6 | BH149: 12 | BI149: 15.5 | BJ149: 27.5 | BK149: 320.1 | BL149: 3 | BM149: 4.5 | BN149: 2.5 | BO149: 10 | BP149: 2.5 | BQ149: 4 | BR149: 7.5 | BS149: 14 | BT149: دورثان | BU149: لغة عربية - محاسبة مالية - | BV149: 2 | BZ149: لغة عربية - | CC149: محاسبة مالية - | CR149: 137 | CS149: 276
A150: 143 | B150: 143 | C150: محمد مسعد سعيد عبد القادر | D150: 5/1 | E150: 424 | F150: 7 | G150: 7 | H150: 11 | I150: 25 | J150: 8 | K150: 4.8 | L150: 7.2 | M150: 20 | N150: 5 | O150: 4.8 | P150: 8.8 | Q150: 18.6 | R150: 6.5 | S150: 0.5 | T150: 1 | U150: 8 | V150: 9 | W150: 8 | X150: 8 | Y150: 25 | Z150: 9 | AA150: 4.5 | AB150: 12 | AC150: 25.5 | AD150: 9 | AE150: 9 | AF150: 14 | AG150: 32 | AH150: 9 | AI150: 6 | AJ150: 12 | AK150: 27 | AL150: 8.5 | AM150: 7 | AN150: 15 | AO150: 30.5 | AP150: 8.5 | AQ150: 17 | AR150: 6 | AS150: 31.5 | AT150: 4 | AU150: 1.5 | AV150: 4.5 | AW150: 10 | AX150: 6 | AY150: 11 | AZ150: 9 | BA150: 26 | BB150: 2.5 | BC150: 4.5 | BD150: 5 | BE150: 3 | BF150: 5 | BG150: 8 | BH150: 12.5 | BI150: 15.5 | BJ150: 28 | BK150: 307.1 | BL150: 3 | BM150: 4.5 | BN150: 4 | BO150: 11.5 | BP150: 3 | BQ150: 4 | BR150: 7 | BS150: 14 | BT150: دورثان | BU150: محاسبة مالية - رياضة عامة - | BV150: 2 | CC150: محاسبة مالية - | CJ150: رياضة عامة - | CR150: 160 | CS150: 99
A151: 144 | B151: 144 | C151: محمد مغاوري رمضان مغاوري | D151: 5/1 | E151: 425 | F151: 7 | G151: 7 | H151: 12.5 | I151: 26.5 | J151: 9 | K151: 5.2 | L151: 6.4 | M151: 20.6 | N151: 5 | P151: 7.6 | Q151: 12.6 | R151: 7.5 | S151: 1 | T151: 0.5 | U151: 9 | V151: 9 | W151: 6.5 | X151: 9.5 | Y151: 25 | Z151: 9 | AA151: 3.5 | AB151: 10 | AC151: 22.5 | AD151: 9 | AE151: 6 | AF151: 13 | AG151: 28 | AH151: 9 | AI151: 8 | AJ151: 15 | AK151: 32 | AL151: 9 | AM151: 7 | AN151: 15 | AO151: 31 | AP151: 8.5 | AQ151: 14 | AR151: 14 | AS151: 36.5 | AT151: 4 | AU151: 2 | AV151: 4 | AW151: 10 | AX151: 6 | AY151: 10 | AZ151: 8 | BA151: 24 | BB151: 3 | BC151: 5 | BD151: 4 | BE151: 8 | BF151: 6 | BG151: 5 | BH151: 13 | BI151: 18 | BJ151: 31 | BK151: 308.7 | BL151: 3 | BM151: 4 | BN151: 4 | BO151: 11 | BP151: 2.5 | BQ151: 5.5 | BR151: 7 | BS151: 15 | BT151: دورثان | BU151: محاسبة مالية - رياضة عامة - | BV151: 2 | CC151: محاسبة مالية - | CJ151: رياضة عامة - | CR151: 164 | CS151: 74
A152: 145 | B152: 145 | C152: محمد منير عبد الوهاب ابو العينين | D152: 5/1 | E152: 426 | F152: 7 | G152: 9.5 | H152: 10.5 | I152: 27 | J152: 8 | K152: 1.2 | L152: 10.8 | M152: 20 | N152: 5 | O152: 3.2 | P152: 9.2 | Q152: 17.4 | R152: 6.5 | S152: 1 | T152: 2.5 | U152: 10 | V152: 8.5 | W152: 9.5 | X152: 7 | Y152: 25 | Z152: 9 | AA152: 9.5 | AB152: 9.5 | AC152: 28 | AD152: 9 | AE152: 6 | AF152: 13 | AG152: 28 | AH152: 9 | AI152: 8.5 | AJ152: 12 | AK152: 29.5 | AL152: 9 | AM152: 6 | AN152: 15 | AO152: 30 | AP152: 8.5 | AQ152: 15 | AR152: 15 | AS152: 38.5 | AT152: 4 | AU152: 2.5 | AV152: 4 | AW152: 10.5 | AX152: 6 | AY152: 10 | AZ152: 10 | BA152: 26 | BB152: 2.5 | BC152: 4.5 | BD152: 4 | BE152: 7 | BF152: 6 | BG152: 5 | BH152: 12.5 | BI152: 16.5 | BJ152: 29 | BK152: 318.9 | BL152: 3 | BM152: 4.5 | BN152: 4 | BO152: 11.5 | BP152: 2.5 | BQ152: 5.5 | BR152: 7.5 | BS152: 15.5 | BT152: دورثان | BU152: محاسبة مالية - رياضة عامة - | BV152: 2 | CC152: محاسبة مالية - | CJ152: رياضة عامة - | CR152: 170 | CS152: 52
A153: 146 | B153: 146 | C153: محمد ناصر أحمد السيد | D153: 5/1 | E153: 427 | F153: 7 | G153: 3 | H153: 15 | I153: 25 | J153: 8 | K153: 0.8 | L153: 11.2 | M153: 20 | N153: 5 | O153: 4.4 | P153: 8.4 | Q153: 17.8 | R153: 7 | S153: 1 | T153: 1 | U153: 9 | V153: 8.5 | W153: 7 | X153: 9.5 | Y153: 25 | Z153: 9 | AA153: 0 | AB153: 11 | AC153: 20 | AD153: 9 | AE153: 7 | AF153: 13 | AG153: 29 | AH153: 9 | AI153: 8 | AJ153: 12 | AK153: 29 | AL153: 9 | AM153: 5 | AN153: 15 | AO153: 29 | AP153: 8.5 | AQ153: 17 | AR153: 7 | AS153: 32.5 | AT153: 3.5 | AU153: 1 | AV153: 2.5 | AW153: 7 | AX153: 6 | AY153: 5 | AZ153: 5 | BA153: 16 | BB153: 3 | BC153: 4.5 | BD153: 5 | BE153: 5 | BF153: 5 | BG153: 6 | BH153: 13 | BI153: 15.5 | BJ153: 28.5 | BK153: 287.8 | BL153: 3 | BM153: 4.5 | BN153: 4 | BO153: 11.5 | BP153: 2.5 | BQ153: 1.5 | BR153: 6 | BS153: 10 | BT153: راسبة | BU153: محاسبة مالية - رياضة عامة - جغرافيا - مجموع - | BV153: 4 | CC153: محاسبة مالية - | CJ153: رياضة عامة - | CK153: جغرافيا - | CM153: مجموع - | CR153: 116 | CS153: 409
A154: 147 | B154: 147 | C154: محمد ياسر لبيب أحمد | D154: 5/1 | E154: 428 | F154: 7 | G154: 7.5 | H154: 13.5 | I154: 28 | J154: 8 | K154: 4.4 | L154: 10 | M154: 22.4 | N154: 5 | O154: 5.2 | P154: 10 | Q154: 20.2 | R154: 7 | S154: 1.5 | T154: 2.5 | U154: 11 | V154: 8.5 | W154: 16.5 | X154: 8 | Y154: 33 | Z154: 9 | AA154: 12.5 | AB154: 11.5 | AC154: 33 | AD154: 9 | AE154: 6 | AF154: 15 | AG154: 30 | AH154: 9 | AI154: 10.5 | AJ154: 12 | AK154: 31.5 | AL154: 8.5 | AM154: 7 | AN154: 13.5 | AO154: 29 | AP154: 8.5 | AQ154: 17 | AR154: 13 | AS154: 38.5 | AT154: 3.5 | AU154: 2 | AV154: 6 | AW154: 11.5 | AX154: 6 | AY154: 13 | AZ154: 11 | BA154: 30 | BB154: 3 | BC154: 5 | BD154: 4 | BE154: 8 | BF154: 5 | BG154: 3 | BH154: 12 | BI154: 16 | BJ154: 28 | BK154: 346.1 | BL154: 3 | BM154: 4.5 | BN154: 3.5 | BO154: 11 | BP154: 3 | BQ154: 5 | BR154: 7.5 | BS154: 15.5 | BT154: دورثان | BU154: محاسبة مالية - رياضة عامة - | BV154: 2 | CC154: محاسبة مالية - | CJ154: رياضة عامة - | CR154: 0 | CS154: 447
A155: 148 | B155: 148 | C155: محمد يوسف عبد المعطي يوسف | D155: 5/1 | E155: 429 | F155: 7 | G155: 10 | H155: 14 | I155: 31 | J155: 8 | K155: 5.6 | L155: 13.6 | M155: 27.2 | N155: 5 | O155: 5.6 | P155: 10.4 | Q155: 21 | R155: 8 | S155: 5 | T155: 1.5 | U155: 14.5 | V155: 8.5 | W155: 16 | X155: 7 | Y155: 31.5 | Z155: 9 | AA155: 8.5 | AB155: 13 | AC155: 30.5 | AD155: 9 | AE155: 11 | AF155: 16 | AG155: 36 | AH155: 9 | AI155: 9.5 | AJ155: 16 | AK155: 34.5 | AL155: 9 | AM155: 8 | AN155: 15 | AO155: 32 | AP155: 8.5 | AQ155: 17 | AR155: 15 | AS155: 40.5 | AT155: 4 | AU155: 1.5 | AV155: 5 | AW155: 10.5 | AX155: 6 | AY155: 12 | AZ155: 12 | BA155: 30 | BB155: 2.5 | BC155: 5 | BD155: 5 | BE155: 8 | BF155: 5 | BG155: 5 | BH155: 12.5 | BI155: 18 | BJ155: 30.5 | BK155: 369.7 | BL155: 3 | BM155: 7.5 | BN155: 3.5 | BO155: 14 | BP155: 3 | BQ155: 6.5 | BR155: 7.5 | BS155: 17 | BT155: دورثان | BU155: محاسبة مالية - رياضة عامة - | BV155: 2 | CC155: محاسبة مالية - | CJ155: رياضة عامة - | CR155: 113 | CS155: 418
A156: 149 | B156: 149 | C156: محمود السيد أحمد عبد العال | D156: 5/1 | E156: 430 | F156: 7 | G156: 6 | H156: 12 | I156: 25 | J156: 8 | K156: 1.6 | L156: 10.5 | M156: 20.1 | N156: 5 | O156: 2 | P156: 8.4 | Q156: 15.4 | R156: 6.5 | S156: 1 | T156: 1.5 | U156: 9 | V156: 8.5 | W156: 8 | X156: 8.5 | Y156: 25 | Z156: 9 | AA156: 2 | AB156: 9.5 | AC156: 20.5 | AD156: 9 | AE156: 5 | AF156: 11 | AG156: 25 | AH156: 9 | AI156: 5 | AJ156: 11 | AK156: 25 | AL156: 8.5 | AM156: 4 | AN156: 15 | AO156: 27.5 | AP156: 8.5 | AQ156: 15 | AR156: 13 | AS156: 36.5 | AT156: 3.5 | AU156: 1.5 | AV156: 3.5 | AW156: 8.5 | AX156: 6 | AY156: 11 | AZ156: 10 | BA156: 27 | BB156: 2.5 | BC156: 4.5 | BD156: 4 | BE156: 8 | BF156: 5 | BG156: 5 | BH156: 11.5 | BI156: 17.5 | BJ156: 29 | BK156: 293.5 | BL156: 3 | BM156: 5 | BN156: 4 | BO156: 12 | BP156: 3 | BQ156: 3.5 | BR156: 6.5 | BS156: 13 | BT156: راسبة | BU156: محاسبة مالية - رياضة عامة - مجموع - | BV156: 3 | CC156: محاسبة مالية - | CJ156: رياضة عامة - | CM156: مجموع - | CR156: 0 | CS156: 447
A157: 150 | B157: 150 | C157: محمود أحمد شعبان عمارة | D157: 5/1 | E157: 431 | F157: 7 | G157: 9.5 | H157: 13.5 | I157: 30 | J157: 9 | K157: 6.8 | L157: 11.6 | M157: 27.4 | N157: 5 | O157: 6.4 | P157: 9.2 | Q157: 20.6 | R157: 6.5 | S157: 10 | T157: 8.5 | U157: 25 | V157: 8.5 | W157: 10.5 | X157: 9 | Y157: 28 | Z157: 9 | AA157: 5.5 | AB157: 13 | AC157: 27.5 | AD157: 9 | AE157: 4 | AF157: 12 | AG157: 25 | AH157: 9 | AI157: 9 | AJ157: 14 | AK157: 32 | AL157: 8.5 | AM157: 9 | AN157: 19 | AO157: 36.5 | AP157: 8.5 | AQ157: 16 | AR157: 13 | AS157: 37.5 | AT157: 3.5 | AU157: 1 | AV157: 5 | AW157: 9.5 | AX157: 6 | AY157: 13 | AZ157: 13 | BA157: 32 | BB157: 3 | BC157: 4.5 | BD157: 4 | BE157: 8 | BF157: 5 | BG157: 6 | BH157: 12 | BI157: 18.5 | BJ157: 30.5 | BK157: 361.5 | BL157: 3 | BM157: 6.5 | BN157: 3 | BO157: 12.5 | BP157: 3 | BQ157: 6.5 | BR157: 7 | BS157: 16.5 | BT157: دورثان | BU157: رياضة عامة - | BV157: 1 | CJ157: رياضة عامة - | CR157: 148 | CS157: 179
A158: 151 | B158: 151 | C158: محمود رمضان عبد الرسول ابراهيم | D158: 5/1 | E158: 432 | F158: 7 | G158: 4 | H158: 11 | I158: 22 | J158: 8 | K158: 4.8 | L158: 8.8 | M158: 21.6 | N158: 5 | O158: 4 | P158: 10.4 | Q158: 19.4 | R158: 6.5 | S158: 4.5 | T158: 14 | U158: 25 | V158: 8.5 | W158: 8 | X158: 8.5 | Y158: 25 | Z158: 9 | AA158: 4 | AB158: 10 | AC158: 23 | AD158: 9 | AE158: 9 | AF158: 11 | AG158: 29 | AH158: 9 | AI158: 9.5 | AJ158: 15 | AK158: 33.5 | AL158: 9 | AM158: 5 | AN158: 15 | AO158: 29 | AP158: 8.5 | AQ158: 14 | AR158: 8 | AS158: 30.5 | AT158: 3.5 | AU158: 1 | AV158: 5 | AW158: 9.5 | AX158: 6 | AY158: 12 | AZ158: 9 | BA158: 27 | BB158: 2.5 | BC158: 4.5 | BD158: 4 | BE158: 8 | BF158: 5 | BG158: 6 | BH158: 11.5 | BI158: 18.5 | BJ158: 30 | BK158: 324.5 | BL158: 3 | BM158: 6 | BN158: 3 | BO158: 12 | BP158: 3 | BQ158: 3.5 | BR158: 6 | BS158: 12.5 | BT158: دورثان | BU158: لغة عربية - رياضة عامة - | BV158: 2 | BZ158: لغة عربية - | CJ158: رياضة عامة - | CR158: 166 | CS158: 68
A159: 152 | B159: 152 | C159: محمود زكريا محمود كامل محمود | D159: 5/1 | E159: 433 | F159: 7 | G159: 2.5 | H159: 15.5 | I159: 25 | J159: 8 | K159: 8 | L159: 10.8 | M159: 26.8 | N159: 5 | O159: 4 | P159: 8.4 | Q159: 17.4 | R159: 6.5 | S159: 1.5 | T159: 2 | U159: 10 | V159: 8.5 | W159: 12 | X159: 5.5 | Y159: 26 | Z159: 9 | AA159: 0 | AB159: 11 | AC159: 20 | AD159: 9 | AE159: 5 | AF159: 14 | AG159: 28 | AH159: 9 | AI159: 8.5 | AJ159: 11 | AK159: 28.5 | AL159: 8.5 | AM159: 7 | AN159: 13 | AO159: 28.5 | AP159: 8.5 | AQ159: 15 | AR159: 8 | AS159: 31.5 | AT159: 4 | AU159: 0 | AV159: 4.5 | AW159: 8.5 | AX159: 6 | AY159: 14 | AZ159: 8 | BA159: 28 | BB159: 2.5 | BC159: 4.5 | BD159: 4 | BE159: 8 | BF159: 6 | BG159: 5 | BH159: 12.5 | BI159: 17.5 | BJ159: 30 | BK159: 308.2 | BL159: 3 | BM159: 3.5 | BN159: 4 | BO159: 10.5 | BP159: 3 | BQ159: 3.5 | BR159: 6.5 | BS159: 13 | BT159: دورثان | BU159: محاسبة مالية - رياضة عامة - | BV159: 2 | CC159: محاسبة مالية - | CJ159: رياضة عامة - | CR159: 158 | CS159: 115
A160: 153 | B160: 153 | C160: محمود عادل عمر محمود حسانين | D160: 5/1 | E160: 434 | F160: 7 | G160: 5 | H160: 13 | I160: 25 | J160: 8 | K160: 4.8 | L160: 13.2 | M160: 26 | N160: 5 | O160: 4 | P160: 9.2 | Q160: 18.2 | R160: 6.5 | S160: 1 | T160: 1.5 | U160: 9 | V160: 9 | W160: 11.5 | X160: 5 | Y160: 25.5 | Z160: 9 | AA160: 0 | AB160: 11 | AC160: 20 | AD160: 9 | AE160: 5 | AF160: 13 | AG160: 27 | AH160: 9 | AI160: 5 | AJ160: 12 | AK160: 26 | AL160: 8.5 | AM160: 5 | AN160: 14 | AO160: 27.5 | AP160: 8.5 | AQ160: 15 | AR160: 9 | AS160: 32.5 | AT160: 3.5 | AU160: 1 | AV160: 4 | AW160: 8.5 | AX160: 6 | AY160: 10 | AZ160: 7 | BA160: 23 | BB160: 2.5 | BC160: 4.5 | BD160: 5 | BE160: 8 | BF160: 5 | BG160: 5 | BH160: 12.5 | BI160: 17.5 | BJ160: 30 | BK160: 298.2 | BL160: 3 | BM160: 4 | BN160: 4 | BO160: 11 | BP160: 2.5 | BQ160: 4.5 | BR160: 7 | BS160: 14 | BT160: راسبة | BU160: محاسبة مالية - رياضة عامة - مجموع - | BV160: 3 | CC160: محاسبة مالية - | CJ160: رياضة عامة - | CM160: مجموع - | CR160: 135 | CS160: 295
A161: 154 | B161: 154 | C161: محمود عادل محمد علي السيد | D161: 2/1 | E161: 435 | F161: 7 | G161: 9.5 | H161: 13.5 | I161: 30 | J161: 8 | K161: 6.8 | L161: 14 | M161: 28.8 | N161: 5 | O161: 7.2 | P161: 10 | Q161: 22.2 | R161: 6.5 | S161: 0 | T161: 9 | U161: 15.5 | V161: 8.5 | W161: 11.5 | X161: 9.5 | Y161: 29.5 | Z161: 9 | AA161: 5.5 | AB161: 9.5 | AC161: 24 | AD161: 9 | AE161: 12 | AF161: 17 | AG161: 38 | AH161: 9 | AI161: 12.5 | AJ161: 18 | AK161: 39.5 | AL161: 8.5 | AM161: 9 | AN161: 11 | AO161: 28.5 | AP161: 8.5 | AQ161: 11 | AR161: 13 | AS161: 32.5 | AT161: 3.5 | AU161: 1.5 | AV161: 7 | AW161: 12 | AX161: 6 | AY161: 11 | AZ161: 12 | BA161: 29 | BB161: 2.5 | BC161: 4.5 | BD161: 5 | BE161: 7 | BF161: 6 | BG161: 8 | BH161: 13.5 | BI161: 19.5 | BJ161: 33 | BK161: 362.5 | BL161: 3 | BM161: 5 | BN161: 0 | BO161: 8 | BP161: 2.5 | BQ161: 5 | BR161: 7 | BS161: 14.5 | BT161: راسبة | BU161: محاسبة مالية - رياضة عامة - تربية قومية | BV161: 3 | CC161: محاسبة مالية - | CJ161: رياضة عامة - | CN161: تربية قومية | CR161: 142 | CS161: 237
A162: 155 | B162: 155 | C162: محمود عبد الفتاح ابراهيم الدسوقي | D162: 2/1 | E162: 436 | F162: 7 | G162: 6 | H162: 8.5 | I162: 21.5 | J162: 8.5 | K162: 7.2 | L162: 13.2 | M162: 28.9 | N162: 5 | O162: 8.4 | P162: 10 | Q162: 23.4 | R162: 7 | S162: 1 | T162: 4 | U162: 12 | V162: 9 | W162: 11 | X162: 14.5 | Y162: 34.5 | Z162: 9 | AA162: 4 | AB162: 7.5 | AC162: 20.5 | AD162: 9 | AE162: 11 | AF162: 14 | AG162: 34 | AH162: 9 | AI162: 11.5 | AJ162: 17 | AK162: 37.5 | AL162: 9 | AM162: 5 | AN162: 11.5 | AO162: 25.5 | AP162: 8.5 | AQ162: 10 | AR162: 19 | AS162: 37.5 | AT162: 4 | AU162: 2 | AV162: 9 | AW162: 15 | AX162: 6 | AY162: 12 | AZ162: 10 | BA162: 28 | BB162: 3 | BC162: 4.5 | BD162: 5 | BE162: 9 | BF162: 6 | BG162: 8 | BH162: 14 | BI162: 21.5 | BJ162: 35.5 | BK162: 353.8 | BL162: 3 | BM162: 6 | BN162: 2.5 | BO162: 11.5 | BP162: 2.5 | BQ162: 2.5 | BR162: 5.5 | BS162: 10.5 | BT162: دورثان | BU162: لغة عربية - محاسبة مالية - | BV162: 2 | BZ162: لغة عربية - | CC162: محاسبة مالية - | CR162: 186 | CS162: 10
A163: 156 | B163: 156 | C163: محمود عصام محمود محمد | D163: 5/1 | E163: 437 | F163: 7 | G163: 9 | H163: 12.5 | I163: 28.5 | J163: 8 | K163: 9.6 | L163: 10.8 | M163: 28.4 | N163: 5 | O163: 6.4 | P163: 9.6 | Q163: 21 | R163: 7 | S163: 0 | T163: 7.5 | U163: 14.5 | V163: 9 | W163: 9.5 | X163: 8.5 | Y163: 27 | Z163: 9 | AA163: 0 | AB163: 6.5 | AC163: 15.5 | AD163: 9 | AE163: 12 | AF163: 16 | AG163: 37 | AH163: 9 | AI163: 11 | AJ163: 13 | AK163: 33 | AL163: 9 | AM163: 4 | AN163: 12 | AO163: 25 | AP163: 8.5 | AQ163: 8 | AR163: 13 | AS163: 29.5 | AT163: 4 | AU163: 1 | AV163: 10 | AW163: 15 | AX163: 6 | AY163: 11 | AZ163: 10 | BA163: 27 | BB163: 3 | BC163: 4.5 | BD163: 4 | BE163: 6 | BF163: 5 | BG163: 8 | BH163: 12 | BI163: 18.5 | BJ163: 30.5 | BK163: 331.9 | BL163: 3 | BM163: 6 | BN163: 2 | BO163: 11 | BP163: 3 | BQ163: 4 | BR163: 7 | BS163: 14 | BT163: دورثان | BU163: محاسبة مالية - سكرتارية اجنبية - | BV163: 2 | CC163: محاسبة مالية - | CE163: سكرتارية اجنبية - | CR163: 162 | CS163: 91
A164: 157 | B164: 157 | C164: محمود عليوه طه عبد السلام | D164: 5/1 | E164: 438 | F164: 7 | G164: 4 | H164: 8 | I164: 19 | J164: 8 | K164: 6.8 | L164: 11.2 | M164: 26 | N164: 5 | O164: 6.8 | P164: 9.6 | Q164: 21.4 | R164: 6 | S164: 0.5 | T164: 4.5 | U164: 11 | V164: 8.5 | W164: 8 | X164: 8.5 | Y164: 25 | Z164: 9 | AA164: 5.5 | AB164: 5.5 | AC164: 20 | AD164: 9 | AE164: 11 | AF164: 16 | AG164: 36 | AH164: 9 | AI164: 11 | AJ164: 17 | AK164: 37 | AL164: 9 | AM164: 6 | AN164: 12.5 | AO164: 27.5 | AP164: 8.5 | AQ164: 9 | AR164: 18 | AS164: 35.5 | AT164: 3.5 | AU164: 3 | AV164: 8.5 | AW164: 15 | AX164: 6 | AY164: 9 | AZ164: 8 | BA164: 23 | BB164: 2.5 | BC164: 4.5 | BD164: 4 | BE164: 7 | BF164: 5 | BG164: 8 | BH164: 11.5 | BI164: 19.5 | BJ164: 31 | BK164: 327.4 | BL164: 3 | BM164: 5 | BN164: 2 | BO164: 10 | BP164: 2.5 | BQ164: 3 | BR164: 5.5 | BS164: 11 | BT164: دورثان | BU164: لغة عربية - محاسبة مالية - | BV164: 2 | BZ164: لغة عربية - | CC164: محاسبة مالية - | CR164: 148 | CS164: 179
A165: 158 | B165: 158 | C165: محمود عماد الدين عبد الوهاب اسماعيل | D165: 5/1 | E165: 439 | F165: 7 | G165: 8 | H165: 12.5 | I165: 27.5 | J165: 8 | K165: 4.4 | L165: 10 | M165: 22.4 | N165: 5 | O165: 8.4 | P165: 10.4 | Q165: 23.8 | R165: 7 | S165: 3.5 | T165: 5 | U165: 15.5 | V165: 8.5 | W165: 8.5 | X165: 12.5 | Y165: 29.5 | Z165: 9 | AA165: 7 | AB165: 9.5 | AC165: 25.5 | AD165: 9 | AE165: 11 | AF165: 16 | AG165: 36 | AH165: 9 | AI165: 12.5 | AJ165: 17 | AK165: 38.5 | AL165: 9 | AM165: 5 | AN165: 13 | AO165: 27 | AP165: 8.5 | AQ165: 9 | AR165: 14 | AS165: 31.5 | AT165: 3.5 | AU165: 2 | AV165: 9.5 | AW165: 15 | AX165: 6 | AY165: 12 | AZ165: 11 | BA165: 29 | BB165: 3 | BC165: 4.5 | BD165: 5 | BE165: 7 | BF165: 6 | BG165: 8 | BH165: 14 | BI165: 19.5 | BJ165: 33.5 | BK165: 354.7 | BL165: 3 | BM165: 5 | BN165: 3.5 | BO165: 11.5 | BP165: 2.5 | BQ165: 6 | BR165: 7 | BS165: 15.5 | BT165: دورثان | BU165: محاسبة مالية - | BV165: 1 | CC165: محاسبة مالية - | CR165: 163 | CS165: 80
A166: 159 | B166: 159 | C166: محمود محمد يوسف محمد يوسف | D166: 5/1 | E166: 440 | F166: 7 | G166: 11.5 | H166: 14 | I166: 32.5 | J166: 8 | K166: 5.6 | L166: 12.4 | M166: 26 | N166: 5 | O166: 7.2 | P166: 9.2 | Q166: 21.4 | R166: 7 | S166: 0 | T166: 7.5 | U166: 14.5 | V166: 9 | W166: 13 | X166: 10 | Y166: 32 | Z166: 9 | AA166: 9.5 | AB166: 10.5 | AC166: 29 | AD166: 9 | AE166: 12 | AF166: 15 | AG166: 36 | AH166: 9 | AI166: 10.5 | AJ166: 17 | AK166: 36.5 | AL166: 9 | AM166: 10 | AN166: 15 | AO166: 34 | AP166: 8.5 | AQ166: 10 | AR166: 18 | AS166: 36.5 | AT166: 4 | AU166: 8.5 | AV166: 5.5 | AW166: 18 | AX166: 6 | AY166: 10 | AZ166: 9 | BA166: 25 | BB166: 2.5 | BC166: 4.5 | BD166: 4 | BE166: 9 | BF166: 5 | BG166: 8 | BH166: 11.5 | BI166: 21.5 | BJ166: 33 | BK166: 374.4 | BL166: 3 | BM166: 4.5 | BN166: 3 | BO166: 10.5 | BP166: 2.5 | BQ166: 4.5 | BR166: 7.5 | BS166: 14.5 | BT166: دورثان | BU166: محاسبة مالية - | BV166: 1 | CC166: محاسبة مالية - | CR166: 147 | CS166: 192
A167: 160 | B167: 160 | C167: محمود مسعد بحيري السيد نصر | D167: 5/1 | E167: 441 | F167: 7 | G167: 6.5 | H167: 11.5 | I167: 25 | J167: 8 | K167: 4.4 | L167: 9.6 | M167: 22 | N167: 5 | O167: 7.6 | P167: 9.2 | Q167: 21.8 | R167: 6.5 | S167: 0 | T167: 2.5 | U167: 9 | V167: 9 | W167: 7.5 | X167: 10 | Y167: 26.5 | Z167: 9 | AA167: 0 | AB167: 0 | AC167: 9 | AD167: 9 | AE167: 8 | AF167: 12 | AG167: 29 | AH167: 9 | AI167: 6 | AJ167: 17 | AK167: 32 | AL167: 9 | AM167: 6 | AN167: 10 | AO167: 25 | AP167: 8.5 | AQ167: 7 | AR167: 14 | AS167: 29.5 | AT167: 4 | AU167: 2.5 | AV167: 8.5 | AW167: 15 | AX167: 6 | AY167: 6 | AZ167: 8 | BA167: 20 | BB167: 2.5 | BC167: 4.5 | BD167: 5 | BE167: 5 | BF167: 6 | BG167: 8 | BH167: 13.5 | BI167: 17.5 | BJ167: 31 | BK167: 294.8 | BL167: 3 | BM167: 6 | BN167: 2 | BO167: 11 | BP167: 3 | BQ167: 4 | BR167: 5 | BS167: 12 | BT167: راسبة | BU167: محاسبة مالية - سكرتارية اجنبية - مجموع - | BV167: 3 | CC167: محاسبة مالية - | CE167: سكرتارية اجنبية - | CM167: مجموع - | CR167: 129 | CS167: 342
A168: 161 | B168: 161 | C168: محمود مسعد منصور منصور | D168: 5/1 | E168: 442 | F168: 7 | G168: 8.5 | H168: 16 | I168: 31.5 | J168: 8.5 | K168: 6.4 | L168: 12.8 | M168: 27.7 | N168: 5 | O168: 6.4 | P168: 9.2 | Q168: 20.6 | R168: 7 | S168: 0 | T168: 10.5 | U168: 17.5 | V168: 9 | W168: 8 | X168: 14.5 | Y168: 31.5 | Z168: 9 | AA168: 5.5 | AB168: 8 | AC168: 22.5 | AD168: 9 | AE168: 12 | AF168: 14 | AG168: 35 | AH168: 9 | AI168: 12.5 | AJ168: 16 | AK168: 37.5 | AL168: 9 | AM168: 9 | AN168: 15 | AO168: 33 | AP168: 8.5 | AQ168: 9 | AR168: 13 | AS168: 30.5 | AT168: 4 | AU168: 1.5 | AV168: 9.5 | AW168: 15 | AX168: 6 | AY168: 10 | AZ168: 12 | BA168: 28 | BB168: 2.5 | BC168: 4.5 | BD168: 5 | BE168: 6 | BF168: 6 | BG168: 8 | BH168: 13.5 | BI168: 18.5 | BJ168: 32 | BK168: 362.3 | BL168: 3 | BM168: 5 | BN168: 2.5 | BO168: 10.5 | BP168: 3 | BQ168: 6.5 | BR168: 6.5 | BS168: 16 | BT168: دورثان | BU168: محاسبة مالية - | BV168: 1 | CC168: محاسبة مالية - | CR168: 144 | CS168: 222
A169: 162 | B169: 162 | C169: مسعد محمد رضا محمود دسوقي | D169: 5/1 | E169: 443 | F169: 7 | G169: 9 | H169: 14.5 | I169: 30.5 | J169: 8 | K169: 8.8 | L169: 9.2 | M169: 26 | N169: 5 | O169: 6.8 | P169: 9.2 | Q169: 21 | R169: 6.5 | S169: 0.5 | T169: 9.5 | U169: 16.5 | V169: 8.5 | W169: 8.5 | X169: 10 | Y169: 27 | Z169: 9 | AA169: 3.5 | AB169: 8.5 | AC169: 21 | AD169: 9 | AE169: 12 | AF169: 16 | AG169: 37 | AH169: 9 | AI169: 11.5 | AJ169: 16 | AK169: 36.5 | AL169: 9 | AM169: 9 | AN169: 14 | AO169: 32 | AP169: 8.5 | AQ169: 10 | AR169: 13 | AS169: 31.5 | AT169: 4 | AU169: 2.5 | AV169: 8.5 | AW169: 15 | AX169: 6 | AY169: 11 | AZ169: 9 | BA169: 26 | BB169: 2.5 | BC169: 4.5 | BD169: 5 | BE169: 5 | BF169: 5 | BG169: 8 | BH169: 12.5 | BI169: 17.5 | BJ169: 30 | BK169: 350 | BL169: 3 | BM169: 6.5 | BN169: 3.5 | BO169: 13 | BP169: 2.5 | BQ169: 5 | BR169: 6.5 | BS169: 14 | BT169: دورثان | BU169: محاسبة مالية - | BV169: 1 | CC169: محاسبة مالية - | CR169: 142 | CS169: 237
A170: 163 | B170: 163 | C170: مصطفي مسعد عبد الجيد عبده | D170: 5/1 | E170: 444 | F170: 7 | G170: 9 | H170: 14.5 | I170: 30.5 | J170: 8 | K170: 10.8 | L170: 15.2 | M170: 34 | N170: 5 | O170: 7.2 | P170: 9.2 | Q170: 21.4 | R170: 6.5 | S170: 0.5 | T170: 8 | U170: 15 | V170: 9 | W170: 13 | X170: 11 | Y170: 33 | Z170: 9 | AA170: 5.5 | AB170: 8.5 | AC170: 23 | AD170: 9 | AE170: 12 | AF170: 14 | AG170: 35 | AH170: 9 | AI170: 10.5 | AJ170: 18 | AK170: 37.5 | AL170: 9 | AM170: 6 | AN170: 16.5 | AO170: 31.5 | AP170: 8.5 | AQ170: 13 | AR170: 13 | AS170: 34.5 | AT170: 3.5 | AU170: 2 | AV170: 9.5 | AW170: 15 | AX170: 6 | AY170: 11 | AZ170: 11 | BA170: 28 | BB170: 3 | BC170: 4.5 | BD170: 5 | BE170: 9 | BF170: 5 | BG170: 9 | BH170: 13 | BI170: 22.5 | BJ170: 35.5 | BK170: 373.9 | BL170: 3 | BM170: 4.5 | BN170: 2.5 | BO170: 10 | BP170: 3 | BQ170: 7 | BR170: 7 | BS170: 17 | BT170: دورثان | BU170: محاسبة مالية - | BV170: 1 | CC170: محاسبة مالية - | CR170: 140 | CS170: 252
A171: 164 | B171: 164 | C171: مصطفي ياسر لبيب أحمد | D171: 5/1 | E171: 445 | F171: 7 | G171: 10 | H171: 14 | I171: 31 | J171: 8 | K171: 9.2 | L171: 15.6 | M171: 32.8 | N171: 5 | O171: 8.8 | P171: 9.2 | Q171: 23 | R171: 7.5 | S171: 1 | T171: 11 | U171: 19.5 | V171: 9 | W171: 14.5 | X171: 9 | Y171: 32.5 | Z171: 9 | AA171: 13 | AB171: 11 | AC171: 33 | AD171: 9 | AE171: 12 | AF171: 16 | AG171: 37 | AH171: 9 | AI171: 12.5 | AJ171: 18 | AK171: 39.5 | AL171: 9 | AM171: 6 | AN171: 16 | AO171: 31 | AP171: 8.5 | AQ171: 13 | AR171: 13 | AS171: 34.5 | AT171: 3.5 | AU171: 2.5 | AV171: 9 | AW171: 15 | AX171: 6 | AY171: 14 | AZ171: 11 | BA171: 31 | BB171: 3 | BC171: 4.5 | BD171: 5 | BE171: 9 | BF171: 6 | BG171: 9 | BH171: 14 | BI171: 22.5 | BJ171: 36.5 | BK171: 396.3 | BL171: 3 | BM171: 4.5 | BN171: 3.5 | BO171: 11 | BP171: 3 | BQ171: 6.5 | BR171: 7.5 | BS171: 17 | BT171: دورثان | BU171: محاسبة مالية - | BV171: 1 | CC171: محاسبة مالية - | CR171: 153 | CS171: 146
A172: 165 | B172: 165 | C172: نادر سمير سعد جاد الله | D172: 5/1 | E172: 446 | F172: 7 | G172: 7.5 | H172: 12 | I172: 26.5 | J172: 8 | K172: 10.4 | L172: 9.6 | M172: 28 | N172: 5 | O172: 9.6 | P172: 10.4 | Q172: 25 | R172: 7 | S172: 3.5 | T172: 6 | U172: 16.5 | V172: 8.5 | W172: 12 | X172: 9.5 | Y172: 30 | Z172: 9 | AA172: 9 | AB172: 11 | AC172: 29 | AD172: 9 | AE172: 12 | AF172: 16 | AG172: 37 | AH172: 9 | AI172: 11 | AJ172: 17 | AK172: 37 | AL172: 9 | AM172: 4 | AN172: 15 | AO172: 28 | AP172: 8.5 | AQ172: 9 | AR172: 13 | AS172: 30.5 | AT172: 4 | AU172: 4 | AV172: 7.5 | AW172: 15.5 | AX172: 6 | AY172: 11 | AZ172: 11 | BA172: 28 | BB172: 3 | BC172: 5 | BD172: 4 | BE172: 9 | BF172: 6 | BG172: 9 | BH172: 13 | BI172: 23 | BJ172: 36 | BK172: 367 | BL172: 3 | BM172: 5 | BN172: 2.5 | BO172: 10.5 | BP172: 3 | BQ172: 5.5 | BR172: 6.5 | BS172: 15 | BT172: دورثان | BU172: محاسبة مالية - | BV172: 1 | CC172: محاسبة مالية - | CR172: 184 | CS172: 14
A173: 166 | B173: 166 | C173: هشام رمضان عطية محمد | D173: 5/1 | E173: 447 | F173: 7 | G173: 9.5 | H173: 11 | I173: 27.5 | J173: 8 | K173: 6.4 | L173: 11.2 | M173: 25.6 | N173: 5 | O173: 4 | P173: 8 | Q173: 17 | R173: 6.5 | S173: 0 | T173: 7.5 | U173: 14 | V173: 8.5 | W173: 9.5 | X173: 10.5 | Y173: 28.5 | Z173: 9 | AA173: 0.5 | AB173: 4 | AC173: 13.5 | AD173: 9 | AE173: 13 | AF173: 14 | AG173: 36 | AH173: 9 | AI173: 9.5 | AJ173: 15 | AK173: 33.5 | AL173: 9 | AM173: 10 | AN173: 15 | AO173: 34 | AP173: 8.5 | AQ173: 9 | AR173: 13 | AS173: 30.5 | AT173: 4 | AU173: 2.5 | AV173: 9 | AW173: 15.5 | AX173: 6 | AY173: 9 | AZ173: 10 | BA173: 25 | BB173: 2.5 | BC173: 4.5 | BD173: 5 | BE173: 8 | BF173: 5 | BG173: 8 | BH173: 12.5 | BI173: 20.5 | BJ173: 33 | BK173: 333.6 | BL173: 3 | BM173: 4.5 | BN173: 3.5 | BO173: 11 | BP173: 2.5 | BQ173: 3.5 | BR173: 5.5 | BS173: 11.5 | BT173: دورثان | BU173: محاسبة مالية - سكرتارية اجنبية - | BV173: 2 | CC173: محاسبة مالية - | CE173: سكرتارية اجنبية - | CR173: 197 | CS173: 2
A174: 167 | B174: 167 | C174: يوسف منصور محمد حسن | D174: 5/1 | E174: 448 | F174: 7 | G174: 10.5 | H174: 11.5 | I174: 29 | J174: 8 | K174: 9.6 | L174: 12 | M174: 29.6 | N174: 5 | O174: 4.4 | P174: 9.2 | Q174: 18.6 | R174: 6.5 | S174: 0 | T174: 7.5 | U174: 14 | V174: 8.5 | W174: 7.5 | X174: 10.5 | Y174: 26.5 | Z174: 9 | AA174: 5 | AB174: 10.5 | AC174: 24.5 | AD174: 9 | AE174: 13 | AF174: 15 | AG174: 37 | AH174: 9 | AI174: 8 | AJ174: 18 | AK174: 35 | AL174: 9 | AM174: 9 | AN174: 11 | AO174: 29 | AP174: 8.5 | AQ174: 8 | AR174: 13 | AS174: 29.5 | AT174: 4 | AU174: 2.5 | AV174: 8.5 | AW174: 15 | AX174: 6 | AY174: 12 | AZ174: 11 | BA174: 29 | BB174: 2.5 | BC174: 4.5 | BD174: 5 | BE174: 8 | BF174: 5 | BG174: 7 | BH174: 12.5 | BI174: 19.5 | BJ174: 32 | BK174: 348.7 | BL174: 3 | BM174: 4 | BN174: 3.5 | BO174: 10.5 | BP174: 2.5 | BQ174: 2.5 | BR174: 6.5 | BS174: 11.5 | BT174: دورثان | BU174: محاسبة مالية - | BV174: 1 | CC174: محاسبة مالية - | CR174: 141 | CS174: 244
A175: 168 | B175: 168 | C175: آية رضا أحمد شربجي عبد الرحمن | D175: 5/1 | E175: 449 | G175: 18 | H175: 19.5 | I175: 37.5 | K175: 13.5 | L175: 8.5 | M175: 22 | O175: 8.5 | P175: 9.5 | Q175: 18 | S175: 5 | T175: 7.5 | U175: 12.5 | W175: 17 | X175: 15.5 | Y175: 32.5 | AA175: 5 | AB175: 16 | AC175: 21 | AE175: 10 | AF175: 19 | AG175: 29 | AI175: 17.5 | AJ175: 15 | AK175: 32.5 | AM175: 10 | AN175: 15 | AO175: 25 | AQ175: 12.5 | AR175: 22.5 | AS175: 35 | AU175: 8.5 | AV175: 6.5 | AW175: 15 | AY175: 13.5 | AZ175: 10 | BA175: 23.5 | BD175: 8 | BE175: 6.5 | BF175: 7 | BG175: 12.5 | BH175: 15 | BI175: 19 | BJ175: 34 | BK175: 337.5 | BM175: 4.5 | BN175: 2.5 | BO175: 7 | BQ175: 6.5 | BR175: 9.5 | BS175: 16 | BT175: دورثان | BU175: محاسبة مالية - تربية قومية | BV175: 2 | CC175: محاسبة مالية - | CN175: تربية قومية | CR175: 0 | CS175: 447
A176: 169 | B176: 169 | C176: سماح وجيه فتحي عادل | D176: 5/1 | E176: 450 | G176: 18 | H176: 20 | I176: 38 | K176: 15.5 | L176: 11 | M176: 26.5 | O176: 8.5 | P176: 10.5 | Q176: 19 | S176: 5 | T176: 12.5 | U176: 17.5 | W176: 11.5 | X176: 16.5 | Y176: 28 | AA176: 2.5 | AB176: 20.52 | AC176: 23.02 | AE176: 10 | AF176: 17.5 | AG176: 27.5 | AI176: 19.5 | AJ176: 20 | AK176: 39.5 | AM176: 9 | AN176: 16.5 | AO176: 25.5 | AQ176: 12.5 | AR176: 21.5 | AS176: 34 | AU176: 10 | AV176: 8 | AW176: 18 | AY176: 12 | AZ176: 10 | BA176: 22 | BD176: 8 | BE176: 6.5 | BF176: 8 | BG176: 12.5 | BH176: 16 | BI176: 19 | BJ176: 35 | BK176: 353.52 | BM176: 7 | BN176: 3 | BO176: 10 | BQ176: 7 | BR176: 9 | BS176: 16 | BT176: دورثان | BU176: محاسبة مالية - | BV176: 1 | CC176: محاسبة مالية - | CR176: 144 | CS176: 222
A177: 170 | B177: 170 | C177: شرين صبحي أحمد أحمد علي | D177: 5/1 | E177: 451 | G177: 14.5 | H177: 18 | I177: 32.5 | K177: 12 | L177: 10.5 | M177: 22.5 | O177: 8.5 | P177: 10 | Q177: 18.5 | S177: 6.5 | T177: 8 | U177: 14.5 | W177: 8.5 | X177: 16.5 | Y177: 25 | AA177: 1.5 | AB177: 14.5 | AC177: 16 | AE177: 11.5 | AF177: 19 | AG177: 30.5 | AI177: 17 | AJ177: 20 | AK177: 37 | AM177: 6.5 | AN177: 18.5 | AO177: 25 | AQ177: 12.5 | AR177: 21.5 | AS177: 34 | AU177: 9 | AV177: 7.5 | AW177: 16.5 | AY177: 13.5 | AZ177: 10 | BA177: 23.5 | BD177: 8 | BE177: 6.5 | BF177: 7 | BG177: 12.5 | BH177: 15 | BI177: 19 | BJ177: 34 | BK177: 329.5 | BM177: 6.5 | BN177: 3.5 | BO177: 10 | BQ177: 5.5 | BR177: 7 | BS177: 12.5 | BT177: دورثان | BU177: محاسبة مالية - سكرتارية اجنبية - | BV177: 2 | CC177: محاسبة مالية - | CE177: سكرتارية اجنبية - | CR177: 137 | CS177: 276
A178: 171 | B178: 171 | C178: هبة محمد كرم حجازي محمد | D178: 5/1 | E178: 452 | G178: 15 | H178: 22.5 | I178: 37.5 | K178: 9 | L178: 14 | M178: 23 | O178: 13 | P178: 8.5 | Q178: 21.5 | S178: 0 | T178: 17 | U178: 17 | W178: 19 | X178: 17 | Y178: 36 | AA178: 1.5 | AB178: 20 | AC178: 21.5 | AE178: 12.5 | AF178: 19 | AG178: 31.5 | AI178: 15 | AJ178: 15 | AK178: 30 | AM178: 7.5 | AN178: 21.5 | AO178: 29 | AQ178: 15 | AR178: 21.5 | AS178: 36.5 | AU178: 9.5 | AV178: 7.5 | AW178: 17 | AY178: 14.5 | AZ178: 10 | BA178: 24.5 | BD178: 8 | BE178: 6.5 | BF178: 7 | BG178: 12.5 | BH178: 15 | BI178: 19 | BJ178: 34 | BK178: 359 | BM178: 7 | BN178: 3 | BO178: 10 | BQ178: 5 | BR178: 8 | BS178: 13 | BT178: دورثان | BU178: محاسبة مالية - | BV178: 1 | CC178: محاسبة مالية - | CR178: 122 | CS178: 379
A179: 172 | B179: 172 | C179: عبد الحليم محمد عبد الحليم محمد | D179: 5/1 | E179: 453 | G179: 15 | H179: 19.5 | I179: 34.5 | K179: 13.5 | L179: 13.5 | M179: 27 | O179: 8.5 | P179: 11 | Q179: 19.5 | S179: 4.5 | T179: 12 | U179: 16.5 | W179: 14.5 | X179: 12 | Y179: 26.5 | AA179: 7 | AB179: 10.5 | AC179: 17.5 | AE179: 16.5 | AF179: 19 | AG179: 35.5 | AI179: 13 | AJ179: 17 | AK179: 30 | AM179: 11.5 | AN179: 19 | AO179: 30.5 | AQ179: 9 | AR179: 22.5 | AS179: 31.5 | AU179: 6.5 | AV179: 8.5 | AW179: 15 | AY179: 15 | AZ179: 19 | BA179: 34 | BD179: 8 | BE179: 6.5 | BF179: 7 | BG179: 11.5 | BH179: 15 | BI179: 18 | BJ179: 33 | BK179: 351 | BM179: 8 | BN179: 6.5 | BO179: 14.5 | BQ179: 7 | BR179: 9 | BS179: 16 | BT179: دورثان | BU179: محاسبة مالية - سكرتارية اجنبية - | BV179: 2 | CC179: محاسبة مالية - | CE179: سكرتارية اجنبية - | CR179: 121 | CS179: 384
A180: 173 | B180: 173 | C180: علي بيومي مغازي محمد الفخراني | D180: 5/1 | E180: 454 | G180: 9.5 | H180: 15.5 | I180: 25 | K180: 6 | L180: 14 | M180: 20 | O180: 8.5 | P180: 10 | Q180: 18.5 | S180: 3 | T180: 10 | U180: 13 | W180: 12.5 | X180: 12.5 | Y180: 25 | AA180: 2 | AB180: 9.5 | AC180: 11.5 | AE180: 12.5 | AF180: 19 | AG180: 31.5 | AI180: 13 | AJ180: 16 | AK180: 29 | AM180: 4 | AN180: 21.5 | AO180: 25.5 | AQ180: 10 | AR180: 22.5 | AS180: 32.5 | AU180: 5.5 | AV180: 9.5 | AW180: 15 | AY180: 14 | AZ180: 14 | BA180: 28 | BD180: 8 | BE180: 6.5 | BF180: 8 | BG180: 12.5 | BH180: 16 | BI180: 19 | BJ180: 35 | BK180: 309.5 | BM180: 7 | BN180: 4.5 | BO180: 11.5 | BQ180: 9.5 | BR180: 8 | BS180: 17.5 | BT180: دورثان | BU180: محاسبة مالية - سكرتارية اجنبية - | BV180: 2 | CC180: محاسبة مالية - | CE180: سكرتارية اجنبية - | CR180: 163 | CS180: 80
A181: 174 | B181: 174 | C181: محمد صلاح الدين محمد محمد | D181: 5/1 | E181: 455 | G181: 10.5 | H181: 15 | I181: 25.5 | K181: 8.5 | L181: 14 | M181: 22.5 | O181: 11.5 | P181: 11 | Q181: 22.5 | S181: 0 | T181: 7 | U181: 7 | W181: 12.5 | X181: 13 | Y181: 25.5 | AA181: 0 | AB181: 8 | AC181: 8 | AE181: 16.5 | AF181: 16 | AG181: 32.5 | AI181: 13 | AJ181: 15 | AK181: 28 | AM181: 9 | AN181: 16.5 | AO181: 25.5 | AQ181: 9 | AR181: 16 | AS181: 25 | AU181: 6.5 | AV181: 8.5 | AW181: 15 | AY181: 14 | AZ181: 11.5 | BA181: 25.5 | BD181: 8 | BE181: 7.5 | BF181: 7 | BG181: 12.5 | BH181: 15 | BI181: 20 | BJ181: 35 | BK181: 297.5 | BM181: 6.5 | BN181: 4 | BO181: 10.5 | BQ181: 4.5 | BR181: 9.5 | BS181: 14 | BT181: راسبة | BU181: محاسبة مالية - سكرتارية اجنبية - مجموع - | BV181: 3 | CC181: محاسبة مالية - | CE181: سكرتارية اجنبية - | CM181: مجموع - | CR181: 148 | CS181: 179
A182: 175 | B182: 175 | C182: محمود علي عبد الله شحاته | D182: 5/1 | E182: 456 | G182: 16.5 | H182: 18.5 | I182: 35 | K182: 9.5 | L182: 14.5 | M182: 24 | O182: 11.5 | P182: 10.5 | Q182: 22 | S182: 2.5 | T182: 24 | U182: 26.5 | W182: 14 | X182: 12.5 | Y182: 26.5 | AA182: 9 | AB182: 14 | AC182: 23 | AE182: 16.5 | AF182: 17.5 | AG182: 34 | AI182: 12.5 | AJ182: 16 | AK182: 28.5 | AM182: 11.5 | AN182: 16.5 | AO182: 28 | AQ182: 15 | AR182: 16 | AS182: 31 | AU182: 7.5 | AV182: 12.5 | AW182: 20 | AY182: 15 | AZ182: 14 | BA182: 29 | BD182: 8 | BE182: 9 | BF182: 8 | BG182: 11.5 | BH182: 16 | BI182: 20.5 | BJ182: 36.5 | BK182: 364 | BM182: 5 | BN182: 5.5 | BO182: 10.5 | BQ182: 9 | BR182: 8 | BS182: 17 | BT182: ناجحة | BV182: 0 | CR182: 171 | CS182: 47
A183: 176 | B183: 176 | C183: طالبة منتظمة176 | D183: 5/1 | E183: 457 | F183: 9 | G183: 11 | H183: 10 | I183: 30 | J183: 9 | K183: 6 | L183: 7 | M183: 22 | N183: 5 | O183: 6 | P183: 7 | Q183: 18 | R183: 9 | S183: 3 | T183: 6 | U183: 18 | V183: 9 | W183: 8 | X183: 17 | Y183: 34 | Z183: 9 | AA183: 9 | AB183: 13 | AC183: 31 | AD183: 9 | AE183: 11 | AF183: 18 | AG183: 38 | AH183: 9 | AI183: 17 | AJ183: 17 | AK183: 43 | AL183: 9 | AM183: 13 | AN183: 11 | AO183: 33 | AP183: 9 | AQ183: 19 | AR183: 19 | AS183: 47 | AT183: 5 | AU183: 5 | AV183: 5 | AW183: 15 | AX183: 7 | AY183: 6 | AZ183: 12 | BA183: 25 | BH183: 0 | BI183: 0 | BJ183: 0 | BK183: 354 | BL183: 4 | BM183: 5 | BN183: 5 | BO183: 14 | BP183: 4 | BQ183: 7 | BR183: 5 | BS183: 16 | BT183: دورثان | BU183: محاسبة مالية - حاسب ألى - | BV183: 2 | CC183: محاسبة مالية - | CL183: حاسب ألى - | CR183: 131 | CS183: 327
A184: 177 | B184: 177 | C184: طالبة منتظمة177 | D184: 5/1 | E184: 458 | F184: 9 | G184: 9 | H184: 10 | I184: 28 | J184: 9 | K184: 5 | L184: 6 | M184: 20 | N184: 5 | O184: 9 | P184: 7 | Q184: 21 | R184: 9 | S184: 5 | T184: 16 | U184: 30 | V184: 9 | W184: 18 | X184: 20 | Y184: 47 | Z184: 9 | AA184: 11 | AB184: 18 | AC184: 38 | AD184: 9 | AE184: 15 | AF184: 18 | AG184: 42 | AH184: 9 | AI184: 17 | AJ184: 17 | AK184: 43 | AL184: 9 | AM184: 15 | AN184: 13 | AO184: 37 | AP184: 9 | AQ184: 19 | AR184: 19 | AS184: 47 | AT184: 5 | AU184: 5 | AV184: 5 | AW184: 15 | AX184: 7 | AY184: 7 | AZ184: 9 | BA184: 23 | BH184: 0 | BI184: 0 | BJ184: 0 | BK184: 391 | BL184: 4 | BM184: 5 | BN184: 5 | BO184: 14 | BP184: 4 | BQ184: 8 | BR184: 5 | BS184: 17 | BT184: دورثان | BU184: حاسب ألى - | BV184: 1 | CL184: حاسب ألى - | CR184: 152 | CS184: 152
A185: 178 | B185: 178 | C185: طالبة منتظمة178 | D185: 5/1 | E185: 459 | F185: 9 | G185: 14 | H185: 10 | I185: 33 | J185: 9 | K185: 10 | L185: 9 | M185: 28 | N185: 5 | O185: 11 | P185: 8 | Q185: 24 | R185: 9 | S185: 13 | T185: 17 | U185: 39 | V185: 9 | W185: 18 | X185: 18 | Y185: 45 | Z185: 9 | AA185: 18 | AB185: 17 | AC185: 44 | AD185: 9 | AE185: 13 | AF185: 17 | AG185: 39 | AH185: 9 | AI185: 17 | AJ185: 17 | AK185: 43 | AL185: 9 | AM185: 16 | AN185: 10 | AO185: 35 | AP185: 9 | AQ185: 18 | AR185: 18 | AS185: 45 | AT185: 5 | AU185: 12 | AV185: 10 | AW185: 27 | AX185: 7 | AY185: 8 | AZ185: 9 | BA185: 24 | BB185: 3 | BC185: 5 | BD185: 7 | BE185: 10 | BF185: 7 | BG185: 10 | BH185: 17 | BI185: 25 | BJ185: 42 | BK185: 468 | BL185: 4 | BM185: 6 | BN185: 6 | BO185: 16 | BP185: 4 | BQ185: 8 | BR185: 6 | BS185: 18 | BT185: ناجحة | BV185: 0 | CR185: 185 | CS185: 11
A186: 179 | B186: 179 | C186: طالبة منتظمة179 | D186: 5/1 | E186: 460 | F186: 9 | G186: 9 | H186: 8 | I186: 26 | J186: 9 | K186: 6 | L186: 5 | M186: 20 | N186: 5 | O186: 9 | P186: 7 | Q186: 21 | R186: 9 | S186: 9 | T186: 7 | U186: 25 | V186: 9 | W186: 20 | X186: 19 | Y186: 48 | Z186: 9 | AA186: 15 | AB186: 15 | AC186: 39 | AD186: 9 | AE186: 16 | AF186: 17 | AG186: 42 | AH186: 9 | AI186: 18 | AJ186: 18 | AK186: 45 | AL186: 9 | AM186: 15 | AN186: 13 | AO186: 37 | AP186: 9 | AQ186: 18 | AR186: 18 | AS186: 45 | AT186: 5 | AU186: 7 | AV186: 7 | AW186: 19 | AX186: 7 | AY186: 8 | AZ186: 11 | BA186: 26 | BB186: 3 | BC186: 5 | BD186: 7 | BE186: 10 | BF186: 7 | BG186: 10 | BH186: 17 | BI186: 25 | BJ186: 42 | BK186: 435 | BL186: 4 | BM186: 7 | BN186: 7 | BO186: 18 | BP186: 4 | BQ186: 8 | BR186: 7 | BS186: 19 | BT186: ناجحة | BV186: 0 | CR186: 167 | CS186: 62
A187: 180 | B187: 180 | C187: طالبة منتظمة180 | D187: 5/1 | E187: 461 | F187: 9 | G187: 8 | H187: 8 | I187: 25 | J187: 9 | K187: 6 | L187: 5 | M187: 20 | N187: 5 | O187: 8 | P187: 8 | Q187: 21 | R187: 9 | S187: 10 | T187: 6 | U187: 25 | V187: 9 | W187: 19 | X187: 17 | Y187: 45 | Z187: 9 | AA187: 15 | AB187: 17 | AC187: 41 | AD187: 9 | AE187: 14 | AF187: 9 | AG187: 32 | AH187: 9 | AI187: 16 | AJ187: 16 | AK187: 41 | AL187: 9 | AM187: 17 | AN187: 13 | AO187: 39 | AP187: 9 | AQ187: 17 | AR187: 17 | AS187: 43 | AT187: 5 | AU187: 5 | AV187: 5 | AW187: 15 | AX187: 7 | AY187: 8 | AZ187: 10 | BA187: 25 | BB187: 3 | BC187: 5 | BD187: 7 | BE187: 10 | BF187: 7 | BG187: 10 | BH187: 17 | BI187: 25 | BJ187: 42 | BK187: 414 | BL187: 4 | BM187: 7 | BN187: 7 | BO187: 18 | BP187: 4 | BQ187: 7 | BR187: 7 | BS187: 18 | BT187: ناجحة | BV187: 0 | CR187: 160 | CS187: 99
A188: 181 | B188: 181 | C188: طالبة منتظمة181 | D188: 6/1 | E188: 282 | F188: 9 | G188: 10 | H188: 9 | I188: 28 | J188: 9 | K188: 9 | L188: 9 | M188: 27 | N188: 5 | O188: 9 | P188: 8 | Q188: 22 | R188: 9 | S188: 13 | T188: 15 | U188: 37 | V188: 9 | W188: 14 | X188: 19 | Y188: 42 | Z188: 9 | AA188: 16 | AB188: 14 | AC188: 39 | AD188: 9 | AE188: 17 | AF188: 16 | AG188: 42 | AH188: 9 | AI188: 17 | AJ188: 17 | AK188: 43 | AL188: 9 | AM188: 15 | AN188: 19 | AO188: 43 | AP188: 9 | AQ188: 13 | AR188: 13 | AS188: 35 | AT188: 5 | AU188: 9 | AV188: 10 | AW188: 24 | AX188: 7 | AY188: 8 | AZ188: 11 | BA188: 26 | BB188: 3 | BC188: 5 | BD188: 7 | BE188: 10 | BF188: 7 | BG188: 10 | BH188: 17 | BI188: 25 | BJ188: 42 | BK188: 450 | BL188: 4 | BM188: 7 | BN188: 7 | BO188: 18 | BP188: 4 | BQ188: 6 | BR188: 7 | BS188: 17 | BT188: ناجحة | BV188: 0 | CR188: 167 | CS188: 62
A189: 182 | B189: 182 | C189: طالبة منتظمة182 | D189: 6/1 | E189: 283 | F189: 9 | G189: 10 | H189: 6 | I189: 25 | J189: 9 | K189: 7 | L189: 5 | M189: 21 | N189: 5 | O189: 8 | P189: 7 | Q189: 20 | R189: 9 | S189: 12 | T189: 14 | U189: 35 | V189: 9 | W189: 9 | X189: 20 | Y189: 38 | Z189: 9 | AA189: 17 | AB189: 18 | AC189: 44 | AD189: 9 | AE189: 18 | AF189: 17 | AG189: 44 | AH189: 9 | AI189: 18 | AJ189: 18 | AK189: 45 | AL189: 9 | AM189: 14 | AN189: 19 | AO189: 42 | AP189: 9 | AQ189: 13 | AR189: 13 | AS189: 35 | AT189: 5 | AU189: 5 | AV189: 8 | AW189: 18 | AX189: 7 | AY189: 7 | AZ189: 10 | BA189: 24 | BB189: 3 | BC189: 5 | BD189: 7 | BE189: 10 | BF189: 7 | BG189: 10 | BH189: 17 | BI189: 25 | BJ189: 42 | BK189: 433 | BL189: 4 | BM189: 6 | BN189: 6 | BO189: 16 | BP189: 4 | BQ189: 6 | BR189: 6 | BS189: 16 | BT189: ناجحة | BV189: 0 | CR189: 155 | CS189: 135
A190: 183 | B190: 183 | C190: طالبة منتظمة183 | D190: 6/1 | E190: 284 | F190: 9 | G190: 10 | H190: 8 | I190: 27 | J190: 9 | K190: 7 | L190: 6 | M190: 22 | N190: 5 | O190: 7 | P190: 7 | Q190: 19 | R190: 9 | S190: 12 | T190: 13 | U190: 34 | V190: 9 | W190: 14 | X190: 20 | Y190: 43 | Z190: 9 | AA190: 15 | AB190: 8 | AC190: 32 | AD190: 9 | AE190: 15 | AF190: 13 | AG190: 37 | AH190: 9 | AI190: 15 | AJ190: 15 | AK190: 39 | AL190: 9 | AM190: 15 | AN190: 19 | AO190: 43 | AP190: 9 | AQ190: 10 | AR190: 10 | AS190: 29 | AT190: 5 | AU190: 7 | AV190: 7 | AW190: 19 | AX190: 7 | AY190: 7 | AZ190: 7 | BA190: 21 | BB190: 3 | BC190: 5 | BD190: 7 | BE190: 10 | BF190: 7 | BG190: 10 | BH190: 17 | BI190: 25 | BJ190: 42 | BK190: 407 | BL190: 4 | BM190: 4 | BN190: 4 | BO190: 12 | BP190: 4 | BQ190: 6 | BR190: 4 | BS190: 14 | BT190: ناجحة | BV190: 0 | CR190: 151 | CS190: 158
A191: 184 | B191: 184 | C191: طالبة منتظمة184 | D191: 6/1 | E191: 285 | F191: 9 | G191: 9 | H191: 12 | I191: 30 | J191: 9 | K191: 7 | L191: 5 | M191: 21 | N191: 5 | O191: 8 | P191: 7 | Q191: 20 | R191: 9 | S191: 14 | T191: 14 | U191: 37 | V191: 9 | W191: 14 | X191: 19 | Y191: 42 | Z191: 9 | AA191: 18 | AB191: 12 | AC191: 39 | AD191: 9 | AE191: 17 | AF191: 18 | AG191: 44 | AH191: 9 | AI191: 15 | AJ191: 15 | AK191: 39 | AL191: 9 | AM191: 15 | AN191: 20 | AO191: 44 | AP191: 9 | AQ191: 11 | AR191: 11 | AS191: 31 | AT191: 5 | AU191: 10 | AV191: 10 | AW191: 25 | AX191: 7 | AY191: 9 | AZ191: 13 | BA191: 29 | BB191: 3 | BC191: 5 | BD191: 7 | BE191: 11 | BF191: 7 | BG191: 11 | BH191: 17 | BI191: 27 | BJ191: 44 | BK191: 445 | BL191: 4 | BM191: 8 | BN191: 8 | BO191: 20 | BP191: 4 | BQ191: 8 | BR191: 8 | BS191: 20 | BT191: ناجحة | BV191: 0 | CR191: 165 | CS191: 71
A192: 185 | B192: 185 | C192: طالبة منتظمة185 | D192: 6/1 | E192: 286 | F192: 9 | G192: 9 | H192: 10 | I192: 28 | J192: 9 | K192: 8 | L192: 9 | M192: 26 | N192: 5 | O192: 8 | P192: 8 | Q192: 21 | R192: 9 | S192: 15 | T192: 15 | U192: 39 | V192: 9 | W192: 15 | X192: 20 | Y192: 44 | Z192: 9 | AA192: 19 | AB192: 16 | AC192: 44 | AD192: 9 | AE192: 14 | AF192: 18 | AG192: 41 | AH192: 9 | AI192: 17 | AJ192: 17 | AK192: 43 | AL192: 9 | AM192: 15 | AN192: 20 | AO192: 44 | AP192: 9 | AQ192: 18 | AR192: 18 | AS192: 45 | AT192: 5 | AU192: 11 | AV192: 11 | AW192: 27 | AX192: 7 | AY192: 11 | AZ192: 13 | BA192: 31 | BB192: 3 | BC192: 5 | BD192: 7 | BE192: 11 | BF192: 7 | BG192: 11 | BH192: 17 | BI192: 27 | BJ192: 44 | BK192: 477 | BL192: 4 | BM192: 7 | BN192: 7 | BO192: 18 | BP192: 4 | BQ192: 8 | BR192: 7 | BS192: 19 | BT192: ناجحة | BV192: 0 | CR192: 178 | CS192: 29
A193: 186 | B193: 186 | C193: طالبة منتظمة186 | D193: 6/1 | E193: 287 | F193: 9 | G193: 6 | H193: 10 | I193: 25 | J193: 9 | K193: 6 | L193: 5 | M193: 20 | N193: 5 | O193: 8 | P193: 7 | Q193: 20 | R193: 9 | S193: 12 | T193: 9 | U193: 30 | V193: 9 | W193: 13 | X193: 20 | Y193: 42 | Z193: 9 | AA193: 12 | AB193: 12 | AC193: 33 | AD193: 9 | AE193: 14 | AF193: 18 | AG193: 41 | AH193: 9 | AI193: 18 | AJ193: 18 | AK193: 45 | AL193: 9 | AM193: 14 | AN193: 20 | AO193: 43 | AP193: 9 | AQ193: 15 | AR193: 15 | AS193: 39 | AT193: 5 | AU193: 5 | AV193: 8 | AW193: 18 | AX193: 7 | AY193: 9 | AZ193: 11 | BA193: 27 | BB193: 3 | BC193: 5 | BD193: 7 | BE193: 10 | BF193: 7 | BG193: 10 | BH193: 17 | BI193: 25 | BJ193: 42 | BK193: 425 | BL193: 4 | BM193: 5 | BN193: 5 | BO193: 14 | BP193: 4 | BQ193: 7 | BR193: 5 | BS193: 16 | BT193: ناجحة | BV193: 0 | CR193: 149 | CS193: 170
A194: 187 | B194: 187 | C194: طالبة منتظمة187 | D194: 6/1 | E194: 288 | F194: 9 | G194: 11 | H194: 5 | I194: 25 | J194: 9 | K194: 6 | L194: 5 | M194: 20 | N194: 5 | O194: 4 | P194: 6 | Q194: 15 | R194: 9 | S194: 9 | T194: 8 | U194: 26 | V194: 9 | W194: 12 | X194: 19 | Y194: 40 | Z194: 9 | AA194: 14 | AB194: 12 | AC194: 35 | AD194: 9 | AE194: 15 | AF194: 16 | AG194: 40 | AH194: 9 | AI194: 18 | AJ194: 18 | AK194: 45 | AL194: 9 | AM194: 8 | AN194: 20 | AO194: 37 | AP194: 9 | AQ194: 15 | AR194: 15 | AS194: 39 | AT194: 5 | AU194: 3 | AV194: 7 | AW194: 15 | AX194: 7 | AY194: 10 | AZ194: 9 | BA194: 26 | BB194: 3 | BC194: 5 | BD194: 7 | BE194: 10 | BF194: 7 | BG194: 10 | BH194: 17 | BI194: 25 | BJ194: 42 | BK194: 405 | BL194: 4 | BM194: 4 | BN194: 4 | BO194: 12 | BP194: 4 | BQ194: 7 | BR194: 4 | BS194: 15 | BT194: ناجحة | BV194: 0 | CR194: 142 | CS194: 237
A195: 188 | B195: 188 | C195: طالبة منتظمة188 | D195: 6/1 | E195: 289 | F195: 9 | G195: 8 | H195: 8 | I195: 25 | J195: 9 | K195: 6 | L195: 5 | M195: 20 | N195: 5 | O195: 8 | P195: 7 | Q195: 20 | R195: 9 | S195: 6 | T195: 10 | U195: 25 | V195: 9 | W195: 8 | X195: 17 | Y195: 34 | Z195: 9 | AA195: 7 | AB195: 18 | AC195: 34 | AD195: 9 | AE195: 12 | AF195: 16 | AG195: 37 | AH195: 9 | AI195: 13 | AJ195: 13 | AK195: 35 | AL195: 9 | AM195: 15 | AN195: 19 | AO195: 43 | AP195: 9 | AQ195: 15 | AR195: 15 | AS195: 39 | AT195: 5 | AU195: 3 | AV195: 7 | AW195: 15 | AX195: 7 | AY195: 9 | AZ195: 9 | BA195: 25 | BB195: 3 | BC195: 5 | BD195: 7 | BE195: 11 | BF195: 7 | BG195: 11 | BH195: 17 | BI195: 27 | BJ195: 44 | BK195: 396 | BL195: 4 | BM195: 5 | BN195: 5 | BO195: 14 | BP195: 4 | BQ195: 3 | BR195: 5 | BS195: 12 | BT195: ناجحة | BV195: 0 | CR195: 128 | CS195: 351
A196: 189 | B196: 189 | C196: طالبة منتظمة189 | D196: 6/1 | E196: 290 | F196: 9 | G196: 13 | H196: 9 | I196: 31 | J196: 9 | K196: 6 | L196: 5 | M196: 20 | N196: 5 | O196: 7 | P196: 7 | Q196: 19 | R196: 9 | S196: 10 | T196: 13 | U196: 32 | V196: 9 | W196: 17 | X196: 19 | Y196: 45 | Z196: 9 | AA196: 17 | AB196: 15 | AC196: 41 | AD196: 9 | AE196: 15 | AF196: 16 | AG196: 40 | AH196: 9 | AI196: 17 | AJ196: 17 | AK196: 43 | AL196: 9 | AM196: 15 | AN196: 20 | AO196: 44 | AP196: 9 | AQ196: 16 | AR196: 16 | AS196: 41 | AT196: 5 | AU196: 7 | AV196: 9 | AW196: 21 | AX196: 7 | AY196: 9 | AZ196: 13 | BA196: 29 | BB196: 3 | BC196: 5 | BD196: 7 | BE196: 8 | BF196: 7 | BG196: 8 | BH196: 17 | BI196: 21 | BJ196: 38 | BK196: 444 | BL196: 4 | BM196: 8 | BN196: 8 | BO196: 20 | BP196: 4 | BQ196: 8 | BR196: 8 | BS196: 20 | BT196: ناجحة | BV196: 0 | CR196: 164 | CS196: 74
A197: 190 | B197: 190 | C197: طالبة منتظمة190 | D197: 6/1 | E197: 291 | F197: 9 | G197: 4 | H197: 4 | I197: 17 | J197: 9 | K197: 6 | L197: 5 | M197: 20 | N197: 5 | O197: 6 | P197: 7 | Q197: 18 | R197: 9 | S197: 2 | T197: 4 | U197: 15 | V197: 9 | W197: 6 | X197: 15 | Y197: 30 | Z197: 9 | AA197: 14 | AB197: 5 | AC197: 28 | AD197: 9 | AE197: 14 | AF197: 9 | AG197: 32 | AH197: 9 | AI197: 18 | AJ197: 18 | AK197: 45 | AL197: 9 | AM197: 12 | AN197: 19 | AO197: 40 | AP197: 9 | AQ197: 10 | AR197: 10 | AS197: 29 | AT197: 5 | AU197: 2 | AV197: 8 | AW197: 15 | AX197: 7 | AY197: 4 | AZ197: 14 | BA197: 25 | BB197: 3 | BC197: 5 | BD197: 7 | BE197: 11 | BF197: 7 | BG197: 11 | BH197: 17 | BI197: 27 | BJ197: 44 | BK197: 358 | BL197: 4 | BM197: 3 | BN197: 3 | BO197: 10 | BP197: 4 | BQ197: 5 | BR197: 3 | BS197: 12 | BT197: دورثان | BU197: لغة عربية - محاسبة مالية - | BV197: 2 | BZ197: لغة عربية - | CC197: محاسبة مالية - | CR197: 116 | CS197: 409
A198: 191 | B198: 191 | C198: طالبة منتظمة191 | D198: 6/1 | E198: 292 | F198: 9 | G198: غ | H198: غ | I198: 9 | J198: 9 | K198: غ | L198: غ | M198: 9 | N198: 5 | O198: غ | P198: غ | Q198: 5 | R198: 9 | S198: غ | T198: غ | U198: 9 | V198: 9 | W198: غ | X198: غ | Y198: 9 | Z198: 9 | AA198: غ | AB198: غ | AC198: 9 | AD198: 9 | AE198: غ | AF198: غ | AG198: 9 | AH198: 9 | AI198: غ | AJ198: غ | AK198: 9 | AL198: 9 | AM198: غ | AN198: غ | AO198: 9 | AP198: 9 | AQ198: غ | AR198: غ | AS198: 9 | AT198: 5 | AU198: غ | AV198: غ | AW198: 5 | AX198: 7 | AY198: غ | AZ198: غ | BA198: 7 | BB198: 3 | BC198: 5 | BD198: غ | BE198: غ | BF198: غ | BG198: غ | BH198: 3 | BI198: 5 | BJ198: 8 | BK198: 106 | BL198: 4 | BM198: غ | BN198: غ | BO198: 4 | BP198: 4 | BQ198: غ | BR198: غ | BS198: 4 | BT198: راسبة | BU198: لغة عربية - لغة انجليزية - لغة فرنسية - محاسبة مالية - سكرتارية عربية - سكرتارية اجنبية - اقتصاد - تسويق - ادارة اعمال - رياضة عامة - جغرافيا - حاسب ألى - مجموع - تربية قوميةتربية دينية | BV198: 16 | BZ198: لغة عربية - | CA198: لغة انجليزية - | CB198: لغة فرنسية - | CC198: محاسبة مالية - | CD198: سكرتارية عربية - | CE198: سكرتارية اجنبية - | CF198: اقتصاد - | CG198: تسويق - | CH198: ادارة اعمال - | CI198: قانون تجارى - | CJ198: رياضة عامة - | CK198: جغرافيا - | CL198: حاسب ألى - | CM198: مجموع - | CN198: تربية قومية | CO198: تربية دينية | CR198: 0 | CS198: 447
A199: 192 | B199: 192 | C199: طالبة منتظمة192 | D199: 6/1 | E199: 293 | F199: 9 | G199: 11 | H199: 8 | I199: 28 | J199: 9 | K199: 6 | L199: 5 | M199: 20 | N199: 5 | O199: 8 | P199: 8 | Q199: 21 | R199: 9 | S199: 7 | T199: 9 | U199: 25 | V199: 9 | W199: 14 | X199: 19 | Y199: 42 | Z199: 9 | AA199: 14 | AB199: 15 | AC199: 38 | AD199: 9 | AE199: 15 | AF199: 13 | AG199: 37 | AH199: 9 | AI199: 16 | AJ199: 16 | AK199: 41 | AL199: 9 | AM199: 15 | AN199: 19 | AO199: 43 | AP199: 9 | AQ199: 11 | AR199: 11 | AS199: 31 | AT199: 5 | AU199: 4 | AV199: 11 | AW199: 20 | AX199: 7 | AY199: 8 | AZ199: 11 | BA199: 26 | BB199: 3 | BC199: 5 | BD199: 8 | BE199: 11 | BF199: 8 | BG199: 11 | BH199: 19 | BI199: 27 | BJ199: 46 | BK199: 418 | BL199: 4 | BM199: 6 | BN199: 6 | BO199: 16 | BP199: 4 | BQ199: 6 | BR199: 6 | BS199: 16 | BT199: ناجحة | BV199: 0 | CR199: 148 | CS199: 179
A200: 193 | B200: 193 | C200: طالبة منتظمة193 | D200: 6/1 | E200: 294 | F200: 9 | G200: 12 | H200: 12 | I200: =SUM(F200:H200) -> 33 | J200: 9 | K200: 14 | L200: 11 | M200: =SUM(J200:L200) -> 34 | N200: 5 | O200: 9 | P200: 8 | Q200: =SUM(N200:P200) -> 22 | R200: 9 | S200: 17 | T200: 16 | U200: =SUM(R200:T200) -> 42 | V200: 9 | W200: 18 | X200: 20 | Y200: =SUM(V200:X200) -> 47 | Z200: 9 | AA200: 18 | AB200: 18 | AC200: =SUM(Z200:AB200) -> 45 | AD200: 9 | AE200: 16 | AF200: 15 | AG200: =SUM(AD200:AF200) -> 40 | AH200: 9 | AI200: 17 | AJ200: 17 | AK200: =SUM(AH200:AJ200) -> 43 | AL200: 9 | AM200: 17 | AN200: 20 | AO200: =SUM(AL200:AN200) -> 46 | AP200: 9 | AQ200: 18 | AR200: 18 | AS200: =SUM(AP200:AR200) -> 45 | AT200: 5 | AU200: 7 | AV200: 12 | AW200: =SUM(AT200:AV200) -> 24 | AX200: 7 | AY200: 9 | AZ200: 11 | BA200: =SUM(AX200:AZ200) -> 27 | BB200: 3 | BC200: 5 | BD200: 7 | BE200: 9 | BF200: 7 | BG200: 9 | BH200: =SUM(BB200,BD200,BF200) -> 17 | BI200: =SUM(BC200,BE200,BG200) -> 23 | BJ200: =SUM(BH200,BI200) -> 40 | BK200: =SUM(I200,M200,Q200,U200,Y200,AC200,AG200,AK200,AO200,AS200,AW200,BA200,BJ200) -> 488 | BL200: 4 | BM200: 4 | BN200: 4 | BO200: =SUM(BL200:BN200) -> 12 | BP200: 4 | BQ200: 7 | BR200: 4 | BS200: =SUM(BP200:BR200) -> 15 | BT200: ناجحة | BV200: 0 | CR200: 188 | CS200: 7
... 276 more rows

Sheet شهادات نصف العام
H1: مدرسة .....................التجارية بنات | V1: ورقة رقم : | Y1: 1 | AB1: الورقة الحالية
V2: الى ورقة : | Y2: 1
H3: شهادات نصف العام 2017 / 2018 | AB3: =$Y$1 -> 1
F5: مدرسة ............... التجارية بنات | M5: شهادة درجات نصف العام 2017 / 2018
F6: الاسم / | G6: اسراء محمد عبد الفتاح محمد | O6: الفصل / | Q6: 1/1 | S6: جلوس / | V6: 1
F7: المادة | G7: لغة عربية | H7: لغة انجليزية | I7: لغة فرنسية | J7: محاسبة مالية | K7: سكرتارية عربية | L7: سكرتارية اجنبية | M7: اقتصاد | N7: تسويق | O7: ادارة اعمال | P7: قانون تجارى | Q7: رياضة عامة | R7: جغرافيا | S7: حاسب ألى عملى | T7: حاسب ألى تحريرى | U7: مجموع | V7: تربية قومية | W7: تربية دينية
F8: العظمى | G8: 20 | H8: 20 | I8: 12 | J8: 20 | K8: 20 | L8: 20 | M8: 20 | N8: 20 | O8: 20 | P8: 20 | Q8: 12 | R8: 16 | S8: 8 | T8: 12 | U8: 240 | V8: 8 | W8: 8
F9: الدرجة | G9: 15 | H9: 10 | I9: 8 | J9: 2 | K9: 9 | L9: 7 | M9: 15 | N9: 15 | O9: 16 | P9: 19 | Q9: 2 | R9: 10 | S9: 7 | T9: 8 | U9: 134 | V9: 7 | W9: 6
F13: مدرسة ............... التجارية بنات | M13: شهادة درجات نصف العام 2017 / 2018
F14: الاسم / | G14: اية محمد رضا محمد علي | O14: الفصل / | Q14: 2/1 | S14: جلوس / | V14: 2
F15: المادة | G15: لغة عربية | H15: لغة انجليزية | I15: لغة فرنسية | J15: محاسبة مالية | K15: سكرتارية عربية | L15: سكرتارية اجنبية | M15: اقتصاد | N15: تسويق | O15: ادارة اعمال | P15: قانون تجارى | Q15: رياضة عامة | R15: جغرافيا | S15: حاسب ألى عملى | T15: حاسب ألى تحريرى | U15: مجموع | V15: تربية قومية | W15: تربية دينية
F16: العظمى | G16: 20 | H16: 20 | I16: 12 | J16: 20 | K16: 20 | L16: 20 | M16: 20 | N16: 20 | O16: 20 | P16: 20 | Q16: 12 | R16: 16 | S16: 8 | T16: 12 | U16: 240 | V16: 8 | W16: 8
F17: الدرجة | G17: 10.5 | H17: 10 | I17: 9 | J17: 13 | K17: 16 | L17: 17 | M17: 16 | N17: 14 | O17: 16 | P17: 18 | Q17: 11 | R17: 11 | S17: 7 | T17: 7 | U17: 175 | V17: 7 | W17: 7
F21: مدرسة ............... التجارية بنات | M21: شهادة درجات نصف العام 2017 / 2018
F22: الاسم / | G22: ايمان طه محمدي عباس | O22: الفصل / | Q22: 1/1 | S22: جلوس / | V22: 3
F23: المادة | G23: لغة عربية | H23: لغة انجليزية | I23: لغة فرنسية | J23: محاسبة مالية | K23: سكرتارية عربية | L23: سكرتارية اجنبية | M23: اقتصاد | N23: تسويق | O23: ادارة اعمال | P23: قانون تجارى | Q23: رياضة عامة | R23: جغرافيا | S23: حاسب ألى عملى | T23: حاسب ألى تحريرى | U23: مجموع | V23: تربية قومية | W23: تربية دينية
F24: العظمى | G24: 20 | H24: 20 | I24: 12 | J24: 20 | K24: 20 | L24: 20 | M24: 20 | N24: 20 | O24: 20 | P24: 20 | Q24: 12 | R24: 16 | S24: 8 | T24: 12 | U24: 240 | V24: 8 | W24: 8
F25: الدرجة | G25: 7.5 | H25: 8 | I25: 9 | J25: 10 | K25: 15 | L25: 13 | M25: 17 | N25: 13 | O25: 10 | P25: 18 | Q25: 7 | R25: 13 | S25: 7 | T25: 10 | U25: 163 | V25: 8 | W25: 7
F29: مدرسة ............... التجارية بنات | M29: شهادة درجات نصف العام 2017 / 2018
F30: الاسم / | G30: ايمان ماهر محمود قطوطة | O30: الفصل / | Q30: 1/1 | S30: جلوس / | V30: 4
F31: المادة | G31: لغة عربية | H31: لغة انجليزية | I31: لغة فرنسية | J31: محاسبة مالية | K31: سكرتارية عربية | L31: سكرتارية اجنبية | M31: اقتصاد | N31: تسويق | O31: ادارة اعمال | P31: قانون تجارى | Q31: رياضة عامة | R31: جغرافيا | S31: حاسب ألى عملى | T31: حاسب ألى تحريرى | U31: مجموع | V31: تربية قومية | W31: تربية دينية
F32: العظمى | G32: 20 | H32: 20 | I32: 12 | J32: 20 | K32: 20 | L32: 20 | M32: 20 | N32: 20 | O32: 20 | P32: 20 | Q32: 12 | R32: 16 | S32: 8 | T32: 12 | U32: 240 | V32: 8 | W32: 8
F33: الدرجة | G33: 7.5 | H33: 9.2 | I33: 7 | J33: 11 | K33: 13 | L33: 13 | M33: 16 | N33: 14 | O33: 11 | P33: 19 | Q33: 6 | R33: 11 | S33: 7 | T33: 8 | U33: 154 | V33: 4 | W33: 6

Sheet شيت الناجحات (hidden)
C1: الناجحات | G1: ادارة ………….. التعليمية | AD1: شيت كنترول الصف الاول | AQ1: الناجحات
G2: مدرسة …………….. التجارية | AD2: للعام الدراسى 2017 / 2018
A3: مسلسل | B3: جلوس | C3: الاسم | D3: الفصل | E3: سرى | F3: لغة عربية | J3: لغة انجليزية | N3: لغة فرنسية | R3: محاسبة مالية | V3: سكرتارية عربية | Z3: سكرتارية اجنبية | AD3: اقتصاد | AH3: تسويق | AL3: ادارة اعمال | AP3: قانون تجارى | AT3: رياضة عامة | AX3: جغرافيا | BB3: حاسب آألى | BK3: مجموع كلى | BL3: تربية قومية | BP3: تربية دينية | BT3: النتيجة | BU3: الترتيب
F4: اعمال السنة | G4: نصف العام | H4: آخر العام | I4: المجموع | J4: اعمال السنة | K4: نصف العام | L4: آخر العام | M4: المجموع | N4: اعمال السنة | O4: نصف العام | P4: آخر العام | Q4: المجموع | R4: اعمال السنة | S4: نصف العام | T4: آخر العام | U4: المجموع | V4: اعمال السنة | W4: نصف العام | X4: آخر العام | Y4: المجموع | Z4: اعمال السنة | AA4: نصف العام | AB4: آخر العام | AC4: المجموع | AD4: اعمال السنة | AE4: نصف العام | AF4: آخر العام | AG4: المجموع | AH4: اعمال السنة | AI4: نصف العام | AJ4: آخر العام | AK4: المجموع | AL4: اعمال السنة | AM4: نصف العام | AN4: آخر العام | AO4: المجموع | AP4: اعمال السنة | AQ4: نصف العام | AR4: آخر العام | AS4: المجموع | AT4: اعمال السنة | AU4: نصف العام | AV4: آخر العام | AW4: المجموع | AX4: اعمال السنة | AY4: نصف العام | AZ4: آخر العام | BA4: المجموع | BB4: اعمال السنة | BD4: نصف العام | BF4: آخر العام | BH4: مج عملى | BI4: مج تحريرى | BJ4: مج حاسب | BL4: اعمال السنة | BM4: نصف العام | BN4: آخر العام | BO4: المجموع | BP4: اعمال السنة | BQ4: نصف العام | BR4: آخر العام | BS4: المجموع
BB5: عملى | BC5: تحريرى | BD5: عملى | BE5: تحريرى | BF5: عملى | BG5: تحريرى
E6: عظمى | F6: 10 | G6: 20 | H6: 20 | I6: 50 | J6: 10 | K6: 20 | L6: 20 | M6: 50 | N6: 6 | O6: 12 | P6: 12 | Q6: 30 | R6: 10 | S6: 20 | T6: 20 | U6: 50 | V6: 10 | W6: 20 | X6: 20 | Y6: 50 | Z6: 10 | AA6: 20 | AB6: 20 | AC6: 50 | AD6: 10 | AE6: 20 | AF6: 20 | AG6: 50 | AH6: 10 | AI6: 20 | AJ6: 20 | AK6: 50 | AL6: 10 | AM6: 20 | AN6: 20 | AO6: 50 | AP6: 10 | AQ6: 20 | AR6: 20 | AS6: 50 | AT6: 6 | AU6: 12 | AV6: 12 | AW6: 30 | AX6: 8 | AY6: 16 | AZ6: 16 | BA6: 40 | BB6: 4 | BC6: 6 | BD6: 8 | BE6: 12 | BF6: 8 | BG6: 12 | BH6: 20 | BI6: 30 | BJ6: 50 | BK6: 600 | BL6: 4 | BM6: 8 | BN6: 8 | BO6: 20 | BP6: 4 | BQ6: 8 | BR6: 8 | BS6: 20
E7: صغرى | F7: 0 | G7: 0 | H7: 5 | I7: 25 | J7: 0 | K7: 0 | L7: 5 | M7: 20 | N7: 0 | O7: 0 | P7: 3 | Q7: 9 | R7: 0 | S7: 0 | T7: 5 | U7: 25 | V7: 0 | W7: 0 | X7: 5 | Y7: 25 | Z7: 0 | AA7: 0 | AB7: 5 | AC7: 20 | AD7: 0 | AE7: 0 | AF7: 5 | AG7: 25 | AH7: 0 | AI7: 0 | AJ7: 5 | AK7: 25 | AL7: 0 | AM7: 0 | AN7: 5 | AO7: 25 | AP7: 0 | AQ7: 0 | AR7: 5 | AS7: 25 | AT7: 0 | AU7: 0 | AV7: 3 | AW7: 15 | AX7: 0 | AY7: 0 | AZ7: 4 | BA7: 20 | BB7: 0 | BC7: 0 | BD7: 0 | BE7: 0 | BF7: 2 | BG7: 3 | BH7: 10 | BI7: 15 | BJ7: 25 | BK7: 300 | BL7: 0 | BM7: 0 | BN7: 2 | BO7: 10 | BP7: 0 | BQ7: 0 | BR7: 2 | BS7: 10
A8: 1 | B8: 175 | C8: محمود علي عبد الله شحاته | D8: 5/1 | E8: 456 | G8: 16.5 | H8: 18.5 | I8: 35 | K8: 9.5 | L8: 14.5 | M8: 24 | O8: 11.5 | P8: 10.5 | Q8: 22 | S8: 2.5 | T8: 24 | U8: 26.5 | W8: 14 | X8: 12.5 | Y8: 26.5 | AA8: 9 | AB8: 14 | AC8: 23 | AE8: 16.5 | AF8: 17.5 | AG8: 34 | AI8: 12.5 | AJ8: 16 | AK8: 28.5 | AM8: 11.5 | AN8: 16.5 | AO8: 28 | AQ8: 15 | AR8: 16 | AS8: 31 | AU8: 7.5 | AV8: 12.5 | AW8: 20 | AY8: 15 | AZ8: 14 | BA8: 29 | BD8: 8 | BE8: 9 | BF8: 8 | BG8: 11.5 | BH8: 16 | BI8: 20.5 | BJ8: 36.5 | BK8: 364 | BM8: 5 | BN8: 5.5 | BO8: 10.5 | BQ8: 9 | BR8: 8 | BS8: 17 | BT8: ناجحة | BU8: 221
A9: 2 | B9: 178 | C9: طالبة منتظمة178 | D9: 5/1 | E9: 459 | F9: 9 | G9: 14 | H9: 10 | I9: 33 | J9: 9 | K9: 10 | L9: 9 | M9: 28 | N9: 5 | O9: 11 | P9: 8 | Q9: 24 | R9: 9 | S9: 13 | T9: 17 | U9: 39 | V9: 9 | W9: 18 | X9: 18 | Y9: 45 | Z9: 9 | AA9: 18 | AB9: 17 | AC9: 44 | AD9: 9 | AE9: 13 | AF9: 17 | AG9: 39 | AH9: 9 | AI9: 17 | AJ9: 17 | AK9: 43 | AL9: 9 | AM9: 16 | AN9: 10 | AO9: 35 | AP9: 9 | AQ9: 18 | AR9: 18 | AS9: 45 | AT9: 5 | AU9: 12 | AV9: 10 | AW9: 27 | AX9: 7 | AY9: 8 | AZ9: 9 | BA9: 24 | BB9: 3 | BC9: 5 | BD9: 7 | BE9: 10 | BF9: 7 | BG9: 10 | BH9: 17 | BI9: 25 | BJ9: 42 | BK9: 468 | BL9: 4 | BM9: 6 | BN9: 6 | BO9: 16 | BP9: 4 | BQ9: 8 | BR9: 6 | BS9: 18 | BT9: ناجحة | BU9: 19
A10: 3 | B10: 179 | C10: طالبة منتظمة179 | D10: 5/1 | E10: 460 | F10: 9 | G10: 9 | H10: 8 | I10: 26 | J10: 9 | K10: 6 | L10: 5 | M10: 20 | N10: 5 | O10: 9 | P10: 7 | Q10: 21 | R10: 9 | S10: 9 | T10: 7 | U10: 25 | V10: 9 | W10: 20 | X10: 19 | Y10: 48 | Z10: 9 | AA10: 15 | AB10: 15 | AC10: 39 | AD10: 9 | AE10: 16 | AF10: 17 | AG10: 42 | AH10: 9 | AI10: 18 | AJ10: 18 | AK10: 45 | AL10: 9 | AM10: 15 | AN10: 13 | AO10: 37 | AP10: 9 | AQ10: 18 | AR10: 18 | AS10: 45 | AT10: 5 | AU10: 7 | AV10: 7 | AW10: 19 | AX10: 7 | AY10: 8 | AZ10: 11 | BA10: 26 | BB10: 3 | BC10: 5 | BD10: 7 | BE10: 10 | BF10: 7 | BG10: 10 | BH10: 17 | BI10: 25 | BJ10: 42 | BK10: 435 | BL10: 4 | BM10: 7 | BN10: 7 | BO10: 18 | BP10: 4 | BQ10: 8 | BR10: 7 | BS10: 19 | BT10: ناجحة | BU10: 74
A11: 4 | B11: 180 | C11: طالبة منتظمة180 | D11: 5/1 | E11: 461 | F11: 9 | G11: 8 | H11: 8 | I11: 25 | J11: 9 | K11: 6 | L11: 5 | M11: 20 | N11: 5 | O11: 8 | P11: 8 | Q11: 21 | R11: 9 | S11: 10 | T11: 6 | U11: 25 | V11: 9 | W11: 19 | X11: 17 | Y11: 45 | Z11: 9 | AA11: 15 | AB11: 17 | AC11: 41 | AD11: 9 | AE11: 14 | AF11: 9 | AG11: 32 | AH11: 9 | AI11: 16 | AJ11: 16 | AK11: 41 | AL11: 9 | AM11: 17 | AN11: 13 | AO11: 39 | AP11: 9 | AQ11: 17 | AR11: 17 | AS11: 43 | AT11: 5 | AU11: 5 | AV11: 5 | AW11: 15 | AX11: 7 | AY11: 8 | AZ11: 10 | BA11: 25 | BB11: 3 | BC11: 5 | BD11: 7 | BE11: 10 | BF11: 7 | BG11: 10 | BH11: 17 | BI11: 25 | BJ11: 42 | BK11: 414 | BL11: 4 | BM11: 7 | BN11: 7 | BO11: 18 | BP11: 4 | BQ11: 7 | BR11: 7 | BS11: 18 | BT11: ناجحة | BU11: 129
A12: 5 | B12: 181 | C12: طالبة منتظمة181 | D12: 6/1 | E12: 282 | F12: 9 | G12: 10 | H12: 9 | I12: 28 | J12: 9 | K12: 9 | L12: 9 | M12: 27 | N12: 5 | O12: 9 | P12: 8 | Q12: 22 | R12: 9 | S12: 13 | T12: 15 | U12: 37 | V12: 9 | W12: 14 | X12: 19 | Y12: 42 | Z12: 9 | AA12: 16 | AB12: 14 | AC12: 39 | AD12: 9 | AE12: 17 | AF12: 16 | AG12: 42 | AH12: 9 | AI12: 17 | AJ12: 17 | AK12: 43 | AL12: 9 | AM12: 15 | AN12: 19 | AO12: 43 | AP12: 9 | AQ12: 13 | AR12: 13 | AS12: 35 | AT12: 5 | AU12: 9 | AV12: 10 | AW12: 24 | AX12: 7 | AY12: 8 | AZ12: 11 | BA12: 26 | BB12: 3 | BC12: 5 | BD12: 7 | BE12: 10 | BF12: 7 | BG12: 10 | BH12: 17 | BI12: 25 | BJ12: 42 | BK12: 450 | BL12: 4 | BM12: 7 | BN12: 7 | BO12: 18 | BP12: 4 | BQ12: 6 | BR12: 7 | BS12: 17 | BT12: ناجحة | BU12: 44
A13: 6 | B13: 182 | C13: طالبة منتظمة182 | D13: 6/1 | E13: 283 | F13: 9 | G13: 10 | H13: 6 | I13: 25 | J13: 9 | K13: 7 | L13: 5 | M13: 21 | N13: 5 | O13: 8 | P13: 7 | Q13: 20 | R13: 9 | S13: 12 | T13: 14 | U13: 35 | V13: 9 | W13: 9 | X13: 20 | Y13: 38 | Z13: 9 | AA13: 17 | AB13: 18 | AC13: 44 | AD13: 9 | AE13: 18 | AF13: 17 | AG13: 44 | AH13: 9 | AI13: 18 | AJ13: 18 | AK13: 45 | AL13: 9 | AM13: 14 | AN13: 19 | AO13: 42 | AP13: 9 | AQ13: 13 | AR13: 13 | AS13: 35 | AT13: 5 | AU13: 5 | AV13: 8 | AW13: 18 | AX13: 7 | AY13: 7 | AZ13: 10 | BA13: 24 | BB13: 3 | BC13: 5 | BD13: 7 | BE13: 10 | BF13: 7 | BG13: 10 | BH13: 17 | BI13: 25 | BJ13: 42 | BK13: 433 | BL13: 4 | BM13: 6 | BN13: 6 | BO13: 16 | BP13: 4 | BQ13: 6 | BR13: 6 | BS13: 16 | BT13: ناجحة | BU13: 81
A14: 7 | B14: 183 | C14: طالبة منتظمة183 | D14: 6/1 | E14: 284 | F14: 9 | G14: 10 | H14: 8 | I14: 27 | J14: 9 | K14: 7 | L14: 6 | M14: 22 | N14: 5 | O14: 7 | P14: 7 | Q14: 19 | R14: 9 | S14: 12 | T14: 13 | U14: 34 | V14: 9 | W14: 14 | X14: 20 | Y14: 43 | Z14: 9 | AA14: 15 | AB14: 8 | AC14: 32 | AD14: 9 | AE14: 15 | AF14: 13 | AG14: 37 | AH14: 9 | AI14: 15 | AJ14: 15 | AK14: 39 | AL14: 9 | AM14: 15 | AN14: 19 | AO14: 43 | AP14: 9 | AQ14: 10 | AR14: 10 | AS14: 29 | AT14: 5 | AU14: 7 | AV14: 7 | AW14: 19 | AX14: 7 | AY14: 7 | AZ14: 7 | BA14: 21 | BB14: 3 | BC14: 5 | BD14: 7 | BE14: 10 | BF14: 7 | BG14: 10 | BH14: 17 | BI14: 25 | BJ14: 42 | BK14: 407 | BL14: 4 | BM14: 4 | BN14: 4 | BO14: 12 | BP14: 4 | BQ14: 6 | BR14: 4 | BS14: 14 | BT14: ناجحة | BU14: 142
A15: 8 | B15: 184 | C15: طالبة منتظمة184 | D15: 6/1 | E15: 285 | F15: 9 | G15: 9 | H15: 12 | I15: 30 | J15: 9 | K15: 7 | L15: 5 | M15: 21 | N15: 5 | O15: 8 | P15: 7 | Q15: 20 | R15: 9 | S15: 14 | T15: 14 | U15: 37 | V15: 9 | W15: 14 | X15: 19 | Y15: 42 | Z15: 9 | AA15: 18 | AB15: 12 | AC15: 39 | AD15: 9 | AE15: 17 | AF15: 18 | AG15: 44 | AH15: 9 | AI15: 15 | AJ15: 15 | AK15: 39 | AL15: 9 | AM15: 15 | AN15: 20 | AO15: 44 | AP15: 9 | AQ15: 11 | AR15: 11 | AS15: 31 | AT15: 5 | AU15: 10 | AV15: 10 | AW15: 25 | AX15: 7 | AY15: 9 | AZ15: 13 | BA15: 29 | BB15: 3 | BC15: 5 | BD15: 7 | BE15: 11 | BF15: 7 | BG15: 11 | BH15: 17 | BI15: 27 | BJ15: 44 | BK15: 445 | BL15: 4 | BM15: 8 | BN15: 8 | BO15: 20 | BP15: 4 | BQ15: 8 | BR15: 8 | BS15: 20 | BT15: ناجحة | BU15: 53
A16: 9 | B16: 185 | C16: طالبة منتظمة185 | D16: 6/1 | E16: 286 | F16: 9 | G16: 9 | H16: 10 | I16: 28 | J16: 9 | K16: 8 | L16: 9 | M16: 26 | N16: 5 | O16: 8 | P16: 8 | Q16: 21 | R16: 9 | S16: 15 | T16: 15 | U16: 39 | V16: 9 | W16: 15 | X16: 20 | Y16: 44 | Z16: 9 | AA16: 19 | AB16: 16 | AC16: 44 | AD16: 9 | AE16: 14 | AF16: 18 | AG16: 41 | AH16: 9 | AI16: 17 | AJ16: 17 | AK16: 43 | AL16: 9 | AM16: 15 | AN16: 20 | AO16: 44 | AP16: 9 | AQ16: 18 | AR16: 18 | AS16: 45 | AT16: 5 | AU16: 11 | AV16: 11 | AW16: 27 | AX16: 7 | AY16: 11 | AZ16: 13 | BA16: 31 | BB16: 3 | BC16: 5 | BD16: 7 | BE16: 11 | BF16: 7 | BG16: 11 | BH16: 17 | BI16: 27 | BJ16: 44 | BK16: 477 | BL16: 4 | BM16: 7 | BN16: 7 | BO16: 18 | BP16: 4 | BQ16: 8 | BR16: 7 | BS16: 19 | BT16: ناجحة | BU16: 14
A17: 10 | B17: 186 | C17: طالبة منتظمة186 | D17: 6/1 | E17: 287 | F17: 9 | G17: 6 | H17: 10 | I17: 25 | J17: 9 | K17: 6 | L17: 5 | M17: 20 | N17: 5 | O17: 8 | P17: 7 | Q17: 20 | R17: 9 | S17: 12 | T17: 9 | U17: 30 | V17: 9 | W17: 13 | X17: 20 | Y17: 42 | Z17: 9 | AA17: 12 | AB17: 12 | AC17: 33 | AD17: 9 | AE17: 14 | AF17: 18 | AG17: 41 | AH17: 9 | AI17: 18 | AJ17: 18 | AK17: 45 | AL17: 9 | AM17: 14 | AN17: 20 | AO17: 43 | AP17: 9 | AQ17: 15 | AR17: 15 | AS17: 39 | AT17: 5 | AU17: 5 | AV17: 8 | AW17: 18 | AX17: 7 | AY17: 9 | AZ17: 11 | BA17: 27 | BB17: 3 | BC17: 5 | BD17: 7 | BE17: 10 | BF17: 7 | BG17: 10 | BH17: 17 | BI17: 25 | BJ17: 42 | BK17: 425 | BL17: 4 | BM17: 5 | BN17: 5 | BO17: 14 | BP17: 4 | BQ17: 7 | BR17: 5 | BS17: 16 | BT17: ناجحة | BU17: 101
A18: 11 | B18: 187 | C18: طالبة منتظمة187 | D18: 6/1 | E18: 288 | F18: 9 | G18: 11 | H18: 5 | I18: 25 | J18: 9 | K18: 6 | L18: 5 | M18: 20 | N18: 5 | O18: 4 | P18: 6 | Q18: 15 | R18: 9 | S18: 9 | T18: 8 | U18: 26 | V18: 9 | W18: 12 | X18: 19 | Y18: 40 | Z18: 9 | AA18: 14 | AB18: 12 | AC18: 35 | AD18: 9 | AE18: 15 | AF18: 16 | AG18: 40 | AH18: 9 | AI18: 18 | AJ18: 18 | AK18: 45 | AL18: 9 | AM18: 8 | AN18: 20 | AO18: 37 | AP18: 9 | AQ18: 15 | AR18: 15 | AS18: 39 | AT18: 5 | AU18: 3 | AV18: 7 | AW18: 15 | AX18: 7 | AY18: 10 | AZ18: 9 | BA18: 26 | BB18: 3 | BC18: 5 | BD18: 7 | BE18: 10 | BF18: 7 | BG18: 10 | BH18: 17 | BI18: 25 | BJ18: 42 | BK18: 405 | BL18: 4 | BM18: 4 | BN18: 4 | BO18: 12 | BP18: 4 | BQ18: 7 | BR18: 4 | BS18: 15 | BT18: ناجحة | BU18: 147
A19: 12 | B19: 188 | C19: طالبة منتظمة188 | D19: 6/1 | E19: 289 | F19: 9 | G19: 8 | H19: 8 | I19: 25 | J19: 9 | K19: 6 | L19: 5 | M19: 20 | N19: 5 | O19: 8 | P19: 7 | Q19: 20 | R19: 9 | S19: 6 | T19: 10 | U19: 25 | V19: 9 | W19: 8 | X19: 17 | Y19: 34 | Z19: 9 | AA19: 7 | AB19: 18 | AC19: 34 | AD19: 9 | AE19: 12 | AF19: 16 | AG19: 37 | AH19: 9 | AI19: 13 | AJ19: 13 | AK19: 35 | AL19: 9 | AM19: 15 | AN19: 19 | AO19: 43 | AP19: 9 | AQ19: 15 | AR19: 15 | AS19: 39 | AT19: 5 | AU19: 3 | AV19: 7 | AW19: 15 | AX19: 7 | AY19: 9 | AZ19: 9 | BA19: 25 | BB19: 3 | BC19: 5 | BD19: 7 | BE19: 11 | BF19: 7 | BG19: 11 | BH19: 17 | BI19: 27 | BJ19: 44 | BK19: 396 | BL19: 4 | BM19: 5 | BN19: 5 | BO19: 14 | BP19: 4 | BQ19: 3 | BR19: 5 | BS19: 12 | BT19: ناجحة | BU19: 167
A20: 13 | B20: 189 | C20: طالبة منتظمة189 | D20: 6/1 | E20: 290 | F20: 9 | G20: 13 | H20: 9 | I20: 31 | J20: 9 | K20: 6 | L20: 5 | M20: 20 | N20: 5 | O20: 7 | P20: 7 | Q20: 19 | R20: 9 | S20: 10 | T20: 13 | U20: 32 | V20: 9 | W20: 17 | X20: 19 | Y20: 45 | Z20: 9 | AA20: 17 | AB20: 15 | AC20: 41 | AD20: 9 | AE20: 15 | AF20: 16 | AG20: 40 | AH20: 9 | AI20: 17 | AJ20: 17 | AK20: 43 | AL20: 9 | AM20: 15 | AN20: 20 | AO20: 44 | AP20: 9 | AQ20: 16 | AR20: 16 | AS20: 41 | AT20: 5 | AU20: 7 | AV20: 9 | AW20: 21 | AX20: 7 | AY20: 9 | AZ20: 13 | BA20: 29 | BB20: 3 | BC20: 5 | BD20: 7 | BE20: 8 | BF20: 7 | BG20: 8 | BH20: 17 | BI20: 21 | BJ20: 38 | BK20: 444 | BL20: 4 | BM20: 8 | BN20: 8 | BO20: 20 | BP20: 4 | BQ20: 8 | BR20: 8 | BS20: 20 | BT20: ناجحة | BU20: 54
A21: 14 | B21: 192 | C21: طالبة منتظمة192 | D21: 6/1 | E21: 293 | F21: 9 | G21: 11 | H21: 8 | I21: 28 | J21: 9 | K21: 6 | L21: 5 | M21: 20 | N21: 5 | O21: 8 | P21: 8 | Q21: 21 | R21: 9 | S21: 7 | T21: 9 | U21: 25 | V21: 9 | W21: 14 | X21: 19 | Y21: 42 | Z21: 9 | AA21: 14 | AB21: 15 | AC21: 38 | AD21: 9 | AE21: 15 | AF21: 13 | AG21: 37 | AH21: 9 | AI21: 16 | AJ21: 16 | AK21: 41 | AL21: 9 | AM21: 15 | AN21: 19 | AO21: 43 | AP21: 9 | AQ21: 11 | AR21: 11 | AS21: 31 | AT21: 5 | AU21: 4 | AV21: 11 | AW21: 20 | AX21: 7 | AY21: 8 | AZ21: 11 | BA21: 26 | BB21: 3 | BC21: 5 | BD21: 8 | BE21: 11 | BF21: 8 | BG21: 11 | BH21: 19 | BI21: 27 | BJ21: 46 | BK21: 418 | BL21: 4 | BM21: 6 | BN21: 6 | BO21: 16 | BP21: 4 | BQ21: 6 | BR21: 6 | BS21: 16 | BT21: ناجحة | BU21: 113
A22: 15 | B22: 193 | C22: طالبة منتظمة193 | D22: 6/1 | E22: 294 | F22: 9 | G22: 12 | H22: 12 | I22: 33 | J22: 9 | K22: 14 | L22: 11 | M22: 34 | N22: 5 | O22: 9 | P22: 8 | Q22: 22 | R22: 9 | S22: 17 | T22: 16 | U22: 42 | V22: 9 | W22: 18 | X22: 20 | Y22: 47 | Z22: 9 | AA22: 18 | AB22: 18 | AC22: 45 | AD22: 9 | AE22: 16 | AF22: 15 | AG22: 40 | AH22: 9 | AI22: 17 | AJ22: 17 | AK22: 43 | AL22: 9 | AM22: 17 | AN22: 20 | AO22: 46 | AP22: 9 | AQ22: 18 | AR22: 18 | AS22: 45 | AT22: 5 | AU22: 7 | AV22: 12 | AW22: 24 | AX22: 7 | AY22: 9 | AZ22: 11 | BA22: 27 | BB22: 3 | BC22: 5 | BD22: 7 | BE22: 9 | BF22: 7 | BG22: 9 | BH22: 17 | BI22: 23 | BJ22: 40 | BK22: 488 | BL22: 4 | BM22: 4 | BN22: 4 | BO22: 12 | BP22: 4 | BQ22: 7 | BR22: 4 | BS22: 15 | BT22: ناجحة | BU22: 7
A23: 16 | B23: 194 | C23: طالبة منتظمة194 | D23: 6/1 | E23: 295 | F23: 9 | G23: 10 | H23: 8 | I23: 27 | J23: 9 | K23: 4 | L23: 8 | M23: 21 | N23: 5 | O23: 8 | P23: 8 | Q23: 21 | R23: 9 | S23: 16 | T23: 15 | U23: 40 | V23: 9 | W23: 15 | X23: 20 | Y23: 44 | Z23: 9 | AA23: 12 | AB23: 13 | AC23: 34 | AD23: 9 | AE23: 17 | AF23: 14 | AG23: 40 | AH23: 9 | AI23: 16 | AJ23: 16 | AK23: 41 | AL23: 9 | AM23: 17 | AN23: 19 | AO23: 45 | AP23: 9 | AQ23: 15 | AR23: 15 | AS23: 39 | AT23: 5 | AU23: 7 | AV23: 10 | AW23: 22 | AX23: 7 | AY23: 10 | AZ23: 7 | BA23: 24 | BB23: 3 | BC23: 5 | BD23: 7 | BE23: 10 | BF23: 7 | BG23: 10 | BH23: 17 | BI23: 25 | BJ23: 42 | BK23: 440 | BL23: 4 | BM23: 6 | BN23: 6 | BO23: 16 | BP23: 4 | BQ23: 6 | BR23: 6 | BS23: 16 | BT23: ناجحة | BU23: 62
A24: 17 | B24: 196 | C24: طالبة منتظمة196 | D24: 6/1 | E24: 297 | F24: 9 | G24: 8 | H24: 8 | I24: 25 | J24: 9 | K24: 6 | L24: 5 | M24: 20 | N24: 5 | O24: 8 | P24: 8 | Q24: 21 | R24: 9 | S24: 12 | T24: 11 | U24: 32 | V24: 9 | W24: 17 | X24: 18 | Y24: 44 | Z24: 9 | AA24: 19 | AB24: 15 | AC24: 43 | AD24: 9 | AE24: 16 | AF24: 15 | AG24: 40 | AH24: 9 | AI24: 15 | AJ24: 15 | AK24: 39 | AL24: 9 | AM24: 15 | AN24: 19 | AO24: 43 | AP24: 9 | AQ24: 15 | AR24: 15 | AS24: 39 | AT24: 5 | AU24: 4 | AV24: 11 | AW24: 20 | AX24: 7 | AY24: 8 | AZ24: 10 | BA24: 25 | BB24: 3 | BC24: 5 | BD24: 7 | BE24: 11 | BF24: 7 | BG24: 11 | BH24: 17 | BI24: 27 | BJ24: 44 | BK24: 435 | BL24: 4 | BM24: 5 | BN24: 5 | BO24: 14 | BP24: 4 | BQ24: 7 | BR24: 5 | BS24: 16 | BT24: ناجحة | BU24: 74
A25: 18 | B25: 197 | C25: طالبة منتظمة197 | D25: 6/1 | E25: 298 | F25: 9 | G25: 9 | H25: 12 | I25: 30 | J25: 9 | K25: 5 | L25: 6 | M25: 20 | N25: 5 | O25: 8 | P25: 8 | Q25: 21 | R25: 9 | S25: 11 | T25: 16 | U25: 36 | V25: 9 | W25: 16 | X25: 20 | Y25: 45 | Z25: 9 | AA25: 18 | AB25: 15 | AC25: 42 | AD25: 9 | AE25: 18 | AF25: 14 | AG25: 41 | AH25: 9 | AI25: 15 | AJ25: 15 | AK25: 39 | AL25: 9 | AM25: 12 | AN25: 20 | AO25: 41 | AP25: 9 | AQ25: 15 | AR25: 15 | AS25: 39 | AT25: 5 | AU25: 4 | AV25: 10 | AW25: 19 | AX25: 7 | AY25: 11 | AZ25: 13 | BA25: 31 | BB25: 3 | BC25: 5 | BD25: 7 | BE25: 10 | BF25: 7 | BG25: 10 | BH25: 17 | BI25: 25 | BJ25: 42 | BK25: 446 | BL25: 4 | BM25: 7 | BN25: 7 | BO25: 18 | BP25: 4 | BQ25: 7 | BR25: 7 | BS25: 18 | BT25: ناجحة | BU25: 50
A26: 19 | B26: 198 | C26: طالبة منتظمة198 | D26: 6/1 | E26: 299 | F26: 9 | G26: 8 | H26: 11 | I26: 28 | J26: 9 | K26: 6 | L26: 5 | M26: 20 | N26: 5 | O26: 8 | P26: 8 | Q26: 21 | R26: 9 | S26: 9 | T26: 13 | U26: 31 | V26: 9 | W26: 13 | X26: 16 | Y26: 38 | Z26: 9 | AA26: 11 | AB26: 13 | AC26: 33 | AD26: 9 | AE26: 18 | AF26: 11 | AG26: 38 | AH26: 9 | AI26: 14 | AJ26: 14 | AK26: 37 | AL26: 9 | AM26: 15 | AN26: 12 | AO26: 36 | AP26: 9 | AQ26: 10 | AR26: 10 | AS26: 29 | AT26: 5 | AU26: 3 | AV26: 12 | AW26: 20 | AX26: 7 | AY26: 10 | AZ26: 13 | BA26: 30 | BB26: 3 | BC26: 5 | BD26: 7 | BE26: 8 | BF26: 7 | BG26: 8 | BH26: 17 | BI26: 21 | BJ26: 38 | BK26: 399 | BL26: 4 | BM26: 4 | BN26: 4 | BO26: 12 | BP26: 4 | BQ26: 7 | BR26: 4 | BS26: 15 | BT26: ناجحة | BU26: 160
A27: 20 | B27: 199 | C27: طالبة منتظمة199 | D27: 6/1 | E27: 300 | F27: 9 | G27: 11 | H27: 10 | I27: 30 | J27: 9 | K27: 11 | L27: 5 | M27: 25 | N27: 5 | O27: 7 | P27: 7 | Q27: 19 | R27: 9 | S27: 6 | T27: 10 | U27: 25 | V27: 9 | W27: 14 | X27: 18 | Y27: 41 | Z27: 9 | AA27: 12 | AB27: 13 | AC27: 34 | AD27: 9 | AE27: 18 | AF27: 11 | AG27: 38 | AH27: 9 | AI27: 16 | AJ27: 16 | AK27: 41 | AL27: 9 | AM27: 10 | AN27: 17 | AO27: 36 | AP27: 9 | AQ27: 15 | AR27: 15 | AS27: 39 | AT27: 5 | AU27: 4 | AV27: 6 | AW27: 15 | AX27: 7 | AY27: 7 | AZ27: 11 | BA27: 25 | BB27: 3 | BC27: 5 | BD27: 7 | BE27: 10 | BF27: 7 | BG27: 10 | BH27: 17 | BI27: 25 | BJ27: 42 | BK27: 410 | BL27: 4 | BM27: 6 | BN27: 6 | BO27: 16 | BP27: 4 | BQ27: 8 | BR27: 6 | BS27: 18 | BT27: ناجحة | BU27: 137
A28: 21 | B28: 200 | C28: طالبة منتظمة200 | D28: 6/1 | E28: 301 | F28: 9 | G28: 14 | H28: 15 | I28: 38 | J28: 9 | K28: 10 | L28: 6 | M28: 25 | N28: 5 | O28: 8 | P28: 7 | Q28: 20 | R28: 9 | S28: 15 | T28: 17 | U28: 41 | V28: 9 | W28: 16 | X28: 20 | Y28: 45 | Z28: 9 | AA28: 18 | AB28: 17 | AC28: 44 | AD28: 9 | AE28: 17 | AF28: 18 | AG28: 44 | AH28: 9 | AI28: 18 | AJ28: 18 | AK28: 45 | AL28: 9 | AM28: 17 | AN28: 19 | AO28: 45 | AP28: 9 | AQ28: 15 | AR28: 15 | AS28: 39 | AT28: 5 | AU28: 9 | AV28: 12 | AW28: 26 | AX28: 7 | AY28: 16 | AZ28: 15 | BA28: 38 | BB28: 3 | BC28: 5 | BD28: 7 | BE28: 11 | BF28: 7 | BG28: 11 | BH28: 17 | BI28: 27 | BJ28: 44 | BK28: 494 | BL28: 4 | BM28: 7 | BN28: 7 | BO28: 18 | BP28: 4 | BQ28: 8 | BR28: 7 | BS28: 19 | BT28: ناجحة | BU28: 3
A29: 22 | B29: 202 | C29: طالبة منتظمة202 | D29: 6/1 | E29: 303 | F29: 9 | G29: 8 | H29: 13 | I29: 30 | J29: 9 | K29: 7 | L29: 8 | M29: 24 | N29: 5 | O29: 8 | P29: 6 | Q29: 19 | R29: 9 | S29: 11 | T29: 5 | U29: 25 | V29: 9 | W29: 15 | X29: 16 | Y29: 40 | Z29: 9 | AA29: 11 | AB29: 14 | AC29: 34 | AD29: 9 | AE29: 12 | AF29: 19 | AG29: 40 | AH29: 9 | AI29: 18 | AJ29: 18 | AK29: 45 | AL29: 9 | AM29: 16 | AN29: 19 | AO29: 44 | AP29: 9 | AQ29: 18 | AR29: 18 | AS29: 45 | AT29: 5 | AU29: 7 | AV29: 4 | AW29: 16 | AX29: 7 | AY29: 7 | AZ29: 10 | BA29: 24 | BB29: 3 | BC29: 5 | BD29: 7 | BE29: 11 | BF29: 7 | BG29: 11 | BH29: 17 | BI29: 27 | BJ29: 44 | BK29: 430 | BL29: 4 | BM29: 6 | BN29: 6 | BO29: 16 | BP29: 4 | BQ29: 7 | BR29: 6 | BS29: 17 | BT29: ناجحة | BU29: 88
A30: 23 | B30: 203 | C30: طالبة منتظمة203 | D30: 6/1 | E30: 304 | F30: 9 | G30: 9 | H30: 11 | I30: 29 | J30: 9 | K30: 9 | L30: 7 | M30: 25 | N30: 5 | O30: 8 | P30: 6 | Q30: 19 | R30: 9 | S30: 5 | T30: 13 | U30: 27 | V30: 9 | W30: 14 | X30: 13 | Y30: 36 | Z30: 9 | AA30: 11 | AB30: 15 | AC30: 35 | AD30: 9 | AE30: 12 | AF30: 13 | AG30: 34 | AH30: 9 | AI30: 18 | AJ30: 18 | AK30: 45 | AL30: 9 | AM30: 13 | AN30: 19 | AO30: 41 | AP30: 9 | AQ30: 12 | AR30: 12 | AS30: 33 | AT30: 5 | AU30: 12 | AV30: 9 | AW30: 26 | AX30: 7 | AY30: 6 | AZ30: 9 | BA30: 22 | BB30: 3 | BC30: 5 | BD30: 7 | BE30: 11 | BF30: 7 | BG30: 11 | BH30: 17 | BI30: 27 | BJ30: 44 | BK30: 416 | BL30: 4 | BM30: 5 | BN30: 5 | BO30: 14 | BP30: 4 | BQ30: 8 | BR30: 5 | BS30: 17 | BT30: ناجحة | BU30: 126
A31: 24 | B31: 204 | C31: طالبة منتظمة204 | D31: 6/1 | E31: 305 | F31: 9 | G31: 12 | H31: 10 | I31: 31 | J31: 9 | K31: 6 | L31: 9 | M31: 24 | N31: 5 | O31: 8 | P31: 7 | Q31: 20 | R31: 9 | S31: 11 | T31: 13 | U31: 33 | V31: 9 | W31: 10 | X31: 16 | Y31: 35 | Z31: 9 | AA31: 17 | AB31: 16 | AC31: 42 | AD31: 9 | AE31: 14 | AF31: 19 | AG31: 42 | AH31: 9 | AI31: 18 | AJ31: 18 | AK31: 45 | AL31: 9 | AM31: 16 | AN31: 19 | AO31: 44 | AP31: 9 | AQ31: 13 | AR31: 13 | AS31: 35 | AT31: 5 | AU31: 6 | AV31: 4 | AW31: 15 | AX31: 7 | AY31: 7 | AZ31: 8 | BA31: 22 | BB31: 3 | BC31: 5 | BD31: 7 | BE31: 11 | BF31: 7 | BG31: 11 | BH31: 17 | BI31: 27 | BJ31: 44 | BK31: 432 | BL31: 4 | BM31: 6 | BN31: 6 | BO31: 16 | BP31: 4 | BQ31: 8 | BR31: 6 | BS31: 18 | BT31: ناجحة | BU31: 84
A32: 25 | B32: 206 | C32: طالبة منتظمة206 | D32: 6/1 | E32: 307 | F32: 9 | G32: 10 | H32: 11 | I32: 30 | J32: 9 | K32: 6 | L32: 5 | M32: 20 | N32: 5 | O32: 7 | P32: 7 | Q32: 19 | R32: 9 | S32: 7 | T32: 14 | U32: 30 | V32: 9 | W32: 11 | X32: 15 | Y32: 35 | Z32: 9 | AA32: 8 | AB32: 13 | AC32: 30 | AD32: 9 | AE32: 9 | AF32: 18 | AG32: 36 | AH32: 9 | AI32: 15 | AJ32: 15 | AK32: 39 | AL32: 9 | AM32: 16 | AN32: 17 | AO32: 42 | AP32: 9 | AQ32: 14 | AR32: 14 | AS32: 37 | AT32: 5 | AU32: 10 | AV32: 5 | AW32: 20 | AX32: 7 | AY32: 5 | AZ32: 8 | BA32: 20 | BB32: 3 | BC32: 5 | BD32: 7 | BE32: 10 | BF32: 7 | BG32: 10 | BH32: 17 | BI32: 25 | BJ32: 42 | BK32: 400 | BL32: 4 | BM32: 7 | BN32: 7 | BO32: 18 | BP32: 4 | BQ32: 7 | BR32: 7 | BS32: 18 | BT32: ناجحة | BU32: 154
A33: 26 | B33: 207 | C33: طالبة منتظمة207 | D33: 6/1 | E33: 308 | F33: 9 | G33: 10 | H33: 11 | I33: 30 | J33: 9 | K33: 8 | L33: 10 | M33: 27 | N33: 5 | O33: 8 | P33: 8 | Q33: 21 | R33: 9 | S33: 13 | T33: 15 | U33: 37 | V33: 9 | W33: 13 | X33: 16 | Y33: 38 | Z33: 9 | AA33: 12 | AB33: 15 | AC33: 36 | AD33: 9 | AE33: 13 | AF33: 18 | AG33: 40 | AH33: 9 | AI33: 17 | AJ33: 17 | AK33: 43 | AL33: 9 | AM33: 15 | AN33: 19 | AO33: 43 | AP33: 9 | AQ33: 13 | AR33: 13 | AS33: 35 | AT33: 5 | AU33: 10 | AV33: 7 | AW33: 22 | AX33: 7 | AY33: 8 | AZ33: 8 | BA33: 23 | BB33: 3 | BC33: 5 | BD33: 7 | BE33: 8 | BF33: 7 | BG33: 8 | BH33: 17 | BI33: 21 | BJ33: 38 | BK33: 433 | BL33: 4 | BM33: 5 | BN33: 5 | BO33: 14 | BP33: 4 | BQ33: 8 | BR33: 5 | BS33: 17 | BT33: ناجحة | BU33: 81
A34: 27 | B34: 208 | C34: طالبة منتظمة208 | D34: 4/1 | E34: 309 | F34: 9 | G34: 9 | H34: 8 | I34: 26 | J34: 9 | K34: 5 | L34: 8 | M34: 22 | N34: 5 | O34: 7 | P34: 6 | Q34: 18 | R34: 9 | S34: 10 | T34: 10 | U34: 29 | V34: 9 | W34: 11 | X34: 13 | Y34: 33 | Z34: 9 | AA34: 11 | AB34: 11 | AC34: 31 | AD34: 9 | AE34: 11 | AF34: 18 | AG34: 38 | AH34: 9 | AI34: 18 | AJ34: 18 | AK34: 45 | AL34: 9 | AM34: 16 | AN34: 19 | AO34: 44 | AP34: 9 | AQ34: 12 | AR34: 12 | AS34: 33 | AT34: 5 | AU34: 6 | AV34: 4 | AW34: 15 | AX34: 7 | AY34: 6 | AZ34: 7 | BA34: 20 | BB34: 3 | BC34: 5 | BD34: 7 | BE34: 8 | BF34: 7 | BG34: 8 | BH34: 17 | BI34: 21 | BJ34: 38 | BK34: 392 | BL34: 4 | BM34: 4 | BN34: 2 | BO34: 10 | BP34: 4 | BQ34: 7 | BR34: 2 | BS34: 13 | BT34: ناجحة | BU34: 175
A35: 28 | B35: 209 | C35: طالبة منتظمة209 | D35: 6/1 | E35: 310 | F35: 9 | G35: 8 | H35: 8 | I35: 25 | J35: 9 | K35: 3 | L35: 8 | M35: 20 | N35: 5 | O35: 8 | P35: 7 | Q35: 20 | R35: 9 | S35: 10 | T35: 6 | U35: 25 | V35: 9 | W35: 12 | X35: 10 | Y35: 31 | Z35: 9 | AA35: 11 | AB35: 6 | AC35: 26 | AD35: 9 | AE35: 7 | AF35: 16 | AG35: 32 | AH35: 9 | AI35: 16 | AJ35: 16 | AK35: 41 | AL35: 9 | AM35: 16 | AN35: 20 | AO35: 45 | AP35: 9 | AQ35: 11 | AR35: 11 | AS35: 31 | AT35: 5 | AU35: 6 | AV35: 4 | AW35: 15 | AX35: 7 | AY35: 7 | AZ35: 6 | BA35: 20 | BB35: 3 | BC35: 5 | BD35: 7 | BE35: 7 | BF35: 7 | BG35: 7 | BH35: 17 | BI35: 19 | BJ35: 36 | BK35: 367 | BL35: 4 | BM35: 5 | BN35: 5 | BO35: 14 | BP35: 4 | BQ35: 6 | BR35: 5 | BS35: 15 | BT35: ناجحة | BU35: 219
A36: 29 | B36: 210 | C36: طالبة منتظمة210 | D36: 6/1 | E36: 311 | F36: 9 | G36: 10 | H36: 13 | I36: 32 | J36: 9 | K36: 19 | L36: 16 | M36: 44 | N36: 5 | O36: 7 | P36: 7 | Q36: 19 | R36: 9 | S36: 15 | T36: 14 | U36: 38 | V36: 9 | W36: 14 | X36: 15 | Y36: 38 | Z36: 9 | AA36: 15 | AB36: 18 | AC36: 42 | AD36: 9 | AE36: 17 | AF36: 20 | AG36: 46 | AH36: 9 | AI36: 18 | AJ36: 18 | AK36: 45 | AL36: 9 | AM36: 17 | AN36: 20 | AO36: 46 | AP36: 9 | AQ36: 13 | AR36: 13 | AS36: 35 | AT36: 5 | AU36: 12 | AV36: 11 | AW36: 28 | AX36: 7 | AY36: 11 | AZ36: 10 | BA36: 28 | BB36: 3 | BC36: 5 | BD36: 7 | BE36: 9 | BF36: 7 | BG36: 9 | BH36: 17 | BI36: 23 | BJ36: 40 | BK36: 481 | BL36: 4 | BM36: 7 | BN36: 7 | BO36: 18 | BP36: 4 | BQ36: 7 | BR36: 7 | BS36: 18 | BT36: ناجحة | BU36: 9
A37: 30 | B37: 212 | C37: طالبة منتظمة212 | D37: 6/1 | E37: 313 | F37: 9 | G37: 10 | H37: 6 | I37: 25 | J37: 9 | K37: 6 | L37: 5 | M37: 20 | N37: 5 | O37: 6 | P37: 6 | Q37: 17 | R37: 9 | S37: 7 | T37: 9 | U37: 25 | V37: 9 | W37: 14 | X37: 14 | Y37: 37 | Z37: 9 | AA37: 5 | AB37: 8 | AC37: 22 | AD37: 9 | AE37: 12 | AF37: 17 | AG37: 38 | AH37: 9 | AI37: 13 | AJ37: 13 | AK37: 35 | AL37: 9 | AM37: 15 | AN37: 20 | AO37: 44 | AP37: 9 | AQ37: 14 | AR37: 14 | AS37: 37 | AT37: 5 | AU37: 4 | AV37: 6 | AW37: 15 | AX37: 7 | AY37: 5 | AZ37: 8 | BA37: 20 | BB37: 3 | BC37: 5 | BD37: 7 | BE37: 10 | BF37: 7 | BG37: 10 | BH37: 17 | BI37: 25 | BJ37: 42 | BK37: 377 | BL37: 4 | BM37: 4 | BN37: 4 | BO37: 12 | BP37: 4 | BQ37: 4 | BR37: 4 | BS37: 12 | BT37: ناجحة | BU37: 205
A38: 31 | B38: 213 | C38: طالبة منتظمة213 | D38: 6/1 | E38: 314 | F38: 9 | G38: 10 | H38: 11 | I38: 30 | J38: 9 | K38: 7 | L38: 8 | M38: 24 | N38: 5 | O38: 7 | P38: 8 | Q38: 20 | R38: 9 | S38: 13 | T38: 17 | U38: 39 | V38: 9 | W38: 13 | X38: 16 | Y38: 38 | Z38: 9 | AA38: 15 | AB38: 16 | AC38: 40 | AD38: 9 | AE38: 13 | AF38: 20 | AG38: 42 | AH38: 9 | AI38: 16 | AJ38: 16 | AK38: 41 | AL38: 9 | AM38: 16 | AN38: 20 | AO38: 45 | AP38: 9 | AQ38: 13 | AR38: 13 | AS38: 35 | AT38: 5 | AU38: 7 | AV38: 3 | AW38: 15 | AX38: 7 | AY38: 8 | AZ38: 10 | BA38: 25 | BB38: 3 | BC38: 5 | BD38: 7 | BE38: 10 | BF38: 7 | BG38: 10 | BH38: 17 | BI38: 25 | BJ38: 42 | BK38: 436 | BL38: 4 | BM38: 5 | BN38: 5 | BO38: 14 | BP38: 4 | BQ38: 7 | BR38: 5 | BS38: 16 | BT38: ناجحة | BU38: 71
A39: 32 | B39: 214 | C39: طالبة منتظمة214 | D39: 6/1 | E39: 315 | F39: 9 | G39: 9 | H39: 8 | I39: 26 | J39: 9 | K39: 6 | L39: 5 | M39: 20 | N39: 5 | O39: 6 | P39: 8 | Q39: 19 | R39: 9 | S39: 7 | T39: 20 | U39: 36 | V39: 9 | W39: 13 | X39: 17 | Y39: 39 | Z39: 9 | AA39: 13 | AB39: 16 | AC39: 38 | AD39: 9 | AE39: 14 | AF39: 19 | AG39: 42 | AH39: 9 | AI39: 17 | AJ39: 17 | AK39: 43 | AL39: 9 | AM39: 13 | AN39: 20 | AO39: 42 | AP39: 9 | AQ39: 12 | AR39: 12 | AS39: 33 | AT39: 5 | AU39: 4 | AV39: 6 | AW39: 15 | AX39: 7 | AY39: 7 | AZ39: 6 | BA39: 20 | BB39: 3 | BC39: 5 | BD39: 7 | BE39: 11 | BF39: 7 | BG39: 11 | BH39: 17 | BI39: 27 | BJ39: 44 | BK39: 417 | BL39: 4 | BM39: 5 | BN39: 5 | BO39: 14 | BP39: 4 | BQ39: 6 | BR39: 5 | BS39: 15 | BT39: ناجحة | BU39: 122
A40: 33 | B40: 215 | C40: طالبة منتظمة215 | D40: 6/1 | E40: 316 | F40: 9 | G40: 8 | H40: 8 | I40: 25 | J40: 9 | K40: 4 | L40: 7 | M40: 20 | N40: 5 | O40: 5 | P40: 8 | Q40: 18 | R40: 9 | S40: 11 | T40: 16 | U40: 36 | V40: 9 | W40: 15 | X40: 19 | Y40: 43 | Z40: 9 | AA40: 16 | AB40: 13 | AC40: 38 | AD40: 9 | AE40: 8 | AF40: 19 | AG40: 36 | AH40: 9 | AI40: 17 | AJ40: 17 | AK40: 43 | AL40: 9 | AM40: 15 | AN40: 20 | AO40: 44 | AP40: 9 | AQ40: 18 | AR40: 18 | AS40: 45 | AT40: 5 | AU40: 4 | AV40: 6 | AW40: 15 | AX40: 7 | AY40: 8 | AZ40: 5 | BA40: 20 | BB40: 3 | BC40: 5 | BD40: 7 | BE40: 9 | BF40: 7 | BG40: 9 | BH40: 17 | BI40: 23 | BJ40: 40 | BK40: 423 | BL40: 4 | BM40: 6 | BN40: 6 | BO40: 16 | BP40: 4 | BQ40: 7 | BR40: 6 | BS40: 17 | BT40: ناجحة | BU40: 106
A41: 34 | B41: 216 | C41: طالبة منتظمة216 | D41: 6/1 | E41: 317 | F41: 9 | G41: 7 | H41: 11 | I41: 27 | J41: 9 | K41: 8 | L41: 8 | M41: 25 | N41: 5 | O41: 6 | P41: 8 | Q41: 19 | R41: 9 | S41: 9 | T41: 19 | U41: 37 | V41: 9 | W41: 15 | X41: 13 | Y41: 37 | Z41: 9 | AA41: 14 | AB41: 14 | AC41: 37 | AD41: 9 | AE41: 12 | AF41: 19 | AG41: 40 | AH41: 9 | AI41: 16 | AJ41: 16 | AK41: 41 | AL41: 9 | AM41: 17 | AN41: 20 | AO41: 46 | AP41: 9 | AQ41: 13 | AR41: 13 | AS41: 35 | AT41: 5 | AU41: 6 | AV41: 4 | AW41: 15 | AX41: 7 | AY41: 5 | AZ41: 8 | BA41: 20 | BB41: 3 | BC41: 5 | BD41: 7 | BE41: 10 | BF41: 7 | BG41: 10 | BH41: 17 | BI41: 25 | BJ41: 42 | BK41: 421 | BL41: 4 | BM41: 4 | BN41: 4 | BO41: 12 | BP41: 4 | BQ41: 6 | BR41: 4 | BS41: 14 | BT41: ناجحة | BU41: 108
A42: 35 | B42: 217 | C42: طالبة منتظمة217 | D42: 6/1 | E42: 318 | F42: 9 | G42: 8 | H42: 9 | I42: 26 | J42: 9 | K42: 5 | L42: 9 | M42: 23 | N42: 5 | O42: 9 | P42: 8 | Q42: 22 | R42: 9 | S42: 11 | T42: 12 | U42: 32 | V42: 9 | W42: 12 | X42: 15 | Y42: 36 | Z42: 9 | AA42: 13 | AB42: 10 | AC42: 32 | AD42: 9 | AE42: 12 | AF42: 18 | AG42: 39 | AH42: 9 | AI42: 17 | AJ42: 17 | AK42: 43 | AL42: 9 | AM42: 17 | AN42: 20 | AO42: 46 | AP42: 9 | AQ42: 14 | AR42: 14 | AS42: 37 | AT42: 5 | AU42: 9 | AV42: 6 | AW42: 20 | AX42: 7 | AY42: 5 | AZ42: 8 | BA42: 20 | BB42: 3 | BC42: 5 | BD42: 7 | BE42: 8 | BF42: 7 | BG42: 8 | BH42: 17 | BI42: 21 | BJ42: 38 | BK42: 414 | BL42: 4 | BM42: 5 | BN42: 5 | BO42: 14 | BP42: 4 | BQ42: 6 | BR42: 5 | BS42: 15 | BT42: ناجحة | BU42: 129
A43: 36 | B43: 218 | C43: طالبة منتظمة218 | D43: 6/1 | E43: 319 | F43: 9 | G43: 8 | H43: 8 | I43: 25 | J43: 9 | K43: 7 | L43: 10 | M43: 26 | N43: 5 | O43: 9 | P43: 8 | Q43: 22 | R43: 9 | S43: 11 | T43: 15 | U43: 35 | V43: 9 | W43: 14 | X43: 10 | Y43: 33 | Z43: 9 | AA43: 15 | AB43: 10 | AC43: 34 | AD43: 9 | AE43: 14 | AF43: 18 | AG43: 41 | AH43: 9 | AI43: 18 | AJ43: 18 | AK43: 45 | AL43: 9 | AM43: 17 | AN43: 20 | AO43: 46 | AP43: 9 | AQ43: 18 | AR43: 18 | AS43: 45 | AT43: 5 | AU43: 9 | AV43: 7 | AW43: 21 | AX43: 7 | AY43: 8 | AZ43: 9 | BA43: 24 | BB43: 3 | BC43: 5 | BD43: 7 | BE43: 9 | BF43: 7 | BG43: 9 | BH43: 17 | BI43: 23 | BJ43: 40 | BK43: 437 | BL43: 4 | BM43: 6 | BN43: 6 | BO43: 16 | BP43: 4 | BQ43: 8 | BR43: 6 | BS43: 18 | BT43: ناجحة | BU43: 69
A44: 37 | B44: 219 | C44: طالبة منتظمة219 | D44: 6/1 | E44: 320 | F44: 9 | G44: 9 | H44: 7 | I44: 25 | J44: 9 | K44: 3 | L44: 8 | M44: 20 | N44: 5 | O44: 8 | P44: 8 | Q44: 21 | R44: 9 | S44: 7 | T44: 13 | U44: 29 | V44: 9 | W44: 14 | X44: 16 | Y44: 39 | Z44: 9 | AA44: 10 | AB44: 14 | AC44: 33 | AD44: 9 | AE44: 15 | AF44: 19 | AG44: 43 | AH44: 9 | AI44: 17 | AJ44: 17 | AK44: 43 | AL44: 9 | AM44: 18 | AN44: 20 | AO44: 47 | AP44: 9 | AQ44: 14 | AR44: 14 | AS44: 37 | AT44: 5 | AU44: 4 | AV44: 6 | AW44: 15 | AX44: 7 | AY44: 6 | AZ44: 10 | BA44: 23 | BB44: 3 | BC44: 5 | BD44: 7 | BE44: 9 | BF44: 7 | BG44: 9 | BH44: 17 | BI44: 23 | BJ44: 40 | BK44: 415 | BL44: 4 | BM44: 7 | BN44: 7 | BO44: 18 | BP44: 4 | BQ44: 6 | BR44: 7 | BS44: 17 | BT44: ناجحة | BU44: 128
A45: 38 | B45: 220 | C45: طالبة منتظمة220 | D45: 6/1 | E45: 321 | F45: 9 | G45: 9 | H45: 11 | I45: 29 | J45: 9 | K45: 8 | L45: 10 | M45: 27 | N45: 5 | O45: 6 | P45: 8 | Q45: 19 | R45: 9 | S45: 10 | T45: 17 | U45: 36 | V45: 9 | W45: 15 | X45: 17 | Y45: 41 | Z45: 9 | AA45: 16 | AB45: 14 | AC45: 39 | AD45: 9 | AE45: 11 | AF45: 17 | AG45: 37 | AH45: 9 | AI45: 16 | AJ45: 16 | AK45: 41 | AL45: 9 | AM45: 18 | AN45: 20 | AO45: 47 | AP45: 9 | AQ45: 15 | AR45: 15 | AS45: 39 | AT45: 5 | AU45: 4 | AV45: 6 | AW45: 15 | AX45: 7 | AY45: 10 | AZ45: 8 | BA45: 25 | BB45: 3 | BC45: 5 | BD45: 7 | BE45: 8 | BF45: 7 | BG45: 8 | BH45: 17 | BI45: 21 | BJ45: 38 | BK45: 433 | BL45: 4 | BM45: 6 | BN45: 6 | BO45: 16 | BP45: 4 | BQ45: 6 | BR45: 6 | BS45: 16 | BT45: ناجحة | BU45: 81
A46: 39 | B46: 222 | C46: طالبة منتظمة222 | D46: 7/1 | E46: 323 | F46: 9 | G46: 9 | H46: 7 | I46: 25 | J46: 9 | K46: 6 | L46: 5 | M46: 20 | N46: 5 | O46: 4 | P46: 8 | Q46: 17 | R46: 9 | S46: 11 | T46: 5 | U46: 25 | V46: 9 | W46: 13 | X46: 17 | Y46: 39 | Z46: 9 | AA46: 10 | AB46: 12 | AC46: 31 | AD46: 9 | AE46: 8 | AF46: 16 | AG46: 33 | AH46: 9 | AI46: 17 | AJ46: 17 | AK46: 43 | AL46: 9 | AM46: 17 | AN46: 14 | AO46: 40 | AP46: 9 | AQ46: 10 | AR46: 10 | AS46: 29 | AT46: 5 | AU46: 10 | AV46: 9 | AW46: 24 | AX46: 7 | AY46: 8 | AZ46: 12 | BA46: 27 | BB46: 3 | BC46: 5 | BD46: 8 | BE46: 8 | BF46: 8 | BG46: 8 | BH46: 19 | BI46: 21 | BJ46: 40 | BK46: 393 | BL46: 4 | BM46: 6 | BN46: 6 | BO46: 16 | BP46: 4 | BQ46: 5 | BR46: 6 | BS46: 15 | BT46: ناجحة | BU46: 171
A47: 40 | B47: 223 | C47: طالبة منتظمة223 | D47: 7/1 | E47: 324 | F47: 9 | G47: 7 | H47: 9 | I47: 25 | J47: 9 | K47: 6 | L47: 5 | M47: 20 | N47: 5 | O47: 4 | P47: 8 | Q47: 17 | R47: 9 | S47: 5 | T47: 11 | U47: 25 | V47: 9 | W47: 11 | X47: 15 | Y47: 35 | Z47: 9 | AA47: 9 | AB47: 17 | AC47: 35 | AD47: 9 | AE47: 12 | AF47: 12 | AG47: 33 | AH47: 9 | AI47: 18 | AJ47: 18 | AK47: 45 | AL47: 9 | AM47: 19 | AN47: 15 | AO47: 43 | AP47: 9 | AQ47: 14 | AR47: 14 | AS47: 37 | AT47: 5 | AU47: 8 | AV47: 3 | AW47: 16 | AX47: 7 | AY47: 5 | AZ47: 12 | BA47: 24 | BB47: 3 | BC47: 5 | BD47: 7 | BE47: 9 | BF47: 7 | BG47: 9 | BH47: 17 | BI47: 23 | BJ47: 40 | BK47: 395 | BL47: 4 | BM47: 7 | BN47: 7 | BO47: 18 | BP47: 4 | BQ47: 7 | BR47: 7 | BS47: 18 | BT47: ناجحة | BU47: 169
A48: 41 | B48: 224 | C48: طالبة منتظمة224 | D48: 7/1 | E48: 325 | F48: 9 | G48: 10 | H48: 9 | I48: 28 | J48: 9 | K48: 6 | L48: 5 | M48: 20 | N48: 5 | O48: 6 | P48: 8 | Q48: 19 | R48: 9 | S48: 4 | T48: 12 | U48: 25 | V48: 9 | W48: 8 | X48: 14 | Y48: 31 | Z48: 9 | AA48: 10 | AB48: 13 | AC48: 32 | AD48: 9 | AE48: 15 | AF48: 14 | AG48: 38 | AH48: 9 | AI48: 17 | AJ48: 17 | AK48: 43 | AL48: 9 | AM48: 17 | AN48: 14 | AO48: 40 | AP48: 9 | AQ48: 13 | AR48: 13 | AS48: 35 | AT48: 5 | AU48: 5 | AV48: 8 | AW48: 18 | AX48: 7 | AY48: 4 | AZ48: 12 | BA48: 23 | BB48: 3 | BC48: 5 | BD48: 8 | BE48: 12 | BF48: 8 | BG48: 12 | BH48: 19 | BI48: 29 | BJ48: 48 | BK48: 400 | BL48: 4 | BM48: 8 | BN48: 8 | BO48: 20 | BP48: 4 | BQ48: 6 | BR48: 8 | BS48: 18 | BT48: ناجحة | BU48: 154
A49: 42 | B49: 225 | C49: طالبة منتظمة225 | D49: 7/1 | E49: 326 | F49: 9 | G49: 8 | H49: 8 | I49: 25 | J49: 9 | K49: 4 | L49: 8 | M49: 21 | N49: 5 | O49: 5 | P49: 8 | Q49: 18 | R49: 9 | S49: 7 | T49: 9 | U49: 25 | V49: 9 | W49: 14 | X49: 15 | Y49: 38 | Z49: 9 | AA49: 8 | AB49: 15 | AC49: 32 | AD49: 9 | AE49: 16 | AF49: 15 | AG49: 40 | AH49: 9 | AI49: 17 | AJ49: 17 | AK49: 43 | AL49: 9 | AM49: 18 | AN49: 16 | AO49: 43 | AP49: 9 | AQ49: 12 | AR49: 12 | AS49: 33 | AT49: 5 | AU49: 7 | AV49: 6 | AW49: 18 | AX49: 7 | AY49: 6 | AZ49: 12 | BA49: 25 | BB49: 3 | BC49: 5 | BD49: 7 | BE49: 10 | BF49: 7 | BG49: 10 | BH49: 17 | BI49: 25 | BJ49: 42 | BK49: 403 | BL49: 4 | BM49: 5 | BN49: 5 | BO49: 14 | BP49: 4 | BQ49: 7 | BR49: 5 | BS49: 16 | BT49: ناجحة | BU49: 151
A50: 43 | B50: 227 | C50: طالبة منتظمة227 | D50: 7/1 | E50: 328 | F50: 9 | G50: 10 | H50: 13 | I50: 32 | J50: 9 | K50: 11 | L50: 8 | M50: 28 | N50: 5 | O50: 6 | P50: 8 | Q50: 19 | R50: 9 | S50: 9 | T50: 10 | U50: 28 | V50: 9 | W50: 16 | X50: 17 | Y50: 42 | Z50: 9 | AA50: 11 | AB50: 15 | AC50: 35 | AD50: 9 | AE50: 18 | AF50: 12 | AG50: 39 | AH50: 9 | AI50: 16 | AJ50: 16 | AK50: 41 | AL50: 9 | AM50: 18 | AN50: 16 | AO50: 43 | AP50: 9 | AQ50: 14 | AR50: 14 | AS50: 37 | AT50: 5 | AU50: 9 | AV50: 9 | AW50: 23 | AX50: 7 | AY50: 7 | AZ50: 12 | BA50: 26 | BB50: 3 | BC50: 5 | BD50: 7 | BE50: 10 | BF50: 7 | BG50: 10 | BH50: 17 | BI50: 25 | BJ50: 42 | BK50: 435 | BL50: 4 | BM50: 7 | BN50: 7 | BO50: 18 | BP50: 4 | BQ50: 8 | BR50: 7 | BS50: 19 | BT50: ناجحة | BU50: 74
A51: 44 | B51: 228 | C51: طالبة منتظمة228 | D51: 7/1 | E51: 329 | F51: 9 | G51: 9 | H51: 10 | I51: 28 | J51: 9 | K51: 6 | L51: 5 | M51: 20 | N51: 5 | O51: 6 | P51: 8 | Q51: 19 | R51: 9 | S51: 8 | T51: 8 | U51: 25 | V51: 9 | W51: 9 | X51: 16 | Y51: 34 | Z51: 9 | AA51: 7 | AB51: 7 | AC51: 23 | AD51: 9 | AE51: 11 | AF51: 14 | AG51: 34 | AH51: 9 | AI51: 18 | AJ51: 18 | AK51: 45 | AL51: 9 | AM51: 13 | AN51: 13 | AO51: 35 | AP51: 9 | AQ51: 16 | AR51: 16 | AS51: 41 | AT51: 5 | AU51: 6 | AV51: 4 | AW51: 15 | AX51: 7 | AY51: 7 | AZ51: 10 | BA51: 24 | BB51: 3 | BC51: 5 | BD51: 7 | BE51: 8 | BF51: 7 | BG51: 8 | BH51: 17 | BI51: 21 | BJ51: 38 | BK51: 381 | BL51: 4 | BM51: 7 | BN51: 7 | BO51: 18 | BP51: 4 | BQ51: 6 | BR51: 7 | BS51: 17 | BT51: ناجحة | BU51: 196
A52: 45 | B52: 229 | C52: طالبة منتظمة229 | D52: 7/1 | E52: 330 | F52: 9 | G52: 8 | H52: 9 | I52: 26 | J52: 9 | K52: 6 | L52: 5 | M52: 20 | N52: 5 | O52: 5 | P52: 8 | Q52: 18 | R52: 9 | S52: 14 | T52: 14 | U52: 37 | V52: 9 | W52: 13 | X52: 16 | Y52: 38 | Z52: 9 | AA52: 10 | AB52: 8 | AC52: 27 | AD52: 9 | AE52: 15 | AF52: 17 | AG52: 41 | AH52: 9 | AI52: 18 | AJ52: 18 | AK52: 45 | AL52: 9 | AM52: 17 | AN52: 15 | AO52: 41 | AP52: 9 | AQ52: 14 | AR52: 14 | AS52: 37 | AT52: 5 | AU52: 6 | AV52: 7 | AW52: 18 | AX52: 7 | AY52: 10 | AZ52: 11 | BA52: 28 | BB52: 3 | BC52: 5 | BD52: 7 | BE52: 9 | BF52: 7 | BG52: 9 | BH52: 17 | BI52: 23 | BJ52: 40 | BK52: 416 | BL52: 4 | BM52: 7 | BN52: 7 | BO52: 18 | BP52: 4 | BQ52: 7 | BR52: 7 | BS52: 18 | BT52: ناجحة | BU52: 126
A53: 46 | B53: 230 | C53: طالبة منتظمة230 | D53: 7/1 | E53: 331 | F53: 9 | G53: 7 | H53: 9 | I53: 25 | J53: 9 | K53: 6 | L53: 5 | M53: 20 | N53: 5 | O53: 4 | P53: 8 | Q53: 17 | R53: 9 | S53: 6 | T53: 10 | U53: 25 | V53: 9 | W53: 9 | X53: 20 | Y53: 38 | Z53: 9 | AA53: 9 | AB53: 12 | AC53: 30 | AD53: 9 | AE53: 8 | AF53: 17 | AG53: 34 | AH53: 9 | AI53: 18 | AJ53: 18 | AK53: 45 | AL53: 9 | AM53: 16 | AN53: 16 | AO53: 41 | AP53: 9 | AQ53: 10 | AR53: 10 | AS53: 29 | AT53: 5 | AU53: 3 | AV53: 7 | AW53: 15 | AX53: 7 | AY53: 7 | AZ53: 13 | BA53: 27 | BB53: 3 | BC53: 5 | BD53: 7 | BE53: 10 | BF53: 7 | BG53: 10 | BH53: 17 | BI53: 25 | BJ53: 42 | BK53: 388 | BL53: 4 | BM53: 6 | BN53: 6 | BO53: 16 | BP53: 4 | BQ53: 7 | BR53: 6 | BS53: 17 | BT53: ناجحة | BU53: 185
A54: 47 | B54: 231 | C54: طالبة منتظمة231 | D54: 7/1 | E54: 332 | F54: 9 | G54: 7 | H54: 10 | I54: 26 | J54: 9 | K54: 6 | L54: 5 | M54: 20 | N54: 5 | O54: 6 | P54: 8 | Q54: 19 | R54: 9 | S54: 2 | T54: 14 | U54: 25 | V54: 9 | W54: 10 | X54: 19 | Y54: 38 | Z54: 9 | AA54: 6 | AB54: 13 | AC54: 28 | AD54: 9 | AE54: 15 | AF54: 17 | AG54: 41 | AH54: 9 | AI54: 16 | AJ54: 16 | AK54: 41 | AL54: 9 | AM54: 18 | AN54: 13 | AO54: 40 | AP54: 9 | AQ54: 10 | AR54: 10 | AS54: 29 | AT54: 5 | AU54: 6 | AV54: 4 | AW54: 15 | AX54: 7 | AY54: 7 | AZ54: 12 | BA54: 26 | BB54: 3 | BC54: 5 | BD54: 8 | BE54: 11 | BF54: 8 | BG54: 11 | BH54: 19 | BI54: 27 | BJ54: 46 | BK54: 394 | BL54: 4 | BM54: 7 | BN54: 7 | BO54: 18 | BP54: 4 | BQ54: 7 | BR54: 7 | BS54: 18 | BT54: ناجحة | BU54: 170
A55: 48 | B55: 232 | C55: طالبة منتظمة232 | D55: 7/1 | E55: 333 | F55: 9 | G55: 9 | H55: 9 | I55: 27 | J55: 9 | K55: 6 | L55: 5 | M55: 20 | N55: 5 | O55: 5 | P55: 8 | Q55: 18 | R55: 9 | S55: 9 | T55: 7 | U55: 25 | V55: 9 | W55: 12 | X55: 18 | Y55: 39 | Z55: 9 | AA55: 7 | AB55: 13 | AC55: 29 | AD55: 9 | AE55: 17 | AF55: 16 | AG55: 42 | AH55: 9 | AI55: 19 | AJ55: 19 | AK55: 47 | AL55: 9 | AM55: 17 | AN55: 15 | AO55: 41 | AP55: 9 | AQ55: 17 | AR55: 17 | AS55: 43 | AT55: 5 | AU55: 7 | AV55: 10 | AW55: 22 | AX55: 7 | AY55: 7 | AZ55: 14 | BA55: 28 | BB55: 3 | BC55: 5 | BD55: 7 | BE55: 11 | BF55: 7 | BG55: 11 | BH55: 17 | BI55: 27 | BJ55: 44 | BK55: 425 | BL55: 4 | BM55: 7 | BN55: 7 | BO55: 18 | BP55: 4 | BQ55: 7 | BR55: 7 | BS55: 18 | BT55: ناجحة | BU55: 101
A56: 49 | B56: 233 | C56: طالبة منتظمة233 | D56: 7/1 | E56: 334 | F56: 9 | G56: 9 | H56: 7 | I56: 25 | J56: 9 | K56: 6 | L56: 5 | M56: 20 | N56: 5 | O56: 5 | P56: 8 | Q56: 18 | R56: 9 | S56: 11 | T56: 5 | U56: 25 | V56: 9 | W56: 10 | X56: 14 | Y56: 33 | Z56: 9 | AA56: 6 | AB56: 9 | AC56: 24 | AD56: 9 | AE56: 12 | AF56: 18 | AG56: 39 | AH56: 9 | AI56: 18 | AJ56: 18 | AK56: 45 | AL56: 9 | AM56: 17 | AN56: 15 | AO56: 41 | AP56: 9 | AQ56: 10 | AR56: 10 | AS56: 29 | AT56: 5 | AU56: 4 | AV56: 8 | AW56: 17 | AX56: 7 | AY56: 6 | AZ56: 14 | BA56: 27 | BB56: 3 | BC56: 5 | BD56: 7 | BE56: 5 | BF56: 7 | BG56: 5 | BH56: 17 | BI56: 15 | BJ56: 32 | BK56: 375 | BL56: 4 | BM56: 6 | BN56: 6 | BO56: 16 | BP56: 4 | BQ56: 7 | BR56: 6 | BS56: 17 | BT56: ناجحة | BU56: 207
A57: 50 | B57: 234 | C57: طالبة منتظمة234 | D57: 7/1 | E57: 335 | F57: 9 | G57: 12 | H57: 10 | I57: 31 | J57: 9 | K57: 10 | L57: 8 | M57: 27 | N57: 5 | O57: 10 | P57: 8 | Q57: 23 | R57: 9 | S57: 16 | T57: 14 | U57: 39 | V57: 9 | W57: 14 | X57: 19 | Y57: 42 | Z57: 9 | AA57: 11 | AB57: 14 | AC57: 34 | AD57: 9 | AE57: 15 | AF57: 17 | AG57: 41 | AH57: 9 | AI57: 19 | AJ57: 19 | AK57: 47 | AL57: 9 | AM57: 15 | AN57: 18 | AO57: 42 | AP57: 9 | AQ57: 14 | AR57: 14 | AS57: 37 | AT57: 5 | AU57: 11 | AV57: 9 | AW57: 25 | AX57: 7 | AY57: 6 | AZ57: 12 | BA57: 25 | BB57: 3 | BC57: 5 | BD57: 7 | BE57: 11 | BF57: 7 | BG57: 11 | BH57: 17 | BI57: 27 | BJ57: 44 | BK57: 457 | BL57: 4 | BM57: 8 | BN57: 8 | BO57: 20 | BP57: 4 | BQ57: 7 | BR57: 8 | BS57: 19 | BT57: ناجحة | BU57: 31
A58: 51 | B58: 235 | C58: طالبة منتظمة235 | D58: 7/1 | E58: 336 | F58: 9 | G58: 12 | H58: 13 | I58: 34 | J58: 9 | K58: 6 | L58: 5 | M58: 20 | N58: 5 | O58: 5 | P58: 8 | Q58: 18 | R58: 9 | S58: 7 | T58: 16 | U58: 32 | V58: 9 | W58: 15 | X58: 19 | Y58: 43 | Z58: 9 | AA58: 9 | AB58: 18 | AC58: 36 | AD58: 9 | AE58: 12 | AF58: 18 | AG58: 39 | AH58: 9 | AI58: 16 | AJ58: 16 | AK58: 41 | AL58: 9 | AM58: 18 | AN58: 16 | AO58: 43 | AP58: 9 | AQ58: 18 | AR58: 18 | AS58: 45 | AT58: 5 | AU58: 8 | AV58: 9 | AW58: 22 | AX58: 7 | AY58: 8 | AZ58: 11 | BA58: 26 | BB58: 3 | BC58: 5 | BD58: 7 | BE58: 10 | BF58: 7 | BG58: 10 | BH58: 17 | BI58: 25 | BJ58: 42 | BK58: 441 | BL58: 4 | BM58: 7 | BN58: 7 | BO58: 18 | BP58: 4 | BQ58: 8 | BR58: 7 | BS58: 19 | BT58: ناجحة | BU58: 60
A59: 52 | B59: 236 | C59: طالبة منتظمة236 | D59: 7/1 | E59: 337 | F59: 9 | G59: 13 | H59: 13 | I59: 35 | J59: 9 | K59: 10 | L59: 10 | M59: 29 | N59: 5 | O59: 5 | P59: 8 | Q59: 18 | R59: 9 | S59: 14 | T59: 16 | U59: 39 | V59: 9 | W59: 14 | X59: 20 | Y59: 43 | Z59: 9 | AA59: 18 | AB59: 20 | AC59: 47 | AD59: 9 | AE59: 17 | AF59: 16 | AG59: 42 | AH59: 9 | AI59: 19 | AJ59: 19 | AK59: 47 | AL59: 9 | AM59: 19 | AN59: 20 | AO59: 48 | AP59: 9 | AQ59: 19 | AR59: 19 | AS59: 47 | AT59: 5 | AU59: 10 | AV59: 10 | AW59: 25 | AX59: 7 | AY59: 10 | AZ59: 13 | BA59: 30 | BB59: 3 | BC59: 5 | BD59: 7 | BE59: 8 | BF59: 7 | BG59: 8 | BH59: 17 | BI59: 21 | BJ59: 38 | BK59: 488 | BL59: 4 | BM59: 8 | BN59: 8 | BO59: 20 | BP59: 4 | BQ59: 8 | BR59: 8 | BS59: 20 | BT59: ناجحة | BU59: 7
A60: 53 | B60: 237 | C60: طالبة منتظمة237 | D60: 7/1 | E60: 338 | F60: 9 | G60: 8 | H60: 9 | I60: 26 | J60: 9 | K60: 6 | L60: 5 | M60: 20 | N60: 5 | O60: 4 | P60: 7 | Q60: 16 | R60: 9 | S60: 5 | T60: 17 | U60: 31 | V60: 9 | W60: 11 | X60: 15 | Y60: 35 | Z60: 9 | AA60: 10 | AB60: 7 | AC60: 26 | AD60: 9 | AE60: 5 | AF60: 11 | AG60: 25 | AH60: 9 | AI60: 19 | AJ60: 19 | AK60: 47 | AL60: 9 | AM60: 17 | AN60: 17 | AO60: 43 | AP60: 9 | AQ60: 11 | AR60: 11 | AS60: 31 | AT60: 5 | AU60: 12 | AV60: 12 | AW60: 29 | AX60: 7 | AY60: 8 | AZ60: 13 | BA60: 28 | BB60: 3 | BC60: 5 | BD60: 7 | BE60: 11 | BF60: 7 | BG60: 11 | BH60: 17 | BI60: 27 | BJ60: 44 | BK60: 401 | BL60: 4 | BM60: 8 | BN60: 8 | BO60: 20 | BP60: 4 | BQ60: 9 | BR60: 8 | BS60: 21 | BT60: ناجحة | BU60: 152
A61: 54 | B61: 239 | C61: طالبة منتظمة239 | D61: 7/1 | E61: 340 | F61: 9 | G61: 13 | H61: 13 | I61: 35 | J61: 9 | K61: 10 | L61: 10 | M61: 29 | N61: 5 | O61: 6 | P61: 8 | Q61: 19 | R61: 9 | S61: 15 | T61: 17 | U61: 41 | V61: 9 | W61: 16 | X61: 20 | Y61: 45 | Z61: 9 | AA61: 20 | AB61: 17 | AC61: 46 | AD61: 9 | AE61: 16 | AF61: 13 | AG61: 38 | AH61: 9 | AI61: 17 | AJ61: 17 | AK61: 43 | AL61: 9 | AM61: 15 | AN61: 19 | AO61: 43 | AP61: 9 | AQ61: 13 | AR61: 13 | AS61: 35 | AT61: 5 | AU61: 11 | AV61: 9 | AW61: 25 | AX61: 7 | AY61: 7 | AZ61: 15 | BA61: 29 | BB61: 3 | BC61: 5 | BD61: 7 | BE61: 11 | BF61: 7 | BG61: 11 | BH61: 17 | BI61: 27 | BJ61: 44 | BK61: 472 | BL61: 4 | BM61: 8 | BN61: 8 | BO61: 20 | BP61: 4 | BQ61: 8 | BR61: 8 | BS61: 20 | BT61: ناجحة | BU61: 17
A62: 55 | B62: 240 | C62: طالبة منتظمة240 | D62: 7/1 | E62: 341 | F62: 9 | G62: 11 | H62: 11 | I62: 31 | J62: 9 | K62: 10 | L62: 11 | M62: 30 | N62: 5 | O62: 7 | P62: 8 | Q62: 20 | R62: 9 | S62: 6 | T62: 11 | U62: 26 | V62: 9 | W62: 13 | X62: 19 | Y62: 41 | Z62: 9 | AA62: 12 | AB62: 20 | AC62: 41 | AD62: 9 | AE62: 17 | AF62: 20 | AG62: 46 | AH62: 9 | AI62: 17 | AJ62: 17 | AK62: 43 | AL62: 9 | AM62: 18 | AN62: 19 | AO62: 46 | AP62: 9 | AQ62: 18 | AR62: 18 | AS62: 45 | AT62: 5 | AU62: 5 | AV62: 5 | AW62: 15 | AX62: 7 | AY62: 8 | AZ62: 15 | BA62: 30 | BB62: 3 | BC62: 5 | BD62: 7 | BE62: 10 | BF62: 7 | BG62: 10 | BH62: 17 | BI62: 25 | BJ62: 42 | BK62: 456 | BL62: 4 | BM62: 6 | BN62: 6 | BO62: 16 | BP62: 4 | BQ62: 8 | BR62: 6 | BS62: 18 | BT62: ناجحة | BU62: 32
A63: 56 | B63: 241 | C63: طالبة منتظمة241 | D63: 7/1 | E63: 342 | F63: 9 | G63: 16 | H63: 14 | I63: 39 | J63: 9 | K63: 19 | L63: 19 | M63: 47 | N63: 5 | O63: 10 | P63: 8 | Q63: 23 | R63: 9 | S63: 20 | T63: 18 | U63: 47 | V63: 9 | W63: 19 | X63: 19 | Y63: 47 | Z63: 9 | AA63: 19 | AB63: 20 | AC63: 48 | AD63: 9 | AE63: 17 | AF63: 16 | AG63: 42 | AH63: 9 | AI63: 18 | AJ63: 18 | AK63: 45 | AL63: 9 | AM63: 18 | AN63: 20 | AO63: 47 | AP63: 9 | AQ63: 15 | AR63: 15 | AS63: 39 | AT63: 5 | AU63: 12 | AV63: 8 | AW63: 25 | AX63: 7 | AY63: 7 | AZ63: 11 | BA63: 25 | BB63: 3 | BC63: 5 | BD63: 8 | BE63: 10 | BF63: 8 | BG63: 10 | BH63: 19 | BI63: 25 | BJ63: 44 | BK63: 518 | BL63: 4 | BM63: 7 | BN63: 7 | BO63: 18 | BP63: 4 | BQ63: 8 | BR63: 7 | BS63: 19 | BT63: ناجحة | BU63: 1
A64: 57 | B64: 242 | C64: طالبة منتظمة242 | D64: 7/1 | E64: 343 | F64: 9 | G64: 7 | H64: 10 | I64: 26 | J64: 9 | K64: 6 | L64: 5 | M64: 20 | N64: 5 | O64: 8 | P64: 8 | Q64: 21 | R64: 9 | S64: 8 | T64: 12 | U64: 29 | V64: 9 | W64: 12 | X64: 16 | Y64: 37 | Z64: 9 | AA64: 5 | AB64: 12 | AC64: 26 | AD64: 9 | AE64: 16 | AF64: 17 | AG64: 42 | AH64: 9 | AI64: 18 | AJ64: 18 | AK64: 45 | AL64: 9 | AM64: 18 | AN64: 14 | AO64: 41 | AP64: 9 | AQ64: 15 | AR64: 15 | AS64: 39 | AT64: 5 | AU64: 3 | AV64: 9 | AW64: 17 | AX64: 7 | AY64: 6 | AZ64: 14 | BA64: 27 | BB64: 3 | BC64: 5 | BD64: 8 | BE64: 12 | BF64: 8 | BG64: 12 | BH64: 19 | BI64: 29 | BJ64: 48 | BK64: 418 | BL64: 4 | BM64: 5 | BN64: 5 | BO64: 14 | BP64: 4 | BQ64: 8 | BR64: 5 | BS64: 17 | BT64: ناجحة | BU64: 113
A65: 58 | B65: 243 | C65: طالبة منتظمة243 | D65: 7/1 | E65: 344 | F65: 9 | G65: 10 | H65: 10 | I65: 29 | J65: 9 | K65: 10 | L65: 5 | M65: 24 | N65: 5 | O65: 6 | P65: 8 | Q65: 19 | R65: 9 | S65: 16 | T65: 16 | U65: 41 | V65: 9 | W65: 12 | X65: 16 | Y65: 37 | Z65: 9 | AA65: 10 | AB65: 19 | AC65: 38 | AD65: 9 | AE65: 13 | AF65: 17 | AG65: 39 | AH65: 9 | AI65: 16 | AJ65: 16 | AK65: 41 | AL65: 9 | AM65: 19 | AN65: 19 | AO65: 47 | AP65: 9 | AQ65: 14 | AR65: 14 | AS65: 37 | AT65: 5 | AU65: 7 | AV65: 6 | AW65: 18 | AX65: 7 | AY65: 4 | AZ65: 9 | BA65: 20 | BB65: 3 | BC65: 5 | BD65: 7 | BE65: 9 | BF65: 7 | BG65: 9 | BH65: 17 | BI65: 23 | BJ65: 40 | BK65: 430 | BL65: 4 | BM65: 7 | BN65: 7 | BO65: 18 | BP65: 4 | BQ65: 5 | BR65: 7 | BS65: 16 | BT65: ناجحة | BU65: 88
A66: 59 | B66: 244 | C66: طالبة منتظمة244 | D66: 7/1 | E66: 345 | F66: 9 | G66: 9 | H66: 11 | I66: 29 | J66: 9 | K66: 6 | L66: 5 | M66: 20 | N66: 5 | O66: 6 | P66: 8 | Q66: 19 | R66: 9 | S66: 14 | T66: 17 | U66: 40 | V66: 9 | W66: 12 | X66: 18 | Y66: 39 | Z66: 9 | AA66: 16 | AB66: 19 | AC66: 44 | AD66: 9 | AE66: 14 | AF66: 15 | AG66: 38 | AH66: 9 | AI66: 16 | AJ66: 16 | AK66: 41 | AL66: 9 | AM66: 16 | AN66: 16 | AO66: 41 | AP66: 9 | AQ66: 14 | AR66: 14 | AS66: 37 | AT66: 5 | AU66: 4 | AV66: 6 | AW66: 15 | AX66: 7 | AY66: 6 | AZ66: 15 | BA66: 28 | BB66: 3 | BC66: 5 | BD66: 7 | BE66: 9 | BF66: 7 | BG66: 9 | BH66: 17 | BI66: 23 | BJ66: 40 | BK66: 431 | BL66: 4 | BM66: 5 | BN66: 5 | BO66: 14 | BP66: 4 | BQ66: 6 | BR66: 5 | BS66: 15 | BT66: ناجحة | BU66: 87
A67: 60 | B67: 245 | C67: طالبة منتظمة245 | D67: 7/1 | E67: 346 | F67: 9 | G67: 8 | H67: 8 | I67: 25 | J67: 9 | K67: 6 | L67: 5 | M67: 20 | N67: 5 | O67: 6 | P67: 8 | Q67: 19 | R67: 9 | S67: 8 | T67: 16 | U67: 33 | V67: 9 | W67: 12 | X67: 17 | Y67: 38 | Z67: 9 | AA67: 14 | AB67: 16 | AC67: 39 | AD67: 9 | AE67: 14 | AF67: 15 | AG67: 38 | AH67: 9 | AI67: 16 | AJ67: 16 | AK67: 41 | AL67: 9 | AM67: 19 | AN67: 18 | AO67: 46 | AP67: 9 | AQ67: 12 | AR67: 12 | AS67: 33 | AT67: 5 | AU67: 4 | AV67: 6 | AW67: 15 | AX67: 7 | AY67: 6 | AZ67: 10 | BA67: 23 | BB67: 3 | BC67: 5 | BD67: 7 | BE67: 9 | BF67: 7 | BG67: 9 | BH67: 17 | BI67: 23 | BJ67: 40 | BK67: 410 | BL67: 4 | BM67: 5 | BN67: 5 | BO67: 14 | BP67: 4 | BQ67: 7 | BR67: 5 | BS67: 16 | BT67: ناجحة | BU67: 137
A68: 61 | B68: 246 | C68: طالبة منتظمة246 | D68: 7/1 | E68: 347 | F68: 9 | G68: 13 | H68: 12 | I68: 34 | J68: 9 | K68: 7 | L68: 5 | M68: 21 | N68: 5 | O68: 6 | P68: 8 | Q68: 19 | R68: 9 | S68: 7 | T68: 14 | U68: 30 | V68: 9 | W68: 14 | X68: 17 | Y68: 40 | Z68: 9 | AA68: 11 | AB68: 17 | AC68: 37 | AD68: 9 | AE68: 15 | AF68: 14 | AG68: 38 | AH68: 9 | AI68: 16 | AJ68: 16 | AK68: 41 | AL68: 9 | AM68: 19 | AN68: 12 | AO68: 40 | AP68: 9 | AQ68: 14 | AR68: 14 | AS68: 37 | AT68: 5 | AU68: 5 | AV68: 11 | AW68: 21 | AX68: 7 | AY68: 5 | AZ68: 12 | BA68: 24 | BB68: 3 | BC68: 5 | BD68: 7 | BE68: 9 | BF68: 7 | BG68: 9 | BH68: 17 | BI68: 23 | BJ68: 40 | BK68: 422 | BL68: 4 | BM68: 7 | BN68: 7 | BO68: 18 | BP68: 4 | BQ68: 8 | BR68: 7 | BS68: 19 | BT68: ناجحة | BU68: 107
A69: 62 | B69: 247 | C69: طالبة منتظمة247 | D69: 7/1 | E69: 348 | F69: 9 | G69: 10 | H69: 10 | I69: 29 | J69: 9 | K69: 6 | L69: 5 | M69: 20 | N69: 5 | O69: 6 | P69: 7 | Q69: 18 | R69: 9 | S69: 7 | T69: 14 | U69: 30 | V69: 9 | W69: 12 | X69: 15 | Y69: 36 | Z69: 9 | AA69: 6 | AB69: 19 | AC69: 34 | AD69: 9 | AE69: 15 | AF69: 13 | AG69: 37 | AH69: 9 | AI69: 16 | AJ69: 16 | AK69: 41 | AL69: 9 | AM69: 19 | AN69: 13 | AO69: 41 | AP69: 9 | AQ69: 12 | AR69: 12 | AS69: 33 | AT69: 5 | AU69: 4 | AV69: 6 | AW69: 15 | AX69: 7 | AY69: 7 | AZ69: 12 | BA69: 26 | BB69: 3 | BC69: 5 | BD69: 7 | BE69: 11 | BF69: 7 | BG69: 11 | BH69: 17 | BI69: 27 | BJ69: 44 | BK69: 404 | BL69: 4 | BM69: 5 | BN69: 5 | BO69: 14 | BP69: 4 | BQ69: 8 | BR69: 5 | BS69: 17 | BT69: ناجحة | BU69: 148
A70: 63 | B70: 248 | C70: طالبة منتظمة248 | D70: 7/1 | E70: 349 | F70: 9 | G70: 9 | H70: 7 | I70: 25 | J70: 9 | K70: 6 | L70: 5 | M70: 20 | N70: 5 | O70: 4 | P70: 7 | Q70: 16 | R70: 9 | S70: 16 | T70: 14 | U70: 39 | V70: 9 | W70: 17 | X70: 18 | Y70: 44 | Z70: 9 | AA70: 9 | AB70: 19 | AC70: 37 | AD70: 9 | AE70: 11 | AF70: 18 | AG70: 38 | AH70: 9 | AI70: 16 | AJ70: 16 | AK70: 41 | AL70: 9 | AM70: 18 | AN70: 16 | AO70: 43 | AP70: 9 | AQ70: 14 | AR70: 14 | AS70: 37 | AT70: 5 | AU70: 3 | AV70: 10 | AW70: 18 | AX70: 7 | AY70: 12 | AZ70: 13 | BA70: 32 | BB70: 3 | BC70: 5 | BD70: 7 | BE70: 11 | BF70: 7 | BG70: 11 | BH70: 17 | BI70: 27 | BJ70: 44 | BK70: 434 | BL70: 4 | BM70: 3 | BN70: 3 | BO70: 10 | BP70: 4 | BQ70: 6 | BR70: 3 | BS70: 13 | BT70: ناجحة | BU70: 78
A71: 64 | B71: 249 | C71: طالبة منتظمة249 | D71: 7/1 | E71: 350 | F71: 9 | G71: 10 | H71: 10 | I71: 29 | J71: 9 | K71: 8 | L71: 6 | M71: 23 | N71: 5 | O71: 7 | P71: 7 | Q71: 19 | R71: 9 | S71: 12 | T71: 14 | U71: 35 | V71: 9 | W71: 7 | X71: 16 | Y71: 32 | Z71: 9 | AA71: 13 | AB71: 20 | AC71: 42 | AD71: 9 | AE71: 13 | AF71: 13 | AG71: 35 | AH71: 9 | AI71: 16 | AJ71: 16 | AK71: 41 | AL71: 9 | AM71: 19 | AN71: 16 | AO71: 44 | AP71: 9 | AQ71: 14 | AR71: 14 | AS71: 37 | AT71: 5 | AU71: 5 | AV71: 9 | AW71: 19 | AX71: 7 | AY71: 8 | AZ71: 11 | BA71: 26 | BB71: 3 | BC71: 5 | BD71: 7 | BE71: 11 | BF71: 7 | BG71: 11 | BH71: 17 | BI71: 27 | BJ71: 44 | BK71: 426 | BL71: 4 | BM71: 7 | BN71: 7 | BO71: 18 | BP71: 4 | BQ71: 7 | BR71: 7 | BS71: 18 | BT71: ناجحة | BU71: 96
A72: 65 | B72: 250 | C72: طالبة منتظمة250 | D72: 7/1 | E72: 351 | F72: 9 | G72: 7 | H72: 9 | I72: 25 | J72: 9 | K72: 6 | L72: 5 | M72: 20 | N72: 5 | O72: 6 | P72: 7 | Q72: 18 | R72: 9 | S72: 7 | T72: 14 | U72: 30 | V72: 9 | W72: 8 | X72: 15 | Y72: 32 | Z72: 9 | AA72: 2 | AB72: 16 | AC72: 27 | AD72: 9 | AE72: 11 | AF72: 20 | AG72: 40 | AH72: 9 | AI72: 15 | AJ72: 15 | AK72: 39 | AL72: 9 | AM72: 17 | AN72: 13 | AO72: 39 | AP72: 9 | AQ72: 13 | AR72: 13 | AS72: 35 | AT72: 5 | AU72: 5 | AV72: 8 | AW72: 18 | AX72: 7 | AY72: 6 | AZ72: 13 | BA72: 26 | BB72: 3 | BC72: 5 | BD72: 7 | BE72: 11 | BF72: 7 | BG72: 11 | BH72: 17 | BI72: 27 | BJ72: 44 | BK72: 393 | BL72: 4 | BM72: 3 | BN72: 3 | BO72: 10 | BP72: 4 | BQ72: 6 | BR72: 3 | BS72: 13 | BT72: ناجحة | BU72: 171
A73: 66 | B73: 251 | C73: طالبة منتظمة251 | D73: 7/1 | E73: 352 | F73: 9 | G73: 9 | H73: 7 | I73: 25 | J73: 9 | K73: 6 | L73: 5 | M73: 20 | N73: 5 | O73: 5 | P73: 7 | Q73: 17 | R73: 9 | S73: 8 | T73: 8 | U73: 25 | V73: 9 | W73: 8 | X73: 16 | Y73: 33 | Z73: 9 | AA73: 6 | AB73: 5 | AC73: 20 | AD73: 9 | AE73: 5 | AF73: 17 | AG73: 31 | AH73: 9 | AI73: 15 | AJ73: 15 | AK73: 39 | AL73: 9 | AM73: 12 | AN73: 17 | AO73: 38 | AP73: 9 | AQ73: 10 | AR73: 10 | AS73: 29 | AT73: 5 | AU73: 4 | AV73: 8 | AW73: 17 | AX73: 7 | AY73: 7 | AZ73: 9 | BA73: 23 | BB73: 3 | BC73: 5 | BD73: 7 | BE73: 8 | BF73: 7 | BG73: 8 | BH73: 17 | BI73: 21 | BJ73: 38 | BK73: 355 | BL73: 4 | BM73: 4 | BN73: 4 | BO73: 12 | BP73: 4 | BQ73: 6 | BR73: 4 | BS73: 14 | BT73: ناجحة | BU73: 227
A74: 67 | B74: 252 | C74: طالبة منتظمة252 | D74: 7/1 | E74: 353 | F74: 9 | G74: 8 | H74: 9 | I74: 26 | J74: 9 | K74: 9 | L74: 5 | M74: 23 | N74: 5 | O74: 6 | P74: 7 | Q74: 18 | R74: 9 | S74: 8 | T74: 14 | U74: 31 | V74: 9 | W74: 13 | X74: 18 | Y74: 40 | Z74: 9 | AA74: 11 | AB74: 19 | AC74: 39 | AD74: 9 | AE74: 15 | AF74: 20 | AG74: 44 | AH74: 9 | AI74: 15 | AJ74: 15 | AK74: 39 | AL74: 9 | AM74: 19 | AN74: 20 | AO74: 48 | AP74: 9 | AQ74: 13 | AR74: 13 | AS74: 35 | AT74: 5 | AU74: 5 | AV74: 10 | AW74: 20 | AX74: 7 | AY74: 9 | AZ74: 14 | BA74: 30 | BB74: 3 | BC74: 5 | BD74: 7 | BE74: 10 | BF74: 7 | BG74: 10 | BH74: 17 | BI74: 25 | BJ74: 42 | BK74: 435 | BL74: 4 | BM74: 5 | BN74: 5 | BO74: 14 | BP74: 4 | BQ74: 7 | BR74: 5 | BS74: 16 | BT74: ناجحة | BU74: 74
A75: 68 | B75: 253 | C75: طالبة منتظمة253 | D75: 7/1 | E75: 354 | F75: 9 | G75: 10 | H75: 11 | I75: 30 | J75: 9 | K75: 10 | L75: 10 | M75: 29 | N75: 5 | O75: 6 | P75: 7 | Q75: 18 | R75: 9 | S75: 12 | T75: 13 | U75: 34 | V75: 9 | W75: 15 | X75: 18 | Y75: 42 | Z75: 9 | AA75: 14 | AB75: 20 | AC75: 43 | AD75: 9 | AE75: 17 | AF75: 20 | AG75: 46 | AH75: 9 | AI75: 17 | AJ75: 17 | AK75: 43 | AL75: 9 | AM75: 19 | AN75: 18 | AO75: 46 | AP75: 9 | AQ75: 14 | AR75: 14 | AS75: 37 | AT75: 5 | AU75: 5 | AV75: 9 | AW75: 19 | AX75: 7 | AY75: 11 | AZ75: 13 | BA75: 31 | BB75: 3 | BC75: 5 | BD75: 7 | BE75: 10 | BF75: 7 | BG75: 10 | BH75: 17 | BI75: 25 | BJ75: 42 | BK75: 460 | BL75: 4 | BM75: 5 | BN75: 5 | BO75: 14 | BP75: 4 | BQ75: 7 | BR75: 5 | BS75: 16 | BT75: ناجحة | BU75: 25
A76: 69 | B76: 254 | C76: طالبة منتظمة254 | D76: 7/1 | E76: 355 | F76: 9 | G76: 9 | H76: 12 | I76: 30 | J76: 9 | K76: 9 | L76: 9 | M76: 27 | N76: 5 | O76: 6 | P76: 7 | Q76: 18 | R76: 9 | S76: 10 | T76: 16 | U76: 35 | V76: 9 | W76: 9 | X76: 18 | Y76: 36 | Z76: 9 | AA76: 11 | AB76: 19 | AC76: 39 | AD76: 9 | AE76: 15 | AF76: 18 | AG76: 42 | AH76: 9 | AI76: 19 | AJ76: 19 | AK76: 47 | AL76: 9 | AM76: 18 | AN76: 20 | AO76: 47 | AP76: 9 | AQ76: 11 | AR76: 11 | AS76: 31 | AT76: 5 | AU76: 9 | AV76: 9 | AW76: 23 | AX76: 7 | AY76: 9 | AZ76: 13 | BA76: 29 | BB76: 3 | BC76: 5 | BD76: 7 | BE76: 7 | BF76: 7 | BG76: 7 | BH76: 17 | BI76: 19 | BJ76: 36 | BK76: 440 | BL76: 4 | BM76: 5 | BN76: 5 | BO76: 14 | BP76: 4 | BQ76: 8 | BR76: 5 | BS76: 17 | BT76: ناجحة | BU76: 62
A77: 70 | B77: 255 | C77: طالبة منتظمة255 | D77: 7/1 | E77: 356 | F77: 9 | G77: 13 | H77: 16 | I77: 38 | J77: 9 | K77: 6 | L77: 10 | M77: 25 | N77: 5 | O77: 8 | P77: 7 | Q77: 20 | R77: 9 | S77: 10 | T77: 16 | U77: 35 | V77: 9 | W77: 14 | X77: 18 | Y77: 41 | Z77: 9 | AA77: 16 | AB77: 20 | AC77: 45 | AD77: 9 | AE77: 16 | AF77: 20 | AG77: 45 | AH77: 9 | AI77: 15 | AJ77: 15 | AK77: 39 | AL77: 9 | AM77: 19 | AN77: 20 | AO77: 48 | AP77: 9 | AQ77: 15 | AR77: 15 | AS77: 39 | AT77: 5 | AU77: 7 | AV77: 11 | AW77: 23 | AX77: 7 | AY77: 12 | AZ77: 15 | BA77: 34 | BB77: 3 | BC77: 5 | BD77: 7 | BE77: 12 | BF77: 7 | BG77: 12 | BH77: 17 | BI77: 29 | BJ77: 46 | BK77: 478 | BL77: 4 | BM77: 8 | BN77: 8 | BO77: 20 | BP77: 4 | BQ77: 8 | BR77: 8 | BS77: 20 | BT77: ناجحة | BU77: 12
A78: 71 | B78: 256 | C78: طالبة منتظمة256 | D78: 7/1 | E78: 357 | F78: 9 | G78: 11 | H78: 12 | I78: 32 | J78: 9 | K78: 3 | L78: 8 | M78: 20 | N78: 5 | O78: 7 | P78: 7 | Q78: 19 | R78: 9 | S78: 9 | T78: 15 | U78: 33 | V78: 9 | W78: 14 | X78: 16 | Y78: 39 | Z78: 9 | AA78: 13 | AB78: 18 | AC78: 40 | AD78: 9 | AE78: 18 | AF78: 19 | AG78: 46 | AH78: 9 | AI78: 16 | AJ78: 16 | AK78: 41 | AL78: 9 | AM78: 19 | AN78: 20 | AO78: 48 | AP78: 9 | AQ78: 15 | AR78: 15 | AS78: 39 | AT78: 5 | AU78: 6 | AV78: 12 | AW78: 23 | AX78: 7 | AY78: 12 | AZ78: 15 | BA78: 34 | BB78: 3 | BC78: 5 | BD78: 7 | BE78: 12 | BF78: 7 | BG78: 12 | BH78: 17 | BI78: 29 | BJ78: 46 | BK78: 460 | BL78: 4 | BM78: 4 | BN78: 4 | BO78: 12 | BP78: 4 | BQ78: 8 | BR78: 4 | BS78: 16 | BT78: ناجحة | BU78: 25
A79: 72 | B79: 257 | C79: طالبة منتظمة257 | D79: 7/1 | E79: 358 | F79: 9 | G79: 12 | H79: 9 | I79: 30 | J79: 9 | K79: 12 | L79: 10 | M79: 31 | N79: 5 | O79: 6 | P79: 8 | Q79: 19 | R79: 9 | S79: 11 | T79: 14 | U79: 34 | V79: 9 | W79: 17 | X79: 20 | Y79: 46 | Z79: 9 | AA79: 14 | AB79: 16 | AC79: 39 | AD79: 9 | AE79: 14 | AF79: 15 | AG79: 38 | AH79: 9 | AI79: 15 | AJ79: 15 | AK79: 39 | AL79: 9 | AM79: 20 | AN79: 18 | AO79: 47 | AP79: 9 | AQ79: 15 | AR79: 15 | AS79: 39 | AT79: 5 | AU79: 6 | AV79: 7 | AW79: 18 | AX79: 7 | AY79: 10 | AZ79: 15 | BA79: 32 | BB79: 3 | BC79: 5 | BD79: 7 | BE79: 11 | BF79: 7 | BG79: 11 | BH79: 17 | BI79: 27 | BJ79: 44 | BK79: 456 | BL79: 4 | BM79: 6 | BN79: 6 | BO79: 16 | BP79: 4 | BQ79: 8 | BR79: 6 | BS79: 18 | BT79: ناجحة | BU79: 32
A80: 73 | B80: 258 | C80: طالبة منتظمة258 | D80: 7/1 | E80: 359 | F80: 9 | G80: 11 | H80: 10 | I80: 30 | J80: 9 | K80: 4 | L80: 7 | M80: 20 | N80: 5 | O80: 6 | P80: 8 | Q80: 19 | R80: 9 | S80: 12 | T80: 14 | U80: 35 | V80: 9 | W80: 12 | X80: 16 | Y80: 37 | Z80: 9 | AA80: 11 | AB80: 20 | AC80: 40 | AD80: 9 | AE80: 12 | AF80: 16 | AG80: 37 | AH80: 9 | AI80: 15 | AJ80: 15 | AK80: 39 | AL80: 9 | AM80: 19 | AN80: 15 | AO80: 43 | AP80: 9 | AQ80: 15 | AR80: 15 | AS80: 39 | AT80: 5 | AU80: 5 | AV80: 7 | AW80: 17 | AX80: 7 | AY80: 7 | AZ80: 14 | BA80: 28 | BB80: 3 | BC80: 5 | BD80: 7 | BE80: 10 | BF80: 7 | BG80: 10 | BH80: 17 | BI80: 25 | BJ80: 42 | BK80: 426 | BL80: 4 | BM80: 5 | BN80: 5 | BO80: 14 | BP80: 4 | BQ80: 6 | BR80: 5 | BS80: 15 | BT80: ناجحة | BU80: 96
A81: 74 | B81: 259 | C81: طالبة منتظمة259 | D81: 7/1 | E81: 360 | F81: 9 | G81: 11 | H81: 8 | I81: 28 | J81: 9 | K81: 6 | L81: 6 | M81: 21 | N81: 5 | O81: 7 | P81: 8 | Q81: 20 | R81: 9 | S81: 11 | T81: 17 | U81: 37 | V81: 9 | W81: 13 | X81: 14 | Y81: 36 | Z81: 9 | AA81: 10 | AB81: 17 | AC81: 36 | AD81: 9 | AE81: 15 | AF81: 20 | AG81: 44 | AH81: 9 | AI81: 17 | AJ81: 17 | AK81: 43 | AL81: 9 | AM81: 20 | AN81: 20 | AO81: 49 | AP81: 9 | AQ81: 19 | AR81: 19 | AS81: 47 | AT81: 5 | AU81: 4 | AV81: 11 | AW81: 20 | AX81: 7 | AY81: 12 | AZ81: 12 | BA81: 31 | BB81: 3 | BC81: 5 | BD81: 7 | BE81: 8 | BF81: 7 | BG81: 8 | BH81: 17 | BI81: 21 | BJ81: 38 | BK81: 450 | BL81: 4 | BM81: 6 | BN81: 6 | BO81: 16 | BP81: 4 | BQ81: 6 | BR81: 6 | BS81: 16 | BT81: ناجحة | BU81: 44
A82: 75 | B82: 260 | C82: طالبة منتظمة260 | D82: 8/1 | E82: 361 | F82: 9 | G82: 10 | H82: 10 | I82: 29 | J82: 9 | K82: 11 | L82: 10 | M82: 30 | N82: 5 | O82: 7 | P82: 8 | Q82: 20 | R82: 9 | S82: 12 | T82: 17 | U82: 38 | V82: 9 | W82: 16 | X82: 19 | Y82: 44 | Z82: 9 | AA82: 15 | AB82: 19 | AC82: 43 | AD82: 9 | AE82: 18 | AF82: 18 | AG82: 45 | AH82: 9 | AI82: 18 | AJ82: 18 | AK82: 45 | AL82: 9 | AM82: 19 | AN82: 20 | AO82: 48 | AP82: 9 | AQ82: 18 | AR82: 18 | AS82: 45 | AT82: 5 | AU82: 4 | AV82: 10 | AW82: 19 | AX82: 7 | AY82: 15 | AZ82: 10 | BA82: 32 | BB82: 3 | BC82: 5 | BD82: 7 | BE82: 10 | BF82: 7 | BG82: 10 | BH82: 17 | BI82: 25 | BJ82: 42 | BK82: 480 | BL82: 4 | BM82: 5 | BN82: 5 | BO82: 14 | BP82: 4 | BQ82: 7 | BR82: 5 | BS82: 16 | BT82: ناجحة | BU82: 10
A83: 76 | B83: 261 | C83: طالبة منتظمة261 | D83: 8/1 | E83: 362 | F83: 9 | G83: 9 | H83: 8 | I83: 26 | J83: 9 | K83: 12 | L83: 8 | M83: 29 | N83: 5 | O83: 8 | P83: 8 | Q83: 21 | R83: 9 | S83: 12 | T83: 15 | U83: 36 | V83: 9 | W83: 13 | X83: 16 | Y83: 38 | Z83: 9 | AA83: 13 | AB83: 10 | AC83: 32 | AD83: 9 | AE83: 18 | AF83: 17 | AG83: 44 | AH83: 9 | AI83: 17 | AJ83: 17 | AK83: 43 | AL83: 9 | AM83: 17 | AN83: 17 | AO83: 43 | AP83: 9 | AQ83: 14 | AR83: 14 | AS83: 37 | AT83: 5 | AU83: 9 | AV83: 9 | AW83: 23 | AX83: 7 | AY83: 14 | AZ83: 6 | BA83: 27 | BB83: 3 | BC83: 5 | BD83: 7 | BE83: 11 | BF83: 7 | BG83: 11 | BH83: 17 | BI83: 27 | BJ83: 44 | BK83: 443 | BL83: 4 | BM83: 6 | BN83: 6 | BO83: 16 | BP83: 4 | BQ83: 7 | BR83: 6 | BS83: 17 | BT83: ناجحة | BU83: 58
A84: 77 | B84: 262 | C84: طالبة منتظمة262 | D84: 8/1 | E84: 363 | F84: 9 | G84: 8 | H84: 8 | I84: 25 | J84: 9 | K84: 6 | L84: 5 | M84: 20 | N84: 5 | O84: 7 | P84: 8 | Q84: 20 | R84: 9 | S84: 12 | T84: 14 | U84: 35 | V84: 9 | W84: 11 | X84: 16 | Y84: 36 | Z84: 9 | AA84: 7 | AB84: 13 | AC84: 29 | AD84: 9 | AE84: 14 | AF84: 17 | AG84: 40 | AH84: 9 | AI84: 17 | AJ84: 17 | AK84: 43 | AL84: 9 | AM84: 17 | AN84: 17 | AO84: 43 | AP84: 9 | AQ84: 13 | AR84: 13 | AS84: 35 | AT84: 5 | AU84: 7 | AV84: 8 | AW84: 20 | AX84: 7 | AY84: 10 | AZ84: 6 | BA84: 23 | BB84: 3 | BC84: 5 | BD84: 7 | BE84: 10 | BF84: 7 | BG84: 10 | BH84: 17 | BI84: 25 | BJ84: 42 | BK84: 411 | BL84: 4 | BM84: 4 | BN84: 5 | BO84: 13 | BP84: 4 | BQ84: 6 | BR84: 2 | BS84: 12 | BT84: ناجحة | BU84: 135
A85: 78 | B85: 263 | C85: طالبة منتظمة263 | D85: 8/1 | E85: 364 | F85: 9 | G85: 8 | H85: 10 | I85: 27 | J85: 9 | K85: 5 | L85: 6 | M85: 20 | N85: 5 | O85: 6 | P85: 8 | Q85: 19 | R85: 9 | S85: 7 | T85: 14 | U85: 30 | V85: 9 | W85: 18 | X85: 13 | Y85: 40 | Z85: 9 | AA85: 13 | AB85: 16 | AC85: 38 | AD85: 9 | AE85: 18 | AF85: 19 | AG85: 46 | AH85: 9 | AI85: 18 | AJ85: 18 | AK85: 45 | AL85: 9 | AM85: 18 | AN85: 15 | AO85: 42 | AP85: 9 | AQ85: 18 | AR85: 18 | AS85: 45 | AT85: 5 | AU85: 3 | AV85: 7 | AW85: 15 | AX85: 7 | AY85: 13 | AZ85: 7 | BA85: 27 | BB85: 3 | BC85: 5 | BD85: 7 | BE85: 8 | BF85: 7 | BG85: 8 | BH85: 17 | BI85: 21 | BJ85: 38 | BK85: 432 | BL85: 4 | BM85: 5 | BN85: 5 | BO85: 14 | BP85: 4 | BQ85: 8 | BR85: 5 | BS85: 17 | BT85: ناجحة | BU85: 84
A86: 79 | B86: 264 | C86: طالبة منتظمة264 | D86: 8/1 | E86: 365 | F86: 9 | G86: 13 | H86: 11 | I86: 33 | J86: 9 | K86: 12 | L86: 12 | M86: 33 | N86: 5 | O86: 9 | P86: 9 | Q86: 23 | R86: 9 | S86: 15 | T86: 17 | U86: 41 | V86: 9 | W86: 17 | X86: 16 | Y86: 42 | Z86: 9 | AA86: 10 | AB86: 19 | AC86: 38 | AD86: 9 | AE86: 15 | AF86: 18 | AG86: 42 | AH86: 9 | AI86: 18 | AJ86: 18 | AK86: 45 | AL86: 9 | AM86: 18 | AN86: 19 | AO86: 46 | AP86: 9 | AQ86: 13 | AR86: 13 | AS86: 35 | AT86: 5 | AU86: 11 | AV86: 10 | AW86: 26 | AX86: 7 | AY86: 15 | AZ86: 11 | BA86: 33 | BB86: 3 | BC86: 5 | BD86: 7 | BE86: 9 | BF86: 7 | BG86: 9 | BH86: 17 | BI86: 23 | BJ86: 40 | BK86: 477 | BL86: 4 | BM86: 7 | BN86: 7 | BO86: 18 | BP86: 4 | BQ86: 8 | BR86: 7 | BS86: 19 | BT86: ناجحة | BU86: 14
A87: 80 | B87: 265 | C87: طالبة منتظمة265 | D87: 8/1 | E87: 366 | F87: 9 | G87: 10 | H87: 8 | I87: 27 | J87: 9 | K87: 8 | L87: 10 | M87: 27 | N87: 5 | O87: 9 | P87: 9 | Q87: 23 | R87: 9 | S87: 4 | T87: 17 | U87: 30 | V87: 9 | W87: 17 | X87: 15 | Y87: 41 | Z87: 9 | AA87: 7 | AB87: 18 | AC87: 34 | AD87: 9 | AE87: 17 | AF87: 18 | AG87: 44 | AH87: 9 | AI87: 17 | AJ87: 17 | AK87: 43 | AL87: 9 | AM87: 18 | AN87: 16 | AO87: 43 | AP87: 9 | AQ87: 10 | AR87: 10 | AS87: 29 | AT87: 5 | AU87: 8 | AV87: 9 | AW87: 22 | AX87: 7 | AY87: 13 | AZ87: 9 | BA87: 29 | BB87: 3 | BC87: 5 | BD87: 7 | BE87: 10 | BF87: 7 | BG87: 10 | BH87: 17 | BI87: 25 | BJ87: 42 | BK87: 434 | BL87: 4 | BM87: 6 | BN87: 6 | BO87: 16 | BP87: 4 | BQ87: 8 | BR87: 6 | BS87: 18 | BT87: ناجحة | BU87: 78
A88: 81 | B88: 266 | C88: طالبة منتظمة266 | D88: 8/1 | E88: 367 | F88: 9 | G88: 11 | H88: 9 | I88: 29 | J88: 9 | K88: 8 | L88: 7 | M88: 24 | N88: 5 | O88: 6 | P88: 7 | Q88: 18 | R88: 9 | S88: 7 | T88: 16 | U88: 32 | V88: 9 | W88: 16 | X88: 18 | Y88: 43 | Z88: 9 | AA88: 14 | AB88: 18 | AC88: 41 | AD88: 9 | AE88: 18 | AF88: 18 | AG88: 45 | AH88: 9 | AI88: 18 | AJ88: 18 | AK88: 45 | AL88: 9 | AM88: 19 | AN88: 18 | AO88: 46 | AP88: 9 | AQ88: 10 | AR88: 10 | AS88: 29 | AT88: 5 | AU88: 6 | AV88: 10 | AW88: 21 | AX88: 7 | AY88: 14 | AZ88: 11 | BA88: 32 | BB88: 3 | BC88: 5 | BD88: 7 | BE88: 11 | BF88: 7 | BG88: 11 | BH88: 17 | BI88: 27 | BJ88: 44 | BK88: 449 | BL88: 4 | BM88: 5 | BN88: 5 | BO88: 14 | BP88: 4 | BQ88: 7 | BR88: 5 | BS88: 16 | BT88: ناجحة | BU88: 46
A89: 82 | B89: 268 | C89: طالبة منتظمة268 | D89: 8/1 | E89: 369 | F89: 9 | G89: 12 | H89: 12 | I89: 33 | J89: 9 | K89: 9 | L89: 6 | M89: 24 | N89: 5 | O89: 7 | P89: 7 | Q89: 19 | R89: 9 | S89: 13 | T89: 15 | U89: 37 | V89: 9 | W89: 16 | X89: 17 | Y89: 42 | Z89: 9 | AA89: 12 | AB89: 19 | AC89: 40 | AD89: 9 | AE89: 16 | AF89: 16 | AG89: 41 | AH89: 9 | AI89: 18 | AJ89: 18 | AK89: 45 | AL89: 9 | AM89: 18 | AN89: 18 | AO89: 45 | AP89: 9 | AQ89: 13 | AR89: 13 | AS89: 35 | AT89: 5 | AU89: 10 | AV89: 10 | AW89: 25 | AX89: 7 | AY89: 13 | AZ89: 11 | BA89: 31 | BB89: 3 | BC89: 5 | BD89: 8 | BE89: 11 | BF89: 8 | BG89: 11 | BH89: 19 | BI89: 27 | BJ89: 46 | BK89: 463 | BL89: 4 | BM89: 6 | BN89: 6 | BO89: 16 | BP89: 4 | BQ89: 7 | BR89: 6 | BS89: 17 | BT89: ناجحة | BU89: 23
A90: 83 | B90: 271 | C90: طالبة منتظمة271 | D90: 8/1 | E90: 101 | F90: 9 | G90: 9 | H90: 7 | I90: 25 | J90: 9 | K90: 7 | L90: 5 | M90: 21 | N90: 5 | O90: 5 | P90: 5 | Q90: 15 | R90: 9 | S90: 8 | T90: 8 | U90: 25 | V90: 9 | W90: 10 | X90: 12 | Y90: 31 | Z90: 9 | AA90: 5 | AB90: 16 | AC90: 30 | AD90: 9 | AE90: 18 | AF90: 18 | AG90: 45 | AH90: 9 | AI90: 16 | AJ90: 16 | AK90: 41 | AL90: 9 | AM90: 17 | AN90: 15 | AO90: 41 | AP90: 9 | AQ90: 10 | AR90: 10 | AS90: 29 | AT90: 5 | AU90: 5 | AV90: 9 | AW90: 19 | AX90: 7 | AY90: 12 | AZ90: 12 | BA90: 31 | BB90: 3 | BC90: 5 | BD90: 7 | BE90: 11 | BF90: 7 | BG90: 11 | BH90: 17 | BI90: 27 | BJ90: 44 | BK90: 397 | BL90: 4 | BM90: 4 | BN90: 4 | BO90: 12 | BP90: 4 | BQ90: 6 | BR90: 4 | BS90: 14 | BT90: ناجحة | BU90: 165
A91: 84 | B91: 273 | C91: طالبة منتظمة273 | D91: 8/1 | E91: 103 | F91: 9 | G91: 13 | H91: 12 | I91: 34 | J91: 9 | K91: 8 | L91: 6 | M91: 23 | N91: 5 | O91: 4 | P91: 4 | Q91: 13 | R91: 9 | S91: 10 | T91: 13 | U91: 32 | V91: 9 | W91: 16 | X91: 19 | Y91: 44 | Z91: 9 | AA91: 14 | AB91: 15 | AC91: 38 | AD91: 9 | AE91: 18 | AF91: 18 | AG91: 45 | AH91: 9 | AI91: 16 | AJ91: 16 | AK91: 41 | AL91: 9 | AM91: 17 | AN91: 20 | AO91: 46 | AP91: 9 | AQ91: 13 | AR91: 13 | AS91: 35 | AT91: 5 | AU91: 5 | AV91: 7 | AW91: 17 | AX91: 7 | AY91: 11 | AZ91: 9 | BA91: 27 | BB91: 3 | BC91: 5 | BD91: 7 | BE91: 11 | BF91: 7 | BG91: 11 | BH91: 17 | BI91: 27 | BJ91: 44 | BK91: 439 | BL91: 4 | BM91: 6 | BN91: 6 | BO91: 16 | BP91: 4 | BQ91: 7 | BR91: 6 | BS91: 17 | BT91: ناجحة | BU91: 64
A92: 85 | B92: 274 | C92: طالبة منتظمة274 | D92: 2/1 | E92: 104 | F92: 9 | G92: 8 | H92: 8 | I92: 25 | J92: 9 | K92: 6 | L92: 7 | M92: 22 | N92: 5 | O92: 9 | P92: 9 | Q92: 23 | R92: 9 | S92: 12 | T92: 16 | U92: 37 | V92: 9 | W92: 16 | X92: 20 | Y92: 45 | Z92: 9 | AA92: 15 | AB92: 17 | AC92: 41 | AD92: 9 | AE92: 18 | AF92: 19 | AG92: 46 | AH92: 9 | AI92: 18 | AJ92: 18 | AK92: 45 | AL92: 9 | AM92: 18 | AN92: 18 | AO92: 45 | AP92: 9 | AQ92: 10 | AR92: 10 | AS92: 29 | AT92: 5 | AU92: 11 | AV92: 9 | AW92: 25 | AX92: 7 | AY92: 12 | AZ92: 9 | BA92: 28 | BB92: 3 | BC92: 5 | BD92: 7 | BE92: 11 | BF92: 7 | BG92: 11 | BH92: 17 | BI92: 27 | BJ92: 44 | BK92: 455 | BL92: 4 | BM92: 7 | BN92: 7 | BO92: 18 | BP92: 4 | BQ92: 7 | BR92: 7 | BS92: 18 | BT92: ناجحة | BU92: 35
A93: 86 | B93: 275 | C93: طالبة منتظمة275 | D93: 2/1 | E93: 105 | F93: 9 | G93: 10 | H93: 9 | I93: 28 | J93: 9 | K93: 3 | L93: 8 | M93: 20 | N93: 5 | O93: 9 | P93: 9 | Q93: 23 | R93: 9 | S93: 8 | T93: 13 | U93: 30 | V93: 9 | W93: 13 | X93: 18 | Y93: 40 | Z93: 9 | AA93: 7 | AB93: 13 | AC93: 29 | AD93: 9 | AE93: 17 | AF93: 16 | AG93: 42 | AH93: 9 | AI93: 15 | AJ93: 15 | AK93: 39 | AL93: 9 | AM93: 18 | AN93: 16 | AO93: 43 | AP93: 9 | AQ93: 10 | AR93: 10 | AS93: 29 | AT93: 5 | AU93: 11 | AV93: 8 | AW93: 24 | AX93: 7 | AY93: 11 | AZ93: 9 | BA93: 27 | BB93: 3 | BC93: 5 | BD93: 7 | BE93: 11 | BF93: 7 | BG93: 11 | BH93: 17 | BI93: 27 | BJ93: 44 | BK93: 418 | BL93: 4 | BM93: 7 | BN93: 7 | BO93: 18 | BP93: 4 | BQ93: 8 | BR93: 7 | BS93: 19 | BT93: ناجحة | BU93: 113
A94: 87 | B94: 276 | C94: طالبة منتظمة276 | D94: 2/1 | E94: 106 | F94: 9 | G94: 7 | H94: 10 | I94: 26 | J94: 9 | K94: 12 | L94: 9 | M94: 30 | N94: 5 | O94: 10 | P94: 10 | Q94: 25 | R94: 9 | S94: 10 | T94: 14 | U94: 33 | V94: 9 | W94: 17 | X94: 19 | Y94: 45 | Z94: 9 | AA94: 12 | AB94: 16 | AC94: 37 | AD94: 9 | AE94: 17 | AF94: 18 | AG94: 44 | AH94: 9 | AI94: 18 | AJ94: 18 | AK94: 45 | AL94: 9 | AM94: 18 | AN94: 16 | AO94: 43 | AP94: 9 | AQ94: 11 | AR94: 11 | AS94: 31 | AT94: 5 | AU94: 10 | AV94: 9 | AW94: 24 | AX94: 7 | AY94: 13 | AZ94: 11 | BA94: 31 | BB94: 3 | BC94: 5 | BD94: 7 | BE94: 12 | BF94: 7 | BG94: 12 | BH94: 17 | BI94: 29 | BJ94: 46 | BK94: 460 | BL94: 4 | BM94: 8 | BN94: 8 | BO94: 20 | BP94: 4 | BQ94: 8 | BR94: 8 | BS94: 20 | BT94: ناجحة | BU94: 25
A95: 88 | B95: 277 | C95: طالبة منتظمة277 | D95: 8/1 | E95: 107 | F95: 9 | G95: 11 | H95: 11 | I95: 31 | J95: 9 | K95: 9 | L95: 9 | M95: 27 | N95: 5 | O95: 10 | P95: 10 | Q95: 25 | R95: 9 | S95: 12 | T95: 15 | U95: 36 | V95: 9 | W95: 16 | X95: 17 | Y95: 42 | Z95: 9 | AA95: 8 | AB95: 18 | AC95: 35 | AD95: 9 | AE95: 17 | AF95: 20 | AG95: 46 | AH95: 9 | AI95: 18 | AJ95: 18 | AK95: 45 | AL95: 9 | AM95: 18 | AN95: 19 | AO95: 46 | AP95: 9 | AQ95: 13 | AR95: 13 | AS95: 35 | AT95: 5 | AU95: 10 | AV95: 10 | AW95: 25 | AX95: 7 | AY95: 15 | AZ95: 10 | BA95: 32 | BB95: 3 | BC95: 5 | BD95: 7 | BE95: 11 | BF95: 7 | BG95: 11 | BH95: 17 | BI95: 27 | BJ95: 44 | BK95: 469 | BL95: 4 | BM95: 7 | BN95: 7 | BO95: 18 | BP95: 4 | BQ95: 7 | BR95: 7 | BS95: 18 | BT95: ناجحة | BU95: 18
A96: 89 | B96: 279 | C96: طالبة منتظمة279 | D96: 8/1 | E96: 109 | F96: 9 | G96: 10 | H96: 9 | I96: 28 | J96: 9 | K96: 5 | L96: 6 | M96: 20 | N96: 5 | O96: 8 | P96: 8 | Q96: 21 | R96: 9 | S96: 12 | T96: 16 | U96: 37 | V96: 9 | W96: 8 | X96: 16 | Y96: 33 | Z96: 9 | AA96: 12 | AB96: 19 | AC96: 40 | AD96: 9 | AE96: 12 | AF96: 16 | AG96: 37 | AH96: 9 | AI96: 18 | AJ96: 18 | AK96: 45 | AL96: 9 | AM96: 18 | AN96: 15 | AO96: 42 | AP96: 9 | AQ96: 12 | AR96: 12 | AS96: 33 | AT96: 5 | AU96: 8 | AV96: 10 | AW96: 23 | AX96: 7 | AY96: 8 | AZ96: 6 | BA96: 21 | BB96: 3 | BC96: 5 | BD96: 7 | BE96: 9 | BF96: 7 | BG96: 9 | BH96: 17 | BI96: 23 | BJ96: 40 | BK96: 420 | BL96: 4 | BM96: 5 | BN96: 5 | BO96: 14 | BP96: 4 | BQ96: 7 | BR96: 5 | BS96: 16 | BT96: ناجحة | BU96: 109
A97: 90 | B97: 280 | C97: طالبة منتظمة280 | D97: 2/1 | E97: 110 | F97: 9 | G97: 8 | H97: 11 | I97: 28 | J97: 9 | K97: 12 | L97: 10 | M97: 31 | N97: 5 | O97: 9 | P97: 9 | Q97: 23 | R97: 9 | S97: 14 | T97: 16 | U97: 39 | V97: 9 | W97: 13 | X97: 19 | Y97: 41 | Z97: 9 | AA97: 18 | AB97: 18 | AC97: 45 | AD97: 9 | AE97: 10 | AF97: 19 | AG97: 38 | AH97: 9 | AI97: 18 | AJ97: 18 | AK97: 45 | AL97: 9 | AM97: 18 | AN97: 17 | AO97: 44 | AP97: 9 | AQ97: 12 | AR97: 12 | AS97: 33 | AT97: 5 | AU97: 6 | AV97: 11 | AW97: 22 | AX97: 7 | AY97: 8 | AZ97: 7 | BA97: 22 | BB97: 3 | BC97: 5 | BD97: 7 | BE97: 10 | BF97: 7 | BG97: 10 | BH97: 17 | BI97: 25 | BJ97: 42 | BK97: 453 | BL97: 4 | BM97: 7 | BN97: 7 | BO97: 18 | BP97: 4 | BQ97: 8 | BR97: 7 | BS97: 19 | BT97: ناجحة | BU97: 39
A98: 91 | B98: 281 | C98: طالبة منتظمة281 | D98: 4/1 | E98: 111 | F98: 9 | G98: 8 | H98: 8 | I98: 25 | J98: 9 | K98: 12 | L98: 8 | M98: 29 | N98: 5 | O98: 7 | P98: 7 | Q98: 19 | R98: 9 | S98: 15 | T98: 19 | U98: 43 | V98: 9 | W98: 15 | X98: 17 | Y98: 41 | Z98: 9 | AA98: 15 | AB98: 15 | AC98: 39 | AD98: 9 | AE98: 12 | AF98: 19 | AG98: 40 | AH98: 9 | AI98: 18 | AJ98: 18 | AK98: 45 | AL98: 9 | AM98: 17 | AN98: 17 | AO98: 43 | AP98: 9 | AQ98: 15 | AR98: 15 | AS98: 39 | AT98: 5 | AU98: 5 | AV98: 11 | AW98: 21 | AX98: 7 | AY98: 9 | AZ98: 8 | BA98: 24 | BB98: 3 | BC98: 5 | BD98: 7 | BE98: 12 | BF98: 7 | BG98: 12 | BH98: 17 | BI98: 29 | BJ98: 46 | BK98: 454 | BL98: 4 | BM98: 6 | BN98: 6 | BO98: 16 | BP98: 4 | BQ98: 8 | BR98: 6 | BS98: 18 | BT98: ناجحة | BU98: 38
